Workbook

Sheet Meta data (hidden)
B1: Return Type | D1: Action | F1: Form Num. | H1: Sales | L1: Purchase | R1: Financial Year | T1: Financial Year | U1: Period Description | V1: Period | W1: Period Start Date | X1: Period End Date | Z1: 2015-2016 | AA1: 2016-2017 | AB1: 2017-2018 | AC1: 2018-2019 | AG1: Transaction Code | AH1: Discription of Transaction type | AJ1: Transaction Code | AK1: Discription of Transaction type | AM1: Percent | AO1: Condition | AP1: TYPE OF RETURN | AQ1: Location Master | AS1: Sales-Guide as on 13-Feb-2016 | AX1: Purchase Guide as on 13-Feb-2016 | BB1: Percent | BG1: TYPE OF RETURN | BI1: RETURN POSITION | BK1: SRNO | BL1: TYPE/COMBINATION | BP1: Form | BQ1: 231_BCAP | BR1: 232_BCBP | BS1: 233_BCCP | BT1: 234_BCDP | BU1: 235_BCEP | BZ1: Form | CA1: 231_BCA | CB1: 233_BCC | CC1: 234_BCD | CD1: 235_BCE | CE1: CST_CSTT | CM1: Return Type | CN1: Financial Year | CO1: fy_fivsix | CP1: fy_sixsev | CQ1: fy_seveig | CR1: fy_eignin | CS1: fy_ninten
B2: Return | F2: 231 | H2: CODE | I2: NAME | J2: Description | L2: CODE | M2: NAME | N2: PURCHASE TYPE | O2: Discription | R2: 2016-2017 | T2: 2016-2017 | U2: 2016 April | V2: 1601 | W2: 01.04.2016 | X2: 30.04.2016 | Z2: 2015 April | AA2: 2016 April | AB2: 2017 April | AC2: 2018 April | AG2: PGR | AH2: Purchase Good Return | AJ2: 100 | AK2: Sales to TIN Holder (Local or OMS excluding against C-Form) | AM2: 0.01 | AO2: YES | AP2: ORIGINAL | AQ2: AHMEDNAGAR | AS2: CODE | AT2: NAME | AU2: Description | AX2: CODE | AY2: NAME | AZ2: Discription | BB2: 0.01 | BE2: Type of Unit | BG2: FORM 231 | BI2: YES | BK2: 1 | BL2: 231 | BP2: 231 | BQ2: 10 | BR2: 10 | BS2: 10 | BT2: 10 | BU2: 10 | BZ2: 231 | CA2: 100 | CB2: 100 | CC2: 100 | CD2: 100 | CE2: 100 | CG2: =IF(CF2=231,BCA,IF(CF2=233,BCC,IF(CF2=234,BCD,IF(CF2=235,BCE,CSTT)))) -> 100 | CN2: 2015-2016 | CO2: 2015 April | CP2: 2016 April | CQ2: 2017 April | CR2: 2018 April | CS2: 2019 April | CT2: =IF(CM2=2016-2017,fy_sixsev,IF(CM2=2017-2018,fy_seveig,IF(CM2=2018-2019,fy_eignin,fy_ninten))) -> 2019 April
B3: Revised Return | D3: D | F3: 232 | H3: 100 | I3: Sales to TIN Holder (Local or OMS excluding against C-Form) | J3: Sales of taxable goods to TIN Holders | L3: 10 | M3: Purchases from RD | N3: P10-Purchases from RD eligible for set-off | O3: Within the State purchases of taxable goods from registered dealers | R3: 2017-2018 | T3: 2016-2017 | U3: 2016 May | V3: 1602 | W3: 01.05.2016 | X3: 31.05.2016 | Z3: 2015 May | AA3: 2016 May | AB3: 2017 May | AC3: 2018 May | AG3: PDN | AH3: Purchase Debit Note | AJ3: 200 | AK3: Sales to Non-TIN Holder (Local or OMS) | AM3: 0.011 | AO3: NO | AP3: REVISED u/s 20(4)(a) | AQ3: AKOLA | AS3: 100 | AT3: Sales to TIN Holder ( Within the State or Interstate excluding against Forms/ declaration) | AU3: Sales of taxable goods to TIN Holders | AX3: 10 | AY3: Within the State Purchases from RD | AZ3: Within the State purchases of taxable goods from registered dealers ( For Manufacturing / Trading) | BB3: 0.011 | BE3: Original/ New Unit | BG3: FORM 231 AND CST | BI3: NO | BK3: 2 | BL3: 232 | BP3: 232 | BQ3: 15 | BR3: 15 | BS3: 15 | BT3: 15 | BU3: 15 | BZ3: 233 | CA3: 200 | CB3: 200 | CC3: 200 | CD3: 200 | CE3: 200 | CI3: 2015-2016 | CJ3: fy_fivsix | CM3: 2 | CN3: 2015-2016 | CO3: 2015 May | CP3: 2016 May | CQ3: 2017 May | CR3: 2018 May | CS3: 2019 May
B4: Annual Revised Return | F4: 233 | H4: 200 | I4: Sales to Non-TIN Holder (Local or OMS) | J4: Sales of taxable goods to Non TIN Holders other than Composition | L4: 20 | M4: Local URD Purchases | N4: P50-Local URD purchases | O4: Within the State purchases of taxable goods from un-registered dealers | R4: 2018-2019 | T4: 2016-2017 | U4: 2016 June | V4: 1603 | W4: 01.06.2016 | X4: 30.06.2016 | Z4: 2015 June | AA4: 2016 June | AB4: 2017 June | AC4: 2018 June | AG4: P070 | AH4: Imports (Direct) | AJ4: 300 | AK4: Branch Transfer / Consignment (Local or OMS) | AM4: 0.015 | AP4: REVISED u/s 20(4)(b) | AQ4: ALIBAG | AS4: 200 | AT4: Sales to Non-TIN Holder ( Within the State or Interstate ) | AU4: Sales of taxable goods to Non TIN Holders other than Composition | AX4: 15 | AY4: Within the State Purchases from RD ( Capital Asset ) | AZ4: Within the State purchases of taxable goods from registered dealers ( Capital Asset ) | BB4: 0.015 | BE4: Expansion Unit | BG4: FORM 232 | BK4: 3 | BL4: 233 | BP4: 233 | BQ4: 20 | BR4: 20 | BS4: 20 | BT4: 20 | BU4: 20 | BZ4: 234 | CA4: 300 | CB4: 300 | CC4: 300 | CD4: 300 | CE4: 300 | CI4: 2016-2017 | CJ4: fy_sixsev | CK4: 2016 Yearly | CN4: 2015-2016 | CO4: 2015 June | CP4: 2016 June | CQ4: 2017 June | CR4: 2018 June | CS4: 2019 June
F5: 234 | H5: 300 | I5: Branch Transfer / Consignment (Local or OMS) | J5: Value of Branch Transfers / consignment transfers, If Tax is Paid by an Agent | L5: 35 | M5: Local Branch Transfer | N5: P60-Local Br. Tr. | O5: Within the State Branch Transfers /Consignment Transfers received where tax is to be paid by an Agent | T5: 2016-2017 | U5: 2016 July | V5: 1604 | W5: 01.07.2016 | X5: 31.07.2016 | Z5: 2015 July | AA5: 2016 July | AB5: 2017 July | AC5: 2018 July | AG5: P080 | AH5: Imports (High Seas) | AJ5: 600 | AK5: Sales Goods Return | AM5: 0.02 | AP5: REVISED u/s 20(4)(c) | AQ5: AMRAVATI | AS5: 300 | AT5: Branch Transfer / Consignment ( Within the State or Interstate ) | AU5: Value of Branch Transfers / consignment transfers, If Tax is Paid by an Agent | AX5: 20 | AY5: Within the State URD Purchases | AZ5: Within the State purchases of taxable goods from un-registered dealers | BB5: 0.02 | BG5: FORM 233 | BK5: 4 | BL5: 234 | BP5: 234 | BQ5: 30 | BR5: 30 | BS5: 30 | BT5: 30 | BU5: 30 | BZ5: 235 | CA5: 600 | CB5: 400 | CC5: 500 | CD5: 600 | CE5: 500 | CI5: 2017-2018 | CJ5: fy_seveig | CK5: 2017 Yearly | CN5: 2015-2016 | CO5: 2015 July | CP5: 2016 July | CQ5: 2017 July | CR5: 2018 July | CS5: 2019 July
F6: 235 | H6: 400 | I6: Retailer Composition | J6: Retailer Composition | L6: 30 | M6: Inter-State Branch Transfer | N6: P93-Interstate Br. Tr. | O6: Inter-State branch / consignment transfers received | T6: 2016-2017 | U6: 2016 August | V6: 1605 | W6: 01.08.2016 | X6: 31.08.2016 | Z6: 2015 August | AA6: 2016 August | AB6: 2017 August | AC6: 2018 August | AG6: P030 | AH6: Local Branch Transfer | AJ6: 700 | AK6: Sales Credit Note | AM6: 0.03 | AQ6: AURANGABAD | AS6: 400 | AT6: Composition u/s 42 (1), (2) | AU6: Retailer Composition | AX6: 30 | AY6: Inter-State Branch Transfer | AZ6: Inter-State branch / consignment transfers received | BB6: 0.03 | BE6: Mode of Incentive | BG6: FORM 233 AND CST | BI6: X | BK6: 5 | BL6: 235 | BP6: 235 | BQ6: 31 | BR6: 31 | BS6: 31 | BT6: 31 | BU6: 31 | BZ6: CST | CA6: 680 | CB6: 450 | CC6: 600 | CD6: 680 | CE6: 600 | CI6: 2018-2019 | CJ6: fy_eignin | CK6: 2018 Yearly | CN6: 2015-2016 | CO6: 2015 August | CP6: 2016 August | CQ6: 2017 August | CR6: 2018 August | CS6: 2019 August
F7: CST | H7: 410 | I7: Restaurant Composition | J7: Restaurant , Club, Caterer etc. under Composition | L7: 40 | M7: Inter-State Purchases against Form-C | N7: P94-Interstate Pur against Form C | O7: Interstate purchases of taxble goods against declaration in Form'C' | T7: 2016-2017 | U7: 2016 September | V7: 1606 | W7: 01.09.2016 | X7: 30.09.2016 | Z7: 2015 September | AA7: 2016 September | AB7: 2017 September | AC7: 2018 September | AG7: P065 | AH7: Local against H Form | AJ7: 930 | AK7: Sales to Consulate | AM7: 0.04 | AQ7: BARSHI | AS7: 450 | AT7: Works Contract Composition u/s 42(3), (3A) | AU7: Restaurant , Club, Caterer etc. under Composition | AX7: 31 | AY7: Purchase Good Return ( Inter-state Branch transfer) for Tr. Type 30 | BB7: 0.04 | BE7: Exemption | BG7: FORM 234 AND CST | BI7: √ | BK7: 6 | BL7: CST | BQ7: 32 | BR7: 32 | BS7: 32 | BT7: 32 | BU7: 32 | CA7: 700 | CB7: 460 | CC7: 680 | CD7: 700 | CE7: 610 | CI7: 2019-2020 | CJ7: fy_ninten | CK7: 2019 Yearly | CN7: 2015-2016 | CO7: 2015 September | CP7: 2016 September | CQ7: 2017 September | CR7: 2018 September | CS7: 2019 September
H8: 420 | I8: Baker Composition | J8: Baker under Composition | L8: 45 | M8: Local Purchases against Form-C | N8: P95-Local Pur against Form C | O8: Local purchases of taxble goods against declaration in Form'C' | T8: 2016-2017 | U8: 2016 October | V8: 1607 | W8: 01.10.2016 | X8: 31.10.2016 | Z8: 2015 October | AA8: 2016 October | AB8: 2017 October | AC8: 2018 October | AG8: P090 | AH8: Inter-State Purchases without Form | AJ8: 400 | AK8: Retailer Composition | AM8: 0.05 | AQ8: BEED | AS8: 460 | AT8: On Going Works Contract | AU8: Baker under Composition | AX8: 32 | AY8: Purchase Debit Note ( Inter-state Branch transfer) for Tr. Type 30 | BB8: 0.05 | BE8: Deferement | BG8: FORM 235 AND CST | BK8: 7 | BL8: 231_CST | BQ8: 35 | BR8: 35 | BS8: 35 | BT8: 35 | BU8: 35 | CA8: 780 | CB8: 470 | CC8: 700 | CD8: 780 | CE8: 620 | CN8: 2015-2016 | CO8: 2015 October | CP8: 2016 October | CQ8: 2017 October | CR8: 2018 October | CS8: 2019 October
H9: 430 | I9: Second Hand Motor Composition | J9: Second hand motor vehicles under Composition | L9: 50 | M9: Inter-State against Form-H | N9: P91-Interstate against H Form | O9: Interstate purchases of taxble goods against certificate in Form'H' | T9: 2016-2017 | U9: 2016 November | V9: 1608 | W9: 01.11.2016 | X9: 30.11.2016 | Z9: 2015 November | AA9: 2016 November | AB9: 2017 November | AC9: 2018 November | AG9: P040 | AH9: Inter-State Branch Transfer | AJ9: 410 | AK9: Restaurant Composition | AM9: 0.055 | AQ9: BHANDARA | AS9: 470 | AT9: On Going Lease Contract | AU9: Second hand motor vehicles under Composition | AX9: 35 | AY9: Within the State Branch Transfer | AZ9: Within the State Branch Transfers /Consignment Transfers received where tax is to be paid by an Agent | BB9: 0.08 | BG9: CST | BK9: 8 | BL9: 233_CST | BQ9: 36 | BR9: 36 | BS9: 36 | BT9: 36 | BU9: 36 | CA9: 800 | CB9: 480 | CC9: 780 | CD9: 800 | CE9: 630 | CN9: 2015-2016 | CO9: 2015 November | CP9: 2016 November | CQ9: 2017 November | CR9: 2018 November | CS9: 2019 November
H10: 440 | I10: Leasing Composition | J10: Leasing Business under Composition | L10: 55 | M10: Local against H Form | N10: P92-Local against H Form | O10: Local purchases of taxble goods against certificate in Form'H' | T10: 2016-2017 | U10: 2016 December | V10: 1609 | W10: 01.12.2016 | X10: 31.12.2016 | Z10: 2015 December | AA10: 2016 December | AB10: 2017 December | AC10: 2018 December | AG10: P050 | AH10: Inter-State Purchases against Form-C | AJ10: 420 | AK10: Baker Composition | AM10: 0.08 | AQ10: CHANDRAPUR | AS10: 480 | AT10: Amount of Sub-contract where tax paid by Sub-Contractor | AU10: Leasing Business under Composition | AX10: 36 | AY10: Purchase Good Return ( Within State Branch transfer) for Tr. Type 35 | BB10: 0.125 | BG10: COMBINATION OF FORM 231 & 234 AND CST | BK10: 9 | BL10: 234_CST | BQ10: 37 | BR10: 37 | BS10: 37 | BT10: 37 | BU10: 37 | CB10: 490 | CC10: 800 | CE10: 640 | CN10: 2015-2016 | CO10: 2015 December | CP10: 2016 December | CQ10: 2017 December | CR10: 2018 December | CS10: 2019 December
H11: 450 | I11: WCT Composition | J11: Works Contract under Composition | L11: 60 | M11: Imports (Direct) | N11: P80-Imports (Direct) | O11: Imports (Direct imports) | T11: 2016-2017 | U11: 2017 January | V11: 1610 | W11: 01.01.2017 | X11: 31.01.2017 | Z11: 2016 January | AA11: 2017 January | AB11: 2018 January | AC11: 2019 January | AG11: P055 | AH11: Local Purchases against Form-C | AJ11: 430 | AK11: Second Hand Motor Composition | AM11: 0.125 | AQ11: DHULE | AS11: 490 | AT11: Amount of Sub-contract where tax paid by Principal Contractor | AU11: Works Contract under Composition | AX11: 37 | AY11: Purchase Debit Note ( Within State Branch transfer) for Tr. Type 35 | BB11: 0.2 | BG11: COMBINATION OF FORM 233 & 234 AND CST | BK11: 10 | BL11: 235_CST | BQ11: 40 | BR11: 40 | BS11: 40 | BT11: 40 | BU11: 40 | CB11: 600 | CE11: 650 | CN11: 2015-2016 | CO11: 2016 January | CP11: 2017 January | CQ11: 2018 January | CR11: 2019 January | CS11: 2020 January
H12: 460 | I12: On Going Works Contract | J12: On Going Works Contract | L12: 65 | M12: Imports (High Seas) | N12: P90-Imports (High Seas) | O12: Imports (High seas purchases) | T12: 2016-2017 | U12: 2017 February | V12: 1611 | W12: 01.02.2017 | X12: 28.02.2017 | Z12: 2016 February | AA12: 2017 February | AB12: 2018 February | AC12: 2019 February | AG12: P020 | AH12: Local URD Purchases | AJ12: 440 | AK12: Leasing Composition | AM12: 0.13 | AQ12: GADCHIROLI | AS12: 500 | AT12: PSI Exempted Sales | AU12: On Going Works Contract | AX12: 40 | AY12: Inter-State Purchases against Form-C | AZ12: Interstate purchases of taxble goods against declaration in Form'C' | BB12: 0.21 | BG12: COMBINATION OF FORM 233 & 235 AND CST | BK12: 11 | BL12: 231_234 | BQ12: 41 | BR12: 41 | BS12: 41 | BT12: 41 | BU12: 41 | CB12: 680 | CE12: 660 | CN12: 2015-2016 | CO12: 2016 February | CP12: 2017 February | CQ12: 2018 February | CR12: 2019 February | CS12: 2020 February
H13: 470 | I13: On Going Lease Contract | J13: On Going Lease Contract | L13: 70 | M13: Inter-State Purchases without Form | N13: P70-Interstate Pur without Form | O13: Inter-State purchases (Excluding purchases against certificate in form 'H' and declaration in Form 'C') | T13: 2016-2017 | U13: 2017 March | V13: 1612 | W13: 01.03.2017 | X13: 31.03.2017 | Z13: 2016 March | AA13: 2017 March | AB13: 2018 March | AC13: 2019 March | AG13: P060 | AH13: Inter-State against Form-H | AJ13: 450 | AK13: WCT Composition | AM13: 0.2 | AQ13: GONDIA | AS13: 600 | AT13: Sales Goods Return for Tr. Type 100, 200, 400, 500, 800, 900 | AU13: On Going Lease Contract | AX13: 41 | AY13: Purchase Good Return ( Inter state Purchases against Form-C ) for Tr. Type 40 | BB13: 0.23 | BK13: 12 | BL13: 233_234 | BQ13: 42 | BR13: 42 | BS13: 42 | BT13: 42 | BU13: 42 | CB13: 690 | CE13: 670 | CN13: 2015-2016 | CO13: 2016 March | CP13: 2017 March | CQ13: 2018 March | CR13: 2019 March | CS13: 2020 March
H14: 480 | I14: Tax Paid by Sub-Contractor | J14: Tax Paid By Sub Contracter | L14: 80 | M14: Purchase Good Return | N14: SGN-Goods return within State | O14: Value of Goods Returned under MVAT Act . | T14: 2016-2017 | U14: 2016 1st Quarter | V14: 16Q1 | W14: 01.04.2016 | X14: 30.06.2016 | Z14: 2015 1st Quarter | AA14: 2016 1st Quarter | AB14: 2017 1st Quarter | AC14: 2018 1st Quarter | AG14: P010 | AH14: Purchases from RD | AJ14: 460 | AK14: On Going Works Contract | AM14: 0.21 | AQ14: JALGAON | AS14: 610 | AT14: Sales Goods Return ( Out side State) for Tr. Type 910 | AU14: Tax Paid By Sub Contracter | AX14: 42 | AY14: Purchase Debit Note ( Inter state Purchases against Form-C ) for Tr. Type 40 | BB14: 0.24 | BK14: 13 | BL14: 233_235 | BQ14: 45 | BR14: 45 | BS14: 45 | BT14: 45 | BU14: 45 | CB14: 700 | CE14: 680 | CN14: 2015-2016 | CO14: 2015 1st Quarter | CP14: 2016 1st Quarter | CQ14: 2017 1st Quarter | CR14: 2018 1st Quarter | CS14: 2019 1st Quarter
H15: 490 | I15: Tax Paid by Principal Contractor | J15: Tax Paid By Contracter | L15: 90 | M15: Purchase Debit Note | N15: SDN-Debit Note within State | O15: Value of reduction of sales price on account of rate difference and discount under MVAT Act . | T15: 2016-2017 | U15: 2016 2nd Quarter | V15: 16Q2 | W15: 01.07.2016 | X15: 30.09.2016 | Z15: 2015 2nd Quarter | AA15: 2016 2nd Quarter | AB15: 2017 2nd Quarter | AC15: 2018 2nd Quarter | AJ15: 470 | AK15: On Going Lease Contract | AM15: 0.23 | AQ15: JALNA | AS15: 620 | AT15: Sales Goods Return ( Sale in transit) for Tr. Type 920 | AU15: Tax Paid By Contracter | AX15: 45 | AY15: Within the State Purchases against Form-C (Purchase in transit u/s 6(2)) | AZ15: Local purchases of taxble goods against declaration in Form'C' | BB15: 0.25 | BK15: 14 | BL15: 231_234_CST | BQ15: 46 | BR15: 46 | BS15: 46 | BT15: 46 | BU15: 46 | CB15: 780 | CE15: 700 | CN15: 2015-2016 | CO15: 2015 2nd Quarter | CP15: 2016 2nd Quarter | CQ15: 2017 2nd Quarter | CR15: 2018 2nd Quarter | CS15: 2019 2nd Quarter
H16: 500 | I16: PSI Exempted Sales | J16: Sales of taxable goods fully exempted u/s. 8(4) [other than sales under section 8(1) | T16: 2016-2017 | U16: 2016 3rd Quarter | V16: 16Q3 | W16: 01.10.2016 | X16: 31.12.2016 | Z16: 2015 3rd Quarter | AA16: 2016 3rd Quarter | AB16: 2017 3rd Quarter | AC16: 2018 3rd Quarter | AJ16: 480 | AK16: Tax Paid by Sub-Contractor | AM16: 0.24 | AQ16: KALYAN | AS16: 630 | AT16: Sales Goods Return ( Consulate) for Tr. Type 930 | AU16: Sales of taxable goods fully exempted u/s. 8(4) [other than sales under section 8(1) | AX16: 46 | AY16: Purchase Good Return ( Within State purchases against Form-C ) for Tr. Type 45 | BB16: 0.26 | BK16: 15 | BL16: 233_234_CST | BQ16: 47 | BR16: 47 | BS16: 47 | BT16: 47 | BU16: 47 | CB16: 790 | CE16: 710 | CN16: 2015-2016 | CO16: 2015 3rd Quarter | CP16: 2016 3rd Quarter | CQ16: 2017 3rd Quarter | CR16: 2018 3rd Quarter | CS16: 2019 3rd Quarter
H17: 900 | I17: Sales against C Form | J17: 3a) Sales Taxable U/s. 8 (1) | T17: 2016-2017 | U17: 2016 4th Quarter | V17: 16Q4 | W17: 01.01.2017 | X17: 31.03.2017 | Z17: 2015 4th Quarter | AA17: 2016 4th Quarter | AB17: 2017 4th Quarter | AC17: 2018 4th Quarter | AJ17: 490 | AK17: Tax Paid by Principal Contractor | AM17: 0.25 | AQ17: KHAMGAON | AS17: 640 | AT17: Sales Goods Return ( Export against Form-H ) for Tr. Type 940 | AU17: Value of Goods Returned under MVAT Act / CST Act. | AX17: 47 | AY17: Purchase Debit Note ( Within State Puchases against Form-C ) for Tr. Type 45 | BB17: 0.27 | BK17: 16 | BL17: 233_235_CST | BQ17: 50 | BR17: 50 | BS17: 50 | BT17: 50 | BU17: 50 | CB17: 800 | CE17: 720 | CN17: 2015-2016 | CO17: 2015 4th Quarter | CP17: 2016 4th Quarter | CQ17: 2017 4th Quarter | CR17: 2018 4th Quarter | CS17: 2020 4th Quarter
H18: 910 | I18: Sales outside the State | J18: Turnover of Sales of Goods outside the State | T18: 2017-2018 | U18: 2017 April | V18: 1701 | W18: 01.04.2017 | X18: 30.04.2017 | AJ18: 500 | AK18: PSI Exempted Sales | AM18: 0.26 | AQ18: KOLHAPUR | AS18: 650 | AT18: Sales Goods Return ( Direct Export ) for Tr. Type 950 | AX18: 50 | AY18: Inter-State Purchases against Form-H | AZ18: Interstate purchases of taxble goods against certificate in Form'H' | BB18: 0.28 | BQ18: 51 | BR18: 51 | BS18: 51 | BT18: 51 | BU18: 51 | CE18: 730
H19: 920 | I19: Sales in Transit | J19: Interstate sales u/s 6(2) | T19: 2017-2018 | U19: 2017 May | V19: 1702 | W19: 01.05.2017 | X19: 31.05.2017 | AJ19: 900 | AK19: Sales against C Form | AM19: 0.27 | AQ19: LATUR | AS19: 660 | AT19: Sales Goods Return ( Sale in the course of Import ) for Tr. Type 960 | AX19: 51 | AY19: Purchase Good Return ( Inter State Purchases against Form-H ) for Tr. Type 50 | BB19: 0.29 | BQ19: 52 | BR19: 52 | BS19: 52 | BT19: 52 | BU19: 52 | CE19: 740
H20: 930 | I20: Sales to Consulate | J20: Turnover of interstate sales u/s 6(3) | T20: 2017-2018 | U20: 2017 June | V20: 1703 | W20: 01.06.2017 | X20: 30.06.2017 | AJ20: 910 | AK20: Sales outside the State | AM20: 0.28 | AQ20: MALEGAON | AS20: 670 | AT20: Sales Goods Return ( Sales against 8(6) ) for Tr. Type 970 | AX20: 52 | AY20: Purchase Debit Note ( Inter State Purchases against Form-H ) for Tr. Type 50 | BB20: 0.3 | BQ20: 55 | BR20: 55 | BS20: 55 | BT20: 55 | BU20: 55 | CE20: 750
H21: 940 | I21: Export on H Form | J21: Sales of the goods in the course of export out of India(against 'H' form) | T21: 2017-2018 | U21: 2017 July | V21: 1704 | W21: 01.07.2017 | X21: 31.07.2017 | AJ21: 920 | AK21: Sales in Transit | AM21: 0.29 | AQ21: MUMBAI | AS21: 680 | AT21: Sales Goods Return ( Branch Transfer/ consignment ) for Tr. Type 300 | AX21: 55 | AY21: Within the State Purchases against H Form | AZ21: Local purchases of taxble goods against certificate in Form'H' | BB21: 0.31 | BQ21: 56 | BR21: 56 | BS21: 56 | BT21: 56 | BU21: 56 | CE21: 760
H22: 950 | I22: Direct Export | J22: Sales of the goods in the course of export out of India(excluding 'H' form) | T22: 2017-2018 | U22: 2017 August | V22: 1705 | W22: 01.08.2017 | X22: 31.08.2017 | AJ22: 940 | AK22: Export on H Form | AM22: 0.3 | AQ22: NAGPUR | AS22: 690 | AT22: Sales Goods Return ( Sales WCT Composition ) for Tr. Type 450 | AX22: 56 | AY22: Purchase Good Return ( Within State Purchases against Form-H ) for Tr. Type 55 | BB22: 0.33 | BQ22: 57 | BR22: 57 | BS22: 57 | BT22: 57 | BU22: 57 | CE22: 770
H23: 960 | I23: Import Sales (High Seas) | J23: Sales of the goods in the course of import into India | T23: 2017-2018 | U23: 2017 September | V23: 1706 | W23: 01.09.2017 | X23: 30.09.2017 | AJ23: 950 | AK23: Direct Export | AM23: 0.31 | AQ23: NALASOPARA | AS23: 700 | AT23: Sales Credit Note for Tr. Type 100, 200, 400, 500, 800, 900 | AX23: 57 | AY23: Purchase Debit Note ( Within State Purchases against Form-H ) for Tr. Type 55 | BB23: 0.34 | BQ23: 60 | BR23: 60 | BS23: 60 | BT23: 60 | BU23: 60 | CE23: 780
H24: 970 | I24: Interstate Sales u/s 8(6), I Form | J24: Inter-state Sales Against Form-I | T24: 2017-2018 | U24: 2017 October | V24: 1707 | W24: 01.10.2017 | X24: 31.10.2017 | AJ24: 960 | AK24: Import Sales (High Seas) | AM24: 0.33 | AQ24: NANDED | AS24: 710 | AT24: Sales Credit Note ( Out side State) for Tr. Type 910 | AX24: 60 | AY24: Imports (Direct) | AZ24: Imports (Direct imports) | BB24: 0.4 | BQ24: 61 | BR24: 61 | BS24: 61 | BT24: 61 | BU24: 61 | CE24: 900
H25: 600 | I25: Sales Goods Return | J25: Value of Goods Returned under MVAT Act . | T25: 2017-2018 | U25: 2017 November | V25: 1708 | W25: 01.11.2017 | X25: 30.11.2017 | AJ25: 970 | AK25: Interstate Sales u/s 8(6), I Form | AM25: 0.34 | AQ25: NANDURBAR | AS25: 720 | AT25: Sales Credit Note ( Sale in transit) for Tr. Type 920 | AX25: 61 | AY25: Purchase Good Return ( Direct Import ) for Tr. Type 60 | BB25: 0.5 | BQ25: 62 | BR25: 62 | BS25: 62 | BT25: 62 | BU25: 62 | CE25: 910
H26: 700 | I26: Sales Credit Note | J26: Value of reduction of sales price on account of rate difference and discount under MVAT Act . | T26: 2017-2018 | U26: 2017 December | V26: 1709 | W26: 01.12.2017 | X26: 31.12.2017 | AM26: 0.4 | AQ26: NASHIK | AS26: 730 | AT26: Sales Credit Note ( Consulate) for Tr. Type 930 | AX26: 62 | AY26: Purchase Debit Note ( Direct Import ) for Tr. Type 60 | BQ26: 65 | BR26: 65 | BS26: 65 | BT26: 65 | BU26: 65 | CE26: 920
T27: 2017-2018 | U27: 2018 January | V27: 1710 | W27: 01.01.2018 | X27: 31.01.2018 | AM27: 0.5 | AQ27: OSMANABAD | AS27: 740 | AT27: Sales Credit Note ( Export against Form-H ) for Tr. Type 940 | AU27: Value of reduction of sales price on account of rate difference and discount under MVAT Act/ CST Act . | AX27: 65 | AY27: Imports (High Seas) | AZ27: Imports (High seas purchases) | BQ27: 66 | BR27: 66 | BS27: 66 | BT27: 66 | BU27: 66 | CE27: 930
T28: 2017-2018 | U28: 2018 February | V28: 1711 | W28: 01.02.2018 | X28: 28.02.2018 | AQ28: PALGHAR | AS28: 750 | AT28: Sales Credit Note ( Direct Export ) for Tr. Type 950 | AX28: 66 | AY28: Purchase Good Return ( High Seas ) for Tr. Type 65 | BQ28: 67 | BR28: 67 | BS28: 67 | BT28: 67 | BU28: 67 | CE28: 940
T29: 2017-2018 | U29: 2018 March | V29: 1712 | W29: 01.03.2018 | X29: 31.03.2018 | AQ29: PARBHANI | AS29: 760 | AT29: Sales Credit Note ( Sale in the course of Import ) for Tr. Type 960 | AX29: 67 | AY29: Purchase Debit Note ( High Seas ) for Tr. Type 65 | BQ29: 70 | BR29: 70 | BS29: 70 | BT29: 70 | BU29: 70 | CE29: 950
T30: 2017-2018 | U30: 2017 1st Quarter | V30: 17Q1 | W30: 01.04.2017 | X30: 30.06.2017 | AQ30: PUNE | AS30: 770 | AT30: Sales Credit Note ( Sales against 8(6) ) for Tr. Type 970 | AX30: 70 | AY30: Inter-State Purchases without Form | AZ30: Inter-State purchases (Excluding purchases against certificate in form 'H' and declaration in Form 'C') | BQ30: 71 | BR30: 71 | BS30: 71 | BT30: 71 | BU30: 71 | CE30: 960
T31: 2017-2018 | U31: 2017 2nd Quarter | V31: 17Q2 | W31: 01.07.2017 | X31: 30.09.2017 | AQ31: RAIGAD | AS31: 780 | AT31: Sales Credit Note ( Branch Transfer/ consignment ) for Tr. Type 300 | AX31: 71 | AY31: Purchase Good Return (Inter-State Purchases without Form ) for Tr. Type 70 | BQ31: 72 | BR31: 72 | BS31: 72 | BT31: 72 | BU31: 72 | CE31: 970
T32: 2017-2018 | U32: 2017 3rd Quarter | V32: 17Q3 | W32: 01.10.2017 | X32: 31.12.2017 | AQ32: RATNAGIRI | AS32: 790 | AT32: Sales Credit Note ( Sales WCT Composition ) for Tr. Type 450 | AX32: 72 | AY32: Purchase Debit Note ( Inter-State Purchases without Form ) for Tr. Type 70 | BQ32: 75 | BR32: 75 | BS32: 75 | BT32: 75 | BU32: 75
T33: 2017-2018 | U33: 2017 4th Quarter | V33: 17Q4 | W33: 01.01.2018 | X33: 31.03.2018 | AQ33: SANGLI | AS33: 800 | AT33: Deduction u/s 3(2) | AX33: 75 | AY33: Inter-State Purchases against Form-I | AZ33: Interstate purchases of taxble goods against certificate in Form 'I' | BQ33: 76 | BR33: 76 | BS33: 76 | BT33: 76 | BU33: 76
T34: 2018-2019 | U34: 2018 April | V34: 1801 | W34: 01.04.2018 | X34: 30.04.2018 | AQ34: SATARA | AS34: 900 | AT34: Sales against C Form | AX34: 76 | AY34: Purchase Good Return (Inter-State Purchases against Form-I ) for Tr. Type 75 | BQ34: 77 | BR34: 77 | BS34: 77 | BT34: 77 | BU34: 77
T35: 2018-2019 | U35: 2018 May | V35: 1802 | W35: 01.05.2018 | X35: 31.05.2018 | AQ35: SINDHUDURG | AS35: 910 | AT35: Sales outside the State (Sales effected outside the State of Maharashtra ) | AX35: 77 | AY35: Purchase Debit Note ( Inter-State Purchases against Form-I ) for Tr. Type 75 | BQ35: 80 | BR35: 80 | BS35: 80 | BT35: 80 | BU35: 80
T36: 2018-2019 | U36: 2018 June | V36: 1803 | W36: 01.06.2018 | X36: 30.06.2018 | AQ36: SOLAPUR | AS36: 920 | AT36: Sales in Transit | AX36: 80 | AY36: Deduction u/s 3(2) | AZ36: Deduction Under Section 3(2) for Newly Registered Dealer | BQ36: 90 | BR36: 90 | BS36: 90 | BT36: 90 | BU36: 90
T37: 2018-2019 | U37: 2018 July | V37: 1804 | W37: 01.07.2018 | X37: 31.07.2018 | AQ37: THANE | AS37: 930 | AT37: Inter-state Sales to Consulate | AU37: Deduction under Section 3(2) for newly registered dealer for URD period | AX37: 90 | AY37: Purchase Good Return for Tr. Type 10, 15, 80 | AZ37: Value of Goods Returned under MVAT Act . | BQ37: 91 | BR37: 91 | BS37: 91 | BT37: 91 | BU37: 91
T38: 2018-2019 | U38: 2018 August | V38: 1805 | W38: 01.08.2018 | X38: 31.08.2018 | AQ38: WARDHA | AS38: 940 | AT38: Export on H Form | AU38: Sales Taxable U/s. 8 (1) | AX38: 91 | AY38: Purchase Good Return ( Within the State URD ) for Tr. Type 20 | BQ38: 95 | BR38: 95 | BS38: 95 | BT38: 95 | BU38: 95
T39: 2018-2019 | U39: 2018 September | V39: 1806 | W39: 01.09.2018 | X39: 30.09.2018 | AQ39: WASHIM | AS39: 950 | AT39: Direct Export | AU39: Turnover of Sales of Goods outside the State | AX39: 95 | AY39: Purchase Debit Note for Tr. Type 10, 15, 80 | AZ39: Value of reduction of sales price on account of rate difference and discount under MVAT Act . | BQ39: 96 | BR39: 96 | BS39: 96 | BT39: 96 | BU39: 96
T40: 2018-2019 | U40: 2018 October | V40: 1807 | W40: 01.10.2018 | X40: 31.10.2018 | AQ40: YAVATMAL | AS40: 960 | AT40: Import Sales (High Seas) | AU40: Interstate sales u/s 6(2) | AX40: 96 | AY40: Purchase Debit Note (Within the State URD ) for Tr. Type 20
T41: 2018-2019 | U41: 2018 November | V41: 1808 | W41: 01.11.2018 | X41: 30.11.2018 | AS41: 970 | AT41: Interstate Sales u/s 8(6), Form-I | AU41: Turnover of interstate sales u/s 6(3)
T42: 2018-2019 | U42: 2018 December | V42: 1809 | W42: 01.12.2018 | X42: 31.12.2018 | AU42: Sales of the goods in the course of export out of India(against 'H' form)
T43: 2018-2019 | U43: 2019 January | V43: 1810 | W43: 01.01.2019 | X43: 31.01.2019 | AU43: Sales of the goods in the course of export out of India(excluding 'H' form)
T44: 2018-2019 | U44: 2019 February | V44: 1811 | W44: 01.02.2019 | X44: 28.02.2019 | AU44: Sales of the goods in the course of import into India
T45: 2018-2019 | U45: 2019 March | V45: 1812 | W45: 01.03.2019 | X45: 31.03.2019 | AU45: Inter-state Sales Against Form-I
T46: 2018-2019 | U46: 2018 1st Quarter | V46: 18Q1 | W46: 01.04.2018 | X46: 30.06.2018
T47: 2018-2019 | U47: 2018 2nd Quarter | V47: 18Q2 | W47: 01.07.2018 | X47: 30.09.2018
T48: 2018-2019 | U48: 2018 3rd Quarter | V48: 18Q3 | W48: 01.10.2018 | X48: 31.12.2018
T49: 2018-2019 | U49: 2018 4th Quarter | V49: 18Q4 | W49: 01.01.2019 | X49: 31.03.2019

Sheet Mapping (hidden)
A1: C5 | C1: E5
A2: C6
A3: C7 | C3: E7
A4: C8 | C4: E8
A5: C9 | C5: E9
A6: C11 | B6: D11 | C6: E11
A7: C12 | B7: D12 | C7: E12
A8: C14
A9: C15
A10: C16
A11: C17

Sheet Header
B4: HEADER
B5: M.V.A.T. R.C. No. | C5: 27981000061V | D5: CST. R.C. No. | E5: 27981000061C
B6: Name of Dealer | C6: ABC LTD
B7: Return Type | C7: ORIGINAL | D7: Return Forms to be Filed | E7: 231_CST
B8: Financial Year | C8: 2016-2017 | D8: Return Period | E8: 2016 July
B9: Whether First Return | C9: NO | D9: Whether Last Return | E9: NO
B10: Period Covered by Return
B11: From Date | C11: =I208 -> 01 | D11: =IF(I209="11","Nov",(IF(I209="12","Dec",(IF(I209="10","Oct",(IF(I209="09","Sep",(IF(I209="08","Aug",(IF(I209="07","Jul",(IF(I209="06","Jun",(IF(I209="05","May",(IF(I209="04","Apr",(IF(I209="03","Mar",(IF(I209="02","Feb",(IF(I209="01","Jan"," "))))))))))))))))))))))) -> Jul | E11: =IF(RIGHT(I207,4)="","",RIGHT(I207,4)) -> 2016
B12: To Date | C12: =J208 -> 31 | D12: =IF(J209="11","Nov",(IF(J209="12","Dec",(IF(J209="10","Oct",(IF(J209="09","Sep",(IF(J209="08","Aug",(IF(J209="07","Jul",(IF(J209="06","Jun",(IF(J209="05","May",(IF(J209="04","Apr",(IF(J209="03","Mar",(IF(J209="02","Feb",(IF(J209="01","Jan"," "))))))))))))))))))))))) -> Jul | E12: =IF(C8<>"",RIGHT(J207,4),"") -> 2016
B13: The details submitted are true and correct to the best of my knowledge and belief.
B14: Name Of Authorised Person* | C14: ABC LTD
B15: Designation* | C15: CA
B16: Mobile No* | C16: 1234567890
B17: E_mail_id* | C17: ca@gmail.com
B19: All Fields are Mandatory | G19: =MONTH("1"&D11) -> 7
F20: =IF(C5<>"",C5,IF(E5<>"",E5)) -> 27981000061V
CR28: M.VAT | CU28: CST
CR29: LEN | CS29: =LEN(C5) -> 12 | CU29: LEN | CV29: =LEN(E5) -> 12
CR30: RIGHT | CS30: =MID(C5,5,7) -> 1000061 | CU30: RIGHT | CV30: =MID(E5,5,7) -> 1000061
CR31: LEFT | CS31: =LEFT(C5,2) -> 27 | CU31: LEFT | CV31: =LEFT(E5,2) -> 27
CR32: MID | CS32: =MID(C5,3,2) -> 98 | CU32: MID | CV32: =MID(E5,3,2) -> 98
CR33: CONCATENATE | CS33: =CS30&CS31&CS32 -> 10000612798 | CU33: Concatenate | CV33: =CV30&CV31&CV32 -> 10000612798
CR34: MOD | CS34: =MOD(CS33,97) -> 1 | CU34: MOD | CV34: =MOD(CV33,97) -> 1
I203: =IF(C5<>"",C5,IF(E5<>"",E5)&"_"&C7) -> 27981000061V
H204: =(LEFT(C8,4 )&" "&"Yearly") -> 2016 Yearly | I204: =H204 -> 2016 Yearly
I207: =IFERROR(INDEX('Meta data'!W2:W49,MATCH(Header!C8&Header!E8,'Meta data'!T2:T49&'Meta data'!U2:U49,0)),"") -> 01.07.2016 | J207: =IFERROR(INDEX('Meta data'!X2:X49,MATCH(Header!C8&Header!E8,'Meta data'!T2:T49&'Meta data'!U2:U49,0)),"") -> 31.07.2016 | K207: =IFERROR(INDEX('Meta data'!X2:X49,MATCH(Header!C8&Header!E8,'Meta data'!T2:T49&'Meta data'!U2:U49,0)),"") -> 31.07.2016
I208: =LEFT(I207,2) -> 01 | J208: =IF(LEFT(J207,2)=0,"",LEFT(J207,2)) -> 31
I209: =MID(I207,4,2) -> 07 | J209: =MID(J207,4,2) -> 07
I210: =RIGHT(I207,4) -> 2016 | J210: =RIGHT(J207,4) -> 2016
I218: =IF(I209="11","Nov",(IF(I209="12","Dec",(IF(I209="10","Oct",(IF(I209="09","Sep",(IF(I209="08","Aug",(IF(I209="07","Jul",(IF(I209="06","Jun",(IF(I209="05","May",(IF(I209="04","Apr",(IF(I209="03","Mar",(IF(I209="02","Feb","Jan"))))))))))))))))))))) -> Jul | J218: =IF(J209="11","Nov",(IF(J209="12","Dec",(IF(J209="10","Oct",(IF(J209="09","Sep",(IF(J209="08","Aug",(IF(J209="07","Jul",(IF(J209="06","Jun",(IF(J209="05","May",(IF(J209="04","Apr",(IF(J209="03","Mar",(IF(J209="02","Feb","Jan"))))))))))))))))))))) -> Jul
J247: =IF(Header!C15,"","") -> 

Sheet Sales Annexure
Q1: Ver 1.1.1
A2: Annexure of Sales under M.V.A.T. Act, 2002 (See Rule 17, 17A,18 and 45)
A3: 1 | D3: M.V.A.T. R.C. No. | F3: =IF(Header!C5="","",Header!C5) -> 27981000061V | J3: C.S.T. R.C. NO | P3: =IF(Header!E5="","",Header!E5) -> 27981000061C
A4: 2 | D4: Name of Dealer | F4: =IF(ISBLANK(Header!C6),"",Header!C6) -> ABC LTD
A5: 3.Please Select which ever is Applicable | D5: Type of Return (Select appropriate) ( Drop down selection) | F5: =IF(ISBLANK(Header!C7),"",(Header!C7)) -> ORIGINAL | J5: Whether First Return ? (In Case of New Registration / Package scheme period) | Q5: =IF(ISBLANK(Header!C9),"",(Header!C9)) -> NO
D6: Periodicity of Return (Select appropriate) ( Drop down selection) | F6: =IF(ISBLANK(Header!C8),"",(Header!C8)) -> 2016-2017 | J6: Whether Last Return ? (In Case of Cancellation of Registration Or end of package scheme of incentive ) | Q6: =IF(ISBLANK(Header!E9),"",(Header!E9)) -> NO
A7: 4 | D7: Period Covered by Annexure | F7: From | G7: Date | H7: Month | I7: Year | K7: TO | L7: Date | N7: Month | P7: Year
G8: =IF(ISBLANK(Header!C11),"",(Header!C11)) -> 01 | H8: =IF(ISBLANK(Header!D11),"",(Header!D11)) -> Jul | I8: =IF(ISBLANK(Header!E11),"",(Header!E11)) -> 2016 | L8: =IF(ISBLANK(Header!C12),"",(Header!C12)) -> 31 | N8: =IF(ISBLANK(Header!D12),"",(Header!D12)) -> Jul | P8: =IF(ISBLANK(Header!E12),"",(Header!E12)) -> 2016
A9: Transactionwise Sales Details
A10: Gross Total | E10: =ROUND(SUM(E$13:E$1048576),0) -> 10500 | F10: =ROUND(SUM(F$13:F$1048576),0) -> 220 | G10: =ROUND(SUM(G$13:G$1048576),0) -> 5220 | H10: =ROUND(SUM(H$13:H$1048576),0) -> 0 | I10: =ROUND(SUM(I$13:I$1048576),0) -> 6000 | J10: =ROUND(SUM(J$13:J$1048576),0) -> 4000 | K10: =ROUND(SUM(K$13:K$1048576),0) -> 6000 | L10: =ROUND(SUM(L$13:L$1048576),0) -> 9500 | M10: =ROUND(SUM(M$13:M$1048576),0) -> 41440
A11: Sr. No. | B11: Invoice No. | C11: Date of Sale Invoice | D11: TIN of Purchaser (If Any ) | E11: Taxable Value OR Value of Composition u/s 42(3), (3A), (4) | G11: Value of Inclusive of Tax Rs. | H11: Value of Composition u/s 42 (1), (2) Rs. | I11: Tax Free Sales Rs. | J11: Exempted Sales u/s 41 & 8 Rs. | K11: Labour Charges Rs. | L11: Other Charges (Rs) | M11: Gross Total (Rs.) | N11: Action | O11: Return Form Number | P11: Transaction Code | Q11: Description of Transaction type
E12: Net Rs. | F12: TAX (If any) Rs.
A13: 1 | B13: 101 | C13: 2016-07-01 | D13: 27580000502 | E13: 100 | F13: 5 | M13: 105 | O13: 231 | P13: 100 | Q13: =IFERROR(VLOOKUP(P13,'Meta data'!AS$3:AT$41,2,0),"") -> Sales to TIN Holder ( Within the State or Interstate excluding against Forms/ declaration)
A14: 2 | B14: 102 | C14: 2016-07-02 | D14: 27890411078 | E14: 100 | F14: 5 | M14: 105 | O14: 231 | P14: 100 | Q14: =IFERROR(VLOOKUP(P14,'Meta data'!AS$3:AT$41,2,0),"") -> Sales to TIN Holder ( Within the State or Interstate excluding against Forms/ declaration)
A15: 3 | B15: 103 | C15: 2016-07-03 | D15: 27340012662 | E15: 100 | F15: 5 | M15: 105 | O15: 231 | P15: 100 | Q15: =IFERROR(VLOOKUP(P15,'Meta data'!AS$3:AT$41,2,0),"") -> Sales to TIN Holder ( Within the State or Interstate excluding against Forms/ declaration)
A16: 4 | B16: 104 | C16: 2016-07-04 | D16: 27880006060 | E16: 100 | F16: 5 | M16: 105 | O16: 231 | P16: 600 | Q16: =IFERROR(VLOOKUP(P16,'Meta data'!AS$3:AT$41,2,0),"") -> Sales Goods Return for Tr. Type 100, 200, 400, 500, 800, 900
A17: 5 | B17: 105 | C17: 2016-07-05 | D17: 27710299627 | E17: 100 | F17: 5 | M17: 105 | O17: 231 | P17: 700 | Q17: =IFERROR(VLOOKUP(P17,'Meta data'!AS$3:AT$41,2,0),"") -> Sales Credit Note for Tr. Type 100, 200, 400, 500, 800, 900
A18: 6 | B18: 106 | C18: 2016-07-06 | D18: 27790388629 | G18: 105 | M18: 105 | O18: 231 | P18: 100 | Q18: =IFERROR(VLOOKUP(P18,'Meta data'!AS$3:AT$41,2,0),"") -> Sales to TIN Holder ( Within the State or Interstate excluding against Forms/ declaration)
A19: 7 | B19: 107 | C19: 2016-07-07 | D19: 27480676744 | G19: 105 | M19: 105 | O19: 231 | P19: 100 | Q19: =IFERROR(VLOOKUP(P19,'Meta data'!AS$3:AT$41,2,0),"") -> Sales to TIN Holder ( Within the State or Interstate excluding against Forms/ declaration)
A20: 8 | B20: 108 | C20: 2016-07-08 | D20: 27640262466 | G20: 105 | M20: 105 | O20: 231 | P20: 100 | Q20: =IFERROR(VLOOKUP(P20,'Meta data'!AS$3:AT$41,2,0),"") -> Sales to TIN Holder ( Within the State or Interstate excluding against Forms/ declaration)
A21: 9 | B21: 109 | C21: 2016-07-09 | D21: 27740013218 | G21: 105 | M21: 105 | O21: 231 | P21: 600 | Q21: =IFERROR(VLOOKUP(P21,'Meta data'!AS$3:AT$41,2,0),"") -> Sales Goods Return for Tr. Type 100, 200, 400, 500, 800, 900
A22: 10 | B22: 110 | C22: 2016-07-10 | D22: 27270705426 | G22: 105 | M22: 105 | O22: 231 | P22: 700 | Q22: =IFERROR(VLOOKUP(P22,'Meta data'!AS$3:AT$41,2,0),"") -> Sales Credit Note for Tr. Type 100, 200, 400, 500, 800, 900
A23: 11 | B23: 111 | C23: 2016-07-11 | D23: 27850011169 | I23: 100 | M23: 100 | O23: 231 | P23: 100 | Q23: =IFERROR(VLOOKUP(P23,'Meta data'!AS$3:AT$41,2,0),"") -> Sales to TIN Holder ( Within the State or Interstate excluding against Forms/ declaration)
A24: 12 | B24: 112 | C24: 2016-07-12 | D24: 27100574424 | I24: 100 | M24: 100 | O24: 231 | P24: 100 | Q24: =IFERROR(VLOOKUP(P24,'Meta data'!AS$3:AT$41,2,0),"") -> Sales to TIN Holder ( Within the State or Interstate excluding against Forms/ declaration)
A25: 13 | B25: 113 | C25: 2016-07-13 | D25: 27480018696 | I25: 100 | M25: 100 | O25: 231 | P25: 100 | Q25: =IFERROR(VLOOKUP(P25,'Meta data'!AS$3:AT$41,2,0),"") -> Sales to TIN Holder ( Within the State or Interstate excluding against Forms/ declaration)
A26: 14 | B26: 114 | C26: 2016-07-14 | D26: 27790676719 | I26: 100 | M26: 100 | O26: 231 | P26: 600 | Q26: =IFERROR(VLOOKUP(P26,'Meta data'!AS$3:AT$41,2,0),"") -> Sales Goods Return for Tr. Type 100, 200, 400, 500, 800, 900
A27: 15 | B27: 115 | C27: 2016-07-15 | D27: 27060040946 | I27: 100 | M27: 100 | O27: 231 | P27: 700 | Q27: =IFERROR(VLOOKUP(P27,'Meta data'!AS$3:AT$41,2,0),"") -> Sales Credit Note for Tr. Type 100, 200, 400, 500, 800, 900
A28: 16 | B28: 116 | C28: 2016-07-16 | D28: 27860344310 | J28: 100 | M28: 100 | O28: 231 | P28: 100 | Q28: =IFERROR(VLOOKUP(P28,'Meta data'!AS$3:AT$41,2,0),"") -> Sales to TIN Holder ( Within the State or Interstate excluding against Forms/ declaration)
A29: 17 | B29: 117 | C29: 2016-07-17 | D29: 27150037453 | J29: 100 | M29: 100 | O29: 231 | P29: 100 | Q29: =IFERROR(VLOOKUP(P29,'Meta data'!AS$3:AT$41,2,0),"") -> Sales to TIN Holder ( Within the State or Interstate excluding against Forms/ declaration)
A30: 18 | B30: 118 | C30: 2016-07-18 | D30: 27040007686 | J30: 100 | M30: 100 | O30: 231 | P30: 100 | Q30: =IFERROR(VLOOKUP(P30,'Meta data'!AS$3:AT$41,2,0),"") -> Sales to TIN Holder ( Within the State or Interstate excluding against Forms/ declaration)
A31: 19 | B31: 119 | C31: 2016-07-19 | D31: 27210702549 | J31: 100 | M31: 100 | O31: 231 | P31: 600 | Q31: =IFERROR(VLOOKUP(P31,'Meta data'!AS$3:AT$41,2,0),"") -> Sales Goods Return for Tr. Type 100, 200, 400, 500, 800, 900
A32: 20 | B32: 120 | C32: 2016-07-20 | D32: 27150015046 | J32: 100 | M32: 100 | O32: 231 | P32: 700 | Q32: =IFERROR(VLOOKUP(P32,'Meta data'!AS$3:AT$41,2,0),"") -> Sales Credit Note for Tr. Type 100, 200, 400, 500, 800, 900
A33: 21 | B33: 121 | C33: 2016-07-21 | D33: 27880541985 | K33: 100 | M33: 100 | O33: 231 | P33: 100 | Q33: =IFERROR(VLOOKUP(P33,'Meta data'!AS$3:AT$41,2,0),"") -> Sales to TIN Holder ( Within the State or Interstate excluding against Forms/ declaration)
A34: 22 | B34: 122 | C34: 2016-07-22 | D34: 27440604598 | K34: 100 | M34: 100 | O34: 231 | P34: 100 | Q34: =IFERROR(VLOOKUP(P34,'Meta data'!AS$3:AT$41,2,0),"") -> Sales to TIN Holder ( Within the State or Interstate excluding against Forms/ declaration)
A35: 23 | B35: 123 | C35: 2016-07-23 | D35: 27380041061 | K35: 100 | M35: 100 | O35: 231 | P35: 100 | Q35: =IFERROR(VLOOKUP(P35,'Meta data'!AS$3:AT$41,2,0),"") -> Sales to TIN Holder ( Within the State or Interstate excluding against Forms/ declaration)
A36: 24 | B36: 124 | C36: 2016-07-24 | D36: 27760101089 | K36: 100 | M36: 100 | O36: 231 | P36: 600 | Q36: =IFERROR(VLOOKUP(P36,'Meta data'!AS$3:AT$41,2,0),"") -> Sales Goods Return for Tr. Type 100, 200, 400, 500, 800, 900
A37: 25 | B37: 125 | C37: 2016-07-25 | D37: 27530354531 | K37: 100 | M37: 100 | O37: 231 | P37: 700 | Q37: =IFERROR(VLOOKUP(P37,'Meta data'!AS$3:AT$41,2,0),"") -> Sales Credit Note for Tr. Type 100, 200, 400, 500, 800, 900
A38: 26 | B38: 126 | C38: 2016-07-26 | D38: 27060606747 | L38: 100 | M38: 100 | O38: 231 | P38: 100 | Q38: =IFERROR(VLOOKUP(P38,'Meta data'!AS$3:AT$41,2,0),"") -> Sales to TIN Holder ( Within the State or Interstate excluding against Forms/ declaration)
A39: 27 | B39: 127 | C39: 2016-07-27 | D39: 27840299022 | L39: 100 | M39: 100 | O39: 231 | P39: 100 | Q39: =IFERROR(VLOOKUP(P39,'Meta data'!AS$3:AT$41,2,0),"") -> Sales to TIN Holder ( Within the State or Interstate excluding against Forms/ declaration)
A40: 28 | B40: 128 | C40: 2016-07-28 | D40: 27200345643 | L40: 100 | M40: 100 | O40: 231 | P40: 100 | Q40: =IFERROR(VLOOKUP(P40,'Meta data'!AS$3:AT$41,2,0),"") -> Sales to TIN Holder ( Within the State or Interstate excluding against Forms/ declaration)
A41: 29 | B41: 129 | C41: 2016-07-29 | D41: 27980180605 | L41: 100 | M41: 100 | O41: 231 | P41: 600 | Q41: =IFERROR(VLOOKUP(P41,'Meta data'!AS$3:AT$41,2,0),"") -> Sales Goods Return for Tr. Type 100, 200, 400, 500, 800, 900
A42: 30 | B42: 130 | C42: 2016-07-30 | D42: 27690595973 | L42: 100 | M42: 100 | O42: 231 | P42: 700 | Q42: =IFERROR(VLOOKUP(P42,'Meta data'!AS$3:AT$41,2,0),"") -> Sales Credit Note for Tr. Type 100, 200, 400, 500, 800, 900
A43: 31 | B43: 131 | C43: 2016-07-01 | D43: 27200657789 | E43: 100 | F43: 5 | G43: 105 | H43: 0 | I43: 100 | J43: 100 | K43: 100 | L43: 100 | M43: 610 | O43: 231 | P43: 100 | Q43: =IFERROR(VLOOKUP(P43,'Meta data'!AS$3:AT$41,2,0),"") -> Sales to TIN Holder ( Within the State or Interstate excluding against Forms/ declaration)
A44: 32 | B44: 132 | C44: 2016-07-02 | D44: 27730677819 | E44: 100 | F44: 5 | G44: 105 | H44: 0 | I44: 100 | J44: 100 | K44: 100 | L44: 100 | M44: 610 | O44: 231 | P44: 100 | Q44: =IFERROR(VLOOKUP(P44,'Meta data'!AS$3:AT$41,2,0),"") -> Sales to TIN Holder ( Within the State or Interstate excluding against Forms/ declaration)
A45: 33 | B45: 133 | C45: 2016-07-03 | D45: 27890708480 | E45: 100 | F45: 5 | G45: 105 | H45: 0 | I45: 100 | J45: 100 | K45: 100 | L45: 100 | M45: 610 | O45: 231 | P45: 100 | Q45: =IFERROR(VLOOKUP(P45,'Meta data'!AS$3:AT$41,2,0),"") -> Sales to TIN Holder ( Within the State or Interstate excluding against Forms/ declaration)
A46: 34 | B46: 134 | C46: 2016-07-04 | D46: 27090627731 | E46: 100 | F46: 5 | G46: 105 | H46: 0 | I46: 100 | J46: 100 | K46: 100 | L46: 100 | M46: 610 | O46: 231 | P46: 600 | Q46: =IFERROR(VLOOKUP(P46,'Meta data'!AS$3:AT$41,2,0),"") -> Sales Goods Return for Tr. Type 100, 200, 400, 500, 800, 900
A47: 35 | B47: 135 | C47: 2016-07-05 | D47: 27480615149 | E47: 100 | F47: 5 | G47: 105 | H47: 0 | I47: 100 | J47: 100 | K47: 100 | L47: 100 | M47: 610 | O47: 231 | P47: 700 | Q47: =IFERROR(VLOOKUP(P47,'Meta data'!AS$3:AT$41,2,0),"") -> Sales Credit Note for Tr. Type 100, 200, 400, 500, 800, 900
A48: 36 | B48: 136 | C48: 2016-07-06 | E48: 100 | F48: 5 | M48: 105 | O48: 231 | P48: 200 | Q48: =IFERROR(VLOOKUP(P48,'Meta data'!AS$3:AT$41,2,0),"") -> Sales to Non-TIN Holder ( Within the State or Interstate )
A49: 37 | B49: 137 | C49: 2016-07-07 | E49: 100 | F49: 5 | M49: 105 | O49: 231 | P49: 200 | Q49: =IFERROR(VLOOKUP(P49,'Meta data'!AS$3:AT$41,2,0),"") -> Sales to Non-TIN Holder ( Within the State or Interstate )
A50: 38 | B50: 138 | C50: 2016-07-08 | E50: 100 | F50: 5 | M50: 105 | O50: 231 | P50: 200 | Q50: =IFERROR(VLOOKUP(P50,'Meta data'!AS$3:AT$41,2,0),"") -> Sales to Non-TIN Holder ( Within the State or Interstate )
A51: 39 | B51: 139 | C51: 2016-07-09 | E51: 100 | F51: 5 | M51: 105 | O51: 231 | P51: 600 | Q51: =IFERROR(VLOOKUP(P51,'Meta data'!AS$3:AT$41,2,0),"") -> Sales Goods Return for Tr. Type 100, 200, 400, 500, 800, 900
A52: 40 | B52: 140 | C52: 2016-07-10 | E52: 100 | F52: 5 | M52: 105 | O52: 231 | P52: 700 | Q52: =IFERROR(VLOOKUP(P52,'Meta data'!AS$3:AT$41,2,0),"") -> Sales Credit Note for Tr. Type 100, 200, 400, 500, 800, 900
A53: 41 | B53: 141 | C53: 2016-07-11 | G53: 105 | M53: 105 | O53: 231 | P53: 200 | Q53: =IFERROR(VLOOKUP(P53,'Meta data'!AS$3:AT$41,2,0),"") -> Sales to Non-TIN Holder ( Within the State or Interstate )
A54: 42 | B54: 142 | C54: 2016-07-12 | G54: 105 | M54: 105 | O54: 231 | P54: 200 | Q54: =IFERROR(VLOOKUP(P54,'Meta data'!AS$3:AT$41,2,0),"") -> Sales to Non-TIN Holder ( Within the State or Interstate )
A55: 43 | B55: 143 | C55: 2016-07-13 | G55: 105 | M55: 105 | O55: 231 | P55: 200 | Q55: =IFERROR(VLOOKUP(P55,'Meta data'!AS$3:AT$41,2,0),"") -> Sales to Non-TIN Holder ( Within the State or Interstate )
A56: 44 | B56: 144 | C56: 2016-07-14 | G56: 105 | M56: 105 | O56: 231 | P56: 600 | Q56: =IFERROR(VLOOKUP(P56,'Meta data'!AS$3:AT$41,2,0),"") -> Sales Goods Return for Tr. Type 100, 200, 400, 500, 800, 900
A57: 45 | B57: 145 | C57: 2016-07-15 | G57: 105 | M57: 105 | O57: 231 | P57: 700 | Q57: =IFERROR(VLOOKUP(P57,'Meta data'!AS$3:AT$41,2,0),"") -> Sales Credit Note for Tr. Type 100, 200, 400, 500, 800, 900
A58: 46 | B58: 146 | C58: 2016-07-16 | I58: 100 | M58: 100 | O58: 231 | P58: 200 | Q58: =IFERROR(VLOOKUP(P58,'Meta data'!AS$3:AT$41,2,0),"") -> Sales to Non-TIN Holder ( Within the State or Interstate )
A59: 47 | B59: 147 | C59: 2016-07-17 | I59: 100 | M59: 100 | O59: 231 | P59: 200 | Q59: =IFERROR(VLOOKUP(P59,'Meta data'!AS$3:AT$41,2,0),"") -> Sales to Non-TIN Holder ( Within the State or Interstate )
A60: 48 | B60: 148 | C60: 2016-07-18 | I60: 100 | M60: 100 | O60: 231 | P60: 200 | Q60: =IFERROR(VLOOKUP(P60,'Meta data'!AS$3:AT$41,2,0),"") -> Sales to Non-TIN Holder ( Within the State or Interstate )
A61: 49 | B61: 149 | C61: 2016-07-19 | I61: 100 | M61: 100 | O61: 231 | P61: 600 | Q61: =IFERROR(VLOOKUP(P61,'Meta data'!AS$3:AT$41,2,0),"") -> Sales Goods Return for Tr. Type 100, 200, 400, 500, 800, 900
A62: 50 | B62: 150 | C62: 2016-07-20 | I62: 100 | M62: 100 | O62: 231 | P62: 700 | Q62: =IFERROR(VLOOKUP(P62,'Meta data'!AS$3:AT$41,2,0),"") -> Sales Credit Note for Tr. Type 100, 200, 400, 500, 800, 900
A63: 51 | B63: 151 | C63: 2016-07-21 | J63: 100 | M63: 100 | O63: 231 | P63: 200 | Q63: =IFERROR(VLOOKUP(P63,'Meta data'!AS$3:AT$41,2,0),"") -> Sales to Non-TIN Holder ( Within the State or Interstate )
A64: 52 | B64: 152 | C64: 2016-07-22 | J64: 100 | M64: 100 | O64: 231 | P64: 200 | Q64: =IFERROR(VLOOKUP(P64,'Meta data'!AS$3:AT$41,2,0),"") -> Sales to Non-TIN Holder ( Within the State or Interstate )
A65: 53 | B65: 153 | C65: 2016-07-23 | J65: 100 | M65: 100 | O65: 231 | P65: 200 | Q65: =IFERROR(VLOOKUP(P65,'Meta data'!AS$3:AT$41,2,0),"") -> Sales to Non-TIN Holder ( Within the State or Interstate )
A66: 54 | B66: 154 | C66: 2016-07-24 | J66: 100 | M66: 100 | O66: 231 | P66: 600 | Q66: =IFERROR(VLOOKUP(P66,'Meta data'!AS$3:AT$41,2,0),"") -> Sales Goods Return for Tr. Type 100, 200, 400, 500, 800, 900
A67: 55 | B67: 155 | C67: 2016-07-25 | J67: 100 | M67: 100 | O67: 231 | P67: 700 | Q67: =IFERROR(VLOOKUP(P67,'Meta data'!AS$3:AT$41,2,0),"") -> Sales Credit Note for Tr. Type 100, 200, 400, 500, 800, 900
A68: 56 | B68: 156 | C68: 2016-07-26 | K68: 100 | M68: 100 | O68: 231 | P68: 200 | Q68: =IFERROR(VLOOKUP(P68,'Meta data'!AS$3:AT$41,2,0),"") -> Sales to Non-TIN Holder ( Within the State or Interstate )
A69: 57 | B69: 157 | C69: 2016-07-27 | K69: 100 | M69: 100 | O69: 231 | P69: 200 | Q69: =IFERROR(VLOOKUP(P69,'Meta data'!AS$3:AT$41,2,0),"") -> Sales to Non-TIN Holder ( Within the State or Interstate )
A70: 58 | B70: 158 | C70: 2016-07-28 | K70: 100 | M70: 100 | O70: 231 | P70: 200 | Q70: =IFERROR(VLOOKUP(P70,'Meta data'!AS$3:AT$41,2,0),"") -> Sales to Non-TIN Holder ( Within the State or Interstate )
A71: 59 | B71: 159 | C71: 2016-07-29 | K71: 100 | M71: 100 | O71: 231 | P71: 600 | Q71: =IFERROR(VLOOKUP(P71,'Meta data'!AS$3:AT$41,2,0),"") -> Sales Goods Return for Tr. Type 100, 200, 400, 500, 800, 900
A72: 60 | B72: 160 | C72: 2016-07-30 | K72: 100 | M72: 100 | O72: 231 | P72: 700 | Q72: =IFERROR(VLOOKUP(P72,'Meta data'!AS$3:AT$41,2,0),"") -> Sales Credit Note for Tr. Type 100, 200, 400, 500, 800, 900
A73: 61 | B73: 161 | C73: 2016-07-30 | L73: 100 | M73: 100 | O73: 231 | P73: 200 | Q73: =IFERROR(VLOOKUP(P73,'Meta data'!AS$3:AT$41,2,0),"") -> Sales to Non-TIN Holder ( Within the State or Interstate )
A74: 62 | B74: 162 | C74: 2016-07-01 | L74: 100 | M74: 100 | O74: 231 | P74: 200 | Q74: =IFERROR(VLOOKUP(P74,'Meta data'!AS$3:AT$41,2,0),"") -> Sales to Non-TIN Holder ( Within the State or Interstate )
A75: 63 | B75: 163 | C75: 2016-07-02 | L75: 100 | M75: 100 | O75: 231 | P75: 200 | Q75: =IFERROR(VLOOKUP(P75,'Meta data'!AS$3:AT$41,2,0),"") -> Sales to Non-TIN Holder ( Within the State or Interstate )
A76: 64 | B76: 164 | C76: 2016-07-03 | L76: 100 | M76: 100 | O76: 231 | P76: 600 | Q76: =IFERROR(VLOOKUP(P76,'Meta data'!AS$3:AT$41,2,0),"") -> Sales Goods Return for Tr. Type 100, 200, 400, 500, 800, 900
A77: 65 | B77: 165 | C77: 2016-07-04 | L77: 100 | M77: 100 | O77: 231 | P77: 700 | Q77: =IFERROR(VLOOKUP(P77,'Meta data'!AS$3:AT$41,2,0),"") -> Sales Credit Note for Tr. Type 100, 200, 400, 500, 800, 900
A78: 66 | B78: 166 | C78: 2016-07-05 | E78: 100 | F78: 5 | G78: 105 | H78: 0 | I78: 100 | J78: 100 | K78: 100 | L78: 100 | M78: 610 | O78: 231 | P78: 200 | Q78: =IFERROR(VLOOKUP(P78,'Meta data'!AS$3:AT$41,2,0),"") -> Sales to Non-TIN Holder ( Within the State or Interstate )
A79: 67 | B79: 167 | C79: 2016-07-06 | E79: 100 | F79: 5 | G79: 105 | H79: 0 | I79: 100 | J79: 100 | K79: 100 | L79: 100 | M79: 610 | O79: 231 | P79: 200 | Q79: =IFERROR(VLOOKUP(P79,'Meta data'!AS$3:AT$41,2,0),"") -> Sales to Non-TIN Holder ( Within the State or Interstate )
A80: 68 | B80: 168 | C80: 2016-07-07 | E80: 100 | F80: 5 | G80: 105 | H80: 0 | I80: 100 | J80: 100 | K80: 100 | L80: 100 | M80: 610 | O80: 231 | P80: 200 | Q80: =IFERROR(VLOOKUP(P80,'Meta data'!AS$3:AT$41,2,0),"") -> Sales to Non-TIN Holder ( Within the State or Interstate )
A81: 69 | B81: 169 | C81: 2016-07-08 | E81: 100 | F81: 5 | G81: 105 | H81: 0 | I81: 100 | J81: 100 | K81: 100 | L81: 100 | M81: 610 | O81: 231 | P81: 600 | Q81: =IFERROR(VLOOKUP(P81,'Meta data'!AS$3:AT$41,2,0),"") -> Sales Goods Return for Tr. Type 100, 200, 400, 500, 800, 900
A82: 70 | B82: 170 | C82: 2016-07-09 | E82: 100 | F82: 5 | G82: 105 | H82: 0 | I82: 100 | J82: 100 | K82: 100 | L82: 100 | M82: 610 | O82: 231 | P82: 700 | Q82: =IFERROR(VLOOKUP(P82,'Meta data'!AS$3:AT$41,2,0),"") -> Sales Credit Note for Tr. Type 100, 200, 400, 500, 800, 900
A83: 71 | B83: 171 | C83: 2016-07-10 | D83: 27740602202 | E83: 100 | M83: 100 | O83: 231 | P83: 300 | Q83: =IFERROR(VLOOKUP(P83,'Meta data'!AS$3:AT$41,2,0),"") -> Branch Transfer / Consignment ( Within the State or Interstate )
A84: 72 | B84: 172 | C84: 2016-07-11 | D84: 27060669215 | E84: 100 | M84: 100 | O84: 231 | P84: 300 | Q84: =IFERROR(VLOOKUP(P84,'Meta data'!AS$3:AT$41,2,0),"") -> Branch Transfer / Consignment ( Within the State or Interstate )
A85: 73 | B85: 173 | C85: 2016-07-12 | D85: 27060654374 | E85: 100 | M85: 100 | O85: 231 | P85: 300 | Q85: =IFERROR(VLOOKUP(P85,'Meta data'!AS$3:AT$41,2,0),"") -> Branch Transfer / Consignment ( Within the State or Interstate )
A86: 74 | B86: 174 | C86: 2016-07-13 | D86: 27040651087 | E86: 100 | M86: 100 | O86: 231 | P86: 680 | Q86: =IFERROR(VLOOKUP(P86,'Meta data'!AS$3:AT$41,2,0),"") -> Sales Goods Return ( Branch Transfer/ consignment ) for Tr. Type 300
A87: 75 | B87: 175 | C87: 2016-07-14 | D87: 27460710899 | E87: 100 | M87: 100 | O87: 231 | P87: 780 | Q87: =IFERROR(VLOOKUP(P87,'Meta data'!AS$3:AT$41,2,0),"") -> Sales Credit Note ( Branch Transfer/ consignment ) for Tr. Type 300
A88: 76 | B88: 176 | C88: 2016-07-15 | D88: 27690622939 | I88: 100 | M88: 100 | O88: 231 | P88: 300 | Q88: =IFERROR(VLOOKUP(P88,'Meta data'!AS$3:AT$41,2,0),"") -> Branch Transfer / Consignment ( Within the State or Interstate )
A89: 77 | B89: 177 | C89: 2016-07-16 | D89: 27540557983 | I89: 100 | M89: 100 | O89: 231 | P89: 300 | Q89: =IFERROR(VLOOKUP(P89,'Meta data'!AS$3:AT$41,2,0),"") -> Branch Transfer / Consignment ( Within the State or Interstate )
A90: 78 | B90: 178 | C90: 2016-07-17 | D90: 27590000448 | I90: 100 | M90: 100 | O90: 231 | P90: 300 | Q90: =IFERROR(VLOOKUP(P90,'Meta data'!AS$3:AT$41,2,0),"") -> Branch Transfer / Consignment ( Within the State or Interstate )
A91: 79 | B91: 179 | C91: 2016-07-18 | D91: 27850630902 | I91: 100 | M91: 100 | O91: 231 | P91: 680 | Q91: =IFERROR(VLOOKUP(P91,'Meta data'!AS$3:AT$41,2,0),"") -> Sales Goods Return ( Branch Transfer/ consignment ) for Tr. Type 300
A92: 80 | B92: 180 | C92: 2016-07-19 | D92: 27210351021 | I92: 100 | M92: 100 | O92: 231 | P92: 780 | Q92: =IFERROR(VLOOKUP(P92,'Meta data'!AS$3:AT$41,2,0),"") -> Sales Credit Note ( Branch Transfer/ consignment ) for Tr. Type 300
A93: 81 | B93: 181 | C93: 2016-07-20 | D93: 27810606286 | K93: 100 | M93: 100 | O93: 231 | P93: 300 | Q93: =IFERROR(VLOOKUP(P93,'Meta data'!AS$3:AT$41,2,0),"") -> Branch Transfer / Consignment ( Within the State or Interstate )
A94: 82 | B94: 182 | C94: 2016-07-21 | D94: 27510288970 | K94: 100 | M94: 100 | O94: 231 | P94: 300 | Q94: =IFERROR(VLOOKUP(P94,'Meta data'!AS$3:AT$41,2,0),"") -> Branch Transfer / Consignment ( Within the State or Interstate )
A95: 83 | B95: 183 | C95: 2016-07-22 | D95: 27740006816 | K95: 100 | M95: 100 | O95: 231 | P95: 300 | Q95: =IFERROR(VLOOKUP(P95,'Meta data'!AS$3:AT$41,2,0),"") -> Branch Transfer / Consignment ( Within the State or Interstate )
A96: 84 | B96: 184 | C96: 2016-07-23 | D96: 27380383762 | K96: 100 | M96: 100 | O96: 231 | P96: 680 | Q96: =IFERROR(VLOOKUP(P96,'Meta data'!AS$3:AT$41,2,0),"") -> Sales Goods Return ( Branch Transfer/ consignment ) for Tr. Type 300
A97: 85 | B97: 185 | C97: 2016-07-24 | D97: 27920074229 | K97: 100 | M97: 100 | O97: 231 | P97: 780 | Q97: =IFERROR(VLOOKUP(P97,'Meta data'!AS$3:AT$41,2,0),"") -> Sales Credit Note ( Branch Transfer/ consignment ) for Tr. Type 300
A98: 86 | B98: 186 | C98: 2016-07-25 | D98: 27220658554 | L98: 100 | M98: 100 | O98: 231 | P98: 300 | Q98: =IFERROR(VLOOKUP(P98,'Meta data'!AS$3:AT$41,2,0),"") -> Branch Transfer / Consignment ( Within the State or Interstate )
A99: 87 | B99: 187 | C99: 2016-07-26 | D99: 27500040413 | L99: 100 | M99: 100 | O99: 231 | P99: 300 | Q99: =IFERROR(VLOOKUP(P99,'Meta data'!AS$3:AT$41,2,0),"") -> Branch Transfer / Consignment ( Within the State or Interstate )
A100: 88 | B100: 188 | C100: 2016-07-27 | D100: 27550402244 | L100: 100 | M100: 100 | O100: 231 | P100: 300 | Q100: =IFERROR(VLOOKUP(P100,'Meta data'!AS$3:AT$41,2,0),"") -> Branch Transfer / Consignment ( Within the State or Interstate )
A101: 89 | B101: 189 | C101: 2016-07-28 | D101: 27830001189 | L101: 100 | M101: 100 | O101: 231 | P101: 680 | Q101: =IFERROR(VLOOKUP(P101,'Meta data'!AS$3:AT$41,2,0),"") -> Sales Goods Return ( Branch Transfer/ consignment ) for Tr. Type 300
A102: 90 | B102: 190 | C102: 2016-07-29 | D102: 27730094267 | L102: 100 | M102: 100 | O102: 231 | P102: 780 | Q102: =IFERROR(VLOOKUP(P102,'Meta data'!AS$3:AT$41,2,0),"") -> Sales Credit Note ( Branch Transfer/ consignment ) for Tr. Type 300
A103: 91 | B103: 191 | C103: 2016-07-30 | D103: 27080082645 | E103: 100 | I103: 100 | K103: 100 | L103: 100 | M103: 400 | O103: 231 | P103: 300 | Q103: =IFERROR(VLOOKUP(P103,'Meta data'!AS$3:AT$41,2,0),"") -> Branch Transfer / Consignment ( Within the State or Interstate )
A104: 92 | B104: 192 | C104: 2016-07-30 | D104: 27140251295 | E104: 100 | I104: 100 | K104: 100 | L104: 100 | M104: 400 | O104: 231 | P104: 300 | Q104: =IFERROR(VLOOKUP(P104,'Meta data'!AS$3:AT$41,2,0),"") -> Branch Transfer / Consignment ( Within the State or Interstate )
A105: 93 | B105: 193 | C105: 2016-07-01 | D105: 27140000356 | E105: 100 | I105: 100 | K105: 100 | L105: 100 | M105: 400 | O105: 231 | P105: 300 | Q105: =IFERROR(VLOOKUP(P105,'Meta data'!AS$3:AT$41,2,0),"") -> Branch Transfer / Consignment ( Within the State or Interstate )
A106: 94 | B106: 194 | C106: 2016-07-02 | D106: 27650698718 | E106: 100 | I106: 100 | K106: 100 | L106: 100 | M106: 400 | O106: 231 | P106: 680 | Q106: =IFERROR(VLOOKUP(P106,'Meta data'!AS$3:AT$41,2,0),"") -> Sales Goods Return ( Branch Transfer/ consignment ) for Tr. Type 300
A107: 95 | B107: 195 | C107: 2016-07-03 | D107: 27640001924 | E107: 100 | I107: 100 | K107: 100 | L107: 100 | M107: 400 | O107: 231 | P107: 780 | Q107: =IFERROR(VLOOKUP(P107,'Meta data'!AS$3:AT$41,2,0),"") -> Sales Credit Note ( Branch Transfer/ consignment ) for Tr. Type 300
A108: 96 | B108: 201 | C108: 2016-07-01 | D108: 23580000502 | E108: 100 | F108: 5 | M108: 105 | O108: CST | P108: 100 | Q108: =IFERROR(VLOOKUP(P108,'Meta data'!AS$3:AT$41,2,0),"") -> Sales to TIN Holder ( Within the State or Interstate excluding against Forms/ declaration)
A109: 97 | B109: 202 | C109: 2016-07-02 | D109: 23890411038 | E109: 100 | F109: 5 | M109: 105 | O109: CST | P109: 100 | Q109: =IFERROR(VLOOKUP(P109,'Meta data'!AS$3:AT$41,2,0),"") -> Sales to TIN Holder ( Within the State or Interstate excluding against Forms/ declaration)
A110: 98 | B110: 203 | C110: 2016-07-03 | D110: 23340012662 | E110: 100 | F110: 5 | M110: 105 | O110: CST | P110: 100 | Q110: =IFERROR(VLOOKUP(P110,'Meta data'!AS$3:AT$41,2,0),"") -> Sales to TIN Holder ( Within the State or Interstate excluding against Forms/ declaration)
A111: 99 | B111: 204 | C111: 2016-07-04 | D111: 23880006060 | E111: 100 | F111: 5 | M111: 105 | O111: CST | P111: 600 | Q111: =IFERROR(VLOOKUP(P111,'Meta data'!AS$3:AT$41,2,0),"") -> Sales Goods Return for Tr. Type 100, 200, 400, 500, 800, 900
A112: 100 | B112: 205 | C112: 2016-07-05 | D112: 23310299623 | E112: 100 | F112: 5 | M112: 105 | O112: CST | P112: 700 | Q112: =IFERROR(VLOOKUP(P112,'Meta data'!AS$3:AT$41,2,0),"") -> Sales Credit Note for Tr. Type 100, 200, 400, 500, 800, 900
A113: 101 | B113: 206 | C113: 2016-07-06 | D113: 23390388629 | G113: 105 | M113: 105 | O113: CST | P113: 100 | Q113: =IFERROR(VLOOKUP(P113,'Meta data'!AS$3:AT$41,2,0),"") -> Sales to TIN Holder ( Within the State or Interstate excluding against Forms/ declaration)
A114: 102 | B114: 207 | C114: 2016-07-07 | D114: 23480636344 | G114: 105 | M114: 105 | O114: CST | P114: 100 | Q114: =IFERROR(VLOOKUP(P114,'Meta data'!AS$3:AT$41,2,0),"") -> Sales to TIN Holder ( Within the State or Interstate excluding against Forms/ declaration)
A115: 103 | B115: 208 | C115: 2016-07-08 | D115: 23640262466 | G115: 105 | M115: 105 | O115: CST | P115: 100 | Q115: =IFERROR(VLOOKUP(P115,'Meta data'!AS$3:AT$41,2,0),"") -> Sales to TIN Holder ( Within the State or Interstate excluding against Forms/ declaration)
A116: 104 | B116: 209 | C116: 2016-07-09 | D116: 23340013218 | G116: 105 | M116: 105 | O116: CST | P116: 600 | Q116: =IFERROR(VLOOKUP(P116,'Meta data'!AS$3:AT$41,2,0),"") -> Sales Goods Return for Tr. Type 100, 200, 400, 500, 800, 900
A117: 105 | B117: 210 | C117: 2016-07-10 | D117: 23230305426 | G117: 105 | M117: 105 | O117: CST | P117: 700 | Q117: =IFERROR(VLOOKUP(P117,'Meta data'!AS$3:AT$41,2,0),"") -> Sales Credit Note for Tr. Type 100, 200, 400, 500, 800, 900
A118: 106 | B118: 211 | C118: 2016-07-11 | D118: 23850011169 | I118: 100 | M118: 100 | O118: CST | P118: 100 | Q118: =IFERROR(VLOOKUP(P118,'Meta data'!AS$3:AT$41,2,0),"") -> Sales to TIN Holder ( Within the State or Interstate excluding against Forms/ declaration)
A119: 107 | B119: 212 | C119: 2016-07-12 | D119: 23100534424 | I119: 100 | M119: 100 | O119: CST | P119: 100 | Q119: =IFERROR(VLOOKUP(P119,'Meta data'!AS$3:AT$41,2,0),"") -> Sales to TIN Holder ( Within the State or Interstate excluding against Forms/ declaration)
A120: 108 | B120: 213 | C120: 2016-07-13 | D120: 23480018696 | I120: 100 | M120: 100 | O120: CST | P120: 100 | Q120: =IFERROR(VLOOKUP(P120,'Meta data'!AS$3:AT$41,2,0),"") -> Sales to TIN Holder ( Within the State or Interstate excluding against Forms/ declaration)
A121: 109 | B121: 214 | C121: 2016-07-14 | D121: 23390636319 | I121: 100 | M121: 100 | O121: CST | P121: 600 | Q121: =IFERROR(VLOOKUP(P121,'Meta data'!AS$3:AT$41,2,0),"") -> Sales Goods Return for Tr. Type 100, 200, 400, 500, 800, 900
A122: 110 | B122: 215 | C122: 2016-07-15 | D122: 23060040946 | I122: 100 | M122: 100 | O122: CST | P122: 700 | Q122: =IFERROR(VLOOKUP(P122,'Meta data'!AS$3:AT$41,2,0),"") -> Sales Credit Note for Tr. Type 100, 200, 400, 500, 800, 900
A123: 111 | B123: 216 | C123: 2016-07-16 | D123: 23860344310 | J123: 100 | M123: 100 | O123: CST | P123: 100 | Q123: =IFERROR(VLOOKUP(P123,'Meta data'!AS$3:AT$41,2,0),"") -> Sales to TIN Holder ( Within the State or Interstate excluding against Forms/ declaration)
A124: 112 | B124: 217 | C124: 2016-07-17 | D124: 23150033453 | J124: 100 | M124: 100 | O124: CST | P124: 100 | Q124: =IFERROR(VLOOKUP(P124,'Meta data'!AS$3:AT$41,2,0),"") -> Sales to TIN Holder ( Within the State or Interstate excluding against Forms/ declaration)
A125: 113 | B125: 218 | C125: 2016-07-18 | D125: 23040003686 | J125: 100 | M125: 100 | O125: CST | P125: 100 | Q125: =IFERROR(VLOOKUP(P125,'Meta data'!AS$3:AT$41,2,0),"") -> Sales to TIN Holder ( Within the State or Interstate excluding against Forms/ declaration)
A126: 114 | B126: 219 | C126: 2016-07-19 | D126: 23210302549 | J126: 100 | M126: 100 | O126: CST | P126: 600 | Q126: =IFERROR(VLOOKUP(P126,'Meta data'!AS$3:AT$41,2,0),"") -> Sales Goods Return for Tr. Type 100, 200, 400, 500, 800, 900
A127: 115 | B127: 220 | C127: 2016-07-20 | D127: 23150015046 | J127: 100 | M127: 100 | O127: CST | P127: 700 | Q127: =IFERROR(VLOOKUP(P127,'Meta data'!AS$3:AT$41,2,0),"") -> Sales Credit Note for Tr. Type 100, 200, 400, 500, 800, 900
A128: 116 | B128: 221 | C128: 2016-07-21 | D128: 23880541985 | K128: 100 | M128: 100 | O128: CST | P128: 100 | Q128: =IFERROR(VLOOKUP(P128,'Meta data'!AS$3:AT$41,2,0),"") -> Sales to TIN Holder ( Within the State or Interstate excluding against Forms/ declaration)
A129: 117 | B129: 222 | C129: 2016-07-22 | D129: 23440604598 | K129: 100 | M129: 100 | O129: CST | P129: 100 | Q129: =IFERROR(VLOOKUP(P129,'Meta data'!AS$3:AT$41,2,0),"") -> Sales to TIN Holder ( Within the State or Interstate excluding against Forms/ declaration)
A130: 118 | B130: 223 | C130: 2016-07-23 | D130: 23380041061 | K130: 100 | M130: 100 | O130: CST | P130: 100 | Q130: =IFERROR(VLOOKUP(P130,'Meta data'!AS$3:AT$41,2,0),"") -> Sales to TIN Holder ( Within the State or Interstate excluding against Forms/ declaration)
A131: 119 | B131: 224 | C131: 2016-07-24 | D131: 23360101089 | K131: 100 | M131: 100 | O131: CST | P131: 600 | Q131: =IFERROR(VLOOKUP(P131,'Meta data'!AS$3:AT$41,2,0),"") -> Sales Goods Return for Tr. Type 100, 200, 400, 500, 800, 900
A132: 120 | B132: 225 | C132: 2016-07-25 | D132: 23530354531 | K132: 100 | M132: 100 | O132: CST | P132: 700 | Q132: =IFERROR(VLOOKUP(P132,'Meta data'!AS$3:AT$41,2,0),"") -> Sales Credit Note for Tr. Type 100, 200, 400, 500, 800, 900
A133: 121 | B133: 226 | C133: 2016-07-26 | D133: 23060606343 | L133: 100 | M133: 100 | O133: CST | P133: 100 | Q133: =IFERROR(VLOOKUP(P133,'Meta data'!AS$3:AT$41,2,0),"") -> Sales to TIN Holder ( Within the State or Interstate excluding against Forms/ declaration)
A134: 122 | B134: 227 | C134: 2016-07-27 | D134: 23840299022 | L134: 100 | M134: 100 | O134: CST | P134: 100 | Q134: =IFERROR(VLOOKUP(P134,'Meta data'!AS$3:AT$41,2,0),"") -> Sales to TIN Holder ( Within the State or Interstate excluding against Forms/ declaration)
A135: 123 | B135: 228 | C135: 2016-07-28 | D135: 23200345643 | L135: 100 | M135: 100 | O135: CST | P135: 100 | Q135: =IFERROR(VLOOKUP(P135,'Meta data'!AS$3:AT$41,2,0),"") -> Sales to TIN Holder ( Within the State or Interstate excluding against Forms/ declaration)
A136: 124 | B136: 229 | C136: 2016-07-29 | D136: 23980180605 | L136: 100 | M136: 100 | O136: CST | P136: 600 | Q136: =IFERROR(VLOOKUP(P136,'Meta data'!AS$3:AT$41,2,0),"") -> Sales Goods Return for Tr. Type 100, 200, 400, 500, 800, 900
A137: 125 | B137: 230 | C137: 2016-07-30 | D137: 23690595933 | L137: 100 | M137: 100 | O137: CST | P137: 700 | Q137: =IFERROR(VLOOKUP(P137,'Meta data'!AS$3:AT$41,2,0),"") -> Sales Credit Note for Tr. Type 100, 200, 400, 500, 800, 900
A138: 126 | B138: 231 | C138: 2016-07-01 | D138: 23200653389 | E138: 100 | F138: 5 | G138: 105 | H138: 0 | I138: 100 | J138: 100 | K138: 100 | L138: 100 | M138: 610 | O138: CST | P138: 100 | Q138: =IFERROR(VLOOKUP(P138,'Meta data'!AS$3:AT$41,2,0),"") -> Sales to TIN Holder ( Within the State or Interstate excluding against Forms/ declaration)
A139: 127 | B139: 232 | C139: 2016-07-02 | D139: 23330633819 | E139: 100 | F139: 5 | G139: 105 | H139: 0 | I139: 100 | J139: 100 | K139: 100 | L139: 100 | M139: 610 | O139: CST | P139: 100 | Q139: =IFERROR(VLOOKUP(P139,'Meta data'!AS$3:AT$41,2,0),"") -> Sales to TIN Holder ( Within the State or Interstate excluding against Forms/ declaration)
A140: 128 | B140: 233 | C140: 2016-07-03 | D140: 23890308480 | E140: 100 | F140: 5 | G140: 105 | H140: 0 | I140: 100 | J140: 100 | K140: 100 | L140: 100 | M140: 610 | O140: CST | P140: 100 | Q140: =IFERROR(VLOOKUP(P140,'Meta data'!AS$3:AT$41,2,0),"") -> Sales to TIN Holder ( Within the State or Interstate excluding against Forms/ declaration)
A141: 129 | B141: 234 | C141: 2016-07-04 | D141: 23090623331 | E141: 100 | F141: 5 | G141: 105 | H141: 0 | I141: 100 | J141: 100 | K141: 100 | L141: 100 | M141: 610 | O141: CST | P141: 600 | Q141: =IFERROR(VLOOKUP(P141,'Meta data'!AS$3:AT$41,2,0),"") -> Sales Goods Return for Tr. Type 100, 200, 400, 500, 800, 900
A142: 130 | B142: 235 | C142: 2016-07-05 | D142: 23480615149 | E142: 100 | F142: 5 | G142: 105 | H142: 0 | I142: 100 | J142: 100 | K142: 100 | L142: 100 | M142: 610 | O142: CST | P142: 700 | Q142: =IFERROR(VLOOKUP(P142,'Meta data'!AS$3:AT$41,2,0),"") -> Sales Credit Note for Tr. Type 100, 200, 400, 500, 800, 900
A143: 131 | B143: 236 | C143: 2016-07-06 | E143: 100 | F143: 5 | M143: 105 | O143: CST | P143: 200 | Q143: =IFERROR(VLOOKUP(P143,'Meta data'!AS$3:AT$41,2,0),"") -> Sales to Non-TIN Holder ( Within the State or Interstate )
A144: 132 | B144: 237 | C144: 2016-07-07 | E144: 100 | F144: 5 | M144: 105 | O144: CST | P144: 200 | Q144: =IFERROR(VLOOKUP(P144,'Meta data'!AS$3:AT$41,2,0),"") -> Sales to Non-TIN Holder ( Within the State or Interstate )
A145: 133 | B145: 238 | C145: 2016-07-08 | E145: 100 | F145: 5 | M145: 105 | O145: CST | P145: 200 | Q145: =IFERROR(VLOOKUP(P145,'Meta data'!AS$3:AT$41,2,0),"") -> Sales to Non-TIN Holder ( Within the State or Interstate )
A146: 134 | B146: 239 | C146: 2016-07-09 | D146: 23312529175 | E146: 100 | F146: 5 | M146: 105 | O146: CST | P146: 600 | Q146: =IFERROR(VLOOKUP(P146,'Meta data'!AS$3:AT$41,2,0),"") -> Sales Goods Return for Tr. Type 100, 200, 400, 500, 800, 900
A147: 135 | B147: 240 | C147: 2016-07-10 | D147: 28879020858 | E147: 100 | F147: 5 | M147: 105 | O147: CST | P147: 700 | Q147: =IFERROR(VLOOKUP(P147,'Meta data'!AS$3:AT$41,2,0),"") -> Sales Credit Note for Tr. Type 100, 200, 400, 500, 800, 900
A148: 136 | B148: 241 | C148: 2016-07-11 | G148: 105 | M148: 105 | O148: CST | P148: 200 | Q148: =IFERROR(VLOOKUP(P148,'Meta data'!AS$3:AT$41,2,0),"") -> Sales to Non-TIN Holder ( Within the State or Interstate )
A149: 137 | B149: 242 | C149: 2016-07-12 | G149: 105 | M149: 105 | O149: CST | P149: 200 | Q149: =IFERROR(VLOOKUP(P149,'Meta data'!AS$3:AT$41,2,0),"") -> Sales to Non-TIN Holder ( Within the State or Interstate )
A150: 138 | B150: 243 | C150: 2016-07-13 | G150: 105 | M150: 105 | O150: CST | P150: 200 | Q150: =IFERROR(VLOOKUP(P150,'Meta data'!AS$3:AT$41,2,0),"") -> Sales to Non-TIN Holder ( Within the State or Interstate )
A151: 139 | B151: 244 | C151: 2016-07-14 | D151: 29366123404 | G151: 105 | M151: 105 | O151: CST | P151: 600 | Q151: =IFERROR(VLOOKUP(P151,'Meta data'!AS$3:AT$41,2,0),"") -> Sales Goods Return for Tr. Type 100, 200, 400, 500, 800, 900
A152: 140 | B152: 245 | C152: 2016-07-15 | D152: 29253784528 | G152: 105 | M152: 105 | O152: CST | P152: 700 | Q152: =IFERROR(VLOOKUP(P152,'Meta data'!AS$3:AT$41,2,0),"") -> Sales Credit Note for Tr. Type 100, 200, 400, 500, 800, 900
A153: 141 | B153: 246 | C153: 2016-07-16 | I153: 100 | M153: 100 | O153: CST | P153: 200 | Q153: =IFERROR(VLOOKUP(P153,'Meta data'!AS$3:AT$41,2,0),"") -> Sales to Non-TIN Holder ( Within the State or Interstate )
A154: 142 | B154: 247 | C154: 2016-07-17 | I154: 100 | M154: 100 | O154: CST | P154: 200 | Q154: =IFERROR(VLOOKUP(P154,'Meta data'!AS$3:AT$41,2,0),"") -> Sales to Non-TIN Holder ( Within the State or Interstate )
A155: 143 | B155: 248 | C155: 2016-07-18 | I155: 100 | M155: 100 | O155: CST | P155: 200 | Q155: =IFERROR(VLOOKUP(P155,'Meta data'!AS$3:AT$41,2,0),"") -> Sales to Non-TIN Holder ( Within the State or Interstate )
A156: 144 | B156: 249 | C156: 2016-07-19 | D156: 29175102128 | I156: 100 | M156: 100 | O156: CST | P156: 600 | Q156: =IFERROR(VLOOKUP(P156,'Meta data'!AS$3:AT$41,2,0),"") -> Sales Goods Return for Tr. Type 100, 200, 400, 500, 800, 900
A157: 145 | B157: 250 | C157: 2016-07-20 | D157: 24991748200 | I157: 100 | M157: 100 | O157: CST | P157: 700 | Q157: =IFERROR(VLOOKUP(P157,'Meta data'!AS$3:AT$41,2,0),"") -> Sales Credit Note for Tr. Type 100, 200, 400, 500, 800, 900
A158: 146 | B158: 251 | C158: 2016-07-21 | J158: 100 | M158: 100 | O158: CST | P158: 200 | Q158: =IFERROR(VLOOKUP(P158,'Meta data'!AS$3:AT$41,2,0),"") -> Sales to Non-TIN Holder ( Within the State or Interstate )
A159: 147 | B159: 252 | C159: 2016-07-22 | J159: 100 | M159: 100 | O159: CST | P159: 200 | Q159: =IFERROR(VLOOKUP(P159,'Meta data'!AS$3:AT$41,2,0),"") -> Sales to Non-TIN Holder ( Within the State or Interstate )
A160: 148 | B160: 253 | C160: 2016-07-23 | J160: 100 | M160: 100 | O160: CST | P160: 200 | Q160: =IFERROR(VLOOKUP(P160,'Meta data'!AS$3:AT$41,2,0),"") -> Sales to Non-TIN Holder ( Within the State or Interstate )
A161: 149 | B161: 254 | C161: 2016-07-24 | D161: 26438555381 | J161: 100 | M161: 100 | O161: CST | P161: 600 | Q161: =IFERROR(VLOOKUP(P161,'Meta data'!AS$3:AT$41,2,0),"") -> Sales Goods Return for Tr. Type 100, 200, 400, 500, 800, 900
A162: 150 | B162: 255 | C162: 2016-07-25 | D162: 28332024101 | J162: 100 | M162: 100 | O162: CST | P162: 700 | Q162: =IFERROR(VLOOKUP(P162,'Meta data'!AS$3:AT$41,2,0),"") -> Sales Credit Note for Tr. Type 100, 200, 400, 500, 800, 900
A163: 151 | B163: 256 | C163: 2016-07-26 | K163: 100 | M163: 100 | O163: CST | P163: 200 | Q163: =IFERROR(VLOOKUP(P163,'Meta data'!AS$3:AT$41,2,0),"") -> Sales to Non-TIN Holder ( Within the State or Interstate )
A164: 152 | B164: 257 | C164: 2016-07-27 | K164: 100 | M164: 100 | O164: CST | P164: 200 | Q164: =IFERROR(VLOOKUP(P164,'Meta data'!AS$3:AT$41,2,0),"") -> Sales to Non-TIN Holder ( Within the State or Interstate )
A165: 153 | B165: 258 | C165: 2016-07-28 | K165: 100 | M165: 100 | O165: CST | P165: 200 | Q165: =IFERROR(VLOOKUP(P165,'Meta data'!AS$3:AT$41,2,0),"") -> Sales to Non-TIN Holder ( Within the State or Interstate )
A166: 154 | B166: 259 | C166: 2016-07-29 | D166: 28277734708 | K166: 100 | M166: 100 | O166: CST | P166: 600 | Q166: =IFERROR(VLOOKUP(P166,'Meta data'!AS$3:AT$41,2,0),"") -> Sales Goods Return for Tr. Type 100, 200, 400, 500, 800, 900
A167: 155 | B167: 260 | C167: 2016-07-30 | D167: 21785189225 | K167: 100 | M167: 100 | O167: CST | P167: 700 | Q167: =IFERROR(VLOOKUP(P167,'Meta data'!AS$3:AT$41,2,0),"") -> Sales Credit Note for Tr. Type 100, 200, 400, 500, 800, 900
A168: 156 | B168: 261 | C168: 2016-07-30 | L168: 100 | M168: 100 | O168: CST | P168: 200 | Q168: =IFERROR(VLOOKUP(P168,'Meta data'!AS$3:AT$41,2,0),"") -> Sales to Non-TIN Holder ( Within the State or Interstate )
A169: 157 | B169: 262 | C169: 2016-07-01 | L169: 100 | M169: 100 | O169: CST | P169: 200 | Q169: =IFERROR(VLOOKUP(P169,'Meta data'!AS$3:AT$41,2,0),"") -> Sales to Non-TIN Holder ( Within the State or Interstate )
A170: 158 | B170: 263 | C170: 2016-07-02 | L170: 100 | M170: 100 | O170: CST | P170: 200 | Q170: =IFERROR(VLOOKUP(P170,'Meta data'!AS$3:AT$41,2,0),"") -> Sales to Non-TIN Holder ( Within the State or Interstate )
A171: 159 | B171: 264 | C171: 2016-07-03 | D171: 28245808272 | L171: 100 | M171: 100 | O171: CST | P171: 600 | Q171: =IFERROR(VLOOKUP(P171,'Meta data'!AS$3:AT$41,2,0),"") -> Sales Goods Return for Tr. Type 100, 200, 400, 500, 800, 900
A172: 160 | B172: 265 | C172: 2016-07-04 | D172: 25652709167 | L172: 100 | M172: 100 | O172: CST | P172: 700 | Q172: =IFERROR(VLOOKUP(P172,'Meta data'!AS$3:AT$41,2,0),"") -> Sales Credit Note for Tr. Type 100, 200, 400, 500, 800, 900
A173: 161 | B173: 266 | C173: 2016-07-05 | E173: 100 | F173: 5 | G173: 105 | H173: 0 | I173: 100 | J173: 100 | K173: 100 | L173: 100 | M173: 610 | O173: CST | P173: 200 | Q173: =IFERROR(VLOOKUP(P173,'Meta data'!AS$3:AT$41,2,0),"") -> Sales to Non-TIN Holder ( Within the State or Interstate )
A174: 162 | B174: 267 | C174: 2016-07-06 | E174: 100 | F174: 5 | G174: 105 | H174: 0 | I174: 100 | J174: 100 | K174: 100 | L174: 100 | M174: 610 | O174: CST | P174: 200 | Q174: =IFERROR(VLOOKUP(P174,'Meta data'!AS$3:AT$41,2,0),"") -> Sales to Non-TIN Holder ( Within the State or Interstate )
A175: 163 | B175: 268 | C175: 2016-07-07 | E175: 100 | F175: 5 | G175: 105 | H175: 0 | I175: 100 | J175: 100 | K175: 100 | L175: 100 | M175: 610 | O175: CST | P175: 200 | Q175: =IFERROR(VLOOKUP(P175,'Meta data'!AS$3:AT$41,2,0),"") -> Sales to Non-TIN Holder ( Within the State or Interstate )
A176: 164 | B176: 269 | C176: 2016-07-08 | D176: 22496790108 | E176: 100 | F176: 5 | G176: 105 | H176: 0 | I176: 100 | J176: 100 | K176: 100 | L176: 100 | M176: 610 | O176: CST | P176: 600 | Q176: =IFERROR(VLOOKUP(P176,'Meta data'!AS$3:AT$41,2,0),"") -> Sales Goods Return for Tr. Type 100, 200, 400, 500, 800, 900
A177: 165 | B177: 270 | C177: 2016-07-09 | D177: 22481534222 | E177: 100 | F177: 5 | G177: 105 | H177: 0 | I177: 100 | J177: 100 | K177: 100 | L177: 100 | M177: 610 | O177: CST | P177: 700 | Q177: =IFERROR(VLOOKUP(P177,'Meta data'!AS$3:AT$41,2,0),"") -> Sales Credit Note for Tr. Type 100, 200, 400, 500, 800, 900
A178: 166 | B178: 271 | C178: 2016-07-10 | D178: 23340602202 | E178: 100 | M178: 100 | O178: CST | P178: 300 | Q178: =IFERROR(VLOOKUP(P178,'Meta data'!AS$3:AT$41,2,0),"") -> Branch Transfer / Consignment ( Within the State or Interstate )
A179: 167 | B179: 272 | C179: 2016-07-11 | D179: 23060669215 | E179: 100 | M179: 100 | O179: CST | P179: 300 | Q179: =IFERROR(VLOOKUP(P179,'Meta data'!AS$3:AT$41,2,0),"") -> Branch Transfer / Consignment ( Within the State or Interstate )
A180: 168 | B180: 273 | C180: 2016-07-12 | D180: 23060654334 | E180: 100 | M180: 100 | O180: CST | P180: 300 | Q180: =IFERROR(VLOOKUP(P180,'Meta data'!AS$3:AT$41,2,0),"") -> Branch Transfer / Consignment ( Within the State or Interstate )
A181: 169 | B181: 274 | C181: 2016-07-13 | D181: 23040651083 | E181: 100 | M181: 100 | O181: CST | P181: 680 | Q181: =IFERROR(VLOOKUP(P181,'Meta data'!AS$3:AT$41,2,0),"") -> Sales Goods Return ( Branch Transfer/ consignment ) for Tr. Type 300
A182: 170 | B182: 275 | C182: 2016-07-14 | D182: 23460310899 | E182: 100 | M182: 100 | O182: CST | P182: 780 | Q182: =IFERROR(VLOOKUP(P182,'Meta data'!AS$3:AT$41,2,0),"") -> Sales Credit Note ( Branch Transfer/ consignment ) for Tr. Type 300
A183: 171 | B183: 276 | C183: 2016-07-15 | D183: 23690622939 | I183: 100 | M183: 100 | O183: CST | P183: 300 | Q183: =IFERROR(VLOOKUP(P183,'Meta data'!AS$3:AT$41,2,0),"") -> Branch Transfer / Consignment ( Within the State or Interstate )
A184: 172 | B184: 277 | C184: 2016-07-16 | D184: 23540553983 | I184: 100 | M184: 100 | O184: CST | P184: 300 | Q184: =IFERROR(VLOOKUP(P184,'Meta data'!AS$3:AT$41,2,0),"") -> Branch Transfer / Consignment ( Within the State or Interstate )
A185: 173 | B185: 278 | C185: 2016-07-17 | D185: 23590000448 | I185: 100 | M185: 100 | O185: CST | P185: 300 | Q185: =IFERROR(VLOOKUP(P185,'Meta data'!AS$3:AT$41,2,0),"") -> Branch Transfer / Consignment ( Within the State or Interstate )
A186: 174 | B186: 279 | C186: 2016-07-18 | D186: 23850630902 | I186: 100 | M186: 100 | O186: CST | P186: 680 | Q186: =IFERROR(VLOOKUP(P186,'Meta data'!AS$3:AT$41,2,0),"") -> Sales Goods Return ( Branch Transfer/ consignment ) for Tr. Type 300
A187: 175 | B187: 280 | C187: 2016-07-19 | D187: 23210351021 | I187: 100 | M187: 100 | O187: CST | P187: 780 | Q187: =IFERROR(VLOOKUP(P187,'Meta data'!AS$3:AT$41,2,0),"") -> Sales Credit Note ( Branch Transfer/ consignment ) for Tr. Type 300
A188: 176 | B188: 281 | C188: 2016-07-20 | D188: 23810606286 | K188: 100 | M188: 100 | O188: CST | P188: 300 | Q188: =IFERROR(VLOOKUP(P188,'Meta data'!AS$3:AT$41,2,0),"") -> Branch Transfer / Consignment ( Within the State or Interstate )
A189: 177 | B189: 282 | C189: 2016-07-21 | D189: 23510288930 | K189: 100 | M189: 100 | O189: CST | P189: 300 | Q189: =IFERROR(VLOOKUP(P189,'Meta data'!AS$3:AT$41,2,0),"") -> Branch Transfer / Consignment ( Within the State or Interstate )
A190: 178 | B190: 283 | C190: 2016-07-22 | D190: 23340006816 | K190: 100 | M190: 100 | O190: CST | P190: 300 | Q190: =IFERROR(VLOOKUP(P190,'Meta data'!AS$3:AT$41,2,0),"") -> Branch Transfer / Consignment ( Within the State or Interstate )
A191: 179 | B191: 284 | C191: 2016-07-23 | D191: 23380383362 | K191: 100 | M191: 100 | O191: CST | P191: 680 | Q191: =IFERROR(VLOOKUP(P191,'Meta data'!AS$3:AT$41,2,0),"") -> Sales Goods Return ( Branch Transfer/ consignment ) for Tr. Type 300
A192: 180 | B192: 285 | C192: 2016-07-24 | D192: 23920034229 | K192: 100 | M192: 100 | O192: CST | P192: 780 | Q192: =IFERROR(VLOOKUP(P192,'Meta data'!AS$3:AT$41,2,0),"") -> Sales Credit Note ( Branch Transfer/ consignment ) for Tr. Type 300
A193: 181 | B193: 286 | C193: 2016-07-25 | D193: 23220658554 | L193: 100 | M193: 100 | O193: CST | P193: 300 | Q193: =IFERROR(VLOOKUP(P193,'Meta data'!AS$3:AT$41,2,0),"") -> Branch Transfer / Consignment ( Within the State or Interstate )
A194: 182 | B194: 287 | C194: 2016-07-26 | D194: 23500040413 | L194: 100 | M194: 100 | O194: CST | P194: 300 | Q194: =IFERROR(VLOOKUP(P194,'Meta data'!AS$3:AT$41,2,0),"") -> Branch Transfer / Consignment ( Within the State or Interstate )
A195: 183 | B195: 288 | C195: 2016-07-27 | D195: 23550402244 | L195: 100 | M195: 100 | O195: CST | P195: 300 | Q195: =IFERROR(VLOOKUP(P195,'Meta data'!AS$3:AT$41,2,0),"") -> Branch Transfer / Consignment ( Within the State or Interstate )
A196: 184 | B196: 289 | C196: 2016-07-28 | D196: 23830001189 | L196: 100 | M196: 100 | O196: CST | P196: 680 | Q196: =IFERROR(VLOOKUP(P196,'Meta data'!AS$3:AT$41,2,0),"") -> Sales Goods Return ( Branch Transfer/ consignment ) for Tr. Type 300
A197: 185 | B197: 290 | C197: 2016-07-29 | D197: 23330094263 | L197: 100 | M197: 100 | O197: CST | P197: 780 | Q197: =IFERROR(VLOOKUP(P197,'Meta data'!AS$3:AT$41,2,0),"") -> Sales Credit Note ( Branch Transfer/ consignment ) for Tr. Type 300
A198: 186 | B198: 291 | C198: 2016-07-30 | D198: 23080082645 | E198: 100 | I198: 100 | K198: 100 | L198: 100 | M198: 400 | O198: CST | P198: 300 | Q198: =IFERROR(VLOOKUP(P198,'Meta data'!AS$3:AT$41,2,0),"") -> Branch Transfer / Consignment ( Within the State or Interstate )
A199: 187 | B199: 292 | C199: 2016-07-30 | D199: 23140251295 | E199: 100 | I199: 100 | K199: 100 | L199: 100 | M199: 400 | O199: CST | P199: 300 | Q199: =IFERROR(VLOOKUP(P199,'Meta data'!AS$3:AT$41,2,0),"") -> Branch Transfer / Consignment ( Within the State or Interstate )
A200: 188 | B200: 293 | C200: 2016-07-01 | D200: 23140000356 | E200: 100 | I200: 100 | K200: 100 | L200: 100 | M200: 400 | O200: CST | P200: 300 | Q200: =IFERROR(VLOOKUP(P200,'Meta data'!AS$3:AT$41,2,0),"") -> Branch Transfer / Consignment ( Within the State or Interstate )
... 52 more rows

Sheet Purchase Annexure
Q1: Ver 1.1.1
A2: Annexure of Purchases under M.V.A.T. Act, 2002 (See Rule 17, 17A, 18 and 45)
A3: 1 | D3: M.V.A.T. R.C. No. | F3: =IF(Header!C5="","",Header!C5) -> 27981000061V | J3: C.S.T. R.C. NO | P3: =IF(Header!E5="","",Header!E5) -> 27981000061C
A4: 2 | D4: Name of Dealer | F4: =IF(ISBLANK(Header!C6),"",(Header!C6)) -> ABC LTD
A5: 3.Please Select which ever is Applicable | D5: Type of Return (Select appropriate) ( Drop down selection) | F5: =IF(ISBLANK(Header!C7),"",(Header!C7)) -> ORIGINAL | J5: Whether First Return ? (In Case of New Registration / Package scheme period) | Q5: =IF(ISBLANK(Header!C9),"",(Header!C9)) -> NO
D6: Periodicity of Return (Select appropriate) ( Drop down selection) | F6: =IF(ISBLANK(Header!E8),"",(Header!E8)) -> 2016 July | J6: Whether Last Return ? (In Case of Cancellation of Registration Or end of package scheme of incentive ) | Q6: =IF(ISBLANK(Header!E9),"",(Header!E9)) -> NO
A7: 4 | D7: Period Covered by Annexure | F7: From | G7: Date | H7: Month | I7: Year | K7: TO | L7: Date | N7: Month | P7: Year
G8: =IF(ISBLANK(Header!C11),"",(Header!C11)) -> 01 | H8: =IF(ISBLANK(Header!D11),"",(Header!D11)) -> Jul | I8: =IF(ISBLANK(Header!E11),"",(Header!E11)) -> 2016 | L8: =IF(ISBLANK(Header!C12),"",(Header!C12)) -> 31 | N8: =IF(ISBLANK(Header!D12),"",(Header!D12)) -> Jul | P8: =IF(ISBLANK(Header!E12),"",(Header!E12)) -> 2016
A9: Transactionwise Purchases Details
A10: Gross Total | E10: =ROUND(SUM(E$13:E$1048576),0) -> 13000 | F10: =ROUND(SUM(F$13:F$1048576),0) -> 170 | G10: =ROUND(SUM(G$13:G$1048576),0) -> 4170 | H10: =ROUND(SUM(H$13:H$1048576),0) -> 0 | I10: =ROUND(SUM(I$13:I$1048576),0) -> 6000 | J10: =ROUND(SUM(J$13:J$1048576),0) -> 2000 | K10: =ROUND(SUM(K$13:K$1048576),0) -> 7500 | L10: =ROUND(SUM(L$13:L$1048576),0) -> 9500 | M10: =ROUND(SUM(M$13:M$1048576),0) -> 42340
A11: Sr. No. | B11: Purchase Invoice No. | C11: Date of purchase Invoice | D11: TIN of Seller (If Any ) | E11: Taxable Value OR Value of Composition u/s 42(3), (3A), (4) | G11: Value of Inclusive of Tax Rs. | H11: Value of Composition u/s 42(1), (2) Rs. | I11: Tax Free Purchases Rs. | J11: Exempted Purchases u/s 41 & 8 Rs. | K11: Labour Charges Rs. | L11: Other Charges (Rs) | M11: Gross Total (Rs.) | N11: Action | O11: Return Form Number | P11: Transaction Code | Q11: Description of Transaction type
E12: Net Rs. | F12: TAX (If any) Rs.
A13: 1 | B13: 101 | C13: 2016-07-01 | D13: 27580000502 | E13: 100 | F13: 5 | M13: 105 | O13: 231 | P13: 10 | Q13: =IFERROR(VLOOKUP(P13,'Meta data'!AX$3:AY$40,2,0),"") -> Within the State Purchases from RD
A14: 2 | B14: 102 | C14: 2016-07-02 | D14: 27890411078 | E14: 100 | F14: 5 | M14: 105 | O14: 231 | P14: 10 | Q14: =IFERROR(VLOOKUP(P14,'Meta data'!AX$3:AY$40,2,0),"") -> Within the State Purchases from RD
A15: 3 | B15: 103 | C15: 2016-07-03 | D15: 27340012662 | E15: 100 | F15: 5 | M15: 105 | O15: 231 | P15: 10 | Q15: =IFERROR(VLOOKUP(P15,'Meta data'!AX$3:AY$40,2,0),"") -> Within the State Purchases from RD
A16: 4 | B16: 104 | C16: 2016-07-04 | D16: 27880006060 | E16: 100 | F16: 5 | M16: 105 | O16: 231 | P16: 90 | Q16: =IFERROR(VLOOKUP(P16,'Meta data'!AX$3:AY$40,2,0),"") -> Purchase Good Return for Tr. Type 10, 15, 80
A17: 5 | B17: 105 | C17: 2016-07-05 | D17: 27710299627 | E17: 100 | F17: 5 | M17: 105 | O17: 231 | P17: 95 | Q17: =IFERROR(VLOOKUP(P17,'Meta data'!AX$3:AY$40,2,0),"") -> Purchase Debit Note for Tr. Type 10, 15, 80
A18: 6 | B18: 106 | C18: 2016-07-06 | D18: 27790388629 | G18: 105 | M18: 105 | O18: 231 | P18: 10 | Q18: =IFERROR(VLOOKUP(P18,'Meta data'!AX$3:AY$40,2,0),"") -> Within the State Purchases from RD
A19: 7 | B19: 107 | C19: 2016-07-07 | D19: 27480676744 | G19: 105 | M19: 105 | O19: 231 | P19: 10 | Q19: =IFERROR(VLOOKUP(P19,'Meta data'!AX$3:AY$40,2,0),"") -> Within the State Purchases from RD
A20: 8 | B20: 108 | C20: 2016-07-08 | D20: 27640262466 | G20: 105 | M20: 105 | O20: 231 | P20: 10 | Q20: =IFERROR(VLOOKUP(P20,'Meta data'!AX$3:AY$40,2,0),"") -> Within the State Purchases from RD
A21: 9 | B21: 109 | C21: 2016-07-09 | D21: 27740013218 | G21: 105 | M21: 105 | O21: 231 | P21: 90 | Q21: =IFERROR(VLOOKUP(P21,'Meta data'!AX$3:AY$40,2,0),"") -> Purchase Good Return for Tr. Type 10, 15, 80
A22: 10 | B22: 110 | C22: 2016-07-10 | D22: 27270705426 | G22: 105 | M22: 105 | O22: 231 | P22: 95 | Q22: =IFERROR(VLOOKUP(P22,'Meta data'!AX$3:AY$40,2,0),"") -> Purchase Debit Note for Tr. Type 10, 15, 80
A23: 11 | B23: 111 | C23: 2016-07-11 | D23: 27850011169 | I23: 100 | M23: 100 | O23: 231 | P23: 10 | Q23: =IFERROR(VLOOKUP(P23,'Meta data'!AX$3:AY$40,2,0),"") -> Within the State Purchases from RD
A24: 12 | B24: 112 | C24: 2016-07-12 | D24: 27100574424 | I24: 100 | M24: 100 | O24: 231 | P24: 10 | Q24: =IFERROR(VLOOKUP(P24,'Meta data'!AX$3:AY$40,2,0),"") -> Within the State Purchases from RD
A25: 13 | B25: 113 | C25: 2016-07-13 | D25: 27480018696 | I25: 100 | M25: 100 | O25: 231 | P25: 10 | Q25: =IFERROR(VLOOKUP(P25,'Meta data'!AX$3:AY$40,2,0),"") -> Within the State Purchases from RD
A26: 14 | B26: 114 | C26: 2016-07-14 | D26: 27790676719 | I26: 100 | M26: 100 | O26: 231 | P26: 90 | Q26: =IFERROR(VLOOKUP(P26,'Meta data'!AX$3:AY$40,2,0),"") -> Purchase Good Return for Tr. Type 10, 15, 80
A27: 15 | B27: 115 | C27: 2016-07-15 | D27: 27060040946 | I27: 100 | M27: 100 | O27: 231 | P27: 95 | Q27: =IFERROR(VLOOKUP(P27,'Meta data'!AX$3:AY$40,2,0),"") -> Purchase Debit Note for Tr. Type 10, 15, 80
A28: 16 | B28: 116 | C28: 2016-07-16 | D28: 27860344310 | J28: 100 | M28: 100 | O28: 231 | P28: 10 | Q28: =IFERROR(VLOOKUP(P28,'Meta data'!AX$3:AY$40,2,0),"") -> Within the State Purchases from RD
A29: 17 | B29: 117 | C29: 2016-07-17 | D29: 27150037453 | J29: 100 | M29: 100 | O29: 231 | P29: 10 | Q29: =IFERROR(VLOOKUP(P29,'Meta data'!AX$3:AY$40,2,0),"") -> Within the State Purchases from RD
A30: 18 | B30: 118 | C30: 2016-07-18 | D30: 27040007686 | J30: 100 | M30: 100 | O30: 231 | P30: 10 | Q30: =IFERROR(VLOOKUP(P30,'Meta data'!AX$3:AY$40,2,0),"") -> Within the State Purchases from RD
A31: 19 | B31: 119 | C31: 2016-07-19 | D31: 27210702549 | J31: 100 | M31: 100 | O31: 231 | P31: 90 | Q31: =IFERROR(VLOOKUP(P31,'Meta data'!AX$3:AY$40,2,0),"") -> Purchase Good Return for Tr. Type 10, 15, 80
A32: 20 | B32: 120 | C32: 2016-07-20 | D32: 27150015046 | J32: 100 | M32: 100 | O32: 231 | P32: 95 | Q32: =IFERROR(VLOOKUP(P32,'Meta data'!AX$3:AY$40,2,0),"") -> Purchase Debit Note for Tr. Type 10, 15, 80
A33: 21 | B33: 121 | C33: 2016-07-21 | D33: 27880541985 | K33: 100 | M33: 100 | O33: 231 | P33: 10 | Q33: =IFERROR(VLOOKUP(P33,'Meta data'!AX$3:AY$40,2,0),"") -> Within the State Purchases from RD
A34: 22 | B34: 122 | C34: 2016-07-22 | D34: 27440604598 | K34: 100 | M34: 100 | O34: 231 | P34: 10 | Q34: =IFERROR(VLOOKUP(P34,'Meta data'!AX$3:AY$40,2,0),"") -> Within the State Purchases from RD
A35: 23 | B35: 123 | C35: 2016-07-23 | D35: 27380041061 | K35: 100 | M35: 100 | O35: 231 | P35: 10 | Q35: =IFERROR(VLOOKUP(P35,'Meta data'!AX$3:AY$40,2,0),"") -> Within the State Purchases from RD
A36: 24 | B36: 124 | C36: 2016-07-24 | D36: 27760101089 | K36: 100 | M36: 100 | O36: 231 | P36: 90 | Q36: =IFERROR(VLOOKUP(P36,'Meta data'!AX$3:AY$40,2,0),"") -> Purchase Good Return for Tr. Type 10, 15, 80
A37: 25 | B37: 125 | C37: 2016-07-25 | D37: 27530354531 | K37: 100 | M37: 100 | O37: 231 | P37: 95 | Q37: =IFERROR(VLOOKUP(P37,'Meta data'!AX$3:AY$40,2,0),"") -> Purchase Debit Note for Tr. Type 10, 15, 80
A38: 26 | B38: 126 | C38: 2016-07-26 | D38: 27060606747 | L38: 100 | M38: 100 | O38: 231 | P38: 10 | Q38: =IFERROR(VLOOKUP(P38,'Meta data'!AX$3:AY$40,2,0),"") -> Within the State Purchases from RD
A39: 27 | B39: 127 | C39: 2016-07-27 | D39: 27840299022 | L39: 100 | M39: 100 | O39: 231 | P39: 10 | Q39: =IFERROR(VLOOKUP(P39,'Meta data'!AX$3:AY$40,2,0),"") -> Within the State Purchases from RD
A40: 28 | B40: 128 | C40: 2016-07-28 | D40: 27200345643 | L40: 100 | M40: 100 | O40: 231 | P40: 10 | Q40: =IFERROR(VLOOKUP(P40,'Meta data'!AX$3:AY$40,2,0),"") -> Within the State Purchases from RD
A41: 29 | B41: 129 | C41: 2016-07-29 | D41: 27980180605 | L41: 100 | M41: 100 | O41: 231 | P41: 90 | Q41: =IFERROR(VLOOKUP(P41,'Meta data'!AX$3:AY$40,2,0),"") -> Purchase Good Return for Tr. Type 10, 15, 80
A42: 30 | B42: 130 | C42: 2016-07-30 | D42: 27690595973 | L42: 100 | M42: 100 | O42: 231 | P42: 95 | Q42: =IFERROR(VLOOKUP(P42,'Meta data'!AX$3:AY$40,2,0),"") -> Purchase Debit Note for Tr. Type 10, 15, 80
A43: 31 | B43: 131 | C43: 2016-07-01 | D43: 27200657789 | E43: 100 | F43: 5 | G43: 105 | H43: 0 | I43: 100 | J43: 100 | K43: 100 | L43: 100 | M43: 610 | O43: 231 | P43: 10 | Q43: =IFERROR(VLOOKUP(P43,'Meta data'!AX$3:AY$40,2,0),"") -> Within the State Purchases from RD
A44: 32 | B44: 132 | C44: 2016-07-02 | D44: 27730677819 | E44: 100 | F44: 5 | G44: 105 | H44: 0 | I44: 100 | J44: 100 | K44: 100 | L44: 100 | M44: 610 | O44: 231 | P44: 10 | Q44: =IFERROR(VLOOKUP(P44,'Meta data'!AX$3:AY$40,2,0),"") -> Within the State Purchases from RD
A45: 33 | B45: 133 | C45: 2016-07-03 | D45: 27890708480 | E45: 100 | F45: 5 | G45: 105 | H45: 0 | I45: 100 | J45: 100 | K45: 100 | L45: 100 | M45: 610 | O45: 231 | P45: 10 | Q45: =IFERROR(VLOOKUP(P45,'Meta data'!AX$3:AY$40,2,0),"") -> Within the State Purchases from RD
A46: 34 | B46: 134 | C46: 2016-07-04 | D46: 27090627731 | E46: 100 | F46: 5 | G46: 105 | H46: 0 | I46: 100 | J46: 100 | K46: 100 | L46: 100 | M46: 610 | O46: 231 | P46: 90 | Q46: =IFERROR(VLOOKUP(P46,'Meta data'!AX$3:AY$40,2,0),"") -> Purchase Good Return for Tr. Type 10, 15, 80
A47: 35 | B47: 135 | C47: 2016-07-05 | D47: 27480615149 | E47: 100 | F47: 5 | G47: 105 | H47: 0 | I47: 100 | J47: 100 | K47: 100 | L47: 100 | M47: 610 | O47: 231 | P47: 95 | Q47: =IFERROR(VLOOKUP(P47,'Meta data'!AX$3:AY$40,2,0),"") -> Purchase Debit Note for Tr. Type 10, 15, 80
A48: 36 | B48: 136 | C48: 2016-07-01 | D48: 27580000502 | E48: 100 | F48: 5 | M48: 105 | O48: 231 | P48: 15 | Q48: =IFERROR(VLOOKUP(P48,'Meta data'!AX$3:AY$40,2,0),"") -> Within the State Purchases from RD ( Capital Asset )
A49: 37 | B49: 137 | C49: 2016-07-02 | D49: 27890411078 | E49: 100 | F49: 5 | M49: 105 | O49: 231 | P49: 15 | Q49: =IFERROR(VLOOKUP(P49,'Meta data'!AX$3:AY$40,2,0),"") -> Within the State Purchases from RD ( Capital Asset )
A50: 38 | B50: 138 | C50: 2016-07-03 | D50: 27340012662 | E50: 100 | F50: 5 | M50: 105 | O50: 231 | P50: 15 | Q50: =IFERROR(VLOOKUP(P50,'Meta data'!AX$3:AY$40,2,0),"") -> Within the State Purchases from RD ( Capital Asset )
A51: 39 | B51: 139 | C51: 2016-07-04 | D51: 27880006060 | E51: 100 | F51: 5 | M51: 105 | O51: 231 | P51: 90 | Q51: =IFERROR(VLOOKUP(P51,'Meta data'!AX$3:AY$40,2,0),"") -> Purchase Good Return for Tr. Type 10, 15, 80
A52: 40 | B52: 140 | C52: 2016-07-05 | D52: 27710299627 | E52: 100 | F52: 5 | M52: 105 | O52: 231 | P52: 95 | Q52: =IFERROR(VLOOKUP(P52,'Meta data'!AX$3:AY$40,2,0),"") -> Purchase Debit Note for Tr. Type 10, 15, 80
A53: 41 | B53: 141 | C53: 2016-07-06 | D53: 27790388629 | G53: 105 | M53: 105 | O53: 231 | P53: 15 | Q53: =IFERROR(VLOOKUP(P53,'Meta data'!AX$3:AY$40,2,0),"") -> Within the State Purchases from RD ( Capital Asset )
A54: 42 | B54: 142 | C54: 2016-07-07 | D54: 27480676744 | G54: 105 | M54: 105 | O54: 231 | P54: 15 | Q54: =IFERROR(VLOOKUP(P54,'Meta data'!AX$3:AY$40,2,0),"") -> Within the State Purchases from RD ( Capital Asset )
A55: 43 | B55: 143 | C55: 2016-07-08 | D55: 27640262466 | G55: 105 | M55: 105 | O55: 231 | P55: 15 | Q55: =IFERROR(VLOOKUP(P55,'Meta data'!AX$3:AY$40,2,0),"") -> Within the State Purchases from RD ( Capital Asset )
A56: 44 | B56: 144 | C56: 2016-07-09 | D56: 27740013218 | G56: 105 | M56: 105 | O56: 231 | P56: 90 | Q56: =IFERROR(VLOOKUP(P56,'Meta data'!AX$3:AY$40,2,0),"") -> Purchase Good Return for Tr. Type 10, 15, 80
A57: 45 | B57: 145 | C57: 2016-07-10 | D57: 27270705426 | G57: 105 | M57: 105 | O57: 231 | P57: 95 | Q57: =IFERROR(VLOOKUP(P57,'Meta data'!AX$3:AY$40,2,0),"") -> Purchase Debit Note for Tr. Type 10, 15, 80
A58: 46 | B58: 146 | C58: 2016-07-11 | D58: 27850011169 | I58: 100 | M58: 100 | O58: 231 | P58: 15 | Q58: =IFERROR(VLOOKUP(P58,'Meta data'!AX$3:AY$40,2,0),"") -> Within the State Purchases from RD ( Capital Asset )
A59: 47 | B59: 147 | C59: 2016-07-12 | D59: 27100574424 | I59: 100 | M59: 100 | O59: 231 | P59: 15 | Q59: =IFERROR(VLOOKUP(P59,'Meta data'!AX$3:AY$40,2,0),"") -> Within the State Purchases from RD ( Capital Asset )
A60: 48 | B60: 148 | C60: 2016-07-13 | D60: 27480018696 | I60: 100 | M60: 100 | O60: 231 | P60: 15 | Q60: =IFERROR(VLOOKUP(P60,'Meta data'!AX$3:AY$40,2,0),"") -> Within the State Purchases from RD ( Capital Asset )
A61: 49 | B61: 149 | C61: 2016-07-14 | D61: 27790676719 | I61: 100 | M61: 100 | O61: 231 | P61: 90 | Q61: =IFERROR(VLOOKUP(P61,'Meta data'!AX$3:AY$40,2,0),"") -> Purchase Good Return for Tr. Type 10, 15, 80
A62: 50 | B62: 150 | C62: 2016-07-15 | D62: 27060040946 | I62: 100 | M62: 100 | O62: 231 | P62: 95 | Q62: =IFERROR(VLOOKUP(P62,'Meta data'!AX$3:AY$40,2,0),"") -> Purchase Debit Note for Tr. Type 10, 15, 80
A63: 51 | B63: 151 | C63: 2016-07-16 | D63: 27860344310 | J63: 100 | M63: 100 | O63: 231 | P63: 15 | Q63: =IFERROR(VLOOKUP(P63,'Meta data'!AX$3:AY$40,2,0),"") -> Within the State Purchases from RD ( Capital Asset )
A64: 52 | B64: 152 | C64: 2016-07-17 | D64: 27150037453 | J64: 100 | M64: 100 | O64: 231 | P64: 15 | Q64: =IFERROR(VLOOKUP(P64,'Meta data'!AX$3:AY$40,2,0),"") -> Within the State Purchases from RD ( Capital Asset )
A65: 53 | B65: 153 | C65: 2016-07-18 | D65: 27040007686 | J65: 100 | M65: 100 | O65: 231 | P65: 15 | Q65: =IFERROR(VLOOKUP(P65,'Meta data'!AX$3:AY$40,2,0),"") -> Within the State Purchases from RD ( Capital Asset )
A66: 54 | B66: 154 | C66: 2016-07-19 | D66: 27210702549 | J66: 100 | M66: 100 | O66: 231 | P66: 90 | Q66: =IFERROR(VLOOKUP(P66,'Meta data'!AX$3:AY$40,2,0),"") -> Purchase Good Return for Tr. Type 10, 15, 80
A67: 55 | B67: 155 | C67: 2016-07-20 | D67: 27150015046 | J67: 100 | M67: 100 | O67: 231 | P67: 95 | Q67: =IFERROR(VLOOKUP(P67,'Meta data'!AX$3:AY$40,2,0),"") -> Purchase Debit Note for Tr. Type 10, 15, 80
A68: 56 | B68: 156 | C68: 2016-07-21 | D68: 27880541985 | K68: 100 | M68: 100 | O68: 231 | P68: 15 | Q68: =IFERROR(VLOOKUP(P68,'Meta data'!AX$3:AY$40,2,0),"") -> Within the State Purchases from RD ( Capital Asset )
A69: 57 | B69: 157 | C69: 2016-07-22 | D69: 27440604598 | K69: 100 | M69: 100 | O69: 231 | P69: 15 | Q69: =IFERROR(VLOOKUP(P69,'Meta data'!AX$3:AY$40,2,0),"") -> Within the State Purchases from RD ( Capital Asset )
A70: 58 | B70: 158 | C70: 2016-07-23 | D70: 27380041061 | K70: 100 | M70: 100 | O70: 231 | P70: 15 | Q70: =IFERROR(VLOOKUP(P70,'Meta data'!AX$3:AY$40,2,0),"") -> Within the State Purchases from RD ( Capital Asset )
A71: 59 | B71: 159 | C71: 2016-07-24 | D71: 27760101089 | K71: 100 | M71: 100 | O71: 231 | P71: 90 | Q71: =IFERROR(VLOOKUP(P71,'Meta data'!AX$3:AY$40,2,0),"") -> Purchase Good Return for Tr. Type 10, 15, 80
A72: 60 | B72: 160 | C72: 2016-07-25 | D72: 27530354531 | K72: 100 | M72: 100 | O72: 231 | P72: 95 | Q72: =IFERROR(VLOOKUP(P72,'Meta data'!AX$3:AY$40,2,0),"") -> Purchase Debit Note for Tr. Type 10, 15, 80
A73: 61 | B73: 161 | C73: 2016-07-26 | D73: 27060606747 | L73: 100 | M73: 100 | O73: 231 | P73: 15 | Q73: =IFERROR(VLOOKUP(P73,'Meta data'!AX$3:AY$40,2,0),"") -> Within the State Purchases from RD ( Capital Asset )
A74: 62 | B74: 162 | C74: 2016-07-27 | D74: 27840299022 | L74: 100 | M74: 100 | O74: 231 | P74: 15 | Q74: =IFERROR(VLOOKUP(P74,'Meta data'!AX$3:AY$40,2,0),"") -> Within the State Purchases from RD ( Capital Asset )
A75: 63 | B75: 163 | C75: 2016-07-28 | D75: 27200345643 | L75: 100 | M75: 100 | O75: 231 | P75: 15 | Q75: =IFERROR(VLOOKUP(P75,'Meta data'!AX$3:AY$40,2,0),"") -> Within the State Purchases from RD ( Capital Asset )
A76: 64 | B76: 164 | C76: 2016-07-29 | D76: 27980180605 | L76: 100 | M76: 100 | O76: 231 | P76: 90 | Q76: =IFERROR(VLOOKUP(P76,'Meta data'!AX$3:AY$40,2,0),"") -> Purchase Good Return for Tr. Type 10, 15, 80
A77: 65 | B77: 165 | C77: 2016-07-30 | D77: 27690595973 | L77: 100 | M77: 100 | O77: 231 | P77: 95 | Q77: =IFERROR(VLOOKUP(P77,'Meta data'!AX$3:AY$40,2,0),"") -> Purchase Debit Note for Tr. Type 10, 15, 80
A78: 66 | B78: 166 | C78: 2016-07-01 | D78: 27200657789 | E78: 100 | F78: 5 | G78: 105 | H78: 0 | I78: 100 | J78: 100 | K78: 100 | L78: 100 | M78: 610 | O78: 231 | P78: 15 | Q78: =IFERROR(VLOOKUP(P78,'Meta data'!AX$3:AY$40,2,0),"") -> Within the State Purchases from RD ( Capital Asset )
A79: 67 | B79: 167 | C79: 2016-07-02 | D79: 27730677819 | E79: 100 | F79: 5 | G79: 105 | H79: 0 | I79: 100 | J79: 100 | K79: 100 | L79: 100 | M79: 610 | O79: 231 | P79: 15 | Q79: =IFERROR(VLOOKUP(P79,'Meta data'!AX$3:AY$40,2,0),"") -> Within the State Purchases from RD ( Capital Asset )
A80: 68 | B80: 168 | C80: 2016-07-03 | D80: 27890708480 | E80: 100 | F80: 5 | G80: 105 | H80: 0 | I80: 100 | J80: 100 | K80: 100 | L80: 100 | M80: 610 | O80: 231 | P80: 15 | Q80: =IFERROR(VLOOKUP(P80,'Meta data'!AX$3:AY$40,2,0),"") -> Within the State Purchases from RD ( Capital Asset )
A81: 69 | B81: 169 | C81: 2016-07-04 | D81: 27090627731 | E81: 100 | F81: 5 | G81: 105 | H81: 0 | I81: 100 | J81: 100 | K81: 100 | L81: 100 | M81: 610 | O81: 231 | P81: 90 | Q81: =IFERROR(VLOOKUP(P81,'Meta data'!AX$3:AY$40,2,0),"") -> Purchase Good Return for Tr. Type 10, 15, 80
A82: 70 | B82: 170 | C82: 2016-07-05 | D82: 27480615149 | E82: 100 | F82: 5 | G82: 105 | H82: 0 | I82: 100 | J82: 100 | K82: 100 | L82: 100 | M82: 610 | O82: 231 | P82: 95 | Q82: =IFERROR(VLOOKUP(P82,'Meta data'!AX$3:AY$40,2,0),"") -> Purchase Debit Note for Tr. Type 10, 15, 80
A83: 71 | B83: 171 | C83: 2016-07-06 | E83: 100 | M83: 100 | O83: 231 | P83: 20 | Q83: =IFERROR(VLOOKUP(P83,'Meta data'!AX$3:AY$40,2,0),"") -> Within the State URD Purchases
A84: 72 | B84: 172 | C84: 2016-07-07 | E84: 100 | M84: 100 | O84: 231 | P84: 20 | Q84: =IFERROR(VLOOKUP(P84,'Meta data'!AX$3:AY$40,2,0),"") -> Within the State URD Purchases
A85: 73 | B85: 173 | C85: 2016-07-08 | E85: 100 | M85: 100 | O85: 231 | P85: 20 | Q85: =IFERROR(VLOOKUP(P85,'Meta data'!AX$3:AY$40,2,0),"") -> Within the State URD Purchases
A86: 74 | B86: 174 | C86: 2016-07-09 | E86: 100 | M86: 100 | O86: 231 | P86: 91 | Q86: =IFERROR(VLOOKUP(P86,'Meta data'!AX$3:AY$40,2,0),"") -> Purchase Good Return ( Within the State URD ) for Tr. Type 20
A87: 75 | B87: 175 | C87: 2016-07-10 | E87: 100 | M87: 100 | O87: 231 | P87: 96 | Q87: =IFERROR(VLOOKUP(P87,'Meta data'!AX$3:AY$40,2,0),"") -> Purchase Debit Note (Within the State URD ) for Tr. Type 20
A88: 76 | B88: 176 | C88: 2016-07-16 | I88: 100 | M88: 100 | O88: 231 | P88: 20 | Q88: =IFERROR(VLOOKUP(P88,'Meta data'!AX$3:AY$40,2,0),"") -> Within the State URD Purchases
A89: 77 | B89: 177 | C89: 2016-07-17 | I89: 100 | M89: 100 | O89: 231 | P89: 20 | Q89: =IFERROR(VLOOKUP(P89,'Meta data'!AX$3:AY$40,2,0),"") -> Within the State URD Purchases
A90: 78 | B90: 178 | C90: 2016-07-18 | I90: 100 | M90: 100 | O90: 231 | P90: 20 | Q90: =IFERROR(VLOOKUP(P90,'Meta data'!AX$3:AY$40,2,0),"") -> Within the State URD Purchases
A91: 79 | B91: 179 | C91: 2016-07-19 | I91: 100 | M91: 100 | O91: 231 | P91: 91 | Q91: =IFERROR(VLOOKUP(P91,'Meta data'!AX$3:AY$40,2,0),"") -> Purchase Good Return ( Within the State URD ) for Tr. Type 20
A92: 80 | B92: 180 | C92: 2016-07-20 | I92: 100 | M92: 100 | O92: 231 | P92: 96 | Q92: =IFERROR(VLOOKUP(P92,'Meta data'!AX$3:AY$40,2,0),"") -> Purchase Debit Note (Within the State URD ) for Tr. Type 20
A93: 81 | B93: 181 | C93: 2016-07-30 | L93: 100 | M93: 100 | O93: 231 | P93: 20 | Q93: =IFERROR(VLOOKUP(P93,'Meta data'!AX$3:AY$40,2,0),"") -> Within the State URD Purchases
A94: 82 | B94: 182 | C94: 2016-07-01 | L94: 100 | M94: 100 | O94: 231 | P94: 20 | Q94: =IFERROR(VLOOKUP(P94,'Meta data'!AX$3:AY$40,2,0),"") -> Within the State URD Purchases
A95: 83 | B95: 183 | C95: 2016-07-02 | L95: 100 | M95: 100 | O95: 231 | P95: 20 | Q95: =IFERROR(VLOOKUP(P95,'Meta data'!AX$3:AY$40,2,0),"") -> Within the State URD Purchases
A96: 84 | B96: 184 | C96: 2016-07-03 | L96: 100 | M96: 100 | O96: 231 | P96: 91 | Q96: =IFERROR(VLOOKUP(P96,'Meta data'!AX$3:AY$40,2,0),"") -> Purchase Good Return ( Within the State URD ) for Tr. Type 20
A97: 85 | B97: 185 | C97: 2016-07-04 | L97: 100 | M97: 100 | O97: 231 | P97: 96 | Q97: =IFERROR(VLOOKUP(P97,'Meta data'!AX$3:AY$40,2,0),"") -> Purchase Debit Note (Within the State URD ) for Tr. Type 20
A98: 86 | B98: 186 | C98: 2016-07-05 | E98: 100 | H98: 0 | I98: 100 | K98: 100 | L98: 100 | M98: 400 | O98: 231 | P98: 20 | Q98: =IFERROR(VLOOKUP(P98,'Meta data'!AX$3:AY$40,2,0),"") -> Within the State URD Purchases
A99: 87 | B99: 187 | C99: 2016-07-06 | E99: 100 | H99: 0 | I99: 100 | K99: 100 | L99: 100 | M99: 400 | O99: 231 | P99: 20 | Q99: =IFERROR(VLOOKUP(P99,'Meta data'!AX$3:AY$40,2,0),"") -> Within the State URD Purchases
A100: 88 | B100: 188 | C100: 2016-07-07 | E100: 100 | H100: 0 | I100: 100 | K100: 100 | L100: 100 | M100: 400 | O100: 231 | P100: 20 | Q100: =IFERROR(VLOOKUP(P100,'Meta data'!AX$3:AY$40,2,0),"") -> Within the State URD Purchases
A101: 89 | B101: 189 | C101: 2016-07-08 | E101: 100 | H101: 0 | I101: 100 | K101: 100 | L101: 100 | M101: 400 | O101: 231 | P101: 91 | Q101: =IFERROR(VLOOKUP(P101,'Meta data'!AX$3:AY$40,2,0),"") -> Purchase Good Return ( Within the State URD ) for Tr. Type 20
A102: 90 | B102: 190 | C102: 2016-07-09 | E102: 100 | H102: 0 | I102: 100 | K102: 100 | L102: 100 | M102: 400 | O102: 231 | P102: 96 | Q102: =IFERROR(VLOOKUP(P102,'Meta data'!AX$3:AY$40,2,0),"") -> Purchase Debit Note (Within the State URD ) for Tr. Type 20
A103: 91 | B103: 191 | C103: 2016-07-10 | D103: 24740602202 | E103: 100 | M103: 100 | O103: 231 | P103: 30 | Q103: =IFERROR(VLOOKUP(P103,'Meta data'!AX$3:AY$40,2,0),"") -> Inter-State Branch Transfer
A104: 92 | B104: 192 | C104: 2016-07-11 | D104: 24060669215 | E104: 100 | M104: 100 | O104: 231 | P104: 30 | Q104: =IFERROR(VLOOKUP(P104,'Meta data'!AX$3:AY$40,2,0),"") -> Inter-State Branch Transfer
A105: 93 | B105: 193 | C105: 2016-07-12 | D105: 24060654374 | E105: 100 | M105: 100 | O105: 231 | P105: 30 | Q105: =IFERROR(VLOOKUP(P105,'Meta data'!AX$3:AY$40,2,0),"") -> Inter-State Branch Transfer
A106: 94 | B106: 194 | C106: 2016-07-13 | D106: 24040651087 | E106: 100 | M106: 100 | O106: 231 | P106: 31 | Q106: =IFERROR(VLOOKUP(P106,'Meta data'!AX$3:AY$40,2,0),"") -> Purchase Good Return ( Inter-state Branch transfer) for Tr. Type 30
A107: 95 | B107: 195 | C107: 2016-07-14 | D107: 24460710899 | E107: 100 | M107: 100 | O107: 231 | P107: 32 | Q107: =IFERROR(VLOOKUP(P107,'Meta data'!AX$3:AY$40,2,0),"") -> Purchase Debit Note ( Inter-state Branch transfer) for Tr. Type 30
A108: 96 | B108: 196 | C108: 2016-07-15 | D108: 24690622939 | I108: 100 | M108: 100 | O108: 231 | P108: 30 | Q108: =IFERROR(VLOOKUP(P108,'Meta data'!AX$3:AY$40,2,0),"") -> Inter-State Branch Transfer
A109: 97 | B109: 197 | C109: 2016-07-16 | D109: 24540557983 | I109: 100 | M109: 100 | O109: 231 | P109: 30 | Q109: =IFERROR(VLOOKUP(P109,'Meta data'!AX$3:AY$40,2,0),"") -> Inter-State Branch Transfer
A110: 98 | B110: 198 | C110: 2016-07-17 | D110: 24590000448 | I110: 100 | M110: 100 | O110: 231 | P110: 30 | Q110: =IFERROR(VLOOKUP(P110,'Meta data'!AX$3:AY$40,2,0),"") -> Inter-State Branch Transfer
A111: 99 | B111: 199 | C111: 2016-07-18 | D111: 24850630902 | I111: 100 | M111: 100 | O111: 231 | P111: 31 | Q111: =IFERROR(VLOOKUP(P111,'Meta data'!AX$3:AY$40,2,0),"") -> Purchase Good Return ( Inter-state Branch transfer) for Tr. Type 30
A112: 100 | B112: 200 | C112: 2016-07-19 | D112: 24210351021 | I112: 100 | M112: 100 | O112: 231 | P112: 32 | Q112: =IFERROR(VLOOKUP(P112,'Meta data'!AX$3:AY$40,2,0),"") -> Purchase Debit Note ( Inter-state Branch transfer) for Tr. Type 30
A113: 101 | B113: 201 | C113: 2016-07-20 | D113: 24810606286 | K113: 100 | M113: 100 | O113: 231 | P113: 30 | Q113: =IFERROR(VLOOKUP(P113,'Meta data'!AX$3:AY$40,2,0),"") -> Inter-State Branch Transfer
A114: 102 | B114: 202 | C114: 2016-07-21 | D114: 24510288970 | K114: 100 | M114: 100 | O114: 231 | P114: 30 | Q114: =IFERROR(VLOOKUP(P114,'Meta data'!AX$3:AY$40,2,0),"") -> Inter-State Branch Transfer
A115: 103 | B115: 203 | C115: 2016-07-22 | D115: 24740006816 | K115: 100 | M115: 100 | O115: 231 | P115: 30 | Q115: =IFERROR(VLOOKUP(P115,'Meta data'!AX$3:AY$40,2,0),"") -> Inter-State Branch Transfer
A116: 104 | B116: 204 | C116: 2016-07-23 | D116: 24380383762 | K116: 100 | M116: 100 | O116: 231 | P116: 31 | Q116: =IFERROR(VLOOKUP(P116,'Meta data'!AX$3:AY$40,2,0),"") -> Purchase Good Return ( Inter-state Branch transfer) for Tr. Type 30
A117: 105 | B117: 205 | C117: 2016-07-24 | D117: 24920074229 | K117: 100 | M117: 100 | O117: 231 | P117: 32 | Q117: =IFERROR(VLOOKUP(P117,'Meta data'!AX$3:AY$40,2,0),"") -> Purchase Debit Note ( Inter-state Branch transfer) for Tr. Type 30
A118: 106 | B118: 206 | C118: 2016-07-25 | D118: 24220658554 | L118: 100 | M118: 100 | O118: 231 | P118: 30 | Q118: =IFERROR(VLOOKUP(P118,'Meta data'!AX$3:AY$40,2,0),"") -> Inter-State Branch Transfer
A119: 107 | B119: 207 | C119: 2016-07-26 | D119: 24500040413 | L119: 100 | M119: 100 | O119: 231 | P119: 30 | Q119: =IFERROR(VLOOKUP(P119,'Meta data'!AX$3:AY$40,2,0),"") -> Inter-State Branch Transfer
A120: 108 | B120: 208 | C120: 2016-07-27 | D120: 24550402244 | L120: 100 | M120: 100 | O120: 231 | P120: 30 | Q120: =IFERROR(VLOOKUP(P120,'Meta data'!AX$3:AY$40,2,0),"") -> Inter-State Branch Transfer
A121: 109 | B121: 209 | C121: 2016-07-28 | D121: 24830001189 | L121: 100 | M121: 100 | O121: 231 | P121: 31 | Q121: =IFERROR(VLOOKUP(P121,'Meta data'!AX$3:AY$40,2,0),"") -> Purchase Good Return ( Inter-state Branch transfer) for Tr. Type 30
A122: 110 | B122: 210 | C122: 2016-07-29 | D122: 24730094267 | L122: 100 | M122: 100 | O122: 231 | P122: 32 | Q122: =IFERROR(VLOOKUP(P122,'Meta data'!AX$3:AY$40,2,0),"") -> Purchase Debit Note ( Inter-state Branch transfer) for Tr. Type 30
A123: 111 | B123: 211 | C123: 2016-07-30 | D123: 24080082645 | E123: 100 | I123: 100 | K123: 100 | L123: 100 | M123: 400 | O123: 231 | P123: 30 | Q123: =IFERROR(VLOOKUP(P123,'Meta data'!AX$3:AY$40,2,0),"") -> Inter-State Branch Transfer
A124: 112 | B124: 212 | C124: 2016-07-30 | D124: 24140251295 | E124: 100 | I124: 100 | K124: 100 | L124: 100 | M124: 400 | O124: 231 | P124: 30 | Q124: =IFERROR(VLOOKUP(P124,'Meta data'!AX$3:AY$40,2,0),"") -> Inter-State Branch Transfer
A125: 113 | B125: 213 | C125: 2016-07-01 | D125: 24140000356 | E125: 100 | I125: 100 | K125: 100 | L125: 100 | M125: 400 | O125: 231 | P125: 30 | Q125: =IFERROR(VLOOKUP(P125,'Meta data'!AX$3:AY$40,2,0),"") -> Inter-State Branch Transfer
A126: 114 | B126: 214 | C126: 2016-07-02 | D126: 24650698718 | E126: 100 | I126: 100 | K126: 100 | L126: 100 | M126: 400 | O126: 231 | P126: 31 | Q126: =IFERROR(VLOOKUP(P126,'Meta data'!AX$3:AY$40,2,0),"") -> Purchase Good Return ( Inter-state Branch transfer) for Tr. Type 30
A127: 115 | B127: 215 | C127: 2016-07-03 | D127: 24640001924 | E127: 100 | I127: 100 | K127: 100 | L127: 100 | M127: 400 | O127: 231 | P127: 32 | Q127: =IFERROR(VLOOKUP(P127,'Meta data'!AX$3:AY$40,2,0),"") -> Purchase Debit Note ( Inter-state Branch transfer) for Tr. Type 30
A128: 116 | B128: 216 | C128: 2016-07-10 | D128: 27740602202 | E128: 100 | M128: 100 | O128: 231 | P128: 35 | Q128: =IFERROR(VLOOKUP(P128,'Meta data'!AX$3:AY$40,2,0),"") -> Within the State Branch Transfer
A129: 117 | B129: 217 | C129: 2016-07-11 | D129: 27060669215 | E129: 100 | M129: 100 | O129: 231 | P129: 35 | Q129: =IFERROR(VLOOKUP(P129,'Meta data'!AX$3:AY$40,2,0),"") -> Within the State Branch Transfer
A130: 118 | B130: 218 | C130: 2016-07-12 | D130: 27060654374 | E130: 100 | M130: 100 | O130: 231 | P130: 35 | Q130: =IFERROR(VLOOKUP(P130,'Meta data'!AX$3:AY$40,2,0),"") -> Within the State Branch Transfer
A131: 119 | B131: 219 | C131: 2016-07-13 | D131: 27040651087 | E131: 100 | M131: 100 | O131: 231 | P131: 36 | Q131: =IFERROR(VLOOKUP(P131,'Meta data'!AX$3:AY$40,2,0),"") -> Purchase Good Return ( Within State Branch transfer) for Tr. Type 35
A132: 120 | B132: 220 | C132: 2016-07-14 | D132: 27460710899 | E132: 100 | M132: 100 | O132: 231 | P132: 37 | Q132: =IFERROR(VLOOKUP(P132,'Meta data'!AX$3:AY$40,2,0),"") -> Purchase Debit Note ( Within State Branch transfer) for Tr. Type 35
A133: 121 | B133: 221 | C133: 2016-07-15 | D133: 27690622939 | I133: 100 | M133: 100 | O133: 231 | P133: 35 | Q133: =IFERROR(VLOOKUP(P133,'Meta data'!AX$3:AY$40,2,0),"") -> Within the State Branch Transfer
A134: 122 | B134: 222 | C134: 2016-07-16 | D134: 27540557983 | I134: 100 | M134: 100 | O134: 231 | P134: 35 | Q134: =IFERROR(VLOOKUP(P134,'Meta data'!AX$3:AY$40,2,0),"") -> Within the State Branch Transfer
A135: 123 | B135: 223 | C135: 2016-07-17 | D135: 27590000448 | I135: 100 | M135: 100 | O135: 231 | P135: 35 | Q135: =IFERROR(VLOOKUP(P135,'Meta data'!AX$3:AY$40,2,0),"") -> Within the State Branch Transfer
A136: 124 | B136: 224 | C136: 2016-07-18 | D136: 27850630902 | I136: 100 | M136: 100 | O136: 231 | P136: 36 | Q136: =IFERROR(VLOOKUP(P136,'Meta data'!AX$3:AY$40,2,0),"") -> Purchase Good Return ( Within State Branch transfer) for Tr. Type 35
A137: 125 | B137: 225 | C137: 2016-07-19 | D137: 27210351021 | I137: 100 | M137: 100 | O137: 231 | P137: 37 | Q137: =IFERROR(VLOOKUP(P137,'Meta data'!AX$3:AY$40,2,0),"") -> Purchase Debit Note ( Within State Branch transfer) for Tr. Type 35
A138: 126 | B138: 226 | C138: 2016-07-20 | D138: 27810606286 | K138: 100 | M138: 100 | O138: 231 | P138: 35 | Q138: =IFERROR(VLOOKUP(P138,'Meta data'!AX$3:AY$40,2,0),"") -> Within the State Branch Transfer
A139: 127 | B139: 227 | C139: 2016-07-21 | D139: 27510288970 | K139: 100 | M139: 100 | O139: 231 | P139: 35 | Q139: =IFERROR(VLOOKUP(P139,'Meta data'!AX$3:AY$40,2,0),"") -> Within the State Branch Transfer
A140: 128 | B140: 228 | C140: 2016-07-22 | D140: 27740006816 | K140: 100 | M140: 100 | O140: 231 | P140: 35 | Q140: =IFERROR(VLOOKUP(P140,'Meta data'!AX$3:AY$40,2,0),"") -> Within the State Branch Transfer
A141: 129 | B141: 229 | C141: 2016-07-23 | D141: 27380383762 | K141: 100 | M141: 100 | O141: 231 | P141: 36 | Q141: =IFERROR(VLOOKUP(P141,'Meta data'!AX$3:AY$40,2,0),"") -> Purchase Good Return ( Within State Branch transfer) for Tr. Type 35
A142: 130 | B142: 230 | C142: 2016-07-24 | D142: 27920074229 | K142: 100 | M142: 100 | O142: 231 | P142: 37 | Q142: =IFERROR(VLOOKUP(P142,'Meta data'!AX$3:AY$40,2,0),"") -> Purchase Debit Note ( Within State Branch transfer) for Tr. Type 35
A143: 131 | B143: 231 | C143: 2016-07-25 | D143: 27220658554 | L143: 100 | M143: 100 | O143: 231 | P143: 35 | Q143: =IFERROR(VLOOKUP(P143,'Meta data'!AX$3:AY$40,2,0),"") -> Within the State Branch Transfer
A144: 132 | B144: 232 | C144: 2016-07-26 | D144: 27500040413 | L144: 100 | M144: 100 | O144: 231 | P144: 35 | Q144: =IFERROR(VLOOKUP(P144,'Meta data'!AX$3:AY$40,2,0),"") -> Within the State Branch Transfer
A145: 133 | B145: 233 | C145: 2016-07-27 | D145: 27550402244 | L145: 100 | M145: 100 | O145: 231 | P145: 35 | Q145: =IFERROR(VLOOKUP(P145,'Meta data'!AX$3:AY$40,2,0),"") -> Within the State Branch Transfer
A146: 134 | B146: 234 | C146: 2016-07-28 | D146: 27830001189 | L146: 100 | M146: 100 | O146: 231 | P146: 36 | Q146: =IFERROR(VLOOKUP(P146,'Meta data'!AX$3:AY$40,2,0),"") -> Purchase Good Return ( Within State Branch transfer) for Tr. Type 35
A147: 135 | B147: 235 | C147: 2016-07-29 | D147: 27730094267 | L147: 100 | M147: 100 | O147: 231 | P147: 37 | Q147: =IFERROR(VLOOKUP(P147,'Meta data'!AX$3:AY$40,2,0),"") -> Purchase Debit Note ( Within State Branch transfer) for Tr. Type 35
A148: 136 | B148: 236 | C148: 2016-07-30 | D148: 27080082645 | E148: 100 | I148: 100 | K148: 100 | L148: 100 | M148: 400 | O148: 231 | P148: 35 | Q148: =IFERROR(VLOOKUP(P148,'Meta data'!AX$3:AY$40,2,0),"") -> Within the State Branch Transfer
A149: 137 | B149: 237 | C149: 2016-07-30 | D149: 27140251295 | E149: 100 | I149: 100 | K149: 100 | L149: 100 | M149: 400 | O149: 231 | P149: 35 | Q149: =IFERROR(VLOOKUP(P149,'Meta data'!AX$3:AY$40,2,0),"") -> Within the State Branch Transfer
A150: 138 | B150: 238 | C150: 2016-07-01 | D150: 27140000356 | E150: 100 | I150: 100 | K150: 100 | L150: 100 | M150: 400 | O150: 231 | P150: 35 | Q150: =IFERROR(VLOOKUP(P150,'Meta data'!AX$3:AY$40,2,0),"") -> Within the State Branch Transfer
A151: 139 | B151: 239 | C151: 2016-07-02 | D151: 27650698718 | E151: 100 | I151: 100 | K151: 100 | L151: 100 | M151: 400 | O151: 231 | P151: 36 | Q151: =IFERROR(VLOOKUP(P151,'Meta data'!AX$3:AY$40,2,0),"") -> Purchase Good Return ( Within State Branch transfer) for Tr. Type 35
A152: 140 | B152: 240 | C152: 2016-07-03 | D152: 27640001924 | E152: 100 | I152: 100 | K152: 100 | L152: 100 | M152: 400 | O152: 231 | P152: 37 | Q152: =IFERROR(VLOOKUP(P152,'Meta data'!AX$3:AY$40,2,0),"") -> Purchase Debit Note ( Within State Branch transfer) for Tr. Type 35
A153: 141 | B153: 241 | C153: 2016-07-01 | D153: 25580000502 | E153: 100 | F153: 2 | M153: 102 | O153: 231 | P153: 40 | Q153: =IFERROR(VLOOKUP(P153,'Meta data'!AX$3:AY$40,2,0),"") -> Inter-State Purchases against Form-C
A154: 142 | B154: 242 | C154: 2016-07-02 | D154: 25890411078 | E154: 100 | F154: 2 | M154: 102 | O154: 231 | P154: 40 | Q154: =IFERROR(VLOOKUP(P154,'Meta data'!AX$3:AY$40,2,0),"") -> Inter-State Purchases against Form-C
A155: 143 | B155: 243 | C155: 2016-07-03 | D155: 25340012662 | E155: 100 | F155: 2 | M155: 102 | O155: 231 | P155: 40 | Q155: =IFERROR(VLOOKUP(P155,'Meta data'!AX$3:AY$40,2,0),"") -> Inter-State Purchases against Form-C
A156: 144 | B156: 244 | C156: 2016-07-04 | D156: 25880006060 | E156: 100 | F156: 2 | M156: 102 | O156: 231 | P156: 41 | Q156: =IFERROR(VLOOKUP(P156,'Meta data'!AX$3:AY$40,2,0),"") -> Purchase Good Return ( Inter state Purchases against Form-C ) for Tr. Type 40
A157: 145 | B157: 245 | C157: 2016-07-05 | D157: 25710299625 | E157: 100 | F157: 2 | M157: 102 | O157: 231 | P157: 42 | Q157: =IFERROR(VLOOKUP(P157,'Meta data'!AX$3:AY$40,2,0),"") -> Purchase Debit Note ( Inter state Purchases against Form-C ) for Tr. Type 40
A158: 146 | B158: 246 | C158: 2016-07-06 | D158: 25790388629 | G158: 102 | M158: 102 | O158: 231 | P158: 40 | Q158: =IFERROR(VLOOKUP(P158,'Meta data'!AX$3:AY$40,2,0),"") -> Inter-State Purchases against Form-C
A159: 147 | B159: 247 | C159: 2016-07-07 | D159: 25480676744 | G159: 102 | M159: 102 | O159: 231 | P159: 40 | Q159: =IFERROR(VLOOKUP(P159,'Meta data'!AX$3:AY$40,2,0),"") -> Inter-State Purchases against Form-C
A160: 148 | B160: 248 | C160: 2016-07-08 | D160: 25640262466 | G160: 102 | M160: 102 | O160: 231 | P160: 40 | Q160: =IFERROR(VLOOKUP(P160,'Meta data'!AX$3:AY$40,2,0),"") -> Inter-State Purchases against Form-C
A161: 149 | B161: 249 | C161: 2016-07-09 | D161: 25740013218 | G161: 102 | M161: 102 | O161: 231 | P161: 41 | Q161: =IFERROR(VLOOKUP(P161,'Meta data'!AX$3:AY$40,2,0),"") -> Purchase Good Return ( Inter state Purchases against Form-C ) for Tr. Type 40
A162: 150 | B162: 250 | C162: 2016-07-10 | D162: 25250705426 | G162: 102 | M162: 102 | O162: 231 | P162: 42 | Q162: =IFERROR(VLOOKUP(P162,'Meta data'!AX$3:AY$40,2,0),"") -> Purchase Debit Note ( Inter state Purchases against Form-C ) for Tr. Type 40
A163: 151 | B163: 251 | C163: 2016-07-01 | D163: 25200657789 | E163: 100 | F163: 2 | G163: 102 | H163: 0 | K163: 100 | L163: 100 | M163: 404 | O163: 231 | P163: 40 | Q163: =IFERROR(VLOOKUP(P163,'Meta data'!AX$3:AY$40,2,0),"") -> Inter-State Purchases against Form-C
A164: 152 | B164: 252 | C164: 2016-07-02 | D164: 25730677819 | E164: 100 | F164: 2 | G164: 102 | H164: 0 | K164: 100 | L164: 100 | M164: 404 | O164: 231 | P164: 40 | Q164: =IFERROR(VLOOKUP(P164,'Meta data'!AX$3:AY$40,2,0),"") -> Inter-State Purchases against Form-C
A165: 153 | B165: 253 | C165: 2016-07-03 | D165: 25890708480 | E165: 100 | F165: 2 | G165: 102 | H165: 0 | K165: 100 | L165: 100 | M165: 404 | O165: 231 | P165: 40 | Q165: =IFERROR(VLOOKUP(P165,'Meta data'!AX$3:AY$40,2,0),"") -> Inter-State Purchases against Form-C
A166: 154 | B166: 254 | C166: 2016-07-04 | D166: 25090625731 | E166: 100 | F166: 2 | G166: 102 | H166: 0 | K166: 100 | L166: 100 | M166: 404 | O166: 231 | P166: 41 | Q166: =IFERROR(VLOOKUP(P166,'Meta data'!AX$3:AY$40,2,0),"") -> Purchase Good Return ( Inter state Purchases against Form-C ) for Tr. Type 40
A167: 155 | B167: 255 | C167: 2016-07-05 | D167: 25480615149 | E167: 100 | F167: 2 | G167: 102 | H167: 0 | K167: 100 | L167: 100 | M167: 404 | O167: 231 | P167: 42 | Q167: =IFERROR(VLOOKUP(P167,'Meta data'!AX$3:AY$40,2,0),"") -> Purchase Debit Note ( Inter state Purchases against Form-C ) for Tr. Type 40
A168: 156 | B168: 256 | C168: 2016-07-01 | D168: 27580000502 | E168: 100 | M168: 100 | O168: 231 | P168: 45 | Q168: =IFERROR(VLOOKUP(P168,'Meta data'!AX$3:AY$40,2,0),"") -> Within the State Purchases against Form-C (Purchase in transit u/s 6(2))
A169: 157 | B169: 257 | C169: 2016-07-02 | D169: 27890411078 | E169: 100 | M169: 100 | O169: 231 | P169: 45 | Q169: =IFERROR(VLOOKUP(P169,'Meta data'!AX$3:AY$40,2,0),"") -> Within the State Purchases against Form-C (Purchase in transit u/s 6(2))
A170: 158 | B170: 258 | C170: 2016-07-03 | D170: 27340012662 | E170: 100 | M170: 100 | O170: 231 | P170: 45 | Q170: =IFERROR(VLOOKUP(P170,'Meta data'!AX$3:AY$40,2,0),"") -> Within the State Purchases against Form-C (Purchase in transit u/s 6(2))
A171: 159 | B171: 259 | C171: 2016-07-04 | D171: 27880006060 | E171: 100 | M171: 100 | O171: 231 | P171: 46 | Q171: =IFERROR(VLOOKUP(P171,'Meta data'!AX$3:AY$40,2,0),"") -> Purchase Good Return ( Within State purchases against Form-C ) for Tr. Type 45
A172: 160 | B172: 260 | C172: 2016-07-05 | D172: 27710299627 | E172: 100 | M172: 100 | O172: 231 | P172: 47 | Q172: =IFERROR(VLOOKUP(P172,'Meta data'!AX$3:AY$40,2,0),"") -> Purchase Debit Note ( Within State Puchases against Form-C ) for Tr. Type 45
A173: 161 | B173: 261 | C173: 2016-07-01 | D173: 27200657789 | E173: 100 | K173: 100 | L173: 100 | M173: 300 | O173: 231 | P173: 45 | Q173: =IFERROR(VLOOKUP(P173,'Meta data'!AX$3:AY$40,2,0),"") -> Within the State Purchases against Form-C (Purchase in transit u/s 6(2))
A174: 162 | B174: 262 | C174: 2016-07-02 | D174: 27730677819 | E174: 100 | K174: 100 | L174: 100 | M174: 300 | O174: 231 | P174: 45 | Q174: =IFERROR(VLOOKUP(P174,'Meta data'!AX$3:AY$40,2,0),"") -> Within the State Purchases against Form-C (Purchase in transit u/s 6(2))
A175: 163 | B175: 263 | C175: 2016-07-03 | D175: 27890708480 | E175: 100 | K175: 100 | L175: 100 | M175: 300 | O175: 231 | P175: 45 | Q175: =IFERROR(VLOOKUP(P175,'Meta data'!AX$3:AY$40,2,0),"") -> Within the State Purchases against Form-C (Purchase in transit u/s 6(2))
A176: 164 | B176: 264 | C176: 2016-07-04 | D176: 27090627731 | E176: 100 | K176: 100 | L176: 100 | M176: 300 | O176: 231 | P176: 46 | Q176: =IFERROR(VLOOKUP(P176,'Meta data'!AX$3:AY$40,2,0),"") -> Purchase Good Return ( Within State purchases against Form-C ) for Tr. Type 45
A177: 165 | B177: 265 | C177: 2016-07-05 | D177: 27480615149 | E177: 100 | K177: 100 | L177: 100 | M177: 300 | O177: 231 | P177: 47 | Q177: =IFERROR(VLOOKUP(P177,'Meta data'!AX$3:AY$40,2,0),"") -> Purchase Debit Note ( Within State Puchases against Form-C ) for Tr. Type 45
A178: 166 | B178: 266 | C178: 2016-07-01 | D178: 24580000502 | E178: 100 | M178: 100 | O178: 231 | P178: 50 | Q178: =IFERROR(VLOOKUP(P178,'Meta data'!AX$3:AY$40,2,0),"") -> Inter-State Purchases against Form-H
A179: 167 | B179: 267 | C179: 2016-07-02 | D179: 24890411078 | E179: 100 | M179: 100 | O179: 231 | P179: 50 | Q179: =IFERROR(VLOOKUP(P179,'Meta data'!AX$3:AY$40,2,0),"") -> Inter-State Purchases against Form-H
A180: 168 | B180: 268 | C180: 2016-07-03 | D180: 24340012662 | E180: 100 | M180: 100 | O180: 231 | P180: 50 | Q180: =IFERROR(VLOOKUP(P180,'Meta data'!AX$3:AY$40,2,0),"") -> Inter-State Purchases against Form-H
A181: 169 | B181: 269 | C181: 2016-07-04 | D181: 24880006060 | E181: 100 | M181: 100 | O181: 231 | P181: 51 | Q181: =IFERROR(VLOOKUP(P181,'Meta data'!AX$3:AY$40,2,0),"") -> Purchase Good Return ( Inter State Purchases against Form-H ) for Tr. Type 50
A182: 170 | B182: 270 | C182: 2016-07-05 | D182: 24710299624 | E182: 100 | M182: 100 | O182: 231 | P182: 52 | Q182: =IFERROR(VLOOKUP(P182,'Meta data'!AX$3:AY$40,2,0),"") -> Purchase Debit Note ( Inter State Purchases against Form-H ) for Tr. Type 50
A183: 171 | B183: 271 | C183: 2016-07-01 | D183: 24200657789 | E183: 100 | K183: 100 | L183: 100 | M183: 300 | O183: 231 | P183: 50 | Q183: =IFERROR(VLOOKUP(P183,'Meta data'!AX$3:AY$40,2,0),"") -> Inter-State Purchases against Form-H
A184: 172 | B184: 272 | C184: 2016-07-02 | D184: 24730677819 | E184: 100 | K184: 100 | L184: 100 | M184: 300 | O184: 231 | P184: 50 | Q184: =IFERROR(VLOOKUP(P184,'Meta data'!AX$3:AY$40,2,0),"") -> Inter-State Purchases against Form-H
A185: 173 | B185: 273 | C185: 2016-07-03 | D185: 24890708480 | E185: 100 | K185: 100 | L185: 100 | M185: 300 | O185: 231 | P185: 50 | Q185: =IFERROR(VLOOKUP(P185,'Meta data'!AX$3:AY$40,2,0),"") -> Inter-State Purchases against Form-H
A186: 174 | B186: 274 | C186: 2016-07-04 | D186: 24090624731 | E186: 100 | K186: 100 | L186: 100 | M186: 300 | O186: 231 | P186: 51 | Q186: =IFERROR(VLOOKUP(P186,'Meta data'!AX$3:AY$40,2,0),"") -> Purchase Good Return ( Inter State Purchases against Form-H ) for Tr. Type 50
A187: 175 | B187: 275 | C187: 2016-07-05 | D187: 24480615149 | E187: 100 | K187: 100 | L187: 100 | M187: 300 | O187: 231 | P187: 52 | Q187: =IFERROR(VLOOKUP(P187,'Meta data'!AX$3:AY$40,2,0),"") -> Purchase Debit Note ( Inter State Purchases against Form-H ) for Tr. Type 50
A188: 176 | B188: 276 | C188: 2016-07-01 | D188: 27580000502 | E188: 100 | M188: 100 | O188: 231 | P188: 55 | Q188: =IFERROR(VLOOKUP(P188,'Meta data'!AX$3:AY$40,2,0),"") -> Within the State Purchases against H Form
A189: 177 | B189: 277 | C189: 2016-07-02 | D189: 27890411078 | E189: 100 | M189: 100 | O189: 231 | P189: 55 | Q189: =IFERROR(VLOOKUP(P189,'Meta data'!AX$3:AY$40,2,0),"") -> Within the State Purchases against H Form
A190: 178 | B190: 278 | C190: 2016-07-03 | D190: 27340012662 | E190: 100 | M190: 100 | O190: 231 | P190: 55 | Q190: =IFERROR(VLOOKUP(P190,'Meta data'!AX$3:AY$40,2,0),"") -> Within the State Purchases against H Form
A191: 179 | B191: 279 | C191: 2016-07-04 | D191: 27880006060 | E191: 100 | M191: 100 | O191: 231 | P191: 56 | Q191: =IFERROR(VLOOKUP(P191,'Meta data'!AX$3:AY$40,2,0),"") -> Purchase Good Return ( Within State Purchases against Form-H ) for Tr. Type 55
A192: 180 | B192: 280 | C192: 2016-07-05 | D192: 27710299627 | E192: 100 | M192: 100 | O192: 231 | P192: 57 | Q192: =IFERROR(VLOOKUP(P192,'Meta data'!AX$3:AY$40,2,0),"") -> Purchase Debit Note ( Within State Purchases against Form-H ) for Tr. Type 55
A193: 181 | B193: 281 | C193: 2016-07-01 | D193: 27200657789 | E193: 100 | K193: 100 | L193: 100 | M193: 300 | O193: 231 | P193: 55 | Q193: =IFERROR(VLOOKUP(P193,'Meta data'!AX$3:AY$40,2,0),"") -> Within the State Purchases against H Form
A194: 182 | B194: 282 | C194: 2016-07-02 | D194: 27730677819 | E194: 100 | K194: 100 | L194: 100 | M194: 300 | O194: 231 | P194: 55 | Q194: =IFERROR(VLOOKUP(P194,'Meta data'!AX$3:AY$40,2,0),"") -> Within the State Purchases against H Form
A195: 183 | B195: 283 | C195: 2016-07-03 | D195: 27890708480 | E195: 100 | K195: 100 | L195: 100 | M195: 300 | O195: 231 | P195: 55 | Q195: =IFERROR(VLOOKUP(P195,'Meta data'!AX$3:AY$40,2,0),"") -> Within the State Purchases against H Form
A196: 184 | B196: 284 | C196: 2016-07-04 | D196: 27090627731 | E196: 100 | K196: 100 | L196: 100 | M196: 300 | O196: 231 | P196: 56 | Q196: =IFERROR(VLOOKUP(P196,'Meta data'!AX$3:AY$40,2,0),"") -> Purchase Good Return ( Within State Purchases against Form-H ) for Tr. Type 55
A197: 185 | B197: 285 | C197: 2016-07-05 | D197: 27480615149 | E197: 100 | K197: 100 | L197: 100 | M197: 300 | O197: 231 | P197: 57 | Q197: =IFERROR(VLOOKUP(P197,'Meta data'!AX$3:AY$40,2,0),"") -> Purchase Debit Note ( Within State Purchases against Form-H ) for Tr. Type 55
A198: 186 | B198: 286 | C198: 2016-07-01 | E198: 100 | M198: 100 | O198: 231 | P198: 60 | Q198: =IFERROR(VLOOKUP(P198,'Meta data'!AX$3:AY$40,2,0),"") -> Imports (Direct)
A199: 187 | B199: 287 | C199: 2016-07-02 | E199: 100 | M199: 100 | O199: 231 | P199: 60 | Q199: =IFERROR(VLOOKUP(P199,'Meta data'!AX$3:AY$40,2,0),"") -> Imports (Direct)
A200: 188 | B200: 288 | C200: 2016-07-03 | E200: 100 | M200: 100 | O200: 231 | P200: 60 | Q200: =IFERROR(VLOOKUP(P200,'Meta data'!AX$3:AY$40,2,0),"") -> Imports (Direct)
... 57 more rows

Sheet Validate
B3: Step 1: After filling up Sales and Purchase annexure to preview return click on this button | I3: Refresh button is provided for deleteing preview return and unlocking of Header, Sales and Purchase annexure in case of any changes required
B8: Step 2: After entering manual inputs in preview return to create file for uploading click on this button

Sheet Messages
B2: Message Details
B3: Sr.No. | C3: Sheet | D3: Line Number in Excel | E3: Cell Address | G3: Message Details

Sheet Rough-Sheet
A1: The information in this sheet shall not be uploaded

Sheet Message (hidden)

Sheet MAIN (hidden)
A1: 231 | H1: CST All Sales Annexure | O1: 232 All Purchase | W1: 233 Sales and Purchase | AF1: 234 Sales and Purchase | AP1: 235 Sales and Purchase
I2: a | J2: b | K2: c | L2: Total | P2: a | Q2: b | R2: c | S2: d | T2: Total | W2: 6 | X2: a | Y2: b | Z2: c | AA2: d | AB2: e | AC2: Total | AF2: 6 | AG2: a | AH2: b | AI2: c | AJ2: d | AK2: e | AL2: Total | AQ2: a | AR2: b | AS2: c | AT2: d | AU2: e | AV2: Total | AZ2: Form-Header | BA2: Number
A3: 5 | B3: SALES-ANNEXURE | H3: 1 | I3: =ROUND(SUM(SUMIFS('Sales Annexure'!M:M,'Sales Annexure'!O:O,{"231","232","233","234","235","CST"})),0) -> 41440 | J3: =ROUND(SUM(SUMIFS('Sales Annexure'!M:M,'Sales Annexure'!O:O,{"<>CST"},'Sales Annexure'!P:P,{"600","680","690","700","780","790"})),0) -> 6480 | K3: =ROUND(SUM(SUMIFS('Sales Annexure'!M:M,'Sales Annexure'!O:O,"CST",'Sales Annexure'!P:P,{"600","610","620","630","640","650","660","670","680","700","710","720","730","740","750","760","770","780"})),0) -> 10096 | L3: =ROUND(SUM(I3-J3-K3),0) -> 24864 | O3: a) | P3: =ROUND(SUM(SUMIFS('Purchase Annexure'!M:M,'Purchase Annexure'!O:O,{"232"})),0) -> 0 | Q3: =ROUND(SUM(SUMIFS('Purchase Annexure'!M:M,'Purchase Annexure'!O:O,"232",'Purchase Annexure'!P:P,{"31","36","41","46","51","56","61","66","71","76","77","90","91"})),0) -> 0 | R3: =ROUND(SUM(SUMIFS('Purchase Annexure'!M:M,'Purchase Annexure'!O:O,"234",'Purchase Annexure'!P:P,{"32","37","42","47","52","57","62","67","72","76","77","95","96"})),0) -> 0 | T3: =ROUND(SUM(P3-Q3-R3),0) -> 0 | W3: a) | X3: =ROUND(SUM(SUMIFS('Sales Annexure'!M:M,'Sales Annexure'!O:O,{"233","234","235","CST"})),0) -> 25240 | Y3: =ROUND(SUM(SUMIFS('Sales Annexure'!M:M,'Sales Annexure'!O:O,"233",'Sales Annexure'!P:P,{"600","680","690","700","780","790"})),0) -> 0 | Z3: =ROUND(SUM(SUMIFS('Sales Annexure'!M:M,'Sales Annexure'!O:O,"234",'Sales Annexure'!P:P,{"600","680","700","780"})),0) -> 0 | AA3: =ROUND(SUM(SUMIFS('Sales Annexure'!M:M,'Sales Annexure'!O:O,"235",'Sales Annexure'!P:P,{"600","680","700","780"})),0) -> 0 | AB3: =ROUND(SUM(SUMIFS('Sales Annexure'!M:M,'Sales Annexure'!O:O,"CST",'Sales Annexure'!P:P,{"600","610","620","630","640","650","660","670","680","700","710","720","730","740","750","760","770","780"})),0) -> 10096 | AC3: =ROUND(SUM(X3-Y3-Z3-AA3-AB3),0) -> 15144 | AF3: a) | AG3: =ROUND(SUM(SUMIFS('Sales Annexure'!M:M,'Sales Annexure'!O:O,{"231","233","234","CST"})),0) -> 41440 | AH3: =ROUND(SUM(SUMIFS('Sales Annexure'!M:M,'Sales Annexure'!O:O,"234",'Sales Annexure'!P:P,{"600","680","700","780"})),0) -> 0 | AI3: =ROUND(SUM(SUMIFS('Sales Annexure'!M:M,'Sales Annexure'!O:O,"231",'Sales Annexure'!P:P,{"600","680","700","780"})),0) -> 6480 | AJ3: =ROUND(SUM(SUMIFS('Sales Annexure'!M:M,'Sales Annexure'!O:O,"233",'Sales Annexure'!P:P,{"600","680","690","700","790","780"})),0) -> 0 | AK3: =ROUND(SUM(SUMIFS('Sales Annexure'!M:M,'Sales Annexure'!O:O,"CST",'Sales Annexure'!P:P,{"600","610","620","630","640","650","660","670","680","700","710","720","730","740","750","760","770","780"})),0) -> 10096 | AL3: =ROUND(SUM(AG3-AH3-AI3-AJ3-AK3),0) -> 24864 | AP3: a) | AQ3: =ROUND(SUM(SUMIFS('Sales Annexure'!M:M,'Sales Annexure'!O:O,{"235","233","CST"})),0) -> 25240 | AR3: =ROUND(SUM(SUMIFS('Sales Annexure'!M:M,'Sales Annexure'!O:O,"235",'Sales Annexure'!P:P,{"600","680","700","780"})),0) -> 0 | AS3: =ROUND(SUM(SUMIFS('Sales Annexure'!M:M,'Sales Annexure'!O:O,"233",'Sales Annexure'!P:P,{"600","680","690","700","790","780"})),0) -> 0 | AT3: =ROUND(SUM(SUMIFS('Sales Annexure'!M:M,'Sales Annexure'!O:O,"CST",'Sales Annexure'!P:P,{"600","610","620","630","640","650","660","670","680","700","710","720","730","740","750","760","770","780"})),0) -> 10096 | AV3: =ROUND(SUM(AQ3-AR3-AS3-AT3),0) -> 15144 | AZ3: 231 | BA3: 1 | BB3: =IF(Header!E7=MAIN!AZ3,1,IF(Header!E7=MAIN!AZ4,2,IF(Header!E7=MAIN!AZ5,3,IF(Header!E7=MAIN!AZ6,4,IF(Header!E7=MAIN!AZ7,5,IF(Header!E7=MAIN!AZ8,6,IF(Header!E7=MAIN!AZ9,7,IF(Header!E7=MAIN!AZ10,8,IF(Header!E7=MAIN!AZ11,9,IF(Header!E7=MAIN!AZ12,10,IF(Header!E7=MAIN!AZ13,11,IF(Header!E7=MAIN!AZ14,12,IF(Header!E7=MAIN!AZ15,13,IF(Header!E7=MAIN!AZ16,14,IF(Header!E7=MAIN!AZ17,15,IF(Header!E7=MAIN!AZ18,16)))))))))))))))) -> 7
A4: a) | B4: =ROUND(SUM(SUMIFS('Sales Annexure'!M:M,'Sales Annexure'!O:O,{"231","234","CST"})),0) -> 41440 | C4: =ROUND(SUM(SUMIFS('Sales Annexure'!M:M,'Sales Annexure'!O:O,"231",'Sales Annexure'!P:P,{"600","680","700","780"})),0) -> 6480 | D4: =ROUND(SUM(SUMIFS('Sales Annexure'!M:M,'Sales Annexure'!O:O,"234",'Sales Annexure'!P:P,{"600","680","700","780"})),0) -> 0 | E4: =ROUND(SUM(SUMIFS('Sales Annexure'!M:M,'Sales Annexure'!O:O,"CST",'Sales Annexure'!P:P,{"600","610","620","630","640","650","660","670","680","700","710","720","730","740","750","760","770","780"})),0) -> 10096 | F4: =ROUND(SUM(B4-C4-D4-E4),0) -> 24864 | H4: 1A | I4: =ROUND(SUM(SUMIFS('Sales Annexure'!M:M,'Sales Annexure'!O:O,{"231","232","233","234","235"})),0) -> 16200 | J4: =ROUND(SUM(SUMIFS('Sales Annexure'!M:M,'Sales Annexure'!O:O,{"<>CST"},'Sales Annexure'!P:P,{"600","680","690","700","780","790"})),0) -> 6480 | L4: =ROUND(SUM(I4-J4),0) -> 9720 | O4: b) | W4: b) | X4: =ROUND(SUM(SUMIFS('Sales Annexure'!M:M,'Sales Annexure'!O:O,"234")),0) -> 0 | Y4: =ROUND(SUM(SUMIFS('Sales Annexure'!M:M,'Sales Annexure'!O:O,"235")),0) -> 0 | Z4: =ROUND(SUM(SUMIFS('Sales Annexure'!M:M,'Sales Annexure'!O:O,"234",'Sales Annexure'!P:P,{"600","680","700","780"})),0) -> 0 | AA4: =ROUND(SUM(SUMIFS('Sales Annexure'!M:M,'Sales Annexure'!O:O,"235",'Sales Annexure'!P:P,{"600","680","700","780"})),0) -> 0 | AC4: =ROUND(SUM(X4+Y4-Z4-AA4),0) -> 0 | AF4: b) | AG4: =ROUND(SUM(SUMIFS('Sales Annexure'!M:M,'Sales Annexure'!O:O,{"231"}))+SUMIFS('Sales Annexure'!M:M,'Sales Annexure'!O:O,{"233"}),0) -> 16200 | AH4: =ROUND(SUM(SUMIFS('Sales Annexure'!M:M,'Sales Annexure'!O:O,"231",'Sales Annexure'!P:P,{"600","680","700","780"})),0) -> 6480 | AI4: =ROUND(SUM(SUMIFS('Sales Annexure'!M:M,'Sales Annexure'!O:O,"233",'Sales Annexure'!P:P,{"600","680","700","780","690","790"})),0) -> 0 | AL4: =ROUND(SUM(AG4-AH4-AI4),0) -> 9720 | AP4: b) | AQ4: =ROUND(SUM(SUMIFS('Sales Annexure'!M:M,'Sales Annexure'!O:O,"233")),0) -> 0 | AR4: =ROUND(SUM(SUMIFS('Sales Annexure'!M:M,'Sales Annexure'!O:O,"233",'Sales Annexure'!P:P,{"600","680","690","700","780","790"})),0) -> 0 | AV4: =ROUND(SUM(AQ4-AR4),0) -> 0 | AZ4: 232 | BA4: 2
A5: b) | B5: =ROUND(SUM(SUMIFS('Sales Annexure'!M:M,'Sales Annexure'!O:O,"234")),0) -> 0 | C5: =ROUND(SUM(SUMIFS('Sales Annexure'!M:M,'Sales Annexure'!O:O,"234",'Sales Annexure'!P:P,{"600","680","700","780"})),0) -> 0 | F5: =ROUND(SUM(B5-C5),0) -> 0 | H5: 1B | I5: =ROUND(SUM(SUMIFS('Sales Annexure'!M:M,'Sales Annexure'!O:O,"CST",'Sales Annexure'!P:P,"910")),0) -> 300 | J5: =ROUND(SUM(SUMIFS('Sales Annexure'!M:M,'Sales Annexure'!O:O,"CST",'Sales Annexure'!P:P,{"610","710"})),0) -> 200 | L5: =ROUND(SUM(I5-J5),0) -> 100 | O5: c) | W5: c ) | AF5: c) | AP5: c) | AZ5: 233 | BA5: 3
A6: c ) | H6: 1C | I6: =ROUND(SUM(SUMIFS('Sales Annexure'!M:M,'Sales Annexure'!O:O,"CST",'Sales Annexure'!P:P,{"600","610","620","630","640","650","660","670","680"})),0) -> 5048 | L6: =ROUND(SUM(I6),0) -> 5048 | O6: d) | P6: =ROUND(SUM(SUMIFS('Purchase Annexure'!M:M,'Purchase Annexure'!O:O,"232",'Purchase Annexure'!P:P,{"31","36","41","46","51","56","61","66","71","76","90","91"})),0) -> 0 | T6: =ROUND(SUM(P6),0) -> 0 | W6: d) | AF6: d) | AP6: d) | AZ6: 234 | BA6: 4
A7: d) | H7: 1D | I7: =ROUND(SUM(SUMIFS('Sales Annexure'!M:M,'Sales Annexure'!O:O,"CST",'Sales Annexure'!P:P,{"700","710","720","730","740","750","760","770","780"})),0) -> 5048 | L7: =ROUND(SUM(I7),0) -> 5048 | O7: e) | P7: =ROUND(SUM(SUMIFS('Purchase Annexure'!M:M,'Purchase Annexure'!O:O,"232",'Purchase Annexure'!P:P,{"32","37","42","47","52","57","62","67","72","77","95","96"})),0) -> 0 | T7: =ROUND(SUM(P7),0) -> 0 | W7: e) | X7: =ROUND(SUM(SUMIFS('Sales Annexure'!M:M,'Sales Annexure'!O:O,"233",'Sales Annexure'!P:P,{"600","680","690"})),0) -> 0 | AC7: =ROUND(SUM(X7),0) -> 0 | AF7: e) | AG7: =ROUND(SUM(SUMIFS('Sales Annexure'!M:M,'Sales Annexure'!O:O,"234",'Sales Annexure'!P:P,{"600","680"})),0) -> 0 | AL7: =ROUND(SUM(AG7),0) -> 0 | AP7: e) | AQ7: =ROUND(SUM(SUMIFS('Sales Annexure'!M:M,'Sales Annexure'!O:O,"235",'Sales Annexure'!P:P,{"600","680"})),0) -> 0 | AV7: =ROUND(SUM(AQ7),0) -> 0 | AZ7: 235 | BA7: 5
A8: e) | B8: =ROUND(SUM(SUMIFS('Sales Annexure'!M:M,'Sales Annexure'!O:O,"231",'Sales Annexure'!P:P,{"600","680"})),0) -> 3240 | F8: =ROUND(SUM(B8),0) -> 3240 | H8: 1E | I8: =ROUND(SUM(SUMIFS('Sales Annexure'!M:M,'Sales Annexure'!O:O,"CST",'Sales Annexure'!P:P,"950")),0) -> 600 | J8: =ROUND(SUM(SUMIFS('Sales Annexure'!M:M,'Sales Annexure'!O:O,"CST",'Sales Annexure'!P:P,{"650","750"})),0) -> 400 | L8: =ROUND(SUM(I8-J8),0) -> 200 | O8: f) | P8: =ROUND(SUM(SUMIFS('Purchase Annexure'!M:M,'Purchase Annexure'!O:O,"232",'Purchase Annexure'!P:P,"60")),0) -> 0 | Q8: =ROUND(SUM(SUMIFS('Purchase Annexure'!M:M,'Purchase Annexure'!O:O,"232",'Purchase Annexure'!P:P,{"61","62"})),0) -> 0 | T8: =ROUND(SUM(P8-Q8),0) -> 0 | W8: f) | X8: =ROUND(SUM(SUMIFS('Sales Annexure'!M:M,'Sales Annexure'!O:O,"233",'Sales Annexure'!P:P,{"700","780","790"})),0) -> 0 | AC8: =ROUND(SUM(X8),0) -> 0 | AF8: f) | AG8: =ROUND(SUM(SUMIFS('Sales Annexure'!M:M,'Sales Annexure'!O:O,"234",'Sales Annexure'!P:P,{"700","780"})),0) -> 0 | AL8: =ROUND(SUM(AG8),0) -> 0 | AP8: f) | AQ8: =ROUND(SUM(SUMIFS('Sales Annexure'!M:M,'Sales Annexure'!O:O,"235",'Sales Annexure'!P:P,{"700","780"})),0) -> 0 | AV8: =ROUND(SUM(AQ8),0) -> 0 | AZ8: CST | BA8: 6
A9: f) | B9: =ROUND(SUM(SUMIFS('Sales Annexure'!M:M,'Sales Annexure'!O:O,"231",'Sales Annexure'!P:P,{"700","780"})),0) -> 3240 | F9: =ROUND(SUM(B9),0) -> 3240 | H9: 1F | I9: =ROUND(SUM(SUMIFS('Sales Annexure'!M:M,'Sales Annexure'!O:O,"CST",'Sales Annexure'!P:P,"940")),0) -> 600 | J9: =ROUND(SUM(SUMIFS('Sales Annexure'!M:M,'Sales Annexure'!O:O,"CST",'Sales Annexure'!P:P,{"640","740"})),0) -> 400 | L9: =ROUND(SUM(I9-J9),0) -> 200 | O9: g) | P9: =ROUND(SUM(SUMIFS('Purchase Annexure'!M:M,'Purchase Annexure'!O:O,"232",'Purchase Annexure'!P:P,"65")),0) -> 0 | Q9: =ROUND(SUM(SUMIFS('Purchase Annexure'!M:M,'Purchase Annexure'!O:O,"232",'Purchase Annexure'!P:P,{"67","66"})),0) -> 0 | T9: 0 | W9: g) | AF9: g) | AP9: g) | AZ9: 231_CST | BA9: 7
A10: g) | H10: 1G | I10: =ROUND(SUM(SUMIFS('Sales Annexure'!M:M,'Sales Annexure'!O:O,"CST",'Sales Annexure'!P:P,"960")),0) -> 600 | J10: =ROUND(SUM(SUMIFS('Sales Annexure'!M:M,'Sales Annexure'!O:O,"CST",'Sales Annexure'!P:P,{"660","760"})),0) -> 400 | L10: =ROUND(SUM(I10-J10),0) -> 200 | O10: h) | P10: =ROUND(SUM(SUMIFS('Purchase Annexure'!M:M,'Purchase Annexure'!O:O,"232",'Purchase Annexure'!P:P,"50")),0) -> 0 | Q10: =ROUND(SUM(SUMIFS('Purchase Annexure'!M:M,'Purchase Annexure'!O:O,"232",'Purchase Annexure'!P:P,{"51","52"})),0) -> 0 | T10: 0 | W10: h) | AF10: h) | AG10: =ROUND(SUM(SUMIFS('Sales Annexure'!F:F,'Sales Annexure'!O:O,"234",'Sales Annexure'!P:P,{"100","200"})),0) -> 0 | AH10: =ROUND(SUM(SUMIFS('Sales Annexure'!F:F,'Sales Annexure'!O:O,"234",'Sales Annexure'!P:P,{"600","700"})),0) -> 0 | AL10: =ROUND(SUM(AG10-AH10),0) -> 0 | AP10: h) | AQ10: =ROUND(SUM(SUMIFS('Sales Annexure'!F:F,'Sales Annexure'!O:O,"235",'Sales Annexure'!P:P,{"100","200"})),0) -> 0 | AR10: =ROUND(SUM(SUMIFS('Sales Annexure'!F:F,'Sales Annexure'!O:O,"235",'Sales Annexure'!P:P,{"600","700"})),0) -> 0 | AV10: =ROUND(SUM(AQ10-AR10),0) -> 0 | AZ10: 233_CST | BA10: 8
A11: h) | B11: =ROUND(SUM(SUMIFS('Sales Annexure'!F:F,'Sales Annexure'!O:O,"231",'Sales Annexure'!P:P,{"100","200"})),0) -> 60 | C11: =ROUND(SUM(SUMIFS('Sales Annexure'!F:F,'Sales Annexure'!O:O,"231",'Sales Annexure'!P:P,{"600","700"})),0) -> 40 | F11: =ROUND(SUM(B11-C11),0) -> 20 | H11: 1H | I11: =ROUND(SUM(SUMIFS('Sales Annexure'!M:M,'Sales Annexure'!O:O,"CST",'Sales Annexure'!P:P,"300")),0) -> 2400 | J11: =ROUND(SUM(SUMIFS('Sales Annexure'!M:M,'Sales Annexure'!O:O,"CST",'Sales Annexure'!P:P,{"680","780"})),0) -> 1600 | L11: =ROUND(SUM(I11-J11),0) -> 800 | O11: i) | P11: =ROUND(SUM(SUMIFS('Purchase Annexure'!M:M,'Purchase Annexure'!O:O,"232",'Purchase Annexure'!P:P,"55")),0) -> 0 | Q11: =ROUND(SUM(SUMIFS('Purchase Annexure'!M:M,'Purchase Annexure'!O:O,"232",'Purchase Annexure'!P:P,{"56","57"})),0) -> 0 | T11: 0 | W11: i) | X11: =ROUND(SUM(SUMIFS('Sales Annexure'!H:H,'Sales Annexure'!O:O,"233",'Sales Annexure'!P:P,{"100","200","400"})),0) -> 0 | Y11: =ROUND(SUM(SUMIFS('Sales Annexure'!H:H,'Sales Annexure'!O:O,"233",'Sales Annexure'!P:P,{"600","700"})),0) -> 0 | AC11: =ROUND(SUM(X11-Y11),0) -> 0 | AF11: i) | AG11: =ROUND(SUM(SUMIFS('Sales Annexure'!G:G,'Sales Annexure'!O:O,"234",'Sales Annexure'!P:P,{"100","200"})),0) -> 0 | AH11: =ROUND(SUM(SUMIFS('Sales Annexure'!G:G,'Sales Annexure'!O:O,"234",'Sales Annexure'!P:P,{"600","700"})),0) -> 0 | AL11: 0 | AP11: i | AQ11: =ROUND(SUM(SUMIFS('Sales Annexure'!G:G,'Sales Annexure'!O:O,"235",'Sales Annexure'!P:P,{"100","200"})),0) -> 0 | AR11: =ROUND(SUM(SUMIFS('Sales Annexure'!G:G,'Sales Annexure'!O:O,"235",'Sales Annexure'!P:P,{"600","700"})),0) -> 0 | AV11: 0 | AZ11: 234_CST | BA11: 9
A12: i) | B12: =ROUND(SUM(SUMIFS('Sales Annexure'!G:G,'Sales Annexure'!O:O,"231",'Sales Annexure'!P:P,{"100","200"})),0) -> 1260 | C12: =ROUND(SUM(SUMIFS('Sales Annexure'!G:G,'Sales Annexure'!O:O,"231",'Sales Annexure'!P:P,{"600","700"})),0) -> 840 | F12: 420 | H12: 1I | I12: =ROUND(SUM(SUMIFS('Sales Annexure'!M:M,'Sales Annexure'!O:O,"CST",'Sales Annexure'!P:P,"930")),0) -> 600 | J12: =ROUND(SUM(SUMIFS('Sales Annexure'!M:M,'Sales Annexure'!O:O,"CST",'Sales Annexure'!P:P,{"630","730"})),0) -> 400 | L12: =ROUND(SUM(I12-J12),0) -> 200 | O12: j) | P12: =ROUND(SUM(SUMIFS('Purchase Annexure'!M:M,'Purchase Annexure'!O:O,"232",'Purchase Annexure'!P:P,"70")),0) -> 0 | Q12: =ROUND(SUM(SUMIFS('Purchase Annexure'!M:M,'Purchase Annexure'!O:O,"232",'Purchase Annexure'!P:P,{"71","72"})),0) -> 0 | T12: 0 | W12: j) | X12: =ROUND(SUM(SUMIFS('Sales Annexure'!E:E,'Sales Annexure'!O:O,"233",'Sales Annexure'!P:P,"450")),0) -> 0 | Y12: =ROUND(SUM(SUMIFS('Sales Annexure'!G:G,'Sales Annexure'!O:O,"233",'Sales Annexure'!P:P,"450")),0) -> 0 | Z12: =ROUND(SUM(SUMIFS('Sales Annexure'!E:E,'Sales Annexure'!O:O,"233",'Sales Annexure'!P:P,{"690","790"})),0) -> 0 | AA12: =ROUND(SUM(SUMIFS('Sales Annexure'!G:G,'Sales Annexure'!O:O,"233",'Sales Annexure'!P:P,{"690","790"})),0) -> 0 | AC12: =ROUND(SUM(X12+Y12-Z12-AA12),0) -> 0 | AF12: j) | AG12: =ROUND(SUM(SUMIFS('Sales Annexure'!M:M,'Sales Annexure'!O:O,"234",'Sales Annexure'!P:P,"300")),0) -> 0 | AH12: =ROUND(SUM(SUMIFS('Sales Annexure'!M:M,'Sales Annexure'!O:O,"234",'Sales Annexure'!P:P,{"680","780"})),0) -> 0 | AL12: 0 | AP12: j) | AQ12: =ROUND(SUM(SUMIFS('Sales Annexure'!M:M,'Sales Annexure'!O:O,"235",'Sales Annexure'!P:P,"300")),0) -> 0 | AR12: =ROUND(SUM(SUMIFS('Sales Annexure'!M:M,'Sales Annexure'!O:O,"235",'Sales Annexure'!P:P,{"680","780"})),0) -> 0 | AV12: 0 | AZ12: 235_CST | BA12: 10
A13: j) | B13: =ROUND(SUM(SUMIFS('Sales Annexure'!M:M,'Sales Annexure'!O:O,"231",'Sales Annexure'!P:P,"300")),0) -> 2400 | C13: =ROUND(SUM(SUMIFS('Sales Annexure'!M:M,'Sales Annexure'!O:O,"231",'Sales Annexure'!P:P,{"680","780"})),0) -> 1600 | F13: 800 | H13: 1J | I13: =ROUND(SUM(SUMIFS('Sales Annexure'!J:J,'Sales Annexure'!O:O,"CST",'Sales Annexure'!P:P,"500")),0) -> 0 | J13: =ROUND(SUM(SUMIFS('Sales Annexure'!J:J,'Sales Annexure'!O:O,"CST",'Sales Annexure'!P:P,{"600","700"})),0) -> 800 | L13: =ROUND(IF(SUM(I13-J13)>0,(I13-J13),0),0) -> 0 | O13: k) | P13: =ROUND(SUM(SUMIFS('Purchase Annexure'!M:M,'Purchase Annexure'!O:O,"232",'Purchase Annexure'!P:P,"30")),0) -> 0 | Q13: =ROUND(SUM(SUMIFS('Purchase Annexure'!M:M,'Purchase Annexure'!O:O,"232",'Purchase Annexure'!P:P,{"31","32"})),0) -> 0 | T13: 0 | W13: k) | X13: =ROUND(SUM(SUMIFS('Sales Annexure'!M:M,'Sales Annexure'!O:O,"233",'Sales Annexure'!P:P,"460")),0) -> 0 | AC13: =ROUND(SUM(X13),0) -> 0 | AF13: k) | AG13: =ROUND(SUM(SUMIFS('Sales Annexure'!M:M,'Sales Annexure'!O:O,"CST")),0) -> 25240 | AH13: =ROUND(SUM(SUMIFS('Sales Annexure'!M:M,'Sales Annexure'!O:O,"CST",'Sales Annexure'!P:P,{"600","610","620","630","640","650","660","670","680","700","710","720","730","740","750","760","770","780"})),0) -> 10096 | AL13: 15144 | AP13: k) | AQ13: =ROUND(SUM(SUMIFS('Sales Annexure'!M:M,'Sales Annexure'!O:O,"CST")),0) -> 25240 | AR13: =ROUND(SUM(SUMIFS('Sales Annexure'!M:M,'Sales Annexure'!O:O,"CST",'Sales Annexure'!P:P,{"600","610","620","630","640","650","660","670","680","700","710","720","730","740","750","760","770","780"})),0) -> 10096 | AV13: 15144 | AZ13: 231_234 | BA13: 11
A14: k) | B14: =ROUND(SUM(SUMIFS('Sales Annexure'!M:M,'Sales Annexure'!O:O,"CST")),0) -> 25240 | C14: =ROUND(SUM(SUMIFS('Sales Annexure'!M:M,'Sales Annexure'!O:O,"CST",'Sales Annexure'!P:P,{"600","610","620","630","640","650","660","670","680","700","710","720","730","740","750","760","770","780"})),0) -> 10096 | F14: 15144 | H14: 2 | O14: l) | P14: =ROUND(SUM(SUMIFS('Purchase Annexure'!M:M,'Purchase Annexure'!O:O,"232",'Purchase Annexure'!P:P,"40")),0) -> 0 | Q14: =ROUND(SUM(SUMIFS('Purchase Annexure'!M:M,'Purchase Annexure'!O:O,"232",'Purchase Annexure'!P:P,{"41","42"})),0) -> 0 | T14: 0 | W14: l) | X14: =ROUND(SUM(SUMIFS('Sales Annexure'!M:M,'Sales Annexure'!O:O,"233",'Sales Annexure'!P:P,"470")),0) -> 0 | AC14: =ROUND(SUM(X14),0) -> 0 | AF14: l) | AG14: =ROUND(SUM(SUMIFS('Sales Annexure'!I:I,'Sales Annexure'!O:O,"234",'Sales Annexure'!P:P,{"100","200","500"})),0) -> 0 | AH14: =ROUND(SUM(SUMIFS('Sales Annexure'!I:I,'Sales Annexure'!O:O,"234",'Sales Annexure'!P:P,{"600","700"})),0) -> 0 | AL14: 0 | AP14: l) | AQ14: =ROUND(SUM(SUMIFS('Sales Annexure'!I:I,'Sales Annexure'!O:O,"235",'Sales Annexure'!P:P,{"100","200"})),0) -> 0 | AR14: =ROUND(SUM(SUMIFS('Sales Annexure'!I:I,'Sales Annexure'!O:O,"235",'Sales Annexure'!P:P,{"600","700"})),0) -> 0 | AV14: 0 | AZ14: 233_234 | BA14: 12
A15: l) | B15: =ROUND(SUM(SUMIFS('Sales Annexure'!I:I,'Sales Annexure'!O:O,"231",'Sales Annexure'!P:P,{"100","200"})),0) -> 1200 | C15: =ROUND(SUM(SUMIFS('Sales Annexure'!I:I,'Sales Annexure'!O:O,"231",'Sales Annexure'!P:P,{"600","700"})),0) -> 800 | F15: 400 | H15: 2A | I15: =ROUND(SUM(SUMIFS('Sales Annexure'!L:L,'Sales Annexure'!O:O,"CST",'Sales Annexure'!P:P,{"100","200","900","500"})),0) -> 1500 | J15: =ROUND(SUM(SUMIFS('Sales Annexure'!L:L,'Sales Annexure'!O:O,"CST",'Sales Annexure'!P:P,{"600","700"})),0) -> 1000 | L15: =ROUND(SUM(I15-J15),0) -> 500 | O15: m) | P15: =ROUND(SUM(SUMIFS('Purchase Annexure'!M:M,'Purchase Annexure'!O:O,"232",'Purchase Annexure'!P:P,"45")),0) -> 0 | Q15: =ROUND(SUM(SUMIFS('Purchase Annexure'!M:M,'Purchase Annexure'!O:O,"232",'Purchase Annexure'!P:P,{"46","47"})),0) -> 0 | T15: 0 | W15: m) | AF15: m) | AG15: =ROUND(SUM(SUMIFS('Sales Annexure'!J:J,'Sales Annexure'!O:O,"234",'Sales Annexure'!P:P,{"500"})),0) -> 0 | AH15: =ROUND(SUM(SUMIFS('Sales Annexure'!J:J,'Sales Annexure'!O:O,"234",'Sales Annexure'!P:P,{"600","700"})),0) -> 0 | AL15: 0 | AP15: m) | AQ15: =ROUND(SUM(SUMIFS('Sales Annexure'!J:J,'Sales Annexure'!O:O,"235",'Sales Annexure'!P:P,{"100","200"})),0) -> 0 | AR15: =ROUND(SUM(SUMIFS('Sales Annexure'!J:J,'Sales Annexure'!O:O,"235",'Sales Annexure'!P:P,{"600","700"})),0) -> 0 | AV15: 0 | AZ15: 233_235 | BA15: 13
A16: m) | B16: =ROUND(SUM(SUMIFS('Sales Annexure'!J:J,'Sales Annexure'!O:O,"231",'Sales Annexure'!P:P,{"100","200"})),0) -> 1200 | C16: =ROUND(SUM(SUMIFS('Sales Annexure'!J:J,'Sales Annexure'!O:O,"231",'Sales Annexure'!P:P,{"600","700"})),0) -> 800 | F16: 400 | H16: 2B | I16: =ROUND(SUM(SUMIFS('Sales Annexure'!K:K,'Sales Annexure'!O:O,"CST",'Sales Annexure'!P:P,{"100","200","900","500"})),0) -> 1200 | J16: =ROUND(SUM(SUMIFS('Sales Annexure'!K:K,'Sales Annexure'!O:O,"CST",'Sales Annexure'!P:P,{"600","700"})),0) -> 800 | L16: =ROUND(SUM(I16-J16),0) -> 400 | O16: n) | P16: =ROUND(SUM(SUMIFS('Purchase Annexure'!M:M,'Purchase Annexure'!O:O,"232",'Purchase Annexure'!P:P,"35")),0) -> 0 | Q16: =ROUND(SUM(SUMIFS('Purchase Annexure'!M:M,'Purchase Annexure'!O:O,"232",'Purchase Annexure'!P:P,{"36","37"})),0) -> 0 | T16: 0 | W16: n) | X16: =ROUND(SUM(SUMIFS('Sales Annexure'!F:F,'Sales Annexure'!O:O,"233",'Sales Annexure'!P:P,{"100","200","450"})),0) -> 0 | Y16: =ROUND(SUM(SUMIFS('Sales Annexure'!F:F,'Sales Annexure'!O:O,"233",'Sales Annexure'!P:P,{"600","690","700","790"})),0) -> 0 | AC16: =ROUND(SUM(X16-Y16),0) -> 0 | AF16: n) | AP16: n) | AQ16: =ROUND(SUM(SUMIFS('Sales Annexure'!K:K,'Sales Annexure'!O:O,"235",'Sales Annexure'!P:P,{"100","200"})),0) -> 0 | AR16: =ROUND(SUM(SUMIFS('Sales Annexure'!K:K,'Sales Annexure'!O:O,"235",'Sales Annexure'!P:P,{"600","700"})),0) -> 0 | AV16: 0 | AZ16: 231_234_CST | BA16: 14
A17: n) | B17: =ROUND(SUM(SUMIFS('Sales Annexure'!K:K,'Sales Annexure'!O:O,"231",'Sales Annexure'!P:P,{"100","200"})),0) -> 1200 | C17: =ROUND(SUM(SUMIFS('Sales Annexure'!K:K,'Sales Annexure'!O:O,"231",'Sales Annexure'!P:P,{"600","700"})),0) -> 800 | F17: 400 | H17: 2C | I17: =ROUND(SUM(SUMIFS('Sales Annexure'!I:I,'Sales Annexure'!O:O,"CST",'Sales Annexure'!P:P,{"100","200","900","500"})),0) -> 1200 | J17: =ROUND(SUM(SUMIFS('Sales Annexure'!J:J,'Sales Annexure'!O:O,"CST",'Sales Annexure'!P:P,{"100","200","900","500"})),0) -> 1200 | K17: =L26-K26-I13 -> 800 | L17: =ROUND(K17,0) -> 800 | O17: o) | P17: =ROUND(SUM(SUMIFS('Purchase Annexure'!M:M,'Purchase Annexure'!O:O,"232",'Purchase Annexure'!P:P,"20")),0) -> 0 | Q17: =ROUND(SUM(SUMIFS('Purchase Annexure'!M:M,'Purchase Annexure'!O:O,"232",'Purchase Annexure'!P:P,{"91","96"})),0) -> 0 | T17: 0 | W17: o) | X17: =ROUND(SUM(SUMIFS('Sales Annexure'!G:G,'Sales Annexure'!O:O,"233",'Sales Annexure'!P:P,{"100","200"})),0) -> 0 | Y17: =ROUND(SUM(SUMIFS('Sales Annexure'!G:G,'Sales Annexure'!O:O,"233",'Sales Annexure'!P:P,{"600","700"})),0) -> 0 | AC17: =ROUND(SUM(X17-Y17),0) -> 0 | AF17: o) | AG17: =ROUND(SUM(SUMIFS('Sales Annexure'!K:K,'Sales Annexure'!O:O,"234",'Sales Annexure'!P:P,{"100","200","500"})),0) -> 0 | AH17: =ROUND(SUM(SUMIFS('Sales Annexure'!K:K,'Sales Annexure'!O:O,"234",'Sales Annexure'!P:P,{"600","700"})),0) -> 0 | AL17: =ROUND(SUM(AG17-AH17),0) -> 0 | AP17: o) | AQ17: =ROUND(SUM(SUMIFS('Sales Annexure'!L:L,'Sales Annexure'!O:O,"235",'Sales Annexure'!P:P,{"100","200"})),0) -> 0 | AR17: =ROUND(SUM(SUMIFS('Sales Annexure'!L:L,'Sales Annexure'!O:O,"235",'Sales Annexure'!P:P,{"600","700"})),0) -> 0 | AV17: 0 | AZ17: 233_234_CST | BA17: 15
A18: o) | B18: =ROUND(SUM(SUMIFS('Sales Annexure'!L:L,'Sales Annexure'!O:O,"231",'Sales Annexure'!P:P,{"100","200"})),0) -> 1200 | C18: =ROUND(SUM(SUMIFS('Sales Annexure'!L:L,'Sales Annexure'!O:O,"231",'Sales Annexure'!P:P,{"600","700"})),0) -> 800 | F18: 400 | H18: 2D | I18: =ROUND(SUM(SUMIFS('Sales Annexure'!M:M,'Sales Annexure'!O:O,"CST",'Sales Annexure'!P:P,"920")),0) -> 600 | J18: =ROUND(SUM(SUMIFS('Sales Annexure'!M:M,'Sales Annexure'!O:O,"CST",'Sales Annexure'!P:P,{"620","720"})),0) -> 400 | L18: =ROUND(SUM(I18-J18),0) -> 200 | O18: p) | P18: =ROUND(SUM(SUMIFS('Purchase Annexure'!M:M,'Purchase Annexure'!O:O,"232",'Purchase Annexure'!P:P,"75")),0) -> 0 | Q18: =ROUND(SUM(SUMIFS('Purchase Annexure'!M:M,'Purchase Annexure'!O:O,"232",'Purchase Annexure'!P:P,{"76","77"})),0) -> 0 | T18: 0 | W18: p) | X18: =ROUND(SUM(SUMIFS('Sales Annexure'!M:M,'Sales Annexure'!O:O,"233",'Sales Annexure'!P:P,"300")),0) -> 0 | Y18: =ROUND(SUM(SUMIFS('Sales Annexure'!M:M,'Sales Annexure'!O:O,"233",'Sales Annexure'!P:P,{"680","780"})),0) -> 0 | AC18: =ROUND(SUM(X18-Y18),0) -> 0 | AF18: p) | AG18: =ROUND(SUM(SUMIFS('Sales Annexure'!L:L,'Sales Annexure'!O:O,"234",'Sales Annexure'!P:P,{"100","200","500"})),0) -> 0 | AH18: =ROUND(SUM(SUMIFS('Sales Annexure'!L:L,'Sales Annexure'!O:O,"234",'Sales Annexure'!P:P,{"600","700"})),0) -> 0 | AL18: =ROUND(SUM(AG18-AH18),0) -> 0 | AP18: p) | AQ18: =ROUND(SUM(SUMIFS('Sales Annexure'!M:M,'Sales Annexure'!O:O,"235",'Sales Annexure'!P:P,"800")),0) -> 0 | AR18: =ROUND(SUM(SUMIFS('Sales Annexure'!M:M,'Sales Annexure'!O:O,"235",'Sales Annexure'!P:P,{"680","780"})),0) -> 0 | AV18: =ROUND(IF(SUM(AQ18-AR18)>0,(AQ18-AR18),0),0) -> 0 | AZ18: 233_235_CST | BA18: 16
A19: p) | B19: =ROUND(SUM(SUMIFS('Sales Annexure'!M:M,'Sales Annexure'!O:O,"231",'Sales Annexure'!P:P,"800")),0) -> 0 | C19: =ROUND(SUM(SUMIFS('Sales Annexure'!M:M,'Sales Annexure'!O:O,"231",'Sales Annexure'!P:P,{"680","780"})),0) -> 1600 | F19: =ROUND(IF(SUM(B19-C19)>0,(B19-C19),0),0) -> 0 | H19: 2E | I19: =ROUND(SUM(SUMIFS('Sales Annexure'!M:M,'Sales Annexure'!O:O,"CST",'Sales Annexure'!P:P,"970")),0) -> 600 | J19: =ROUND(SUM(SUMIFS('Sales Annexure'!M:M,'Sales Annexure'!O:O,"CST",'Sales Annexure'!P:P,{"670","770"})),0) -> 400 | L19: =ROUND(SUM(I19-J19),0) -> 200 | O19: q) | P19: =ROUND(SUM(SUMIFS('Purchase Annexure'!J:J,'Purchase Annexure'!O:O,"232",'Purchase Annexure'!P:P,{"10","15"})),0) -> 0 | Q19: =ROUND(SUM(SUMIFS('Purchase Annexure'!J:J,'Purchase Annexure'!O:O,"232",'Purchase Annexure'!P:P,{"90","95"})),0) -> 0 | T19: 0 | W19: q) | X19: =ROUND(SUM(SUMIFS('Sales Annexure'!M:M,'Sales Annexure'!O:O,"CST")),0) -> 25240 | Y19: =ROUND(SUM(SUMIFS('Sales Annexure'!M:M,'Sales Annexure'!O:O,"CST",'Sales Annexure'!P:P,{"600","610","620","630","640","650","660","670","680","700","710","720","730","740","750","760","770","780"})),0) -> 10096 | AC19: =ROUND(SUM(X19-Y19),0) -> 15144 | AF19: q) | AG19: =ROUND(SUM(SUMIFS('Sales Annexure'!M:M,'Sales Annexure'!O:O,"234",'Sales Annexure'!P:P,"800")),0) -> 0 | AH19: =ROUND(SUM(SUMIFS('Sales Annexure'!M:M,'Sales Annexure'!O:O,"234",'Sales Annexure'!P:P,{"680","780"})),0) -> 0 | AL19: =ROUND(IF(SUM(AG19-AH19)>0,(AG19-AH19),0),0) -> 0 | AP19: q) | AV19: =IF(COUNTIF(AV3:AV18,"<0"),"23","29") -> 29
A20: q) | H20: 3 | O20: r) | P20: =ROUND(SUM(SUMIFS('Purchase Annexure'!I:I,'Purchase Annexure'!O:O,"232",'Purchase Annexure'!P:P,{"10","15","20"})),0) -> 0 | Q20: =ROUND(SUM(SUMIFS('Purchase Annexure'!I:I,'Purchase Annexure'!O:O,"232",'Purchase Annexure'!P:P,{"90","95","91","96"})),0) -> 0 | T20: 0 | W20: r) | AF20: r) | AL20: =IF(COUNTIF(AL3:AL19,"<0"),"23","29") -> 29
F21: =IF(COUNTIF(F4:F19,"<0"),"23","29") -> 29 | H21: 3A | I21: =ROUND(SUM(SUMIFS('Sales Annexure'!G:G,'Sales Annexure'!O:O,"CST",'Sales Annexure'!P:P,{"100","200","900"})),0) -> 1872 | J21: =ROUND(SUM(SUMIFS('Sales Annexure'!G:G,'Sales Annexure'!O:O,"CST",'Sales Annexure'!P:P,{"600","700"})),0) -> 1248 | L21: =ROUND(SUM(I21-J21),0) -> 624 | O21: s) | P21: =ROUND(SUM(SUMIFS('Purchase Annexure'!K:K,'Purchase Annexure'!O:O,"232",'Purchase Annexure'!P:P,{"10","15"})),0) -> 0 | Q21: =ROUND(SUM(SUMIFS('Purchase Annexure'!K:K,'Purchase Annexure'!O:O,"232",'Purchase Annexure'!P:P,{"90","95"})),0) -> 0 | T21: 0 | W21: s) | X21: =ROUND(SUM(SUMIFS('Sales Annexure'!M:M,'Sales Annexure'!O:O,"233",'Sales Annexure'!P:P,"480")),0) -> 0 | AC21: =ROUND(SUM(X21),0) -> 0
H22: 3B | I22: =ROUND(SUM(SUMIFS('Sales Annexure'!F:F,'Sales Annexure'!O:O,"CST",'Sales Annexure'!P:P,{"100","200","900"})),0) -> 72 | J22: =ROUND(SUM(SUMIFS('Sales Annexure'!F:F,'Sales Annexure'!O:O,"CST",'Sales Annexure'!P:P,{"600","700"})),0) -> 48 | L22: =ROUND(SUM(I22-J22),0) -> 24 | O22: t) | P22: =ROUND(SUM(SUMIFS('Purchase Annexure'!L:L,'Purchase Annexure'!O:O,"232",'Purchase Annexure'!P:P,{"10","15"})),0) -> 0 | Q22: =ROUND(SUM(SUMIFS('Purchase Annexure'!L:L,'Purchase Annexure'!O:O,"232",'Purchase Annexure'!P:P,{"90","95"})),0) -> 0 | T22: 0 | W22: t) | X22: =ROUND(SUM(SUMIFS('Sales Annexure'!M:M,'Sales Annexure'!O:O,"233",'Sales Annexure'!P:P,"490")),0) -> 0 | AC22: =ROUND(SUM(X22),0) -> 0
H23: 4 | L23: =IF(COUNTIF(L3:L22,"<0"),"23","29") -> 29 | O23: u) | P23: =ROUND(SUM(SUMIFS('Purchase Annexure'!G:G,'Purchase Annexure'!O:O,"232",'Purchase Annexure'!P:P,{"10","15"})),0) -> 0 | Q23: =ROUND(SUM(SUMIFS('Purchase Annexure'!G:G,'Purchase Annexure'!O:O,"232",'Purchase Annexure'!P:P,{"90","95"})),0) -> 0 | T23: 0 | W23: u) | X23: =ROUND(SUM(SUMIFS('Sales Annexure'!I:I,'Sales Annexure'!O:O,"233",'Sales Annexure'!P:P,{"100","200"})),0) -> 0 | Y23: =ROUND(SUM(SUMIFS('Sales Annexure'!I:I,'Sales Annexure'!O:O,"233",'Sales Annexure'!P:P,{"600","700"})),0) -> 0 | AC23: =ROUND(SUM(X23-Y23),0) -> 0
A24: 9 | B24: Purchase | O24: v) | P24: =ROUND(SUM(SUMIFS('Purchase Annexure'!H:H,'Purchase Annexure'!O:O,"232",'Purchase Annexure'!P:P,{"10","15"})),0) -> 0 | Q24: =ROUND(SUM(SUMIFS('Purchase Annexure'!H:H,'Purchase Annexure'!O:O,"232",'Purchase Annexure'!P:P,{"90","95"})),0) -> 0 | T24: 0 | W24: v) | X24: =ROUND(SUM(SUMIFS('Sales Annexure'!J:J,'Sales Annexure'!O:O,"233",'Sales Annexure'!P:P,{"100","200"})),0) -> 0 | Y24: =ROUND(SUM(SUMIFS('Sales Annexure'!J:J,'Sales Annexure'!O:O,"233",'Sales Annexure'!P:P,{"600","700"})),0) -> 0 | AC24: =ROUND(SUM(X24-Y24),0) -> 0 | AF24: Purchase
A25: a) | B25: =ROUND(SUM(SUMIFS('Purchase Annexure'!M:M,'Purchase Annexure'!O:O,{"231","234"})),0) -> 42340 | C25: =ROUND(SUM(SUMIFS('Purchase Annexure'!M:M,'Purchase Annexure'!O:O,"231",'Purchase Annexure'!P:P,{"31","36","41","46","51","56","61","66","71","76","90","91","32","37","42","47","52","57","62","67","72","77","95","96"})),0) -> 16936 | D25: =ROUND(SUM(SUMIFS('Purchase Annexure'!M:M,'Purchase Annexure'!O:O,"234",'Purchase Annexure'!P:P,{"31","36","41","46","51","56","61","66","71","76","90","91","32","37","42","47","52","57","62","67","72","77","95","96"})),0) -> 0 | F25: =ROUND(SUM(B25-C25-D25),0) -> 25404 | O25: w) | P25: =ROUND(SUM(SUMIFS('Purchase Annexure'!M:M,'Purchase Annexure'!O:O,"232",'Purchase Annexure'!P:P,"80")),0) -> 0 | Q25: =ROUND(SUM(SUMIFS('Purchase Annexure'!M:M,'Purchase Annexure'!O:O,"232",'Purchase Annexure'!P:P,{"90","95"})),0) -> 0 | T25: =ROUND(IF(SUM(P25-Q25)>0,(P25-Q25),0),0) -> 0 | W25: w) | X25: =ROUND(SUM(SUMIFS('Sales Annexure'!K:K,'Sales Annexure'!O:O,"233",'Sales Annexure'!P:P,{"100","200","450"})),0) -> 0 | Y25: =ROUND(SUM(SUMIFS('Sales Annexure'!K:K,'Sales Annexure'!O:O,"233",'Sales Annexure'!P:P,{"600","690","700","790"})),0) -> 0 | AC25: =ROUND(SUM(X25-Y25),0) -> 0 | AF25: a) | AG25: =ROUND(SUM(SUMIFS('Purchase Annexure'!M:M,'Purchase Annexure'!O:O,{"234","231","233"})),0) -> 42340 | AH25: =ROUND(SUM(SUMIFS('Purchase Annexure'!M:M,'Purchase Annexure'!O:O,"234",'Purchase Annexure'!P:P,{"31","36","41","46","51","56","61","66","71","76","90","91","32","37","42","47","52","57","62","67","72","77","95","96"})),0) -> 0 | AI25: =ROUND(SUM(SUMIFS('Purchase Annexure'!M:M,'Purchase Annexure'!O:O,"231",'Purchase Annexure'!P:P,{"31","36","41","46","51","56","61","66","71","76","90","91","32","37","42","47","52","57","62","67","72","77","95","96"})),0) -> 16936 | AJ25: =ROUND(SUM(SUMIFS('Purchase Annexure'!M:M,'Purchase Annexure'!O:O,"233",'Purchase Annexure'!P:P,{"31","36","41","46","51","56","61","66","71","76","90","91","32","37","42","47","52","57","62","67","72","77","95","96"})),0) -> 0 | AL25: =ROUND(SUM(AG25-AH25-AI25-AJ25),0) -> 25404 | AP25: a) | AQ25: =ROUND(SUM(SUMIFS('Purchase Annexure'!M:M,'Purchase Annexure'!O:O,{"235","233"})),0) -> 0 | AR25: =ROUND(SUM(SUMIFS('Purchase Annexure'!M:M,'Purchase Annexure'!O:O,"235",'Purchase Annexure'!P:P,{"31","36","41","46","51","56","61","66","71","76","90","91","32","37","42","47","52","57","62","67","72","77","95","96"})),0) -> 0 | AS25: =ROUND(SUM(SUMIFS('Purchase Annexure'!M:M,'Purchase Annexure'!O:O,"233",'Purchase Annexure'!P:P,{"31","36","41","46","51","56","61","66","71","76","90","91","32","37","42","47","52","57","62","67","72","77","95","96"})),0) -> 0 | AV25: =ROUND(SUM(AQ25-AR25-AS25),0) -> 0
A26: b) | B26: =ROUND(SUM(SUMIFS('Purchase Annexure'!M:M,'Purchase Annexure'!O:O,"234")),0) -> 0 | C26: =ROUND(SUM(SUMIFS('Purchase Annexure'!M:M,'Purchase Annexure'!O:O,"234",'Purchase Annexure'!P:P,{"31","36","41","46","51","56","61","66","71","76","90","91","32","37","42","47","52","57","62","67","72","95","77","96"})),0) -> 0 | F26: =ROUND(SUM(B26-C26),0) -> 0 | H26: 2C | I26: =ROUND(SUM(SUMIFS('Sales Annexure'!J:J,'Sales Annexure'!O:O,"CST",'Sales Annexure'!P:P,{"600","700"})),0) -> 800 | J26: =ROUND(SUM(SUMIFS('Sales Annexure'!I:I,'Sales Annexure'!O:O,"CST",'Sales Annexure'!P:P,{"600","700"})),0) -> 800 | K26: =I26+J26 -> 1600 | L26: =I17+J17 -> 2400 | O26: x) | T26: =IF(COUNTIF(T3:T25,"<0"),"23","29") -> 29 | W26: x) | X26: =ROUND(SUM(SUMIFS('Sales Annexure'!L:L,'Sales Annexure'!O:O,"233",'Sales Annexure'!P:P,{"100","200","400","450"})),0) -> 0 | Y26: =ROUND(SUM(SUMIFS('Sales Annexure'!L:L,'Sales Annexure'!O:O,"233",'Sales Annexure'!P:P,{"600","690","700","790"})),0) -> 0 | AC26: =ROUND(SUM(X26-Y26),0) -> 0 | AF26: b) | AG26: =ROUND(SUM(SUMIFS('Purchase Annexure'!M:M,'Purchase Annexure'!O:O,"231")),0) -> 42340 | AH26: =ROUND(SUM(SUMIFS('Purchase Annexure'!M:M,'Purchase Annexure'!O:O,"231",'Purchase Annexure'!P:P,{"31","36","41","46","51","56","61","66","71","76","90","91","32","37","42","47","52","57","62","67","72","77","95","96"})),0) -> 16936 | AI26: =ROUND(SUM(SUMIFS('Purchase Annexure'!M:M,'Purchase Annexure'!O:O,"233")),0) -> 0 | AJ26: =ROUND(SUM(SUMIFS('Purchase Annexure'!M:M,'Purchase Annexure'!O:O,"233",'Purchase Annexure'!P:P,{"31","36","41","46","51","56","61","66","71","76","90","91","32","37","42","47","52","57","62","67","72","77","95","96"})),0) -> 0 | AL26: =ROUND(SUM(AG26-AH26+AI26-AJ26),0) -> 25404 | AP26: b) | AQ26: =ROUND(SUM(SUMIFS('Purchase Annexure'!M:M,'Purchase Annexure'!O:O,"233")),0) -> 0 | AR26: =ROUND(SUM(SUMIFS('Purchase Annexure'!M:M,'Purchase Annexure'!O:O,"233",'Purchase Annexure'!P:P,{"31","36","41","46","51","56","61","66","71","76","90","91","32","37","42","47","52","57","62","67","72","77","95","96"})),0) -> 0 | AV26: =ROUND(SUM(AQ26-AR26),0) -> 0
A27: c) | W27: y) | X27: =ROUND(SUM(SUMIFS('Sales Annexure'!M:M,'Sales Annexure'!O:O,"233",'Sales Annexure'!P:P,"800")),0) -> 0 | Y27: =ROUND(SUM(SUMIFS('Sales Annexure'!M:M,'Sales Annexure'!O:O,"233",'Sales Annexure'!P:P,{"680","780"})),0) -> 0 | AC27: =ROUND(IF(SUM(X27-Y27)>0,(X27-Y27),0),0) -> 0 | AD27: Change the formula | AF27: c) | AP27: c)
A28: d) | B28: =ROUND(SUM(SUMIFS('Purchase Annexure'!M:M,'Purchase Annexure'!O:O,"231",'Purchase Annexure'!P:P,{"31","36","41","46","51","56","61","66","71","76","90","91"})),0) -> 8468 | F28: =ROUND(SUM(B28),0) -> 8468 | W28: z) | AC28: =IF(COUNTIF(AC3:AC27,"<0"),"23","29") -> 29 | AF28: d) | AG28: =ROUND(SUM(SUMIFS('Purchase Annexure'!M:M,'Purchase Annexure'!O:O,"234",'Purchase Annexure'!P:P,{"31","36","41","46","51","56","61","66","71","76","90","91"})),0) -> 0 | AL28: =ROUND(SUM(AG28),0) -> 0 | AP28: d) | AQ28: =ROUND(SUM(SUMIFS('Purchase Annexure'!M:M,'Purchase Annexure'!O:O,"235",'Purchase Annexure'!P:P,{"31","36","41","46","51","56","61","66","71","76","90","91"})),0) -> 0 | AV28: =ROUND(SUM(AQ28),0) -> 0
A29: e) | B29: =ROUND(SUM(SUMIFS('Purchase Annexure'!M:M,'Purchase Annexure'!O:O,"231",'Purchase Annexure'!P:P,{"32","37","42","47","52","57","62","67","72","77","95","96"})),0) -> 8468 | F29: =ROUND(SUM(B29),0) -> 8468 | AF29: e) | AG29: =ROUND(SUM(SUMIFS('Purchase Annexure'!M:M,'Purchase Annexure'!O:O,"234",'Purchase Annexure'!P:P,{"32","37","42","47","52","57","62","67","72","77","95","96"})),0) -> 0 | AL29: =ROUND(SUM(AG29),0) -> 0 | AP29: e) | AQ29: =ROUND(SUM(SUMIFS('Purchase Annexure'!M:M,'Purchase Annexure'!O:O,"235",'Purchase Annexure'!P:P,{"32","37","42","47","52","57","62","67","72","76","95","96"})),0) -> 0 | AV29: =ROUND(SUM(AQ29),0) -> 0
A30: f) | B30: =ROUND(SUM(SUMIFS('Purchase Annexure'!M:M,'Purchase Annexure'!O:O,"231",'Purchase Annexure'!P:P,"60")),0) -> 900 | C30: =ROUND(SUM(SUMIFS('Purchase Annexure'!M:M,'Purchase Annexure'!O:O,"231",'Purchase Annexure'!P:P,{"61","62"})),0) -> 600 | F30: =ROUND(SUM(B30-C30),0) -> 300 | AF30: f) | AG30: =ROUND(SUM(SUMIFS('Purchase Annexure'!M:M,'Purchase Annexure'!O:O,"234",'Purchase Annexure'!P:P,"60")),0) -> 0 | AH30: =ROUND(SUM(SUMIFS('Purchase Annexure'!M:M,'Purchase Annexure'!O:O,"234",'Purchase Annexure'!P:P,{"61","62"})),0) -> 0 | AL30: =ROUND(SUM(AG30-AH30),0) -> 0 | AP30: f) | AQ30: =ROUND(SUM(SUMIFS('Purchase Annexure'!M:M,'Purchase Annexure'!O:O,"235",'Purchase Annexure'!P:P,"60")),0) -> 0 | AR30: =ROUND(SUM(SUMIFS('Purchase Annexure'!M:M,'Purchase Annexure'!O:O,"235",'Purchase Annexure'!P:P,{"61","62"})),0) -> 0 | AV30: =ROUND(SUM(AQ30-AR30),0) -> 0
A31: g) | B31: =ROUND(SUM(SUMIFS('Purchase Annexure'!M:M,'Purchase Annexure'!O:O,"231",'Purchase Annexure'!P:P,"65")),0) -> 900 | C31: =ROUND(SUM(SUMIFS('Purchase Annexure'!M:M,'Purchase Annexure'!O:O,"231",'Purchase Annexure'!P:P,{"67","66"})),0) -> 600 | F31: 300 | W31: 8 | AF31: g) | AG31: =ROUND(SUM(SUMIFS('Purchase Annexure'!M:M,'Purchase Annexure'!O:O,"234",'Purchase Annexure'!P:P,"65")),0) -> 0 | AH31: =ROUND(SUM(SUMIFS('Purchase Annexure'!M:M,'Purchase Annexure'!O:O,"234",'Purchase Annexure'!P:P,{"67","66"})),0) -> 0 | AL31: 0 | AP31: g) | AQ31: =ROUND(SUM(SUMIFS('Purchase Annexure'!M:M,'Purchase Annexure'!O:O,"235",'Purchase Annexure'!P:P,"65")),0) -> 0 | AR31: =ROUND(SUM(SUMIFS('Purchase Annexure'!M:M,'Purchase Annexure'!O:O,"235",'Purchase Annexure'!P:P,{"67","66"})),0) -> 0 | AV31: 0
A32: h) | B32: =ROUND(SUM(SUMIFS('Purchase Annexure'!M:M,'Purchase Annexure'!O:O,"231",'Purchase Annexure'!P:P,"50")),0) -> 1200 | C32: =ROUND(SUM(SUMIFS('Purchase Annexure'!M:M,'Purchase Annexure'!O:O,"231",'Purchase Annexure'!P:P,{"51","52"})),0) -> 800 | F32: 400 | W32: B | AF32: h) | AG32: =ROUND(SUM(SUMIFS('Purchase Annexure'!M:M,'Purchase Annexure'!O:O,"234",'Purchase Annexure'!P:P,"50")),0) -> 0 | AH32: =ROUND(SUM(SUMIFS('Purchase Annexure'!M:M,'Purchase Annexure'!O:O,"234",'Purchase Annexure'!P:P,{"51","52"})),0) -> 0 | AL32: 0 | AP32: h) | AQ32: =ROUND(SUM(SUMIFS('Purchase Annexure'!M:M,'Purchase Annexure'!O:O,"235",'Purchase Annexure'!P:P,"50")),0) -> 0 | AR32: =ROUND(SUM(SUMIFS('Purchase Annexure'!M:M,'Purchase Annexure'!O:O,"235",'Purchase Annexure'!P:P,{"51","52"})),0) -> 0 | AV32: 0
A33: i) | B33: =ROUND(SUM(SUMIFS('Purchase Annexure'!M:M,'Purchase Annexure'!O:O,"231",'Purchase Annexure'!P:P,"55")),0) -> 1200 | C33: =ROUND(SUM(SUMIFS('Purchase Annexure'!M:M,'Purchase Annexure'!O:O,"231",'Purchase Annexure'!P:P,{"56","57"})),0) -> 800 | F33: 400 | W33: a) | X33: =ROUND(SUM(SUMIFS('Sales Annexure'!H:H,'Sales Annexure'!O:O,"233",'Sales Annexure'!P:P,"400")),0) -> 0 | Y33: =ROUND(SUM(SUMIFS('Sales Annexure'!H:H,'Sales Annexure'!O:O,"233",'Sales Annexure'!P:P,{"600","700"})),0) -> 0 | AC33: =ROUND(SUM(X33-Y33),0) -> 0 | AF33: i) | AG33: =ROUND(SUM(SUMIFS('Purchase Annexure'!M:M,'Purchase Annexure'!O:O,"234",'Purchase Annexure'!P:P,"55")),0) -> 0 | AH33: =ROUND(SUM(SUMIFS('Purchase Annexure'!M:M,'Purchase Annexure'!O:O,"234",'Purchase Annexure'!P:P,{"56","57"})),0) -> 0 | AL33: 0 | AP33: i) | AQ33: =ROUND(SUM(SUMIFS('Purchase Annexure'!M:M,'Purchase Annexure'!O:O,"235",'Purchase Annexure'!P:P,"55")),0) -> 0 | AR33: =ROUND(SUM(SUMIFS('Purchase Annexure'!M:M,'Purchase Annexure'!O:O,"235",'Purchase Annexure'!P:P,{"56","57"})),0) -> 0 | AV33: 0
A34: j) | B34: =ROUND(SUM(SUMIFS('Purchase Annexure'!M:M,'Purchase Annexure'!O:O,"231",'Purchase Annexure'!P:P,"70")),0) -> 3060 | C34: =ROUND(SUM(SUMIFS('Purchase Annexure'!M:M,'Purchase Annexure'!O:O,"231",'Purchase Annexure'!P:P,{"71","72"})),0) -> 2040 | F34: 1020 | W34: C | AF34: j) | AG34: =ROUND(SUM(SUMIFS('Purchase Annexure'!M:M,'Purchase Annexure'!O:O,"234",'Purchase Annexure'!P:P,"70")),0) -> 0 | AH34: =ROUND(SUM(SUMIFS('Purchase Annexure'!M:M,'Purchase Annexure'!O:O,"234",'Purchase Annexure'!P:P,{"71","72"})),0) -> 0 | AL34: 0 | AP34: j) | AQ34: =ROUND(SUM(SUMIFS('Purchase Annexure'!M:M,'Purchase Annexure'!O:O,"235",'Purchase Annexure'!P:P,"70")),0) -> 0 | AR34: =ROUND(SUM(SUMIFS('Purchase Annexure'!M:M,'Purchase Annexure'!O:O,"235",'Purchase Annexure'!P:P,{"71","72"})),0) -> 0 | AV34: 0
A35: k) | B35: =ROUND(SUM(SUMIFS('Purchase Annexure'!M:M,'Purchase Annexure'!O:O,"231",'Purchase Annexure'!P:P,"30")),0) -> 2400 | C35: =ROUND(SUM(SUMIFS('Purchase Annexure'!M:M,'Purchase Annexure'!O:O,"231",'Purchase Annexure'!P:P,{"31","32"})),0) -> 1600 | F35: 800 | W35: a) | X35: =ROUND(SUM(SUMIFS('Sales Annexure'!H:H,'Sales Annexure'!O:O,"233",'Sales Annexure'!P:P,"410")),0) -> 0 | Y35: =ROUND(SUM(SUMIFS('Sales Annexure'!H:H,'Sales Annexure'!O:O,"233",'Sales Annexure'!P:P,{"600","700"})),0) -> 0 | AC35: =ROUND(SUM(X35-Y35),0) -> 0 | AF35: k) | AG35: =ROUND(SUM(SUMIFS('Purchase Annexure'!M:M,'Purchase Annexure'!O:O,"234",'Purchase Annexure'!P:P,"30")),0) -> 0 | AH35: =ROUND(SUM(SUMIFS('Purchase Annexure'!M:M,'Purchase Annexure'!O:O,"234",'Purchase Annexure'!P:P,{"31","32"})),0) -> 0 | AL35: 0 | AP35: k) | AQ35: =ROUND(SUM(SUMIFS('Purchase Annexure'!M:M,'Purchase Annexure'!O:O,"235",'Purchase Annexure'!P:P,"30")),0) -> 0 | AR35: =ROUND(SUM(SUMIFS('Purchase Annexure'!M:M,'Purchase Annexure'!O:O,"235",'Purchase Annexure'!P:P,{"31","32"})),0) -> 0 | AV35: 0
A36: l) | B36: =ROUND(SUM(SUMIFS('Purchase Annexure'!M:M,'Purchase Annexure'!O:O,"231",'Purchase Annexure'!P:P,"40")),0) -> 1824 | C36: =ROUND(SUM(SUMIFS('Purchase Annexure'!M:M,'Purchase Annexure'!O:O,"231",'Purchase Annexure'!P:P,{"41","42"})),0) -> 1216 | F36: 608 | W36: D | AF36: l) | AG36: =ROUND(SUM(SUMIFS('Purchase Annexure'!M:M,'Purchase Annexure'!O:O,"234",'Purchase Annexure'!P:P,"40")),0) -> 0 | AH36: =ROUND(SUM(SUMIFS('Purchase Annexure'!M:M,'Purchase Annexure'!O:O,"234",'Purchase Annexure'!P:P,{"41","42"})),0) -> 0 | AL36: 0 | AP36: l) | AQ36: =ROUND(SUM(SUMIFS('Purchase Annexure'!M:M,'Purchase Annexure'!O:O,"235",'Purchase Annexure'!P:P,"40")),0) -> 0 | AR36: =ROUND(SUM(SUMIFS('Purchase Annexure'!M:M,'Purchase Annexure'!O:O,"235",'Purchase Annexure'!P:P,{"41","42"})),0) -> 0 | AV36: 0
A37: m) | B37: =ROUND(SUM(SUMIFS('Purchase Annexure'!M:M,'Purchase Annexure'!O:O,"231",'Purchase Annexure'!P:P,"45")),0) -> 1200 | C37: =ROUND(SUM(SUMIFS('Purchase Annexure'!M:M,'Purchase Annexure'!O:O,"231",'Purchase Annexure'!P:P,{"46","47"})),0) -> 800 | F37: 400 | W37: a) | X37: =ROUND(SUM(SUMIFS('Sales Annexure'!H:H,'Sales Annexure'!O:O,"233",'Sales Annexure'!P:P,"420")),0) -> 0 | Y37: =ROUND(SUM(SUMIFS('Sales Annexure'!H:H,'Sales Annexure'!O:O,"233",'Sales Annexure'!P:P,{"600","700"})),0) -> 0 | AC37: =ROUND(SUM(X37-Y37),0) -> 0 | AF37: m) | AG37: =ROUND(SUM(SUMIFS('Purchase Annexure'!M:M,'Purchase Annexure'!O:O,"234",'Purchase Annexure'!P:P,"45")),0) -> 0 | AH37: =ROUND(SUM(SUMIFS('Purchase Annexure'!M:M,'Purchase Annexure'!O:O,"234",'Purchase Annexure'!P:P,{"46","47"})),0) -> 0 | AL37: 0 | AP37: m) | AQ37: =ROUND(SUM(SUMIFS('Purchase Annexure'!M:M,'Purchase Annexure'!O:O,"235",'Purchase Annexure'!P:P,"45")),0) -> 0 | AR37: =ROUND(SUM(SUMIFS('Purchase Annexure'!M:M,'Purchase Annexure'!O:O,"235",'Purchase Annexure'!P:P,{"46","47"})),0) -> 0 | AV37: 0
A38: n) | B38: =ROUND(SUM(SUMIFS('Purchase Annexure'!M:M,'Purchase Annexure'!O:O,"231",'Purchase Annexure'!P:P,"35")),0) -> 2400 | C38: =ROUND(SUM(SUMIFS('Purchase Annexure'!M:M,'Purchase Annexure'!O:O,"231",'Purchase Annexure'!P:P,{"36","37"})),0) -> 1600 | F38: 800 | W38: E | AF38: n) | AG38: =ROUND(SUM(SUMIFS('Purchase Annexure'!M:M,'Purchase Annexure'!O:O,"234",'Purchase Annexure'!P:P,"35")),0) -> 0 | AH38: =ROUND(SUM(SUMIFS('Purchase Annexure'!M:M,'Purchase Annexure'!O:O,"234",'Purchase Annexure'!P:P,{"36","37"})),0) -> 0 | AL38: 0 | AP38: n) | AQ38: =ROUND(SUM(SUMIFS('Purchase Annexure'!M:M,'Purchase Annexure'!O:O,"235",'Purchase Annexure'!P:P,"35")),0) -> 0 | AR38: =ROUND(SUM(SUMIFS('Purchase Annexure'!M:M,'Purchase Annexure'!O:O,"235",'Purchase Annexure'!P:P,{"36","37"})),0) -> 0 | AV38: 0
A39: o) | B39: =ROUND(SUM(SUMIFS('Purchase Annexure'!M:M,'Purchase Annexure'!O:O,"231",'Purchase Annexure'!P:P,"20")),0) -> 2100 | C39: =ROUND(SUM(SUMIFS('Purchase Annexure'!M:M,'Purchase Annexure'!O:O,"231",'Purchase Annexure'!P:P,{"91","96"})),0) -> 1400 | F39: 700 | W39: a) | X39: =ROUND(SUM(SUMIFS('Sales Annexure'!H:H,'Sales Annexure'!O:O,"233",'Sales Annexure'!P:P,"430")),0) -> 0 | Y39: =ROUND(SUM(SUMIFS('Sales Annexure'!H:H,'Sales Annexure'!O:O,"233",'Sales Annexure'!P:P,{"600","700"})),0) -> 0 | AC39: =ROUND(SUM(X39-Y39),0) -> 0 | AF39: o) | AG39: =ROUND(SUM(SUMIFS('Purchase Annexure'!M:M,'Purchase Annexure'!O:O,"234",'Purchase Annexure'!P:P,"20")),0) -> 0 | AH39: =ROUND(SUM(SUMIFS('Purchase Annexure'!M:M,'Purchase Annexure'!O:O,"234",'Purchase Annexure'!P:P,{"91","96"})),0) -> 0 | AL39: 0 | AP39: o) | AQ39: =ROUND(SUM(SUMIFS('Purchase Annexure'!M:M,'Purchase Annexure'!O:O,"235",'Purchase Annexure'!P:P,"20")),0) -> 0 | AR39: =ROUND(SUM(SUMIFS('Purchase Annexure'!M:M,'Purchase Annexure'!O:O,"235",'Purchase Annexure'!P:P,{"91","96"})),0) -> 0 | AV39: 0
A40: p) | B40: =ROUND(SUM(SUMIFS('Purchase Annexure'!M:M,'Purchase Annexure'!O:O,"231",'Purchase Annexure'!P:P,"75")),0) -> 900 | C40: =ROUND(SUM(SUMIFS('Purchase Annexure'!M:M,'Purchase Annexure'!O:O,"231",'Purchase Annexure'!P:P,{"76","77"})),0) -> 600 | F40: 300 | W40: F | AF40: p) | AG40: =ROUND(SUM(SUMIFS('Purchase Annexure'!M:M,'Purchase Annexure'!O:O,"234",'Purchase Annexure'!P:P,"75")),0) -> 0 | AH40: =ROUND(SUM(SUMIFS('Purchase Annexure'!M:M,'Purchase Annexure'!O:O,"234",'Purchase Annexure'!P:P,{"76","77"})),0) -> 0 | AL40: 0 | AP40: p) | AQ40: =ROUND(SUM(SUMIFS('Purchase Annexure'!M:M,'Purchase Annexure'!O:O,"235",'Purchase Annexure'!P:P,"75")),0) -> 0 | AR40: =ROUND(SUM(SUMIFS('Purchase Annexure'!M:M,'Purchase Annexure'!O:O,"235",'Purchase Annexure'!P:P,{"76","77"})),0) -> 0 | AV40: 0
A41: q) | B41: =ROUND(SUM(SUMIFS('Purchase Annexure'!J:J,'Purchase Annexure'!O:O,"231",'Purchase Annexure'!P:P,{"10","15"})),0) -> 1200 | C41: =ROUND(SUM(SUMIFS('Purchase Annexure'!J:J,'Purchase Annexure'!O:O,"231",'Purchase Annexure'!P:P,{"90","95"})),0) -> 800 | F41: 400 | V41: =ROUND(SUM(MAIN!AC18),0) -> 0 | W41: a) | X41: =ROUND(SUM(SUMIFS('Sales Annexure'!H:H,'Sales Annexure'!O:O,"233",'Sales Annexure'!P:P,"440")),0) -> 0 | Y41: =ROUND(SUM(SUMIFS('Sales Annexure'!H:H,'Sales Annexure'!O:O,"233",'Sales Annexure'!P:P,{"600","700"})),0) -> 0 | AC41: =ROUND(SUM(X41-Y41),0) -> 0 | AF41: q) | AG41: =ROUND(SUM(SUMIFS('Purchase Annexure'!J:J,'Purchase Annexure'!O:O,"234",'Purchase Annexure'!P:P,{"10","15"})),0) -> 0 | AH41: =ROUND(SUM(SUMIFS('Purchase Annexure'!J:J,'Purchase Annexure'!O:O,"234",'Purchase Annexure'!P:P,{"90","95"})),0) -> 0 | AL41: 0 | AP41: q) | AQ41: =ROUND(SUM(SUMIFS('Purchase Annexure'!J:J,'Purchase Annexure'!O:O,"235",'Purchase Annexure'!P:P,{"10","15"})),0) -> 0 | AR41: =ROUND(SUM(SUMIFS('Purchase Annexure'!J:J,'Purchase Annexure'!O:O,"235",'Purchase Annexure'!P:P,{"90","95"})),0) -> 0 | AV41: 0
A42: r) | B42: =ROUND(SUM(SUMIFS('Purchase Annexure'!I:I,'Purchase Annexure'!O:O,"231",'Purchase Annexure'!P:P,{"10","15"})),0) -> 1200 | C42: =ROUND(SUM(SUMIFS('Purchase Annexure'!I:I,'Purchase Annexure'!O:O,"231",'Purchase Annexure'!P:P,{"90","95"})),0) -> 800 | F42: 400 | AC42: =IF(COUNTIF(AC32:AC41,"<0"),"23","29") -> 29 | AF42: r) | AG42: =ROUND(SUM(SUMIFS('Purchase Annexure'!I:I,'Purchase Annexure'!O:O,"234",'Purchase Annexure'!P:P,{"10","15"})),0) -> 0 | AH42: =ROUND(SUM(SUMIFS('Purchase Annexure'!I:I,'Purchase Annexure'!O:O,"234",'Purchase Annexure'!P:P,{"90","95"})),0) -> 0 | AL42: 0 | AP42: r) | AQ42: =ROUND(SUM(SUMIFS('Purchase Annexure'!I:I,'Purchase Annexure'!O:O,"235",'Purchase Annexure'!P:P,{"10","15"})),0) -> 0 | AR42: =ROUND(SUM(SUMIFS('Purchase Annexure'!I:I,'Purchase Annexure'!O:O,"235",'Purchase Annexure'!P:P,{"90","95"})),0) -> 0 | AV42: 0
A43: s) | B43: =ROUND(SUM(SUMIFS('Purchase Annexure'!K:K,'Purchase Annexure'!O:O,"231",'Purchase Annexure'!P:P,{"10","15"})),0) -> 1200 | C43: =ROUND(SUM(SUMIFS('Purchase Annexure'!K:K,'Purchase Annexure'!O:O,"231",'Purchase Annexure'!P:P,{"90","95"})),0) -> 800 | F43: 400 | AF43: s) | AG43: =ROUND(SUM(SUMIFS('Purchase Annexure'!K:K,'Purchase Annexure'!O:O,"234",'Purchase Annexure'!P:P,{"10","15"})),0) -> 0 | AH43: =ROUND(SUM(SUMIFS('Purchase Annexure'!K:K,'Purchase Annexure'!O:O,"234",'Purchase Annexure'!P:P,{"90","95"})),0) -> 0 | AL43: 0 | AP43: s) | AQ43: =ROUND(SUM(SUMIFS('Purchase Annexure'!K:K,'Purchase Annexure'!O:O,"235",'Purchase Annexure'!P:P,{"10","15"})),0) -> 0 | AR43: =ROUND(SUM(SUMIFS('Purchase Annexure'!K:K,'Purchase Annexure'!O:O,"235",'Purchase Annexure'!P:P,{"90","95"})),0) -> 0 | AV43: 0
A44: t) | B44: =ROUND(SUM(SUMIFS('Purchase Annexure'!L:L,'Purchase Annexure'!O:O,"231",'Purchase Annexure'!P:P,{"10","15"})),0) -> 1200 | C44: =ROUND(SUM(SUMIFS('Purchase Annexure'!L:L,'Purchase Annexure'!O:O,"231",'Purchase Annexure'!P:P,{"90","95"})),0) -> 800 | F44: 400 | AF44: t) | AG44: =ROUND(SUM(SUMIFS('Purchase Annexure'!L:L,'Purchase Annexure'!O:O,"234",'Purchase Annexure'!P:P,{"10","15"})),0) -> 0 | AH44: =ROUND(SUM(SUMIFS('Purchase Annexure'!L:L,'Purchase Annexure'!O:O,"234",'Purchase Annexure'!P:P,{"90","95"})),0) -> 0 | AL44: 0 | AP44: t) | AQ44: =ROUND(SUM(SUMIFS('Purchase Annexure'!L:L,'Purchase Annexure'!O:O,"235",'Purchase Annexure'!P:P,{"10","15"})),0) -> 0 | AR44: =ROUND(SUM(SUMIFS('Purchase Annexure'!L:L,'Purchase Annexure'!O:O,"235",'Purchase Annexure'!P:P,{"90","95"})),0) -> 0 | AV44: 0
A45: u) | B45: =ROUND(SUM(SUMIFS('Purchase Annexure'!G:G,'Purchase Annexure'!O:O,"231",'Purchase Annexure'!P:P,{"10","15"})),0) -> 1260 | C45: =ROUND(SUM(SUMIFS('Purchase Annexure'!G:G,'Purchase Annexure'!O:O,"231",'Purchase Annexure'!P:P,{"90","95"})),0) -> 840 | F45: 420 | AF45: u) | AG45: =ROUND(SUM(SUMIFS('Purchase Annexure'!G:G,'Purchase Annexure'!O:O,"234",'Purchase Annexure'!P:P,{"10","15"})),0) -> 0 | AH45: =ROUND(SUM(SUMIFS('Purchase Annexure'!G:G,'Purchase Annexure'!O:O,"234",'Purchase Annexure'!P:P,{"90","95"})),0) -> 0 | AL45: 0 | AP45: u) | AQ45: =ROUND(SUM(SUMIFS('Purchase Annexure'!G:G,'Purchase Annexure'!O:O,"235",'Purchase Annexure'!P:P,{"10","15"})),0) -> 0 | AR45: =ROUND(SUM(SUMIFS('Purchase Annexure'!G:G,'Purchase Annexure'!O:O,"235",'Purchase Annexure'!P:P,{"90","95"})),0) -> 0 | AV45: 0
A46: v) | B46: =ROUND(SUM(SUMIFS('Purchase Annexure'!H:H,'Purchase Annexure'!O:O,"231",'Purchase Annexure'!P:P,{"10","15"})),0) -> 0 | C46: =ROUND(SUM(SUMIFS('Purchase Annexure'!H:H,'Purchase Annexure'!O:O,"231",'Purchase Annexure'!P:P,{"90","95"})),0) -> 0 | F46: 0 | W46: 233 Purchase | AF46: v) | AG46: =ROUND(SUM(SUMIFS('Purchase Annexure'!H:H,'Purchase Annexure'!O:O,"234",'Purchase Annexure'!P:P,{"10","15"})),0) -> 0 | AH46: =ROUND(SUM(SUMIFS('Purchase Annexure'!H:H,'Purchase Annexure'!O:O,"234",'Purchase Annexure'!P:P,{"90","95"})),0) -> 0 | AL46: 0 | AP46: v) | AQ46: =ROUND(SUM(SUMIFS('Purchase Annexure'!H:H,'Purchase Annexure'!O:O,"235",'Purchase Annexure'!P:P,{"10","15"})),0) -> 0 | AR46: =ROUND(SUM(SUMIFS('Purchase Annexure'!H:H,'Purchase Annexure'!O:O,"235",'Purchase Annexure'!P:P,{"90","95"})),0) -> 0 | AV46: 0
A47: w) | B47: =ROUND(SUM(SUMIFS('Purchase Annexure'!M:M,'Purchase Annexure'!O:O,"231",'Purchase Annexure'!P:P,"80")),0) -> 0 | C47: =ROUND(SUM(SUMIFS('Purchase Annexure'!M:M,'Purchase Annexure'!O:O,"231",'Purchase Annexure'!P:P,{"90","95"})),0) -> 4880 | F47: =ROUND(IF(SUM(B47-C47)>0,(B47-C47),0),0) -> 0 | W47: a) | X47: =ROUND(SUM(SUMIFS('Purchase Annexure'!M:M,'Purchase Annexure'!O:O,{"231","232","233","234","235","CST"})),0) -> 42340 | Y47: =ROUND(SUM(SUMIFS('Purchase Annexure'!M:M,'Purchase Annexure'!O:O,"233",'Purchase Annexure'!P:P,{"31","36","41","46","51","56","61","66","71","76","90","91","32","37","42","47","52","57","62","67","72","77","95","96"})),0) -> 0 | Z47: =ROUND(SUM(SUMIFS('Purchase Annexure'!M:M,'Purchase Annexure'!O:O,"234",'Purchase Annexure'!P:P,{"31","36","41","46","51","56","61","66","71","76","90","91","32","37","42","47","52","57","62","67","72","77","95","96"})),0) -> 0 | AA47: =ROUND(SUM(SUMIFS('Purchase Annexure'!M:M,'Purchase Annexure'!O:O,"235",'Purchase Annexure'!P:P,{"31","36","41","46","51","56","61","66","71","76","90","91","32","37","42","47","52","57","62","67","72","77","95","96"})),0) -> 0 | AC47: =ROUND(SUM(X47-Y47-Z47-AA47),0) -> 42340 | AF47: w) | AG47: =ROUND(SUM(SUMIFS('Purchase Annexure'!M:M,'Purchase Annexure'!O:O,"234",'Purchase Annexure'!P:P,"80")),0) -> 0 | AH47: =ROUND(SUM(SUMIFS('Purchase Annexure'!M:M,'Purchase Annexure'!O:O,"234",'Purchase Annexure'!P:P,{"90","95"})),0) -> 0 | AL47: =ROUND(IF(SUM(AG47-AH47)>0,(AG47-AH47),0),0) -> 0 | AP47: w) | AQ47: =ROUND(SUM(SUMIFS('Purchase Annexure'!M:M,'Purchase Annexure'!O:O,"235",'Purchase Annexure'!P:P,"80")),0) -> 0 | AR47: =ROUND(SUM(SUMIFS('Purchase Annexure'!M:M,'Purchase Annexure'!O:O,"235",'Purchase Annexure'!P:P,{"90","95"})),0) -> 0 | AV47: =ROUND(IF(SUM(AQ47-AR47)>0,(AQ47-AR47),0),0) -> 0
A48: x) | H48: 2 | I48: =IF(H48=1,23,24) -> 24 | W48: b) | X48: =ROUND(SUM(SUMIFS('Purchase Annexure'!M:M,'Purchase Annexure'!O:O,{"234","235"})),0) -> 0 | Y48: =ROUND(SUM(SUMIFS('Purchase Annexure'!M:M,'Purchase Annexure'!O:O,"234",'Purchase Annexure'!P:P,{"31","36","41","46","51","56","61","66","71","76","90","91","32","37","42","47","52","57","62","67","72","77","95","96"})),0) -> 0 | Z48: =ROUND(SUM(SUMIFS('Purchase Annexure'!M:M,'Purchase Annexure'!O:O,"235",'Purchase Annexure'!P:P,{"31","36","41","46","51","56","61","66","71","76","90","91","32","37","42","47","52","57","62","67","72","77","95","96"})),0) -> 0 | AC48: =ROUND(SUM(X48-Y48-Z48),0) -> 0 | AF48: x) | AL48: =IF(COUNTIF(AL25:AL47,"<0"),"23","29") -> 29 | AP48: x) | AV48: =IF(COUNTIF(AV25:AV47,"<0"),"23","29") -> 29
F49: =IF(COUNTIF(F25:F47,"<0"),"23","29") -> 29 | G49: =F49 -> 29 | H49: =IF(F49=23,47,1) -> 1 | I49: =IF(G49=23,1,2) -> 2 | W49: c)
W50: d) | X50: =ROUND(SUM(SUMIFS('Purchase Annexure'!M:M,'Purchase Annexure'!O:O,"233",'Purchase Annexure'!P:P,{"31","36","41","46","51","56","61","66","71","76","90","91"})),0) -> 0 | AC50: =ROUND(SUM(X50),0) -> 0
W51: e) | X51: =ROUND(SUM(SUMIFS('Purchase Annexure'!M:M,'Purchase Annexure'!O:O,"233",'Purchase Annexure'!P:P,{"32","37","42","47","52","57","62","67","72","77","95","96"})),0) -> 0 | AC51: =ROUND(SUM(X51),0) -> 0
J52: =IF(F49=23,47,48) -> 48 | W52: f) | X52: =ROUND(SUM(SUMIFS('Purchase Annexure'!M:M,'Purchase Annexure'!O:O,"233",'Purchase Annexure'!P:P,"60")),0) -> 0 | Y52: =ROUND(SUM(SUMIFS('Purchase Annexure'!M:M,'Purchase Annexure'!O:O,"233",'Purchase Annexure'!P:P,{"61","62"})),0) -> 0 | AC52: =ROUND(SUM(X52-Y52),0) -> 0
I53: =IF(F21=23,47,49) -> 49 | J53: =IF(F49=23,47,49) -> 49 | K53: 231 | L53: =IF(AND(F21="23",F49="23"),47,49) -> 49 | O53: 231 | W53: g) | X53: =ROUND(SUM(SUMIFS('Purchase Annexure'!M:M,'Purchase Annexure'!O:O,"233",'Purchase Annexure'!P:P,"65")),0) -> 0 | Y53: =ROUND(SUM(SUMIFS('Purchase Annexure'!M:M,'Purchase Annexure'!O:O,"233",'Purchase Annexure'!P:P,{"66","67"})),0) -> 0 | AC53: 0
K54: CST | L54: =IF(L23="23",47,49) -> 49 | N54: BOX | O54: 6 | P54: =IF('231'!AJ55=13,1001,1003) -> 1001 | W54: h) | X54: =ROUND(SUM(SUMIFS('Purchase Annexure'!M:M,'Purchase Annexure'!O:O,"233",'Purchase Annexure'!P:P,"50")),0) -> 0 | Y54: =ROUND(SUM(SUMIFS('Purchase Annexure'!M:M,'Purchase Annexure'!O:O,"233",'Purchase Annexure'!P:P,{"51","52"})),0) -> 0 | AC54: 0
D55: Negative Value Exist | F55: 23 | K55: 232 | L55: =IF(T26="23",47,49) -> 49 | O55: 8 | P55: =IF('231'!AJ70=13,1001,1003) -> 1001 | W55: i) | X55: =ROUND(SUM(SUMIFS('Purchase Annexure'!M:M,'Purchase Annexure'!O:O,"233",'Purchase Annexure'!P:P,"55")),0) -> 0 | Y55: =ROUND(SUM(SUMIFS('Purchase Annexure'!M:M,'Purchase Annexure'!O:O,"233",'Purchase Annexure'!P:P,{"56","57"})),0) -> 0 | AC55: 0
D56: Else | F56: 29 | K56: 233 | L56: =IF(OR(AC28="23",AC42="23",AC70="23"),47,49) -> 49 | O56: 11 | P56: =IF('231'!AJ116=13,1001,1003) -> 1001 | W56: j) | X56: =ROUND(SUM(SUMIFS('Purchase Annexure'!M:M,'Purchase Annexure'!O:O,"233",'Purchase Annexure'!P:P,"70")),0) -> 0 | Y56: =ROUND(SUM(SUMIFS('Purchase Annexure'!M:M,'Purchase Annexure'!O:O,"233",'Purchase Annexure'!P:P,{"71","72"})),0) -> 0 | AC56: 0
K57: 234 | L57: =IF(OR(AL20="23",AL48="23"),47,49) -> 49 | O57: 13.A | P57: =IF('231'!AJ140=13,1001,1003) -> 1001 | W57: k) | X57: =ROUND(SUM(SUMIFS('Purchase Annexure'!M:M,'Purchase Annexure'!O:O,"233",'Purchase Annexure'!P:P,"30")),0) -> 0 | Y57: =ROUND(SUM(SUMIFS('Purchase Annexure'!M:M,'Purchase Annexure'!O:O,"233",'Purchase Annexure'!P:P,{"31","32"})),0) -> 0 | AC57: 0
K58: 235 | L58: =IF(OR(AV19="23",AV48="23"),47,49) -> 49 | P58: =IF(SUM(P54:P57)=4004,21,23) -> 21 | W58: l) | X58: =ROUND(SUM(SUMIFS('Purchase Annexure'!M:M,'Purchase Annexure'!O:O,"233",'Purchase Annexure'!P:P,"40")),0) -> 0 | Y58: =ROUND(SUM(SUMIFS('Purchase Annexure'!M:M,'Purchase Annexure'!O:O,"233",'Purchase Annexure'!P:P,{"41","32"})),0) -> 0 | AC58: 0
K59: All | L59: =SUM(L53:L58) -> 294 | W59: m) | X59: =ROUND(SUM(SUMIFS('Purchase Annexure'!M:M,'Purchase Annexure'!O:O,"233",'Purchase Annexure'!P:P,"45")),0) -> 0 | Y59: =ROUND(SUM(SUMIFS('Purchase Annexure'!M:M,'Purchase Annexure'!O:O,"233",'Purchase Annexure'!P:P,{"46","47"})),0) -> 0 | AC59: 0
A60: Return Period | B60: =LEFT(Header!C8,4) -> 2016 | W60: n) | X60: =ROUND(SUM(SUMIFS('Purchase Annexure'!M:M,'Purchase Annexure'!O:O,"233",'Purchase Annexure'!P:P,"35")),0) -> 0 | Y60: =ROUND(SUM(SUMIFS('Purchase Annexure'!M:M,'Purchase Annexure'!O:O,"233",'Purchase Annexure'!P:P,{"36","37"})),0) -> 0 | AC60: 0
O61: 232 | W61: o) | X61: =ROUND(SUM(SUMIFS('Purchase Annexure'!M:M,'Purchase Annexure'!O:O,"233",'Purchase Annexure'!P:P,"20")),0) -> 0 | Y61: =ROUND(SUM(SUMIFS('Purchase Annexure'!M:M,'Purchase Annexure'!O:O,"233",'Purchase Annexure'!P:P,{"91","96"})),0) -> 0 | AC61: 0
B62: =Header!J208 -> 31 | C62: =IF(Header!E9="YES","",MAIN!B62) -> 31 | N62: BOX | O62: 11 | P62: =IF('232'!AF50=13,1001,1003) -> 1001 | W62: p) | X62: =ROUND(SUM(SUMIFS('Purchase Annexure'!M:M,'Purchase Annexure'!O:O,"233",'Purchase Annexure'!P:P,"75")),0) -> 0 | Y62: =ROUND(SUM(SUMIFS('Purchase Annexure'!M:M,'Purchase Annexure'!O:O,"233",'Purchase Annexure'!P:P,{"76","77"})),0) -> 0 | AC62: 0
O63: 13 | P63: =IF('232'!AF85=13,1001,1003) -> 1001 | W63: q) | X63: =ROUND(SUM(SUMIFS('Purchase Annexure'!J:J,'Purchase Annexure'!O:O,"233",'Purchase Annexure'!P:P,{"10","15","20"})),0) -> 0 | Y63: =ROUND(SUM(SUMIFS('Purchase Annexure'!J:J,'Purchase Annexure'!O:O,"233",'Purchase Annexure'!P:P,{"90","95","91","96"})),0) -> 0 | AC63: 0
O64: 14.a | P64: =IF('232'!AF88=13,1001,1003) -> 1001 | W64: r) | X64: =ROUND(SUM(SUMIFS('Purchase Annexure'!I:I,'Purchase Annexure'!O:O,"233",'Purchase Annexure'!P:P,{"10","15"})),0) -> 0 | Y64: =ROUND(SUM(SUMIFS('Purchase Annexure'!I:I,'Purchase Annexure'!O:O,"233",'Purchase Annexure'!P:P,{"90","95"})),0) -> 0 | AC64: 0
O65: 15.A.a | P65: =IF('232'!AF109=13,1001,1003) -> 1001 | W65: s) | X65: =ROUND(SUM(SUMIFS('Purchase Annexure'!K:K,'Purchase Annexure'!O:O,"233",'Purchase Annexure'!P:P,{"10","15"})),0) -> 0 | Y65: =ROUND(SUM(SUMIFS('Purchase Annexure'!K:K,'Purchase Annexure'!O:O,"233",'Purchase Annexure'!P:P,{"90","95"})),0) -> 0 | AC65: 0
A66: Return type | B66: =Header!C7 -> ORIGINAL | C66: ORIGINAL | D66: 2 | E66: =IF(B66=C66,D66,IF(B66=C67,D67,IF(B66=C68,D68,IF(B66=C69,D69)))) -> 2 | O66: 15.A.h | P66: =IF('232'!AF117=13,1001,1003) -> 1001 | W66: t) | X66: =ROUND(SUM(SUMIFS('Purchase Annexure'!L:L,'Purchase Annexure'!O:O,"233",'Purchase Annexure'!P:P,{"10","15"})),0) -> 0 | Y66: =ROUND(SUM(SUMIFS('Purchase Annexure'!L:L,'Purchase Annexure'!O:O,"233",'Purchase Annexure'!P:P,{"90","95"})),0) -> 0 | AC66: 0
C67: REVISED u/s 20(4)(a) | D67: 2 | P67: =IF(SUM(P62:P66)=5005,21,23) -> 21 | W67: u) | X67: =ROUND(SUM(SUMIFS('Purchase Annexure'!G:G,'Purchase Annexure'!O:O,"233",'Purchase Annexure'!P:P,{"10","15"})),0) -> 0 | Y67: =ROUND(SUM(SUMIFS('Purchase Annexure'!G:G,'Purchase Annexure'!O:O,"233",'Purchase Annexure'!P:P,{"90","95"})),0) -> 0 | AC67: 0
C68: REVISED u/s 20(4)(b) | D68: 1 | W68: v) | X68: =ROUND(SUM(SUMIFS('Purchase Annexure'!H:H,'Purchase Annexure'!O:O,"233",'Purchase Annexure'!P:P,{"10","15"})),0) -> 0 | Y68: =ROUND(SUM(SUMIFS('Purchase Annexure'!H:H,'Purchase Annexure'!O:O,"233",'Purchase Annexure'!P:P,{"90","95"})),0) -> 0 | AC68: 0
C69: REVISED u/s 20(4)(c) | D69: 1 | O69: 233 | W69: w) | X69: =ROUND(SUM(SUMIFS('Purchase Annexure'!M:M,'Purchase Annexure'!O:O,"233",'Purchase Annexure'!P:P,"80")),0) -> 0 | AC69: =ROUND(SUM(X69),0) -> 0
N70: BOX | O70: 7 | P70: =IF(S70=2,1001,1002) -> 1001 | Q70: =IF('233'!AD46=13,1,2) -> 1 | R70: =IF('233'!AD52=13,1,2) -> 1 | S70: =Q70+R70 -> 2 | W70: x) | AC70: =IF(COUNTIF(AC47:AC69,"<0"),"23","29") -> 29
O71: 8 | P71: =IF('233'!AD56=13,1001,1003) -> 1001
O72: 9 | P72: =IF('233'!AD87=13,1001,1003) -> 1001
O73: 10 | P73: =IF('233'!AD90=13,1001,1003) -> 1001 | W73: E | X73: =ROUND(SUM(SUMIFS('Sales Annexure'!E:E,'Sales Annexure'!O:O,"233",'Sales Annexure'!P:P,{"450"})),0) -> 0 | Y73: =ROUND(SUM(SUMIFS('Sales Annexure'!E:E,'Sales Annexure'!O:O,"233",'Sales Annexure'!P:P,{"690,790"})),0) -> 0 | AC73: =ROUND(SUM(X73-Y73),0) -> 0
O74: 11.a | P74: =IF('233'!AD97=13,1001,1003) -> 1001 | W74: G | X74: =ROUND(SUM(SUMIFS('Sales Annexure'!G:G,'Sales Annexure'!O:O,"233",'Sales Annexure'!P:P,{"450"})),0) -> 0 | Y74: =ROUND(SUM(SUMIFS('Sales Annexure'!G:G,'Sales Annexure'!O:O,"233",'Sales Annexure'!P:P,{"690,790"})),0) -> 0 | AC74: =ROUND(SUM(X74-Y74),0) -> 0
O75: 12 | P75: =IF('233-old'!AE123=13,1001,1003) -> 1001
B76: SALES | C76: Purchase | F76: MVAT | G76: CST | O76: 13 | P76: =IF('233'!AD121=13,1001,1003) -> 1001
A77: 231 | B77: =IF(ISNA(MATCH(A77,'Sales Annexure'!O:O,0)),"0","1") -> 1 | C77: =IF(ISNA(MATCH(A77,'Purchase Annexure'!O:O,0)),"0","1") -> 1 | E77: Length | F77: =LEN(Header!C5) -> 12 | G77: 0 | O77: 16 | P77: =IF('233'!AD168=13,1001,1003) -> 1003
A78: 232 | B78: =IF(ISNA(MATCH(A78,'Sales Annexure'!O:O,0)),"0","2") -> 0 | C78: =IF(ISNA(MATCH(A78,'Purchase Annexure'!O:O,0)),"0","2") -> 0 | E78: RIGHT | F78: =MID(Header!C5,5,7) -> 1000061 | G78: =MID(Header!E5,5,7) -> 1000061 | O78: 17.a | P78: =IF('233'!AG171=13,1001,1003) -> 1001
A79: 233 | B79: =IF(ISNA(MATCH(A79,'Sales Annexure'!O:O,0)),"0","3") -> 0 | C79: =IF(ISNA(MATCH(A79,'Purchase Annexure'!O:O,0)),"0","3") -> 0 | E79: LEFT | F79: =LEFT(Header!C5,2) -> 27 | G79: =LEFT(Header!E5,2) -> 27 | O79: 18.A.a | P79: =IF('233'!AD192=13,1001,1003) -> 1001
A80: 234 | B80: =IF(ISNA(MATCH(A80,'Sales Annexure'!O:O,0)),"0","4") -> 0 | C80: =IF(ISNA(MATCH(A80,'Purchase Annexure'!O:O,0)),"0","4") -> 0 | E80: MID | F80: =MID(Header!C5,3,2) -> 98 | G80: =MID(Header!E5,3,2) -> 98 | O80: 18.C.a | P80: =IF('233'!AD217=13,1001,1003) -> 1001 | R80: 233 Figure
A81: 235 | B81: =IF(ISNA(MATCH(A81,'Sales Annexure'!O:O,0)),"0","5") -> 0 | C81: =IF(ISNA(MATCH(A81,'Purchase Annexure'!O:O,0)),"0","5") -> 0 | E81: Concatnate | F81: =F78&F79&F80 -> 10000612798 | G81: =G78&G79&G80 -> 10000612798 | O81: 18.C.b | P81: =IF('233'!AD218=13,1001,1003) -> 1001 | R81: =IF(SUM(P70:P81)=12012,21,23) -> 23
A82: CST | B82: =IF(ISNA(MATCH(A82,'Sales Annexure'!O:O,0)),"0","6") -> 6 | C82: =IF(ISNA(MATCH(A82,'Purchase Annexure'!O:O,0)),"0","6") -> 0 | E82: MOD | F82: =IF(ISERROR(MOD(F81,96)),"",MOD(F81,96)) -> 94 | G82: =IF(ISERROR(MOD(G81,96)),"",MOD(G81,96)) -> 94
E83: Right | F83: V | G83: C | O83: 234
F84: =IF(F82=1,1,0) -> 0 | G84: =IF(G82=1,1,0) -> 0 | N84: BOX | O84: 7.III | P84: =IF('234'!AE69=13,1001,1003) -> 1001
O85: 9 | P85: =IF('234'!AE81=13,1001,1003) -> 1001
O86: 12 | P86: =IF('234'!AE127=13,1001,1003) -> 1001
A87: =Header!C8 -> 2016-2017 | B87: =OFFSET('Meta data'!$T:$T,MATCH(MAIN!$A$87,'Meta data'!$T:$T,0)-1,1,COUNTIF('Meta data'!$T:$T,MAIN!$A$87),1) -> 2016 April | O87: 13 | P87: =IF('234'!AE130=13,1001,1003) -> 1001
P88: =IF('234'!AF130=13,1001,1003) -> 1001
A89: Date | B89: =IFERROR(INDEX('Meta data'!W2:W152,MATCH(MAIN!A87&MAIN!B87,'Meta data'!T2:T49&'Meta data'!U2:U49,0)),"") -> 01.04.2016 | C89: =IFERROR(INDEX('Meta data'!X2:X49,MATCH(MAIN!A87&MAIN!B87,'Meta data'!T2:T49&'Meta data'!U2:U49,0)),"") -> 30.04.2016 | O89: 14.a | P89: =IF('234'!AE153=13,1001,1003) -> 1001
B90: =LEFT(B89,2) -> 01 | C90: =IF(LEFT(C89,2)=0,"",LEFT(C89,2)) -> 30 | O90: 14.b.b | P90: =IF('234'!AE163=13,1001,1003) -> 1001
B91: =MID(B89,4,2) -> 04 | C91: =MID(C89,4,2) -> 04 | P91: =IF(SUM(P84:P90)=7007,21,23) -> 21
B92: =RIGHT(B89,4) -> 2016 | C92: =RIGHT(C89,4) -> 2016
O94: 235
N95: BOX | O95: 6 | P95: =IF('235'!AJ66=13,1001,1003) -> 1001
O96: 8 | P96: =IF('235'!AJ78=13,1001,1003) -> 1001
O97: 11 | P97: =IF('235'!AJ123=13,1001,1003) -> 1001
O98: 12.a | P98: =IF('235'!AJ126=13,1001,1003) -> 1001
P99: =IF('235'!AK126=13,1001,1003) -> 1001
O100: 13.a | P100: =IF('235'!AJ147=13,1001,1003) -> 1001
P101: =IF(SUM(P95:P100)=6006,21,23) -> 21

Sheet 231
A1: 0 | S1: INVALID
B2: FORM 231 | AA2: Ver 1.8.3 | AD2: Date 24-06-2014
B3: Return of tax payable by a dealer under M.V.A.T. Act, 2002 (See Rule 17, 17A, 18 and 45) | AD3: Yes
B4: 1 | E4: M.V.A.T. R.C. No. | I4: =IF(Header!C5="","",Header!C5) -> 27981000061V | R4: C.S.T. R.C. NO. | W4: =IF(Header!E5="","",Header!E5) -> 27981000061C | AD4: No
I5: Type Of Return Not Entered
B7: 2 | E7: Name of Dealer | I7: =IF(ISBLANK(Header!C6),"",(Header!C6)) -> ABC LTD
B14: 3.Please Select which ever is Applicable | E14: Type of Return (Select appropriate) ( Drop down selection) | O14: =IF(ISBLANK(Header!C7),"",(Header!C7)) -> ORIGINAL | S14: Whether First Return ? (In Case of New Registration / Package scheme period)) | AB14: =IF(ISBLANK(Header!C9),"",(Header!C9)) -> NO
E16: Periodicity of Return (Select appropriate) ( Drop down selection) | O16: =IF(ISBLANK(Header!E8),"",(Header!E8)) -> 2016 July | S16: Whether Last Return ? (In Case of Cancellation of Registration Or end of package scheme of incentive) | AB16: =IF(ISBLANK(Header!E9),"",(Header!E9)) -> NO
B18: 4 | E18: Period Covered by Return | J18: From | N18: Date | P18: Month | R18: Year | T18: To | W18: Date | Z18: Month | AB18: Year
N19: =IF(ISBLANK(Header!C11),"",(Header!C11)) -> 01 | P19: =IF(ISBLANK(Header!D11),"",(Header!D11)) -> Jul | R19: =IF(ISBLANK(Header!E11),"",(Header!E11)) -> 2016 | W19: =IF(ISBLANK(Header!C12),"",(Header!C12)) -> 31 | Z19: =IF(ISBLANK(Header!D12),"",(Header!D12)) -> Jul | AB19: =IF(ISBLANK(Header!E12),"",(Header!E12)) -> 2016
B22: 5 Computation of Net Turnover of Sales liable to tax | F22: Particulars | V22: Amount ( Rs)
E23: a) | F23: Gross turnover of sales including, taxes as well as turnover of non- sales transactions like value of branch/ consignment transfers , job work charges etc. | V23: =ROUND(SUM(MAIN!F4),0) -> 24864 | AD23: Original | AG23: =ROUND(SUM(SUMIFS('Sales Annexure'!M:M,'Sales Annexure'!O:O,"231",'Sales Annexure'!P:P,"<>600",'Sales Annexure'!P:P,"<>680",'Sales Annexure'!P:P,"<>700",'Sales Annexure'!P:P,"<>780")),0) -> 9720
E24: b) | F24: Less:- Turnover of Sales (including taxes thereon) including inter-state Consignment Transfers and Branch Transfers Covered under Form Number 234 | V24: =ROUND(SUM(MAIN!F5),0) -> 0 | AG24: =ROUND(SUM(SUMIFS('Sales Annexure'!M:M,'Sales Annexure'!O:O,"234",'Sales Annexure'!P:P,"<>600",'Sales Annexure'!P:P,"<>680",'Sales Annexure'!P:P,"<>700",'Sales Annexure'!P:P,"<>780")),0) -> 0
E25: c ) | F25: Balance :- Turnover Considered under this Form (a-b) | V25: =SUM(V23-V24) -> 24864 | AG25: =ROUND(SUM(SUMIFS('Sales Annexure'!M:M,'Sales Annexure'!O:O,"CST",'Sales Annexure'!P:P,"<>600",'Sales Annexure'!P:P,"<>610",'Sales Annexure'!P:P,"<>620",'Sales Annexure'!P:P,"<>630",'Sales Annexure'!P:P,"<>640",'Sales Annexure'!P:P,"<>650",'Sales Annexure'!P:P,"<>660",'Sales Annexure'!P:P,"<>670",'Sales Annexure'!P:P,"<>6990",'Sales Annexure'!P:P,"<>700",'Sales Annexure'!P:P,"<>710",'Sales Annexure'!P:P,"<>720",'Sales Annexure'!P:P,"<>730",'Sales Annexure'!P:P,"<>740",'Sales Annexure'!P:P,"<>750",'Sales Annexure'!P:P,"<>760",'Sales Annexure'!P:P,"<>770",'Sales Annexure'!P:P,"<>780")),0) -> 15944
E26: d) | F26: Add:- Value of Goods return (inclusive of tax) including reduction of sale price on account of rate difference and discount claimed in earlier period but not confirmed by buyer. | AG26: =ROUND(SUM(SUMIFS('Sales Annexure'!M:M,'Sales Annexure'!O:O,"232")),0) -> 0
E27: e) | F27: Less:-Value ( inclusive of sales tax) of Goods Return for Return period | V27: =ROUND(SUM(MAIN!F8),0) -> 3240 | AD27: Fresh | AG27: =ROUND(SUM(SUMIFS('Sales Annexure'!M:M,'Sales Annexure'!O:O,"233")),0) -> 0
E28: f) | F28: Less:- Credit Note , price on account of rate difference and discount Within State for Return period. | V28: =ROUND(SUM(MAIN!F9),0) -> 3240 | AG28: =ROUND(SUM(SUMIFS('Sales Annexure'!M:M,'Sales Annexure'!O:O,"235")),0) -> 0
E29: g) | F29: Less:- Value of Goods return (inclusive of tax) including reduction of sale price on account of rate difference and discount confirmed for earlier period. | AG29: =ROUND(SUM(AG23+AG24+AG25+AG26+AG27+AG28),0) -> 25664
E30: h) | F30: Less:-Net Tax amount ( Tax included in sales shown in (c) above less Tax included in (e+f+g ) above) | V30: =ROUND(SUM(MAIN!F11),0) -> 20 | AD30: Revised_under_s_20(4)(a)
E31: i) | F31: Less:- Total Value in which tax is not collected separately ( Inclusive of Tax with gross Amount ) | V31: =ROUND(SUM(MAIN!F12),0) -> 420
E32: j) | F32: Less:-Value of Branch Transfers / consignment transfers within the State if Tax is Paid by an Agent | V32: =ROUND(SUM(MAIN!F13),0) -> 800 | AD32: Revised_under_s_20(4)(b)
E33: k) | F33: Less:-Sales u/s 8(1) i.e Inter state sales including Central Sales Tax,Sales in the course of Imports, Exports and value of Branch Transfers / Consignment Transfers outside the State | V33: =ROUND(SUM(MAIN!F14),0) -> 15144 | AD33: Revised_under_s_20(4)(c)
E34: l) | F34: Less:-Sales of tax-free goods specified in Schedule" A" of MVAT Act | V34: =ROUND(SUM(MAIN!F15),0) -> 400 | AD34: Six-monthly
E35: m) | F35: Less:-Sales of taxable goods fully exempted u/s 41 and u/s. 8 other than sales under section 8(1) & covered in Box 5(k) | V35: =ROUND(SUM(MAIN!F16),0) -> 400 | AD35: Annual
E36: n) | F36: Less:-Labour Charges/Job work charges | V36: =ROUND(SUM(MAIN!F17),0) -> 400
E37: o) | F37: Less:-Other allowable deductions, as per Sales Annexure | V37: =ROUND(SUM(MAIN!F18),0) -> 400
E38: p) | F38: Less:- Deduction under Section 3(2) | V38: =ROUND(SUM(MAIN!F19),0) -> 0
E39: q) | F39: Balance: Net turnover of Sales liable to tax [(c+d)-(e+f+g+h+i+j+k+l+m+n+o+p)] | V39: =V25+V26-(SUM(V27:AC38)) -> 400
B41: 6 Computation of Sales Tax collected seperately under the MVAT Act | F41: Rate of tax (Drop down selection) | J41: Turnover of sales liable to tax (Rs.) | V41: Tax Amount ( Rs) | BI41: ~ | BJ41: 1| | BK41: 2| | BL41: 3| | BM41: Merge
A42: =BM42 -> 231|6A|1|5~231|6A|2|400~231|6A|3|20 | E42: a) | F42: 0.05 | J42: 400 | V42: =IF(ROUND(F42*J42,0)=0,"",ROUND(F42*J42,0)) -> 20 | AJ42: Manual input in White coloum only | BI42: 231|6A| | BJ42: =BI42&BJ$41&IF(F42="","",F42*100) -> 231|6A|1|5 | BK42: =BI42&BK$41&J42 -> 231|6A|2|400 | BL42: =BI42&BL$41&V42 -> 231|6A|3|20 | BM42: =BJ42&BI$41&BK42&BI$41&BL42 -> 231|6A|1|5~231|6A|2|400~231|6A|3|20
A43: =BM43 -> 231|6B|1|~231|6B|2|~231|6B|3| | E43: b) | AJ43: Manual input in White coloum only | BI43: 231|6B| | BJ43: =BI43&BJ$41&IF(F43="","",F43*100) -> 231|6B|1| | BK43: =BI43&BK$41&J43 -> 231|6B|2| | BL43: =BI43&BL$41&V43 -> 231|6B|3| | BM43: =BJ43&BI$41&BK43&BI$41&BL43 -> 231|6B|1|~231|6B|2|~231|6B|3|
A44: 231|6C|1|~231|6C|2|~231|6C|3| | E44: c) | AJ44: Manual input in White coloum only | BI44: 231|6C| | BJ44: 231|6C|1| | BK44: 231|6C|2| | BL44: 231|6C|3| | BM44: 231|6C|1|~231|6C|2|~231|6C|3|
A45: 231|6D|1|~231|6D|2|~231|6D|3| | E45: d) | AJ45: Manual input in White coloum only | BI45: 231|6D| | BJ45: 231|6D|1| | BK45: 231|6D|2| | BL45: 231|6D|3| | BM45: 231|6D|1|~231|6D|2|~231|6D|3|
A46: 231|6E|1|~231|6E|2|~231|6E|3| | E46: e) | AJ46: Manual input in White coloum only | BI46: 231|6E| | BJ46: 231|6E|1| | BK46: 231|6E|2| | BL46: 231|6E|3| | BM46: 231|6E|1|~231|6E|2|~231|6E|3|
A47: 231|6F|1|~231|6F|2|~231|6F|3| | E47: f) | AJ47: Manual input in White coloum only | BI47: 231|6F| | BJ47: 231|6F|1| | BK47: 231|6F|2| | BL47: 231|6F|3| | BM47: 231|6F|1|~231|6F|2|~231|6F|3|
A48: 231|6G|1|~231|6G|2|~231|6G|3| | E48: g) | AJ48: Manual input in White coloum only | BI48: 231|6G| | BJ48: 231|6G|1| | BK48: 231|6G|2| | BL48: 231|6G|3| | BM48: 231|6G|1|~231|6G|2|~231|6G|3|
A49: 231|6H|1|~231|6H|2|~231|6H|3| | E49: h) | AJ49: Manual input in White coloum only | BI49: 231|6H| | BJ49: 231|6H|1| | BK49: 231|6H|2| | BL49: 231|6H|3| | BM49: 231|6H|1|~231|6H|2|~231|6H|3|
A50: 231|6I|1|~231|6I|2|~231|6I|3| | E50: i) | AJ50: Manual input in White coloum only | BI50: 231|6I| | BJ50: 231|6I|1| | BK50: 231|6I|2| | BL50: 231|6I|3| | BM50: 231|6I|1|~231|6I|2|~231|6I|3|
A51: 231|6J|1|~231|6J|2|~231|6J|3| | E51: j) | AJ51: Manual input in White coloum only | BI51: 231|6J| | BJ51: 231|6J|1| | BK51: 231|6J|2| | BL51: 231|6J|3| | BM51: 231|6J|1|~231|6J|2|~231|6J|3|
A52: 231|6K|1|~231|6K|2|~231|6K|3| | E52: k) | AJ52: Manual input in White coloum only | BI52: 231|6K| | BJ52: 231|6K|1| | BK52: 231|6K|2| | BL52: 231|6K|3| | BM52: 231|6K|1|~231|6K|2|~231|6K|3|
A53: 231|6L|1|~231|6L|2|~231|6L|3| | E53: l) | AJ53: Manual input in White coloum only | BI53: 231|6L| | BJ53: 231|6L|1| | BK53: 231|6L|2| | BL53: 231|6L|3| | BM53: 231|6L|1|~231|6L|2|~231|6L|3|
A54: 231|6M|1|~231|6M|2|~231|6M|3| | E54: m) | AJ54: Manual input in White coloum only | BI54: 231|6M| | BJ54: 231|6M|1| | BK54: 231|6M|2| | BL54: 231|6M|3| | BM54: 231|6M|1|~231|6M|2|~231|6M|3|
E55: Total | J55: =ROUND(SUM(J42:U54),0) -> 400 | V55: =ROUND(SUM(V42:AC54),0) -> 20 | AG55: =V39=J55 -> TRUE | AJ55: =IF(J55=V39,13,17) -> 13
B57: 7 | E57: Sales Tax collected in Excess of the Amount of Tax payable. | V57: =ROUND(IF(V30-V55>0,V30-V55,0),0) -> 0
B59: 8 Computation of Sales Tax payable in respect of sales effected Inclusive of tax under the MVAT Act | F59: Rate of tax (Drop down selection) | J59: Turnover of sales liable to tax (Rs.) | V59: Tax Amount ( Rs) | BI59: ~ | BJ59: 1| | BK59: 2| | BL59: 3| | BM59: Merge
A60: =BM60 -> 231|8A|1|5~231|8A|2|420~231|8A|3|20 | E60: a) | F60: 0.05 | J60: 420 | V60: =ROUND(SUM(J60*(F60*100)/((F60*100)+100)),0) -> 20 | AJ60: Manual input in White coloum only | BI60: 231|8A| | BJ60: =BI60&BJ$59&IF(F60="","",F60*100) -> 231|8A|1|5 | BK60: =BI60&BK$59&J60 -> 231|8A|2|420 | BL60: =BI60&BL$59&IF(V60=0,"",V60) -> 231|8A|3|20 | BM60: =BJ60&BI$59&BK60&BI$59&BL60 -> 231|8A|1|5~231|8A|2|420~231|8A|3|20
A61: =BM61 -> 231|8B|1|~231|8B|2|~231|8B|3| | E61: b) | V61: =ROUND(SUM(J61*(F61*100)/((F61*100)+100)),0) -> 0 | AJ61: Manual input in White coloum only | BI61: 231|8B| | BJ61: =BI61&BJ$59&IF(F61="","",F61*100) -> 231|8B|1| | BK61: =BI61&BK$59&J61 -> 231|8B|2| | BL61: =BI61&BL$59&IF(V61=0,"",V61) -> 231|8B|3| | BM61: =BJ61&BI$59&BK61&BI$59&BL61 -> 231|8B|1|~231|8B|2|~231|8B|3|
A62: 231|8C|1|~231|8C|2|~231|8C|3| | E62: c) | V62: 0 | AJ62: Manual input in White coloum only | BI62: 231|8C| | BJ62: 231|8C|1| | BK62: 231|8C|2| | BL62: 231|8C|3| | BM62: 231|8C|1|~231|8C|2|~231|8C|3|
A63: 231|8D|1|~231|8D|2|~231|8D|3| | E63: d) | V63: 0 | AJ63: Manual input in White coloum only | BI63: 231|8D| | BJ63: 231|8D|1| | BK63: 231|8D|2| | BL63: 231|8D|3| | BM63: 231|8D|1|~231|8D|2|~231|8D|3|
A64: 231|8E|1|~231|8E|2|~231|8E|3| | E64: e) | V64: 0 | AJ64: Manual input in White coloum only | BI64: 231|8E| | BJ64: 231|8E|1| | BK64: 231|8E|2| | BL64: 231|8E|3| | BM64: 231|8E|1|~231|8E|2|~231|8E|3|
A65: 231|8F|1|~231|8F|2|~231|8F|3| | E65: f) | V65: 0 | AJ65: Manual input in White coloum only | BI65: 231|8F| | BJ65: 231|8F|1| | BK65: 231|8F|2| | BL65: 231|8F|3| | BM65: 231|8F|1|~231|8F|2|~231|8F|3|
A66: 231|8G|1|~231|8G|2|~231|8G|3| | E66: g) | V66: 0 | AJ66: Manual input in White coloum only | BI66: 231|8G| | BJ66: 231|8G|1| | BK66: 231|8G|2| | BL66: 231|8G|3| | BM66: 231|8G|1|~231|8G|2|~231|8G|3|
A67: 231|8H|1|~231|8H|2|~231|8H|3| | E67: h) | V67: 0 | AJ67: Manual input in White coloum only | BI67: 231|8H| | BJ67: 231|8H|1| | BK67: 231|8H|2| | BL67: 231|8H|3| | BM67: 231|8H|1|~231|8H|2|~231|8H|3|
A68: 231|8I|1|~231|8I|2|~231|8I|3| | E68: i) | V68: 0 | AJ68: Manual input in White coloum only | BI68: 231|8I| | BJ68: 231|8I|1| | BK68: 231|8I|2| | BL68: 231|8I|3| | BM68: 231|8I|1|~231|8I|2|~231|8I|3|
A69: 231|8J|1|~231|8J|2|~231|8J|3| | E69: j) | V69: 0 | AJ69: Manual input in White coloum only | BI69: 231|8J| | BJ69: 231|8J|1| | BK69: 231|8J|2| | BL69: 231|8J|3| | BM69: 231|8J|1|~231|8J|2|~231|8J|3|
E70: Total | J70: =ROUND(SUM(J60:P69),0) -> 420 | V70: =ROUND(SUM(V60:AC69),0) -> 20 | AJ70: =IF(J70=V31,13,17) -> 13
B72: 9 Computation of Purchases Eligible for Set-off | F72: Particulars | V72: Amount ( Rs) | AF72: =ROUND(SUM(SUMIFS('Purchase Annexure'!M:M,'Purchase Annexure'!O:O,"231")),0) -> 42340 | AG72: =ROUND(SUM(SUMIFS('Purchase Annexure'!M:M,'Purchase Annexure'!O:O,"234")),0) -> 0 | AH72: =ROUND(SUM(SUMIFS('Purchase Annexure'!M:M,'Purchase Annexure'!O:O,"CST")),0) -> 0
E73: a) | F73: Total turnover of Purchases including taxes, value of Branch Transfers/ Consignment Transfers received and Labour/ job work charges | V73: =ROUND(SUM(MAIN!F25),0) -> 25404 | AD73: =ROUND(SUM(SUMIFS('Purchase Annexure'!M:M,'Purchase Annexure'!O:O,"231",'Purchase Annexure'!P:P,{"31","36","41","46","51","56","61","66","71","76","90","91","32","37","42","47","52","57","62","67","72","76","95","96"})),0) -> 16936 | AE73: =ROUND(SUM(SUMIFS('Purchase Annexure'!N:N,'Purchase Annexure'!P:P,"234",'Purchase Annexure'!Q:Q,{"31","36","41","46","51","56","61","66","71","76","90","91","32","37","42","47","52","57","62","67","72","76","95","96"})),0) -> 0 | AF73: =ROUND(SUM(SUMIFS('Purchase Annexure'!M:M,'Purchase Annexure'!O:O,"232")),0) -> 0 | AG73: =ROUND(SUM(SUMIFS('Purchase Annexure'!M:M,'Purchase Annexure'!O:O,"233")),0) -> 0 | AH73: =ROUND(SUM(SUMIFS('Purchase Annexure'!M:M,'Purchase Annexure'!O:O,"235")),0) -> 0 | AI73: =ROUND(SUM(AF72+AG72+AH72+AH73+AG73+AF73-AE73-AD73),0) -> 25404
E74: b) | F74: Less:- Turnover of Purchases Covered under Form Number 234 | V74: =ROUND(SUM(MAIN!F26),0) -> 0 | AE74: =ROUND(SUM(SUMIFS('Purchase Annexure'!M:M,'Purchase Annexure'!O:O,"234")),0) -> 0
E75: c) | F75: Balance:- Turnover of Purchases considered in this Form (a-b) | V75: =V73-V74 -> 25404 | AE75: =ROUND(SUM(SUMIFS('Purchase Annexure'!M:M,'Purchase Annexure'!O:O,"234",'Purchase Annexure'!P:P,{"32","37","42","47","52","57","62","67","72","77","95","96"})),0) -> 0 | AH75: =ROUND(SUM(AE74-AE75),0) -> 0
E76: d) | F76: Less:-Value of goods return (inclusive of tax) reduction of Purchase price. | V76: =ROUND(SUM(MAIN!F28),0) -> 8468
E77: e) | F77: Less:- Reduction of Purchase price on account of rate difference and discount . | V77: =ROUND(SUM(MAIN!F29),0) -> 8468
E78: f) | F78: Less:-Imports (Direct imports) | V78: =ROUND(SUM(MAIN!F30),0) -> 300 | AE78: =ROUND(SUM(SUMIFS('Purchase Annexure'!M:M,'Purchase Annexure'!O:O,"231",'Purchase Annexure'!P:P,"60")),0) -> 900 | AF78: =ROUND(SUM(SUMIFS('Purchase Annexure'!M:M,'Purchase Annexure'!O:O,"231",'Purchase Annexure'!P:P,{"61","62"})),0) -> 600 | AG78: =ROUND(SUM(AE78-AF78),0) -> 300
E79: g) | F79: Less:-Imports (High seas purchases) | V79: =ROUND(SUM(MAIN!F31),0) -> 300 | AE79: =ROUND(SUM(SUMIFS('Purchase Annexure'!M:M,'Purchase Annexure'!O:O,"231",'Purchase Annexure'!P:P,"65")),0) -> 900 | AF79: =ROUND(SUM(SUMIFS('Purchase Annexure'!M:M,'Purchase Annexure'!O:O,"231",'Purchase Annexure'!P:P,{"66","67"})),0) -> 600 | AG79: 300
E80: h) | F80: Less:- Interstate purchases of taxable goods against certificate in Form'H' | V80: =ROUND(SUM(MAIN!F32),0) -> 400 | AE80: =ROUND(SUM(SUMIFS('Purchase Annexure'!M:M,'Purchase Annexure'!O:O,"231",'Purchase Annexure'!P:P,"50")),0) -> 1200 | AF80: =ROUND(SUM(SUMIFS('Purchase Annexure'!M:M,'Purchase Annexure'!O:O,"231",'Purchase Annexure'!P:P,{"51","52"})),0) -> 800 | AG80: 400
E81: i) | F81: Less:-Within the State purchases of taxable goods against certificate in Form'H' | V81: =ROUND(SUM(MAIN!F33),0) -> 400 | AE81: =ROUND(SUM(SUMIFS('Purchase Annexure'!M:M,'Purchase Annexure'!O:O,"231",'Purchase Annexure'!P:P,"55")),0) -> 1200 | AF81: =ROUND(SUM(SUMIFS('Purchase Annexure'!M:M,'Purchase Annexure'!O:O,"231",'Purchase Annexure'!P:P,{"56","57"})),0) -> 800 | AG81: 400
E82: j) | F82: Less:-Inter-State purchases (Excluding purchases against any certificate and declaration in form C,H,F,I) | V82: =ROUND(SUM(MAIN!F34),0) -> 1020 | AE82: =ROUND(SUM(SUMIFS('Purchase Annexure'!M:M,'Purchase Annexure'!O:O,"231",'Purchase Annexure'!P:P,"70")),0) -> 3060 | AF82: =ROUND(SUM(SUMIFS('Purchase Annexure'!M:M,'Purchase Annexure'!O:O,"231",'Purchase Annexure'!P:P,{"71","72"})),0) -> 2040 | AG82: 1020
E83: k) | F83: Less:-Inter-State branch / consignment transfers received | V83: =ROUND(SUM(MAIN!F35),0) -> 800 | AE83: =ROUND(SUM(SUMIFS('Purchase Annexure'!M:M,'Purchase Annexure'!O:O,"231",'Purchase Annexure'!P:P,"30")),0) -> 2400 | AF83: =ROUND(SUM(SUMIFS('Purchase Annexure'!M:M,'Purchase Annexure'!O:O,"231",'Purchase Annexure'!P:P,{"31","32"})),0) -> 1600 | AG83: 800
E84: l) | F84: Less:- Interstate purchases of taxable goods against declaration in Form'C' | V84: =ROUND(SUM(MAIN!F36),0) -> 608 | AE84: =ROUND(SUM(SUMIFS('Purchase Annexure'!M:M,'Purchase Annexure'!O:O,"231",'Purchase Annexure'!P:P,"40")),0) -> 1824 | AF84: =ROUND(SUM(SUMIFS('Purchase Annexure'!M:M,'Purchase Annexure'!O:O,"231",'Purchase Annexure'!P:P,{"41","42"})),0) -> 1216 | AG84: 608
E85: m) | F85: Less:-Within the State purchases of taxable goods against declaration in Form'C' | V85: =ROUND(SUM(MAIN!F37),0) -> 400 | AE85: =ROUND(SUM(SUMIFS('Purchase Annexure'!M:M,'Purchase Annexure'!O:O,"231",'Purchase Annexure'!P:P,"45")),0) -> 1200 | AF85: =ROUND(SUM(SUMIFS('Purchase Annexure'!M:M,'Purchase Annexure'!O:O,"231",'Purchase Annexure'!P:P,{"46","47"})),0) -> 800 | AG85: 400
E86: n) | F86: Less:- Within the State Branch Transfers /Consignment Transfers received where tax is to be paid by an Agent | V86: =ROUND(SUM(MAIN!F38),0) -> 800 | AE86: =ROUND(SUM(SUMIFS('Purchase Annexure'!M:M,'Purchase Annexure'!O:O,"231",'Purchase Annexure'!P:P,"35")),0) -> 2400 | AF86: =ROUND(SUM(SUMIFS('Purchase Annexure'!M:M,'Purchase Annexure'!O:O,"231",'Purchase Annexure'!P:P,{"36","37"})),0) -> 1600 | AG86: 800
E87: o) | F87: Less:-Within the State purchases of taxable goods from un-registered dealers | V87: =ROUND(SUM(MAIN!F39),0) -> 700 | AE87: =ROUND(SUM(SUMIFS('Purchase Annexure'!M:M,'Purchase Annexure'!O:O,"231",'Purchase Annexure'!P:P,"20")),0) -> 2100 | AF87: =ROUND(SUM(SUMIFS('Purchase Annexure'!M:M,'Purchase Annexure'!O:O,"231",'Purchase Annexure'!P:P,{"91","96"})),0) -> 1400 | AG87: 700
E88: p) | F88: Less:- Interstate purchases of taxable goods against declaration in Form'I' | V88: =ROUND(SUM(MAIN!F40),0) -> 300 | AE88: =ROUND(SUM(SUMIFS('Purchase Annexure'!M:M,'Purchase Annexure'!O:O,"231",'Purchase Annexure'!P:P,"75")),0) -> 900 | AF88: =ROUND(SUM(SUMIFS('Purchase Annexure'!M:M,'Purchase Annexure'!O:O,"231",'Purchase Annexure'!P:P,{"76","77"})),0) -> 600 | AG88: 300
E89: q) | F89: Less:-Within the State purchases of taxable goods which are fully exempted from tax u/s 41 and u/s 8 but not covered under section 8(1) | V89: =ROUND(SUM(MAIN!F41),0) -> 400 | AE89: =ROUND(SUM(SUMIFS('Purchase Annexure'!J:J,'Purchase Annexure'!O:O,"231",'Purchase Annexure'!P:P,{"10","15","20"})),0) -> 1200 | AF89: =ROUND(SUM(SUMIFS('Purchase Annexure'!J:J,'Purchase Annexure'!O:O,"231",'Purchase Annexure'!P:P,{"90","95","91","96"})),0) -> 800 | AG89: 400
E90: r) | F90: Less:-Within the State purchases of tax-free goods specified in Schedule "A" | V90: =ROUND(SUM(MAIN!F42),0) -> 400 | AE90: =ROUND(SUM(SUMIFS('Purchase Annexure'!I:I,'Purchase Annexure'!O:O,"231",'Purchase Annexure'!P:P,{"10","15","20"})),0) -> 1800 | AF90: =ROUND(SUM(SUMIFS('Purchase Annexure'!I:I,'Purchase Annexure'!O:O,"231",'Purchase Annexure'!P:P,{"90","95","91","96"})),0) -> 1200 | AG90: 600
E91: s) | F91: Less:- Labour Job/ Labour charges paid | V91: =ROUND(SUM(MAIN!F43),0) -> 400 | AE91: =ROUND(SUM(SUMIFS('Purchase Annexure'!K:K,'Purchase Annexure'!O:O,"231",'Purchase Annexure'!P:P,{"10","15","20"})),0) -> 1500 | AF91: =ROUND(SUM(SUMIFS('Purchase Annexure'!K:K,'Purchase Annexure'!O:O,"231",'Purchase Annexure'!P:P,{"90","95","91","96"})),0) -> 1000 | AG91: 500
E92: t) | F92: Less:-Other allowable deductions, if any | V92: =ROUND(SUM(MAIN!F44),0) -> 400 | AE92: =ROUND(SUM(SUMIFS('Purchase Annexure'!L:L,'Purchase Annexure'!O:O,"231",'Purchase Annexure'!P:P,{"10","15","20"})),0) -> 1800 | AF92: =ROUND(SUM(SUMIFS('Purchase Annexure'!L:L,'Purchase Annexure'!O:O,"231",'Purchase Annexure'!P:P,{"90","95","91","96"})),0) -> 1200 | AG92: 600
E93: u) | F93: Less:-Within the State purchases of taxable goods from registered dealers where tax is not collected seperately (Inclusive of tax) | V93: =ROUND(SUM(MAIN!F45),0) -> 420 | AE93: =ROUND(SUM(SUMIFS('Purchase Annexure'!G:G,'Purchase Annexure'!O:O,"231",'Purchase Annexure'!P:P,{"10","15"})),0) -> 1260 | AF93: =ROUND(SUM(SUMIFS('Purchase Annexure'!G:G,'Purchase Annexure'!O:O,"231",'Purchase Annexure'!P:P,{"90","95"})),0) -> 840 | AG93: 420
E94: v) | F94: Less:- Within the State Purchases of Taxable goods purchase from Composition dealer u/s 42(1), (2) | V94: =ROUND(SUM(MAIN!F46),0) -> 0 | AE94: =ROUND(SUM(SUMIFS('Purchase Annexure'!H:H,'Purchase Annexure'!O:O,"231",'Purchase Annexure'!P:P,{"10","15"})),0) -> 0 | AF94: =ROUND(SUM(SUMIFS('Purchase Annexure'!H:H,'Purchase Annexure'!O:O,"231",'Purchase Annexure'!P:P,{"90","95"})),0) -> 0 | AG94: 0
E95: w) | F95: Less:- Deduction under Section 3(2) | V95: =ROUND(SUM(MAIN!F47),0) -> 0 | AE95: =ROUND(SUM(SUMIFS('Purchase Annexure'!M:M,'Purchase Annexure'!O:O,"231",'Purchase Annexure'!P:P,"80")),0) -> 0 | AG95: 0
E96: x) | F96: Balance: Within the State purchases of taxable goods from registered dealers eligible for set-off [c-(d+e+f+g+h+i+j+k+l+m+n+o+p+q+r+s+t+u+v+w)] | V96: =V75-(SUM(V76:AC95)) -> 420
B98: 10 Computation of Purchase Tax payable on the purchases effected during this period or previous periods | F98: Rate of tax (Drop down selection) | J98: Turnover of Purchases liable to tax (Rs.) | V98: Tax Amount ( Rs) | BI98: ~ | BJ98: 1| | BK98: 2| | BL98: 3| | BM98: Merge
A99: =BM99 -> 231|10A|1|~231|10A|2|~231|10A|3| | E99: a) | V99: =ROUND(F99*J99,0) -> 0 | AJ99: Manual input in White coloum only | BI99: 231|10A| | BJ99: =BI99&BJ$98&IF(F99="","",F99*100) -> 231|10A|1| | BK99: =BI99&BK$98&J99 -> 231|10A|2| | BL99: =BI99&BL$98&IF(V99=0,"",V99) -> 231|10A|3| | BM99: =BJ99&BI$98&BK99&BI$98&BL99 -> 231|10A|1|~231|10A|2|~231|10A|3|
A100: =BM100 -> 231|10B|1|~231|10B|2|~231|10B|3| | E100: b) | V100: =ROUND(F100*J100,0) -> 0 | AJ100: Manual input in White coloum only | BI100: 231|10B| | BJ100: =BI100&BJ$98&IF(F100="","",F100*100) -> 231|10B|1| | BK100: =BI100&BK$98&J100 -> 231|10B|2| | BL100: =BI100&BL$98&IF(V100=0,"",V100) -> 231|10B|3| | BM100: =BJ100&BI$98&BK100&BI$98&BL100 -> 231|10B|1|~231|10B|2|~231|10B|3|
A101: =BM101 -> 231|10C|1|~231|10C|2|~231|10C|3| | E101: c) | V101: =ROUND(F101*J101,0) -> 0 | AJ101: Manual input in White coloum only | BI101: 231|10C| | BJ101: =BI101&BJ$98&IF(F101="","",F101*100) -> 231|10C|1| | BK101: =BI101&BK$98&J101 -> 231|10C|2| | BL101: =BI101&BL$98&IF(V101=0,"",V101) -> 231|10C|3| | BM101: =BJ101&BI$98&BK101&BI$98&BL101 -> 231|10C|1|~231|10C|2|~231|10C|3|
A102: =BM102 -> 231|10D|1|~231|10D|2|~231|10D|3| | E102: d) | V102: =ROUND(F102*J102,0) -> 0 | AJ102: Manual input in White coloum only | BI102: 231|10D| | BJ102: =BI102&BJ$98&IF(F102="","",F102*100) -> 231|10D|1| | BK102: =BI102&BK$98&J102 -> 231|10D|2| | BL102: =BI102&BL$98&IF(V102=0,"",V102) -> 231|10D|3| | BM102: =BJ102&BI$98&BK102&BI$98&BL102 -> 231|10D|1|~231|10D|2|~231|10D|3|
A103: =BM103 -> 231|10E|1|~231|10E|2|~231|10E|3| | E103: e) | V103: =ROUND(F103*J103,0) -> 0 | AJ103: Manual input in White coloum only | BI103: 231|10E| | BJ103: =BI103&BJ$98&IF(F103="","",F103*100) -> 231|10E|1| | BK103: =BI103&BK$98&J103 -> 231|10E|2| | BL103: =BI103&BL$98&IF(V103=0,"",V103) -> 231|10E|3| | BM103: =BJ103&BI$98&BK103&BI$98&BL103 -> 231|10E|1|~231|10E|2|~231|10E|3|
E104: Total | J104: =SUM(J99:J103) -> 0 | V104: =SUM(V99:AC103) -> 0 | AJ104: Manual input in White coloum only
B106: 11 Tax Rate wise breakup of within state purchases from registered dealers eligible for set-off as per box 9(x) | F106: Rate of tax (Drop down selection) | J106: Net Turnover of purchases (Rs.) | V106: Tax Amount ( Rs) | BI106: ~ | BJ106: 1| | BK106: 2| | BL106: 3| | BM106: Merge
A107: =BM107 -> 231|11A|1|5~231|11A|2|400~231|11A|3|20 | E107: a) | F107: 0.05 | J107: 400 | V107: 20 | AJ107: Manual input in White coloum only | BI107: 231|11A| | BJ107: =BI107&BJ$106&IF(F107="","",F107*100) -> 231|11A|1|5 | BK107: =BI107&BK$106&J107 -> 231|11A|2|400 | BL107: =BI107&BL$106&V107 -> 231|11A|3|20 | BM107: =BJ107&BI$106&BK107&BI$106&BL107 -> 231|11A|1|5~231|11A|2|400~231|11A|3|20
A108: =BM108 -> 231|11B|1|~231|11B|2|~231|11B|3| | E108: b) | AJ108: Manual input in White coloum only | BI108: 231|11B| | BJ108: =BI108&BJ$106&IF(F108="","",F108*100) -> 231|11B|1| | BK108: =BI108&BK$106&J108 -> 231|11B|2| | BL108: =BI108&BL$106&V108 -> 231|11B|3| | BM108: =BJ108&BI$106&BK108&BI$106&BL108 -> 231|11B|1|~231|11B|2|~231|11B|3|
A109: 231|11C|1|~231|11C|2|~231|11C|3| | E109: c) | AJ109: Manual input in White coloum only | BI109: 231|11C| | BJ109: 231|11C|1| | BK109: 231|11C|2| | BL109: 231|11C|3| | BM109: 231|11C|1|~231|11C|2|~231|11C|3|
A110: 231|11D|1|~231|11D|2|~231|11D|3| | E110: d) | AJ110: Manual input in White coloum only | BI110: 231|11D| | BJ110: 231|11D|1| | BK110: 231|11D|2| | BL110: 231|11D|3| | BM110: 231|11D|1|~231|11D|2|~231|11D|3|
A111: 231|11E|1|~231|11E|2|~231|11E|3| | E111: e) | AJ111: Manual input in White coloum only | BI111: 231|11E| | BJ111: 231|11E|1| | BK111: 231|11E|2| | BL111: 231|11E|3| | BM111: 231|11E|1|~231|11E|2|~231|11E|3|
A112: 231|11F|1|~231|11F|2|~231|11F|3| | E112: f) | AJ112: Manual input in White coloum only | BI112: 231|11F| | BJ112: 231|11F|1| | BK112: 231|11F|2| | BL112: 231|11F|3| | BM112: 231|11F|1|~231|11F|2|~231|11F|3|
A113: 231|11G|1|~231|11G|2|~231|11G|3| | E113: g) | AJ113: Manual input in White coloum only | BI113: 231|11G| | BJ113: 231|11G|1| | BK113: 231|11G|2| | BL113: 231|11G|3| | BM113: 231|11G|1|~231|11G|2|~231|11G|3|
A114: 231|11H|1|~231|11H|2|~231|11H|3| | E114: h) | AJ114: Manual input in White coloum only | BI114: 231|11H| | BJ114: 231|11H|1| | BK114: 231|11H|2| | BL114: 231|11H|3| | BM114: 231|11H|1|~231|11H|2|~231|11H|3|
A115: 231|11I|1|~231|11I|2|~231|11I|3| | E115: i) | AJ115: Manual input in White coloum only | BI115: 231|11I| | BJ115: 231|11I|1| | BK115: 231|11I|2| | BL115: 231|11I|3| | BM115: 231|11I|1|~231|11I|2|~231|11I|3|
E116: Total | J116: =ROUND(SUM(J107:U115),0) -> 400 | V116: =SUM(V107:AC115) -> 20 | AG116: =V96=(J116+V116) -> TRUE | AJ116: =IF(J116+V116=V96,13,17) -> 13 | AK116: =J116+V116 -> 420
B118: 12. Computation of set-off claimed in this return | F118: Particulars | S118: Purchase Value(Rs.) | Y118: Tax Amount (Rs.)
E119: a) | F119: Within the State purchases of taxable goods from registered/ unregistered dealers eligible for set-off as per Box 10 and 11 | S119: =ROUND(SUM(J116),0) -> 400 | Y119: =ROUND(SUM(V116),0) -> 20
E120: b) | F120: Less:- Set-off denial on account of purchases from RCC or Composition dealer | BI120: ~ | BJ120: 1| | BK120: 2| | BL120: Merge
A121: =BL121 -> 231|12C1|1|~231|12C1|2|1 | E121: c) | F121: Less: Amount of set-off not admissible u/r 52A | Y121: 1 | AJ121: Manual input in White coloum only | BI121: 231|12C1| | BJ121: =BI121&BJ$120&S121 -> 231|12C1|1| | BK121: =BI121&BK$120&Y121 -> 231|12C1|2|1 | BL121: =BJ121&BI$120&BK121 -> 231|12C1|1|~231|12C1|2|1
A122: =BL122 -> 231|12C2|1|~231|12C2|2|1 | E122: c1) | F122: Less: Amount of set-off not admissible u/r 52B | Y122: 1 | AJ122: Manual input in White coloum only | BI122: 231|12C2| | BJ122: =BI122&BJ$120&S122 -> 231|12C2|1| | BK122: =BI122&BK$120&Y122 -> 231|12C2|2|1 | BL122: =BJ122&BI$120&BK122 -> 231|12C2|1|~231|12C2|2|1
A123: 231|12D1|1|~231|12D1|2|1 | E123: d) | F123: Less: Reduction in the amount of set-off u/r 53 of the corresponding purchase price of (Sch B, C, D & E) goods | P123: Capital Assets | Y123: 1 | AJ123: Manual input in White coloum only | BI123: 231|12D1| | BJ123: =BI123&BJ120&S123 -> 231|12D1|1| | BK123: =BI123&BK$120&Y123 -> 231|12D1|2|1 | BL123: 231|12D1|1|~231|12D1|2|1
A124: 231|12D2|1|~231|12D2|2|1 | P124: Other than Capital Assets | Y124: 1 | AJ124: Manual input in White coloum only | BI124: 231|12D2| | BJ124: =BI124&BJ120&S124 -> 231|12D2|1| | BK124: =BI124&BK120&Y124 -> 231|12D2|2|1 | BL124: 231|12D2|1|~231|12D2|2|1
A125: 231|12E1|1|~231|12E1|2|1 | E125: e) | F125: Less: Denial in the amount of set-off u/r 54 of the corresponding purchase price | P125: Capital Assets | Y125: 1 | AJ125: Manual input in White coloum only | BI125: 231|12E1| | BJ125: =BI125&BJ120&S125 -> 231|12E1|1| | BK125: =BI125&BK120&Y125 -> 231|12E1|2|1 | BL125: 231|12E1|1|~231|12E1|2|1
A126: 231|12E2|1|~231|12E2|2|1 | P126: Other than Capital Assets | Y126: 1 | AJ126: Manual input in White coloum only | BI126: 231|12E2| | BJ126: =BI126&BJ120&S126 -> 231|12E2|1| | BK126: =BI126&BK120&Y126 -> 231|12E2|2|1 | BL126: 231|12E2|1|~231|12E2|2|1
A127: 231|12F1|1|~231|12F1|2|1 | E127: f) | F127: Less:-Within the State Purchases of taxable goods from registered dealers under MVAT Act, 2002 and set-off not claimed. | P127: Capital Assets | Y127: 1 | AJ127: Manual input in White coloum only | BI127: 231|12F1| | BJ127: =BI127&BJ120&S127 -> 231|12F1|1| | BK127: =BI127&BK120&Y127 -> 231|12F1|2|1 | BL127: 231|12F1|1|~231|12F1|2|1
A128: 231|12F2|1|~231|12F2|2|1 | P128: Other than Capital Assets | Y128: 1 | AJ128: Manual input in White coloum only | BI128: 231|12F2| | BJ128: =BI128&BJ120&S128 -> 231|12F2|1| | BK128: =BI128&BK120&Y128 -> 231|12F2|2|1 | BL128: 231|12F2|1|~231|12F2|2|1
E129: g) | F129: Less:- Within the State purchases of Capital Asset from registered dealer set-off withheld for staggered manner
E130: h) | F130: Set-off available for the period of this return [a-(b+c+c1+d+e+f+g)] | Y130: =Y119-(Y120+Y121+Y122+Y123+Y124+Y125+Y126+Y127+Y128+Y129) -> 12
E131: i) | F131: Add:- Allowance of set-off reversed in earlier return/s | S131: Capital Assets
S132: Other than Capital Assets
A133: =BL133 -> 231|12J1|1| | E133: j) | F133: Less:- Reduction u/r 52A, 52B, 53 and denial u/r 54 out of above i (h + (i-j) | S133: Capital Assets (with staggered set off credits) | AJ133: Manual input in White coloum only | BI133: 231|12J1| | BL133: =BI133&BJ120&Y133 -> 231|12J1|1|
A134: =BL134 -> 231|12J2|2| | S134: Other than Capital Assets | AJ134: Manual input in White coloum only | BI134: 231|12J2| | BL134: =BI134&BK120&Y134 -> 231|12J2|2|
A135: =BL135 -> 231|12K|1| | E135: k) | F135: Add:- Allowance of set-off not claimed on goods return | AJ135: Manual input in White coloum only | BI135: 231|12K| | BL135: =BI135&BJ120&Y135 -> 231|12K|1|
E136: l) | F136: Total Set-off Admisible for the period of this return | Y136: =Y130+(Y131-Y133)+(Y132-Y134)+Y135 -> 12
B138: 13. Computation for Tax payable along with return
F139: Particulars | V139: Amount ( Rs)
B140: A. Aggregate of credit available for the period covered under this return | F140: a) | G140: Set off admisible as per Box 12 (l) | V140: =ROUND(Y136,0) -> 12 | AJ140: =IF(V140=Y136,13,17) -> 13
F141: b) | G141: Excess credit brought forward from previous return
F142: c) | G142: Amount already paid (As per Box 13 E ) | AD142: 5000
F143: d) | G143: Excess Credit if any , as per Form 234 , to be adjusted against the liability as per Form 231 | AD143: 2000 | BJ143: 1| | BK143: 2| | BL143: Merge
A144: =BL144 -> 231|13AE|1| | F144: e) | G144: Adjustment of ET paid under Maharashtra Tax on Entry of Goods into Local Areas Act, 2002 | AD144: 1000 | AJ144: Manual input in White coloum only (Not more than credit available in CREDIT LEDGER ) | BI144: 231|13AE| | BJ144: =BI144&BJ143&V144 -> 231|13AE|1| | BL144: =BJ144 -> 231|13AE|1|
A145: =BL145 -> 231|13AF|1| | F145: f) | G145: Adjustment of ET paid under Maharashtra Tax on Entry of Motor Vehicle Act into Local Areas Act, 1987 | AJ145: Manual input in White coloum only (Not more than credit available in CREDIT LEDGER ) | BI145: 231|13AF| | BJ145: =BI145&BJ143&V145 -> 231|13AF|1| | BL145: =BJ145 -> 231|13AF|1|
A146: =BL146 -> 231|13AG|1| | F146: g) | G146: Amount of Tax collected at source u/s 31A | AJ146: Manual input in White coloum only (Not more than credit available in CREDIT LEDGER ) | BI146: 231|13AG| | BJ146: =BI146&BJ143&V146 -> 231|13AG|1| | BL146: =BJ146 -> 231|13AG|1|
F147: h) | G147: Refund adjustment order No. (As per Box 13 F)
F148: i) | G148: Total available credit (a+b+c+d+e+f+g+h) | V148: =ROUND(SUM(V140:AC147),0) -> 12
B149: B Total tax payable and adjustment of CST/ET payable against available credit | F149: a) | G149: Sales Tax payable as per box 6 + Sales Tax payable as per box 8 + Purchase Tax payable as per box 10 | V149: =ROUND(V55+V70+V104,0) -> 40
A150: =BL150 -> 231|13BB|1| | F150: b) | G150: Adjustment on account of MVAT payable, if any as per Return Form 234 against the excess credit as per Form 231. | AJ150: Manual input in White coloum only | BI150: 231|13BB| | BJ150: =BI150&BJ$143&V150 -> 231|13BB|1| | BL150: =BJ150 -> 231|13BB|1|
A151: =BL151 -> 231|13BC|1| | F151: c) | G151: Adjustment on account of CST payable as per return for this period | AJ151: Manual input in White coloum only | BI151: 231|13BC| | BJ151: =BI151&BJ$143&V151 -> 231|13BC|1| | BL151: =BJ151 -> 231|13BC|1|
A152: =BL152 -> 231|13BD|1| | F152: d) | G152: Adjustment on account of ET payable under Maharashtra tax on Entry of Goods into Local Areas Act, 2002 | AJ152: Manual input in White coloum only | BI152: 231|13BD| | BJ152: =BI152&BJ$143&V152 -> 231|13BD|1| | BL152: =BJ152 -> 231|13BD|1|
A153: =BL153 -> 231|13BE|1| | F153: e) | G153: Adjustment on account of ET payable under Maharashtra Tax on Entry of Motor Vehicle Act into Local Areas Act, 1987 | AJ153: Manual input in White coloum only | BI153: 231|13BE| | BJ153: =BI153&BJ$143&V153 -> 231|13BE|1| | BL153: =BJ153 -> 231|13BE|1|
F154: f) | G154: Amount of Tax Collected in Excess of the amount of Sales Tax payable if any ( as per Box 7) | V154: =V57 -> 0
F155: g) | G155: Interest Payable | AG155: AUTO CALCULATED
F156: h) | G156: Late Fee Payable | AG156: AUTO CALCULATED
F157: i) | G157: Add: Reversal on account of set-off claimed Excess in earlier return | R157: Capital Assets
R158: Other than Capital Assets
A159: =BL159 -> 231|13BJ1|1| | F159: j) | G159: Reduction u/r 52A, 52B, 53 and denial u/r 54 out of above (i) | R159: Capital Assets (with staggered set off credits) | AJ159: Manual input in White coloum only | BI159: 231|13BJ1| | BJ159: =BI159&BJ143&V159 -> 231|13BJ1|1| | BL159: =BJ159 -> 231|13BJ1|1|
A160: =BL160 -> 231|13BJ2|1| | R160: Other than Capital Assets | AJ160: Manual input in White coloum only | BI160: 231|13BJ2| | BJ160: =BI160&BJ143&V160 -> 231|13BJ2|1| | BL160: =BJ160 -> 231|13BJ2|1|
F161: k) | G161: Balance: Excess credit =[13A(i)-(13B(a)+13B(b)+13B(c)+ 13B(d)+ 13B(e)+ 13 B(f)+ 13 B(g)+13 B(h)+13B(j))] | V161: =ROUND(IF(V148-(SUM(V149:V156))+(V157+V158)-(V159+V160)>0,V148-(SUM(V149:V156))+(V157+V158)-(V159+V160),0),0) -> 0
F162: l) | G162: Balance Amount payable= [ 13B(a)+13B(b)+13B(c)+ 13B(d)+13B(e)+13 B(f)+ 13 B(g)+13 B(h)+13B(j) -13A(i)] | V162: =ROUND(IF(SUM(V149:V156)+(V157+V158)-(V159+V160)-V148>0,(SUM(V149:V156))+(V157+V158)-(V159+V160)-V148,0),0) -> 28
A163: =BL163 -> 231|13C|1| | B163: C Utilisation of Excess Credit as per box 13B(k) | F163: a) | G163: Excess credit carried forward to subsequent tax period | AJ163: Manual input in White coloum only | BI163: 231|13C| | BJ163: =BI163&BJ143 -> 231|13C|1| | BL163: =BJ163&V163 -> 231|13C|1|
F164: b) | G164: Excess credit claimed as refund in this return (13 B(k)- 13 C(a)) | V164: =ROUND(IF(V161-V163>0,V161-V163,0),0) -> 0
B165: D. Tax payable with return | F165: a) | G165: Total Amount payable as per Box 13B(l) | V165: =ROUND(V162,0) -> 28
AD166: 06-Kalyan
B167: E. Details of Amount Paid with return and /or Amount already Paid
B168: Chalan CIN No | G168: Amount (Rs) | O168: Payment date | T168: Name of the Bank | Y168: Branch Name
B181: TOTAL | G181: =ROUND(SUM(G169:N180),0) -> 0
B182: F. Details of RAO
B183: RAO No | K183: Amount Adjusted( Rs) | U183: Date of RAO
B189: TOTAL | K189: =ROUND(SUM(K184:T188),0) -> 0
B191: G. The Statement contained in Box 1 to 13 are true and correct to the best of my knowledge and belief. | AD191: 07-Palgar
B192: Date of Filing of Return | I192: Date | M192: Month | R192: Year | AD192: 09-Pune
B193: Name of Authorised Person | J193: =IF(ISBLANK(Header!C14),"",(Header!C14)) -> ABC LTD | AD193: 10-Solapur
B194: Designation | J194: =IF(ISBLANK(Header!C15),"",(Header!C15)) -> CA | U194: Mobile No* | X194: =IF(ISBLANK(Header!C16),"",(Header!C16)) -> 1234567890 | AD194: 11-Barshi
B195: E_mail_id* | J195: =IF(ISBLANK(Header!C17),"",(Header!C17)) -> ca@gmail.com | AD195: 12-Nashik
AD196: 33-Parbhani
AD278: 0.01
AD279: 0.011
AD280: 0.015
AD281: 0.02
AD282: 0.03
AD283: 0.04
AD284: 0.05
AD285: 0.08
AD286: 0.125
AD287: 0.2
AD288: 0.21
AD289: 0.23
AD290: 0.24
AD291: 0.25
AD292: 0.26
AD293: 0.27
AD294: 0.28
AD295: 0.29
AD296: 0.3
AD297: 0.31
AD298: 0.33
AD299: 0.34
AD300: 0.4
AD301: 0.5

Sheet 232 (hidden)
A1: 0 | S1: INVALID
A2: 1 | B2: FORM 232 | AA2: Ver 1.8.3 | AD2: Date 24-06-2014
A3: 2 | B3: Return of tax payable by a dealer under M.V.A.T. Act, 2002 (See Rule 17, 17A, 18 and 45) | AD3: Yes
A4: 3 | B4: 1 | E4: M.V.A.T. R.C. No. | J4: =IF(Header!C5="","",Header!C5) -> 27981000061V | R4: C.S.T. R.C. NO. | W4: =IF(Header!E5="","",Header!E5) -> 27981000061C | AD4: No
A5: 4 | I5: Type Of Return Not Entered
A6: 5
A7: 6 | B7: 2 | E7: Name of Dealer | J7: =IF(ISBLANK(Header!C6),"",(Header!C6)) -> ABC LTD
A8: 7
A9: 8
A10: 9
A11: 10
A12: 11
A13: 12
A14: 13 | B14: 3.Please Select which ever is Applicable | E14: Type of Return (Select appropriate) ( Drop down selection) | M14: =IF(ISBLANK(Header!C7),"",(Header!C7)) -> ORIGINAL | S14: Whether First Return ? (In Case of New Registration / Package scheme period)) | AC14: =IF(ISBLANK(Header!C9),"",(Header!C9)) -> NO
A15: 14
A16: 15 | E16: Periodicity of Return (Select appropriate) ( Drop down selection) | M16: =IF(ISBLANK(Header!E8),"",(Header!E8)) -> 2016 July | S16: Whether Last Return ? (In Case of Cancellation of Registration Or end of package scheme of incentive) | AC16: =IF(ISBLANK(Header!E9),"",(Header!E9)) -> NO
A17: 16
A18: 17 | B18: 4 | E18: Period Covered by Return | J18: From | M18: Date | P18: Month | R18: Year | T18: To | W18: Date | Z18: Month | AB18: Year
A19: 18 | M19: =IF(ISBLANK(Header!C11),"",(Header!C11)) -> 01 | P19: =IF(ISBLANK(Header!D11),"",(Header!D11)) -> Jul | R19: =IF(ISBLANK(Header!E11),"",(Header!E11)) -> 2016 | W19: =IF(ISBLANK(Header!C12),"",(Header!C12)) -> 31 | Z19: =IF(ISBLANK(Header!D12),"",(Header!D12)) -> Jul | AB19: =IF(ISBLANK(Header!E12),"",(Header!E12)) -> 2016 | BQ19: ~
A20: 20
A21: 21
B23: 5 | E23: Class of composition dealer (Please Select one or more box, as applicable) | AD23: Yes | BQ23: 232 | BR23: 1| | BS23: 2| | BT23: 3| | BU23: 4|
A24: =BR24&BS24&BT24&BU24 -> 232|5|1|√~232|5|2|X~232|5|3|√~232|5|4| | E24: Retailer | J24: √ | L24: Restaurant, Club, Caterer etc. | Q24: X | S24: Baker | U24: √ | W24: Second hand motor vehicles dealer | AD24: No | BQ24: 232|5| | BR24: =BQ24&BR23&J24&BQ19 -> 232|5|1|√~ | BS24: =BQ24&BS23&Q24&BQ19 -> 232|5|2|X~ | BT24: =BQ24&BT23&U24&BQ19 -> 232|5|3|√~ | BU24: =BQ24&BU23&AB24 -> 232|5|4|
B25: 6 Computation of Net Turn over of Sales liable to composition (Please fill in one or more as applicable) | E25: RETAILER | V25: Amount (Rs.)
A26: =BR26 -> 232|6A|1| | E26: a) | F26: Total turnover of sales | AF26: Manual input in White coloum only | BQ26: 232|6A| | BR26: =BQ26&BR23&V26 -> 232|6A|1|
A27: =BR27 -> 232|6B|1| | E27: b) | F27: Less:-Turnover of Sales of goods excluded from the Composition Scheme | AF27: Manual input in White coloum only | BQ27: 232|6B| | BR27: =BQ27&BR23&V27 -> 232|6B|1|
A28: =BR28 -> 232|6C|1| | E28: c) | F28: Less:-Other allowable reductions/ deductions | AF28: Manual input in White coloum only | BQ28: 232|6C| | BR28: =BQ28&BR23&V28 -> 232|6C|1|
E29: d) | F29: Net turnover of Sales liable to tax under composition option Scheme [a-b-c)] | V29: =ROUND(IF(V26-V27-V28>0,V26-V27-V28,0),0) -> 0
B30: 7 | E30: RESTAURANT, CLUB, CATERER ETC | V30: Amount (Rs.)
A31: =BR31 -> 232|7A|1| | E31: a) | F31: Total turnover of Sales. | AF31: Manual input in White coloum only | BQ31: 232|7A| | BR31: =BQ31&BR23&V31 -> 232|7A|1|
B32: 8 | E32: BAKER | V32: Amount (Rs.)
A33: =BR33 -> 232|8A|1| | E33: a) | F33: Total turnover of Sales | AF33: Manual input in White coloum only | BQ33: 232|8A| | BR33: =BQ33&BR23&V33 -> 232|8A|1|
B34: 9 | E34: SECOND HAND MOTOR VEHICLE DEALER | V34: Amount (Rs.)
A35: =BR35 -> 232|9A|1| | E35: a) | F35: Total turnover of Sales | AF35: Manual input in White coloum only | BQ35: 232|9A| | BR35: =BQ35&BR23&V35 -> 232|9A|1|
A36: =BR36 -> 232|9B|1| | E36: b) | F36: Less: Allowable reductions/ deductions | AF36: Manual input in White coloum only | BQ36: 232|9B| | BR36: =BQ36&BR23&V36 -> 232|9B|1|
E37: c) | F37: Balance:Net turnover of sales, liable to tax under composition option ( a-b) | V37: =ROUND(IF(V35-V36>0,V35-V36,0),0) -> 0
B38: 10 | E38: a | F38: Total turnover of sales liable to tax under composition option [6 (d) + 7 (a) + 8 (a) + 9 (c)] | V38: =ROUND(IF(V29+V31+V33+V37>0,V29+V31+V33+V37,0),0) -> 0
A39: =BR39 -> 232|10B|1| | E39: b | F39: Less:- Deduction under Section 3(2) | AF39: Manual input in White coloum only | BQ39: 232|10B| | BR39: =BQ39&BR23&V39 -> 232|10B|1|
E40: c | F40: Balance: Net turnover of Sales liable to tax (c = a-b) | V40: =V38-V39 -> 0
A41: 39
B42: 11. Computation of tax payable under the MVAT Act | F42: Rate of tax (Drop down selection) | J42: Net Turnover of sales (Rs.) | V42: Tax Amount ( Rs) | BQ42: ~ | BR42: 1| | BS42: 2| | BT42: 3| | BU42: Merge
A43: =BU43 -> 232|11A|1|~232|11A|2|~232|11A|3| | E43: a) | V43: =ROUND(J43*F43,0) -> 0 | AF43: Manual input in White coloum only | BQ43: 232|11A| | BR43: =BQ43&BR$42&IF(F43="","",F43*100)&BQ$42 -> 232|11A|1|~ | BS43: =BQ43&BS$42&J43&BQ$42 -> 232|11A|2|~ | BT43: =BQ43&BT$42&IF(V43=0,"",V43) -> 232|11A|3| | BU43: =BR43&BS43&BT43 -> 232|11A|1|~232|11A|2|~232|11A|3|
A44: =BU44 -> 232|11B|1|~232|11B|2|~232|11B|3| | E44: b) | V44: =ROUND(J44*F44,0) -> 0 | AF44: Manual input in White coloum only | BQ44: 232|11B| | BR44: =BQ44&BR$42&IF(F44="","",F44*100)&BQ$42 -> 232|11B|1|~ | BS44: =BQ44&BS$42&J44&BQ$42 -> 232|11B|2|~ | BT44: =BQ44&BT$42&IF(V44=0,"",V44) -> 232|11B|3| | BU44: 232|11B|1|~232|11B|2|~232|11B|3|
A45: 232|11C|1|~232|11C|2|~232|11C|3| | E45: c) | V45: 0 | AF45: Manual input in White coloum only | BQ45: 232|11C| | BR45: 232|11C|1|~ | BS45: 232|11C|2|~ | BT45: 232|11C|3| | BU45: 232|11C|1|~232|11C|2|~232|11C|3|
A46: 232|11D|1|~232|11D|2|~232|11D|3| | E46: d) | V46: 0 | AF46: Manual input in White coloum only | BQ46: 232|11D| | BR46: 232|11D|1|~ | BS46: 232|11D|2|~ | BT46: 232|11D|3| | BU46: 232|11D|1|~232|11D|2|~232|11D|3|
A47: 232|11E|1|~232|11E|2|~232|11E|3| | E47: e) | V47: 0 | AF47: Manual input in White coloum only | BQ47: 232|11E| | BR47: 232|11E|1|~ | BS47: 232|11E|2|~ | BT47: 232|11E|3| | BU47: 232|11E|1|~232|11E|2|~232|11E|3|
A48: 232|11F|1|~232|11F|2|~232|11F|3| | E48: f) | V48: 0 | AF48: Manual input in White coloum only | BQ48: 232|11F| | BR48: 232|11F|1|~ | BS48: 232|11F|2|~ | BT48: 232|11F|3| | BU48: 232|11F|1|~232|11F|2|~232|11F|3|
A49: 232|11G|1|~232|11G|2|~232|11G|3| | E49: g) | V49: 0 | AF49: Manual input in White coloum only | BQ49: 232|11G| | BR49: 232|11G|1|~ | BS49: 232|11G|2|~ | BT49: 232|11G|3| | BU49: 232|11G|1|~232|11G|2|~232|11G|3|
E50: TOTAL | J50: =ROUND(SUM(J43:U49),0) -> 0 | V50: =ROUND(SUM(V43:AC49),0) -> 0 | AE50: =J50=V40 -> TRUE | AF50: =IF(J50=V40,13,17) -> 13
A51: 49
A52: 50 | B52: 12. Computation of Purchases Eligible for set-off | E52: a) | F52: Total turnover of purchases including taxes, value of Branch Transfers / consignment Transfers received and Labour/ job work charges | V52: =ROUND(SUM(MAIN!T3),0) -> 0
E53: b) | F53: Less:- Turnover of Purchases Covered under Other Forms
E54: c) | F54: Balance:- Turnover of Purchases considered in this Form (a-b) | V54: =V52 -> 0
A55: 51 | E55: d) | F55: Less:-Value of goods return (inclusive of tax) reduction of Purchase price. | V55: =ROUND(SUM(MAIN!T6),0) -> 0
E56: e) | F56: Less:- Reduction of Purchase price on account of rate difference and discount . | V56: =ROUND(SUM(MAIN!T7),0) -> 0
A57: 52 | E57: f) | F57: Less:-Imports (Direct Imports) | V57: =ROUND(SUM(MAIN!T8),0) -> 0
A58: 53 | E58: g) | F58: Less:-Imports (High seas purchases) | V58: =ROUND(SUM(MAIN!T9),0) -> 0
E59: h) | F59: Less:- Interstate purchases of taxble goods against certificate in Form'H' | V59: =ROUND(SUM(MAIN!T10),0) -> 0
E60: i) | F60: Less:- Within the State purchases of taxble goods against certificate in Form'H' | V60: =ROUND(SUM(MAIN!T11),0) -> 0
A61: 54 | E61: j) | F61: Less:-Inter-State purchases (Excluding purchases against any certificate and declaration in form C,H,F,I) | V61: =ROUND(SUM(MAIN!T12),0) -> 0
A62: 55 | E62: k) | F62: Less:-Inter-State Branch Transfers /Consignment Transfers received | V62: =ROUND(SUM(MAIN!T13),0) -> 0
E63: l) | F63: Less:- Interstate purchases of taxble goods against declaration in Form'C' | V63: =ROUND(SUM(MAIN!T14),0) -> 0
E64: m) | F64: Less:- Within the State purchases of taxble goods against declaration in Form'C' | V64: =ROUND(SUM(MAIN!T15),0) -> 0
A65: 56 | E65: n) | F65: Less:-Within the State Branch Transfers /Consignment Transfers received where tax is to be paid by an Agent | V65: =ROUND(SUM(MAIN!T16),0) -> 0
A66: 57 | E66: o) | F66: Less:-Purchases of taxable goods from un-registered dealers | V66: =ROUND(SUM(MAIN!T17),0) -> 0
E67: p) | F67: Less:- Interstate purchases of taxable goods against declaration in Form'I' | V67: =ROUND(SUM(MAIN!T18),0) -> 0
A68: 59 | E68: q) | F68: Less:-Within the State purchases of taxable goods fully exempted from tax u/s 8 other than purchases under section 8(1) | V68: =ROUND(SUM(MAIN!T19),0) -> 0
A69: 60 | E69: r) | F69: Less:-Within the State purchases of tax-free goods specified in schedule "A" | V69: =ROUND(SUM(MAIN!T20),0) -> 0
E70: s) | F70: Less:-Labour Job/ Labour charges paid | V70: =ROUND(SUM(MAIN!T21),0) -> 0
A71: 61 | E71: t) | F71: Less:-Other allowable deductions, if any | V71: =ROUND(SUM(MAIN!T22),0) -> 0
E72: u) | F72: Less:-Within the State purchases of taxable goods from registered dealers where tax is not collected seperately (Inclusive of tax) | V72: =ROUND(SUM(MAIN!T23),0) -> 0
E73: v) | F73: Less:- Within the State Purchases of Taxable goods purchase from Composition dealer u/s 42(1), (2) | V73: =ROUND(SUM(MAIN!T24),0) -> 0
E74: w) | F74: Less:- Deduction under Section 3(2) | V74: =ROUND(SUM(MAIN!T25),0) -> 0
E75: x) | F75: Balance: Within the State purchases of taxable goods from registered dealers eligible for set-off [c-(d+e+f+g+h+i+j+k+l+m+n+o+p+q+r+s+t+v+v+w)] | V75: =V54-(SUM(V55:AC74)) -> 0
B77: 13. Tax Rate wise breakup of within State purchase from registered dealers eligible for set-off as per box 12 (x). | F77: Rate of tax (Drop down selection) | J77: Net Turnover of purchases (Rs.) | V77: Tax Amount ( Rs) | BQ77: ~ | BR77: 1| | BS77: 2| | BT77: 3| | BU77: Merge
A78: =BU78 -> 232|13A|1|~232|13A|2|~232|13A|3| | E78: a) | AF78: Manual input in White coloum only | BQ78: 232|13A| | BR78: =BQ78&BR$77&IF(F78="","",F78*100)&BQ$77 -> 232|13A|1|~ | BS78: =BQ78&BS$77&J78&BQ$77 -> 232|13A|2|~ | BT78: =BQ78&BT$77&V78 -> 232|13A|3| | BU78: =BR78&BS78&BT78 -> 232|13A|1|~232|13A|2|~232|13A|3|
A79: =BU79 -> 232|13B|1|~232|13B|2|~232|13B|3| | E79: b) | AF79: Manual input in White coloum only | BQ79: 232|13B| | BR79: =BQ79&BR$77&IF(F79="","",F79*100)&BQ$77 -> 232|13B|1|~ | BS79: =BQ79&BS$77&J79&BQ$77 -> 232|13B|2|~ | BT79: =BQ79&BT$77&V79 -> 232|13B|3| | BU79: 232|13B|1|~232|13B|2|~232|13B|3|
A80: 232|13C|1|~232|13C|2|~232|13C|3| | E80: c) | AF80: Manual input in White coloum only | BQ80: 232|13C| | BR80: 232|13C|1|~ | BS80: 232|13C|2|~ | BT80: 232|13C|3| | BU80: 232|13C|1|~232|13C|2|~232|13C|3|
A81: 232|13D|1|~232|13D|2|~232|13D|3| | E81: d) | AF81: Manual input in White coloum only | BQ81: 232|13D| | BR81: 232|13D|1|~ | BS81: 232|13D|2|~ | BT81: 232|13D|3| | BU81: 232|13D|1|~232|13D|2|~232|13D|3|
A82: 232|13E|1|~232|13E|2|~232|13E|3| | E82: e) | AF82: Manual input in White coloum only | BQ82: 232|13E| | BR82: 232|13E|1|~ | BS82: 232|13E|2|~ | BT82: 232|13E|3| | BU82: 232|13E|1|~232|13E|2|~232|13E|3|
A83: 232|13F|1|~232|13F|2|~232|13F|3| | E83: f) | AF83: Manual input in White coloum only | BQ83: 232|13F| | BR83: 232|13F|1|~ | BS83: 232|13F|2|~ | BT83: 232|13F|3| | BU83: 232|13F|1|~232|13F|2|~232|13F|3|
A84: 232|13G|1|~232|13G|2|~232|13G|3| | E84: g) | AF84: Manual input in White coloum only | BQ84: 232|13G| | BR84: 232|13G|1|~ | BS84: 232|13G|2|~ | BT84: 232|13G|3| | BU84: 232|13G|1|~232|13G|2|~232|13G|3|
E85: TOTAL | J85: =ROUND(SUM(J78:U84),0) -> 0 | V85: =ROUND(SUM(V78:AC84),0) -> 0 | AE85: =V75=(J85+V85) -> TRUE | AF85: =IF(J85+V85=V75,13,17) -> 13 | AG85: =J85+V85 -> 0
A86: 73
A87: 81 | B87: 14. Computation of set-off claimed in this return | F87: Particulars | S87: Purchase Value(Rs.) | Y87: Tax Amount (Rs.)
A88: 82 | E88: a) | F88: Within the State purchases of taxable goods from registered dealers eligible for set-off as per Box 13 | S88: =ROUND(J85,0) -> 0 | Y88: =ROUND(V85,0) -> 0 | AF88: =IF(S88=J85,13,17) -> 13
E89: b) | F89: Less:- Set-off denial on account of purchases from RCC or Composition dealer | BQ89: ~ | BR89: 1| | BS89: 2| | BT89: Merge
A90: =BT90 -> 232|14C1|1|~232|14C1|2| | E90: c) | F90: Less: Amount of set off not admissible u/r 52A | AF90: Manual input in White coloum only | BQ90: 232|14C1| | BR90: =BQ90&BR89&S90&BQ89 -> 232|14C1|1|~ | BS90: =BQ90&BS89&Y90 -> 232|14C1|2| | BT90: =BR90&BS90 -> 232|14C1|1|~232|14C1|2|
A91: =BT91 -> 232|14C2|1|~232|14C2|2| | E91: c1) | F91: Less: Amount of set off not admissible u/r 52B | AF91: Manual input in White coloum only | BQ91: 232|14C2| | BR91: =BQ91&BR89&S91&BQ89 -> 232|14C2|1|~ | BS91: =BQ91&BS89&Y91 -> 232|14C2|2| | BT91: 232|14C2|1|~232|14C2|2|
A92: 232|14D1|1|~232|14D1|2| | E92: d) | F92: Less: Reduction in the amount of set off u/r 53 of the corresponding purchase price of (Sch B, C, D & E) goods | P92: Capital Assets | AF92: Manual input in White coloum only | BQ92: 232|14D1| | BR92: =BQ92&BR89&S92&BQ89 -> 232|14D1|1|~ | BS92: =BQ92&BS89&Y92 -> 232|14D1|2| | BT92: 232|14D1|1|~232|14D1|2|
A93: 232|14D2|1|~232|14D2|2| | P93: Other than Capital Assets | AF93: Manual input in White coloum only | BQ93: 232|14D2| | BR93: =BQ93&BR89&S93&BQ89 -> 232|14D2|1|~ | BS93: =BQ93&BS89&Y93 -> 232|14D2|2| | BT93: 232|14D2|1|~232|14D2|2|
A94: 232|14E1|1|~232|14E1|2| | E94: e) | F94: Less: Denial in the amount of set off u/r 54 of the corresponding purchase price | P94: Capital Assets | AF94: Manual input in White coloum only | BQ94: 232|14E1| | BR94: =BQ94&BR89&S94&BQ89 -> 232|14E1|1|~ | BS94: =BQ94&BS89&Y94 -> 232|14E1|2| | BT94: 232|14E1|1|~232|14E1|2|
A95: 232|14E2|1|~232|14E2|2| | P95: Other than Capital Assets | AF95: Manual input in White coloum only | BQ95: 232|14E2| | BR95: =BQ95&BR89&S95&BQ89 -> 232|14E2|1|~ | BS95: =BQ95&BS89&Y95 -> 232|14E2|2| | BT95: 232|14E2|1|~232|14E2|2|
A96: 232|14F1|1|~232|14F1|2| | E96: f) | F96: Less:-Within the State Purchases of taxable goods from registered dealers under MVAT Act, 2002 and set-off not claim. | P96: Capital Assets | AF96: Manual input in White coloum only | BQ96: 232|14F1| | BR96: =BQ96&BR89&S96&BQ89 -> 232|14F1|1|~ | BS96: =BQ96&BS89&Y96 -> 232|14F1|2| | BT96: 232|14F1|1|~232|14F1|2|
A97: 232|14F2|1|~232|14F2|2| | P97: Other than Capital Assets | AF97: Manual input in White coloum only | BQ97: 232|14F2| | BR97: =BQ97&BR89&S97&BQ89 -> 232|14F2|1|~ | BS97: =BQ97&BS89&Y97 -> 232|14F2|2| | BT97: 232|14F2|1|~232|14F2|2|
E98: g) | F98: Less:- Withinthe state purchases of Capital Asset from registered dealer set off withheld for staggered manner
E99: h) | F99: Set-off available for the period of this return [a-(b+c+c1+d+e+f+g)] | Y99: =Y88-(Y89+Y90+Y91+Y92+Y93+Y94+Y95+Y96+Y97+Y98) -> 0
E100: i) | F100: Add:- Allowance of set-off reversed in earlier return/s | S100: Capital Assets
S101: Other than Capital Assets
A102: =BR102 -> 232|14J1|1| | E102: j) | F102: Less:- Reduction u/r 52A, 52B, 53 and denial u/r 54 out of above i (h + (i-j) | S102: Capital Assets (with staggered set off credits) | AF102: Manual input in White coloum only | BQ102: 232|14J1| | BR102: =BQ102&BR89&Y102 -> 232|14J1|1|
A103: =BR103 -> 232|14J2|1| | S103: Other than Capital Assets | AF103: Manual input in White coloum only | BQ103: 232|14J2| | BR103: =BQ103&BR89&Y103 -> 232|14J2|1|
A104: =BR104 -> 232|14K1|1| | E104: k) | F104: Add:- Allowance of set-off not claimed on goods return | BQ104: 232|14K1| | BR104: =BQ104&BR89&Y104 -> 232|14K1|1|
E105: l) | F105: Total Set-off Admisible for the period of this return | Y105: =Y99+(Y100-Y102)+(Y101-Y103)+Y104 -> 0
A106: 90
A107: 91 | B107: 15. Computation for Tax payable along with return
A108: 93 | F108: Particulars | V108: Amount ( Rs)
A109: 94 | B109: A. Aggregate of credit available for the period covered under this return | F109: a) | G109: Set off admisible as per Box 14 (l) | V109: =ROUND(Y105,0) -> 0 | AE109: =Y105=V109 -> TRUE | AF109: =IF(V109=Y105,13,17) -> 13
A110: 95 | F110: b) | G110: Excess credit brought forward from previous return
A111: 96 | F111: c) | G111: Amount already paid (As per Box 15 E) | AD111: 5000 | BQ111: ~ | BR111: 1|
A112: =BR112 -> 232|15AD|1| | F112: d) | G112: Adjustment of ET paid under Maharashtra Tax on Entry of Goods into Local Areas Act, 2002 | AD112: 1000 | AF112: Manual input in White coloum only (Not more than credit available in CREDIT LEDGER ) | BQ112: 232|15AD| | BR112: =BQ112&BR111&V112 -> 232|15AD|1|
A113: =BR113 -> 232|15AE|1| | F113: e) | G113: Adjustment of ET paid under Maharashtra Tax on Entry of Motor Vehicle Act into Local Areas Act, 1987 | AF113: Manual input in White coloum only (Not more than credit available in CREDIT LEDGER ) | BQ113: 232|15AE| | BR113: =BQ113&BR111&V113 -> 232|15AE|1|
A114: =BR114 -> 232|15AF|1| | F114: f) | G114: Amount of Tax collected at source u/s 31A | AF114: Manual input in White coloum only (Not more than credit available in CREDIT LEDGER ) | BQ114: 232|15AF| | BR114: =BQ114&BR111&V114 -> 232|15AF|1|
F115: g) | G115: Refund adjustment order No. (As per Box 15F )
F116: h) | G116: Total available credit (a+b+c+d+e+f+g) | V116: =ROUND(SUM(V109:AC115),0) -> 0
B117: B Total tax payable and adjustment of CST/ET payable against available credit | F117: a) | G117: Sales Tax payable as per box 11 | V117: =ROUND(V50,0) -> 0 | AE117: =V117=V50 -> TRUE | AF117: =IF(V117=V50,13,17) -> 13
A118: =BR118 -> 232|15BB|1| | F118: b) | G118: Adjustment on account of CST payable as per return for this period | AF118: Manual input in White coloum only | AG118: TO CST RETURN | BQ118: 232|15BB| | BR118: =BQ118&BR111&V118 -> 232|15BB|1|
A119: =BR119 -> 232|15BC|1| | F119: c) | G119: Adjustment on account of ET payable under Maharashtra Tax on Entry of Goods into Local Areas Act, 2002 | AF119: Manual input in White coloum only | AG119: TO ET RETURN | BQ119: 232|15BC| | BR119: =BQ119&BR111&V119 -> 232|15BC|1|
A120: =BR120 -> 232|15BD|1| | F120: d) | G120: Adjustment on account of ET payable under Maharashtra Tax on Entry of Motor Vehicle Act into Local Areas Act, 1987 | AF120: Manual input in White coloum only | AG120: TO ET RETURN | BQ120: 232|15BD| | BR120: =BQ120&BR111&V120 -> 232|15BD|1|
F121: e) | G121: Amount of Tax Collected in Excess of the amount of Sales Tax payable if any
F122: f) | G122: Interest Payable | AE122: AUTO CALCULATED
F123: g) | G123: Late Fee Payable | AE123: AUTO CALCULATED
F124: h) | G124: Add: Adjustment on account of set-off claimed Excess in earlier return | R124: Capital Assets
R125: Other than Capital Assets
A126: =BR126 -> 232|15BI1|1| | F126: i) | G126: Reduction u/r 52A, 52B, 53 and denial u/r 54 out of above (i) | R126: Capital Assets (with staggered set off credits) | AF126: Manual input in White coloum only | BQ126: 232|15BI1| | BR126: =BQ126&BR111&V126 -> 232|15BI1|1|
A127: =BR127 -> 232|15BI2|1| | R127: Other than Capital Assets | AF127: Manual input in White coloum only | BQ127: 232|15BI2| | BR127: =BQ127&BR111&V127 -> 232|15BI2|1|
F128: j) | G128: Balance: Excess credit =[15A(h)-(15B(a)+15B(b)+15B(c)+ 15B(d)+ 15B(e)+ 15 B(f)+ 15 B(g)+15B(i))] | V128: =ROUND(IF(V116-(SUM(V117:V123))+(V124+V125)-(V126+V127)>0,V116-(SUM(V117:V123))+(V124+V125)-(V126+V127),0),0) -> 0
F129: k) | G129: Balance Amount payable= [ 15B(a)+15B(b)+15B(c)+ 15B(d)+15B(e)+15 B(f)+ 15 B(g)+15B(i)-15A(h)] | V129: =ROUND(IF(SUM(V117:V123)+(V124+V125)-(V126+V127)-V116>0,(SUM(V117:V123))+(V124+V125)-(V126+V127)-V116,0),0) -> 0
A130: =BR130 -> 232|15CA|1| | B130: C Utilisation of Excess Credit as per box 15B(j) | F130: a) | G130: Excess credit carried forward to subsequent tax period | AF130: Manual input in White coloum only | BQ130: 232|15CA| | BR130: =BQ130&BR111&V130 -> 232|15CA|1|
F131: b) | G131: Excess credit claimed as refund in this return (15 B(j)- 15 C(a)) | V131: =ROUND(IF(V128-V130>0,V128-V130,0),0) -> 0 | AG131: =V128-V130 -> 0
B132: D. Tax payable with return | F132: a) | G132: Total Amount payable as per Box 15B(k) | V132: =ROUND(V129,0) -> 0
A133: 142 | AD133: 06-Kalyan
A134: 117 | B134: E. Details of Amount Paid along with return and/or Amount already Paid
A135: 118 | B135: Chalan CIN No | G135: Amount (Rs) | O135: Payment date | T135: Name of the Bank | Y135: Branch Name
A136: 119
A137: 120
A138: 121
A139: 122
A140: 123
A141: 124
A142: 125
A143: 126
A144: 127
A145: 128
A146: 129
A147: 130
A148: 131 | B148: TOTAL | G148: =ROUND(SUM(G136:N147),0) -> 0
A149: 132 | B149: F. Details of RAO
A150: 133 | B150: RAO No | K150: Amount Adjusted( Rs) | U150: Date of RAO
A151: 134
A152: 135
A153: 136
A154: 137
A155: 138
A156: 139 | B156: TOTAL | K156: =ROUND(SUM(K151:T155),0) -> 0
A158: 143 | B158: G. The Statement contained in Box 1 to 15 are true and correct to the best of my knowledge and belief. | AD158: 07-Palgar
A159: 144 | B159: Date of Filing of Return | I159: Date | M159: Month | R159: Year | AD159: 09-Pune
A160: 145 | B160: Name of Authorised Person | J160: =IF(ISBLANK(Header!C14),"",(Header!C14)) -> ABC LTD | AD160: 10-Solapur
A161: 146 | B161: Designation | J161: =IF(ISBLANK(Header!C15),"",(Header!C15)) -> CA | U161: Mobile No* | X161: =Header!C16 -> 1234567890 | AD161: 11-Barshi
A162: 147 | B162: E_mail_id* | J162: =IF(ISBLANK(Header!C17),"",(Header!C17)) -> ca@gmail.com | AD162: 12-Nashik
AD163: State Bank of Travancore

Sheet 233 (hidden)
B1: FORM_233 | AA1: Ver 1.8.3
B2: Return of tax payable by a dealer under M.V.A.T.Act, 2002 (See Rule 17, 17A, 18 and 45)
B3: 1 | C3: M.V.A.T. R.C. No. | F3: =IF(Header!C5="","",Header!C5) -> 27981000061V | Q3: C.S.T. R.C. No. | U3: =IF(Header!E5="","",Header!E5) -> 27981000061C
B4: 2 | E4: Name of Dealer | K4: =IF(Header!C6="","",Header!C6) -> ABC LTD
B5: 3.Please Select which ever is Applicable | E5: Type of Return (Select appropriate) ( Drop down selection) | P5: =IF(Header!C7="","",Header!C7) -> ORIGINAL | T5: Whether First Return ? (In Case of New Registration/Package scheme period) | AC5: =IF(Header!C9="","",Header!C9) -> NO
E6: Periodicity of Return (Select appropriate) ( Drop down selection) | P6: =IF(Header!E8="","",Header!E8) -> 2016 July | T6: Whether Last Return ? (In Case of Cancellation of Registration OR end of package scheme of Incentives) | AC6: =IF(Header!E9="","",Header!E9) -> NO
B7: 4 | E7: Period Covered by Return | J7: From | M7: Date | P7: Month | R7: Year | T7: To | X7: Date | Z7: Month | AB7: Year
M8: =IF(ISBLANK(Header!C11),"",(Header!C11)) -> 01 | P8: =IF(ISBLANK(Header!D11),"",(Header!D11)) -> Jul | R8: =IF(ISBLANK(Header!E11),"",(Header!E11)) -> 2016 | X8: =IF(ISBLANK(Header!C12),"",(Header!C12)) -> 31 | Z8: =IF(ISBLANK(Header!D12),"",(Header!D12)) -> Jul | AB8: =IF(ISBLANK(Header!E12),"",(Header!E12)) -> 2016
B9: 5 Business activities include (Please select one or more box, as applicable) | E9: Execution of works contracts and ongoing works Contract, including under composition option | J9: Leasing business | N9: Part of the business activity under composition option (Please tick one or more box, as applicable)
N10: Retailer | R10: Restaurant , Club, Caterer etc. | V10: Baker | Z10: Second hand motor vehicles | AU10: ~ | AV10: 1| | AW10: 2| | AX10: 3| | AY10: 4| | AZ10: 5| | BA10: 6|
A11: =BB11 -> 233|5|1|~233|5|2|~233|5|3|~233|5|4|~233|5|5|~233|5|6| | AD11: Manual input in White coloum only | AU11: 233|5| | AV11: =AU11&AV10&E11&AU10 -> 233|5|1|~ | AW11: =AU11&AW10&J11&AU10 -> 233|5|2|~ | AX11: =AU11&AX10&N11&AU10 -> 233|5|3|~ | AY11: =AU11&AY10&R11&AU10 -> 233|5|4|~ | AZ11: =AU11&AZ10&V11&AU10 -> 233|5|5|~ | BA11: =AU11&BA10&Z11 -> 233|5|6| | BB11: =AV11&AW11&AX11&AY11&AZ11&BA11 -> 233|5|1|~233|5|2|~233|5|3|~233|5|4|~233|5|5|~233|5|6|
B13: 6 Computation of Net Turnover of Sales liable to tax : (Part A) | F13: Particulars | V13: Amount ( Rs)
E14: a) | F14: Gross turnover of sales including, taxes as well as turnover of non sales transactions like value of Branch Transfer, Consignment transfers, job work charges etc | V14: =ROUND(MAIN!AC3,0) -> 15144
E15: b) | F15: Less:- Turnover of Sales (including taxes thereon) including inter-state Consignment Transfers and Branch Transfers covered under Form Number 234 or 235 | V15: =ROUND(MAIN!AC4,0) -> 0
E16: c ) | F16: Balance :- Turnover Considered under this Form (a-b) | V16: =V14-V15 -> 15144
E17: d) | F17: Add:- Value of Goods return (inclusive of tax) including reduction of sale price on account of rate difference and discount claimed in earlier period but not confirmed by buyer. | V17: =ROUND(MAIN!AC6,0) -> 0
E18: e) | F18: Less:-Value ( inclusive of sales tax) of Goods Return | V18: =ROUND(MAIN!AC7,0) -> 0
E19: f) | F19: Less:- Credit Note , price on account of rate difference and discount Within State . | V19: =ROUND(MAIN!AC8,0) -> 0
E20: g) | F20: Less:- Value of Goods return (inclusive of tax) including reduction of sale price on account of rate difference and discount claimed in earlier period which is confirmed. | V20: =ROUND(MAIN!AC9,0) -> 0
E21: h) | F21: Balance:- Turnover of sales including, taxes as well as turnover of non sales transactions like value of Branch Transfer, Consignment transfers, job work charges etc ( (c+d)-(e+ f+g)) | V21: =(V16+V17)-(V18+V19+V20) -> 15144
E22: i) | F22: Less:-Turnover of sales under composition scheme(s) , other than Works Contracts under composition option (Computation of turnover of sales liable to tax to be shown in 8 Part B) | V22: =ROUND(MAIN!AC11,0) -> 0
E23: j) | F23: Less:-Turnover of sales under Works Contracts under composition option (Computation of turnover of sales liable to tax to be shown in Part 7 ) | V23: =ROUND(MAIN!AC12,0) -> 0
E24: k) | F24: Less:-Turnover of sales (excluding taxes) relating to on-going works contracts (Computation of turnover of sales liable to tax to be shown in 10 Part C) | V24: =ROUND(MAIN!AC13,0) -> 0
E25: l) | F25: Less:-Turnover of sales (excluding taxes) relating to on-going leasing contracts (Computation of turnover of sales liable to tax to be shown in 10 Part D) | V25: =ROUND(MAIN!AC14,0) -> 0
E26: m) | F26: Balance: Net turnover of sales including, taxes, as well as turnover of non sales transactions like Branch Transfers / Consignment transfers and job works charges , etc (h) -(i+j+k+l) | V26: =V21-(SUM(V22:AC25)) -> 15144
E27: n) | F27: Less:-Net Tax amount ( Tax included in sales shown in (c) above less Tax included in (e+f+g) above) | V27: =ROUND(MAIN!AC16,0) -> 0
E28: o) | F28: Less:- Total Value in which tax is not collected seperatly ( Inclusive of Tax with gross Amount ) | V28: =ROUND(MAIN!AC17,0) -> 0
E29: p) | F29: Less:-Value of Branch Transferes/ Consignment transfers within the State if the tax is to be paid by an Agent | V29: =ROUND(MAIN!AC18,0) -> 0
E30: q) | F30: Less:-Sales u/s 8 (1) i.e. Interstate Sales including Central Sales Tax, Sales in the course of imports, exports and value of Branch Transfers/ Consignment transfers outside the State | V30: =ROUND(MAIN!AC19,0) -> 15144
A31: =AV31 -> 233|6R|1| | E31: r) | F31: Less:- Non-taxable labour and other charges / expenses u/r 58(1), cost of land u/r 58(1A), deduction u/r 58(1B) for execution of works contract | AD31: Manual input in White coloum only | AU31: 233|6R| | AV31: =AU31&AV10&V31 -> 233|6R|1|
E32: s) | F32: Less:- Amount paid by way of price for sub-contract where tax is borne by sub-contractor | V32: =ROUND(MAIN!AC21,0) -> 0
E33: t) | F33: Less:- Amount paid by way of price for sub-contract where tax is borne by principal contractor | V33: =ROUND(MAIN!AC22,0) -> 0
E34: u) | F34: Less:-Sales of tax-free goods specified in Schedule "A" | V34: =ROUND(MAIN!AC23,0) -> 0
E35: v) | F35: Less:-Sales of taxable goods fully exempted u/s 41 and u/s. 8 other than sales under section 8(1) & covered in Box 6(q) | V35: =ROUND(MAIN!AC24,0) -> 0
E36: w) | F36: Less:-Labour/Job work charges | V36: =ROUND(MAIN!AC25,0) -> 0
E37: x) | F37: Less:-Other allowable deductions, if any | V37: =ROUND(MAIN!AC26,0) -> 0
E38: y) | F38: Less:- Deduction under Section 3(2) | V38: =ROUND(MAIN!AC27,0) -> 0
E39: z) | F39: Balance: Net turnover of Sales liable to tax [m-(n+o+p+q+r+s+t+u+v+w+x+y) | V39: =V26-(SUM(V27:AC38)) -> 0
B41: 7. Computation of Tax under Works Contracts by way of composition option payable under the MVAT Act | F41: Rate of tax (Drop down selection) | J41: Turnover of sales liable to tax (Rs.) | V41: Tax Amount ( Rs) | AU41: ~ | AV41: 1| | AW41: 2| | AX41: 3| | AY41: Merge
A42: =AY42 -> 233|7S1A|1|~233|7S1A|2|~233|7S1A|3| | E42: a) | V42: =ROUND(F42*J42,0) -> 0 | AD42: Manual input in White coloum only | AU42: 233|7S1A| | AV42: =AU42&AV$41&IF(F42="","",F42*100)&AU$41 -> 233|7S1A|1|~ | AW42: =AU42&AW$41&J42&AU$41 -> 233|7S1A|2|~ | AX42: =AU42&AX$41&IF(V42=0,"",V42) -> 233|7S1A|3| | AY42: =AV42&AW42&AX42 -> 233|7S1A|1|~233|7S1A|2|~233|7S1A|3|
A43: =AY43 -> 233|7S1B|1|~233|7S1B|2|~233|7S1B|3| | E43: b) | V43: =ROUND(F43*J43,0) -> 0 | AD43: Manual input in White coloum only | AU43: 233|7S1B| | AV43: =AU43&AV$41&IF(F43="","",F43*100)&AU$41 -> 233|7S1B|1|~ | AW43: =AU43&AW$41&J43&AU$41 -> 233|7S1B|2|~ | AX43: =AU43&AX$41&IF(V43=0,"",V43) -> 233|7S1B|3| | AY43: =AV43&AW43&AX43 -> 233|7S1B|1|~233|7S1B|2|~233|7S1B|3|
A44: =AY44 -> 233|7S1C|1|~233|7S1C|2|~233|7S1C|3| | E44: c) | V44: =ROUND(F44*J44,0) -> 0 | AD44: Manual input in White coloum only | AU44: 233|7S1C| | AV44: =AU44&AV$41&IF(F44="","",F44*100)&AU$41 -> 233|7S1C|1|~ | AW44: =AU44&AW$41&J44&AU$41 -> 233|7S1C|2|~ | AX44: =AU44&AX$41&IF(V44=0,"",V44) -> 233|7S1C|3| | AY44: =AV44&AW44&AX44 -> 233|7S1C|1|~233|7S1C|2|~233|7S1C|3|
A45: =AY45 -> 233|7S1D|1|~233|7S1D|2|~233|7S1D|3| | E45: d) | V45: =ROUND(F45*J45,0) -> 0 | AD45: Manual input in White coloum only | AU45: 233|7S1D| | AV45: =AU45&AV$41&IF(F45="","",F45*100)&AU$41 -> 233|7S1D|1|~ | AW45: =AU45&AW$41&J45&AU$41 -> 233|7S1D|2|~ | AX45: =AU45&AX$41&IF(V45=0,"",V45) -> 233|7S1D|3| | AY45: =AV45&AW45&AX45 -> 233|7S1D|1|~233|7S1D|2|~233|7S1D|3|
E46: SUB TOTAL | J46: =SUM(J42:U45) -> 0 | V46: =SUM(V42:AC45) -> 0 | AD46: =IF(J46=MAIN!AC73,13,17) -> 13 | AE46: J46 = TOTAL OF 450 LESS 690 & 790 (VALIDATION)
E47: Computation of Tax under Works Contracts by way of composition (Inclusive of Tax)
A48: =AY48 -> 233|7S2E|1|~233|7S2E|2|~233|7S2E|3| | E48: e) | V48: =J48*(F48*100)/((F48*100)+100) -> 0 | AD48: Manual input in White coloum only | AU48: 233|7S2E| | AV48: =AU48&AV$41&IF(F48="","",F48*100)&AU$41 -> 233|7S2E|1|~ | AW48: =AU48&AW$41&J48&AU$41 -> 233|7S2E|2|~ | AX48: =AU48&AX$41&IF(V48=0,"",V48) -> 233|7S2E|3| | AY48: =AV48&AW48&AX48 -> 233|7S2E|1|~233|7S2E|2|~233|7S2E|3|
A49: =AY49 -> 233|7S2F|1|~233|7S2F|2|~233|7S2F|3| | E49: f) | V49: =J49*(F49*100)/((F49*100)+100) -> 0 | AD49: Manual input in White coloum only | AU49: 233|7S2F| | AV49: =AU49&AV$41&IF(F49="","",F49*100)&AU$41 -> 233|7S2F|1|~ | AW49: =AU49&AW$41&J49&AU$41 -> 233|7S2F|2|~ | AX49: =AU49&AX$41&IF(V49=0,"",V49) -> 233|7S2F|3| | AY49: =AV49&AW49&AX49 -> 233|7S2F|1|~233|7S2F|2|~233|7S2F|3|
A50: =AY50 -> 233|7S2G|1|~233|7S2G|2|~233|7S2G|3| | E50: g) | V50: =J50*(F50*100)/((F50*100)+100) -> 0 | AD50: Manual input in White coloum only | AU50: 233|7S2G| | AV50: =AU50&AV$41&IF(F50="","",F50*100)&AU$41 -> 233|7S2G|1|~ | AW50: =AU50&AW$41&J50&AU$41 -> 233|7S2G|2|~ | AX50: =AU50&AX$41&IF(V50=0,"",V50) -> 233|7S2G|3| | AY50: =AV50&AW50&AX50 -> 233|7S2G|1|~233|7S2G|2|~233|7S2G|3|
A51: =AY51 -> 233|7S2H|1|~233|7S2H|2|~233|7S2H|3| | E51: h) | V51: =J51*(F51*100)/((F51*100)+100) -> 0 | AD51: Manual input in White coloum only | AU51: 233|7S2H| | AV51: =AU51&AV$41&IF(F51="","",F51*100)&AU$41 -> 233|7S2H|1|~ | AW51: =AU51&AW$41&J51&AU$41 -> 233|7S2H|2|~ | AX51: =AU51&AX$41&IF(V51=0,"",V51) -> 233|7S2H|3| | AY51: =AV51&AW51&AX51 -> 233|7S2H|1|~233|7S2H|2|~233|7S2H|3|
E52: SUB TOTAL | J52: =SUM(J48:U51) -> 0 | V52: =SUM(V48:AC51) -> 0 | AD52: =IF(J52=MAIN!AC74,13,17) -> 13 | AE52: J52 = TOTAL OF 450 LESS 690 & 790 (VALIDATION)
E53: TOTAL | J53: =J46+J52 -> 0 | V53: =V46+V52 -> 0 | AD53: =IF(J53=V23,13,17) -> 13
B55: 8 ( PART-B) Computation of net turnover of sales liable to tax under composition | F55: Particulars | V55: Amount (Rs.)
E56: A | F56: Turnover of sales (excluding taxes) under composition scheme(s) [Same as 6(i)] | V56: =V22 -> 0 | AD56: =IF(V56=V22,13,17) -> 13
E57: B | F57: RETAILER
E58: a) | F58: Total turnover of Sales | V58: =ROUND(MAIN!AC33,0) -> 0 | AD58: Manual input in White coloum only | AU58: 233|8BA| | AV58: =AU58&AV41&V58 -> 233|8BA|1|0
A59: =AV59 -> 233|8BB|1| | E59: b) | F59: Less:-Turnover of sales of goods excluded from the Composition Scheme | AD59: Manual input in White coloum only | AU59: 233|8BB| | AV59: =AU59&AV41&V59 -> 233|8BB|1|
A60: =AV60 -> 233|8BC|1| | E60: c) | F60: Less:- Allowable deductions etc | AD60: Manual input in White coloum only | AU60: 233|8BC| | AV60: =AU60&AV41&V60 -> 233|8BC|1|
E61: d) | F61: Balance:Net turnover of sales liable to tax under composition option [a-{b+c)] | V61: =V58-SUM(V59:V60) -> 0
E62: C | F62: RESTAURANT, CLUB, CATERER ETC
E63: a) | F63: Total turnover of sales. | V63: =ROUND(MAIN!AC35,0) -> 0 | AD63: Manual input in White column only | AU63: 233|8CA| | AV63: =AU63&AV41&V63 -> 233|8CA|1|0
E64: D | F64: BAKER
E65: a) | F65: Total turnover of sales | V65: =ROUND(MAIN!AC37,0) -> 0 | AD65: Manual input in White column only | AU65: 233|8DA| | AV65: =AU65&AV41&V65 -> 233|8DA|1|0
E66: E | F66: SECOND HAND MOTOR VEHICLES DEALERS
E67: a) | F67: Total turnover of sales | V67: =ROUND(MAIN!AC39,0) -> 0 | AD67: Manual input in White column only | AU67: 233|8EA| | AV67: =AU67&AV41&V67 -> 233|8EA|1|0
A68: =AV68 -> 233|8EB|1| | E68: b) | F68: Less: Allowable reductions/ deductions | AD68: Manual input in White coloum only | AU68: 233|8EB| | AV68: =AU68&AV41&V68 -> 233|8EB|1|
E69: c) | F69: Balance:Net turnover of sales, liable to tax under composition option ( a-b) | V69: =ROUND(IF(V67-V68>0,V67-V68,0),0) -> 0
E70: F | F70: LEASE COMPOSITION DEALER
E71: a) | F71: Total turnover of sales | V71: =ROUND(MAIN!AC41,0) -> 0 | AD71: Manual input in White column only | AU71: 233|8FA| | AV71: =AU71&AV41&V71 -> 233|8FA|1|0
A72: =AV72 -> 233|8FB|1| | E72: b) | F72: Less: Allowable reductions/ deductions | AD72: Manual input in White coloum only | AU72: 233|8FB| | AV72: =AU72&AV41&V72 -> 233|8FB|1|
E73: c) | F73: Balance:Net turnover of sales, liable to tax under composition option ( a-b) | V73: =ROUND(IF(V71-V72>0,V71-V72,0),0) -> 0
E74: G | F74: Total net turnover of sales liable to tax under composition option [8(B) (d) + 8(C) (a) + 8(D) (a) + 8(E) (c) + 8(F)(c )] | V74: =ROUND(V61+V63+V65+V69+V73,0) -> 0
B76: 9 Computation of Sales Tax payable by way of composition other than works contract under the MVAT Act | F76: Rate of tax (Drop down selection) | J76: Turnover of sales liable to tax (Rs.) | V76: Tax Amount ( Rs) | AU76: ~ | AV76: 1| | AW76: 2| | AX76: 3| | AY76: Merge
A77: =AY77 -> 233|9A|1|~233|9A|2|~233|9A|3| | E77: a) | V77: =ROUND(F77*J77,0) -> 0 | AD77: Manual input in White coloum only | AU77: 233|9A| | AV77: =AU77&AV$76&IF(F77="","",F77*100)&AU$76 -> 233|9A|1|~ | AW77: =AU77&AW$76&J77&AU$76 -> 233|9A|2|~ | AX77: =AU77&AX$76&IF(V77=0,"",V77) -> 233|9A|3| | AY77: =AV77&AW77&AX77 -> 233|9A|1|~233|9A|2|~233|9A|3|
A78: =AY78 -> 233|9B|1|~233|9B|2|~233|9B|3| | E78: b) | V78: 0 | AD78: Manual input in White coloum only | AU78: 233|9B| | AV78: =AU78&AV$76&IF(F78="","",F78*100)&AU$76 -> 233|9B|1|~ | AW78: =AU78&AW$76&J78&AU$76 -> 233|9B|2|~ | AX78: =AU78&AX$76&IF(V78=0,"",V78) -> 233|9B|3| | AY78: =AV78&AW78&AX78 -> 233|9B|1|~233|9B|2|~233|9B|3|
A79: 233|9C|1|~233|9C|2|~233|9C|3| | E79: c) | V79: 0 | AD79: Manual input in White coloum only | AU79: 233|9C| | AV79: 233|9C|1|~ | AW79: 233|9C|2|~ | AX79: 233|9C|3| | AY79: 233|9C|1|~233|9C|2|~233|9C|3|
A80: 233|9D|1|~233|9D|2|~233|9D|3| | E80: d) | V80: =ROUND(F80*J80,0) -> 0 | AD80: Manual input in White coloum only | AU80: 233|9D| | AV80: 233|9D|1|~ | AW80: 233|9D|2|~ | AX80: 233|9D|3| | AY80: 233|9D|1|~233|9D|2|~233|9D|3|
A81: 233|9E|1|~233|9E|2|~233|9E|3| | E81: e) | V81: =ROUND(F81*J81,0) -> 0 | AD81: Manual input in White coloum only | AU81: 233|9E| | AV81: 233|9E|1|~ | AW81: 233|9E|2|~ | AX81: 233|9E|3| | AY81: 233|9E|1|~233|9E|2|~233|9E|3|
A82: 233|9F|1|~233|9F|2|~233|9F|3| | E82: f) | V82: =ROUND(F82*J82,0) -> 0 | AD82: Manual input in White coloum only | AU82: 233|9F| | AV82: 233|9F|1|~ | AW82: 233|9F|2|~ | AX82: 233|9F|3| | AY82: 233|9F|1|~233|9F|2|~233|9F|3|
A83: 233|9G|1|~233|9G|2|~233|9G|3| | E83: g) | V83: =ROUND(F83*J83,0) -> 0 | AD83: Manual input in White coloum only | AU83: 233|9G| | AV83: 233|9G|1|~ | AW83: 233|9G|2|~ | AX83: 233|9G|3| | AY83: 233|9G|1|~233|9G|2|~233|9G|3|
A84: 233|9H|1|~233|9H|2|~233|9H|3| | E84: h) | V84: 0 | AD84: Manual input in White coloum only | AU84: 233|9H| | AV84: 233|9H|1|~ | AW84: 233|9H|2|~ | AX84: 233|9H|3| | AY84: 233|9H|1|~233|9H|2|~233|9H|3|
A85: =AY85 -> 233|9I|1|~233|9I|2|~233|9I|3| | E85: i) | V85: 0 | AD85: Manual input in White coloum only | AU85: 233|9I| | AV85: 233|9I|1|~ | AW85: 233|9I|2|~ | AX85: 233|9I|3| | AY85: 233|9I|1|~233|9I|2|~233|9I|3|
A86: 233|9J|1|~233|9J|2|~233|9J|3| | E86: j) | V86: 0 | AD86: Manual input in White coloum only | AU86: 233|9J| | AV86: 233|9J|1|~ | AW86: 233|9J|2|~ | AX86: 233|9J|3| | AY86: 233|9J|1|~233|9J|2|~233|9J|3|
E87: TOTAL | J87: =ROUND(SUM(J77:J86),0) -> 0 | V87: =ROUND(SUM(V77:V86),0) -> 0 | AD87: =IF(V87=V74,13,17) -> 13
B89: 10 ( PART-C) Computation of net turnover of sales relating to on-going works contracts liable to tax under section 96(1)(g) of the MVAT Act 2002: | F89: Particulars | V89: Amount (Rs.)
E90: a) | F90: Turnover of sales (excluding tax/composition) releting to on going work contract during the period [same as Box 6(k)] | V90: =ROUND(V24,0) -> 0 | AD90: =IF(V90=V24,13,17) -> 13
A91: =AV91 -> 233|10B|1| | E91: b) | F91: Less:-Turnover of sales exempted from tax | AD91: Manual input in White coloum only | AU91: 233|10B| | AV91: =AU91&AV76&V91 -> 233|10B|1|
A92: =AV92 -> 233|10C|1| | E92: c) | F92: Less:-Deduction u/s 6 of the Earlier Law | AD92: Manual input in White coloum only | AU92: 233|10C| | AV92: =AU92&AV76&V92 -> 233|10C|1|
A93: =AV93 -> 233|10D|1| | E93: d) | F93: Less:-Deduction u/s.6(A) of the Earlier Law | AD93: Manual input in White coloum only | AU93: 233|10D| | AV93: =AU93&AV76&V93 -> 233|10D|1|
E94: e) | F94: Balance:Net turnover of sales liable to tax/ composition [a-(b+c+d)] | V94: =V90-V91-V92-V93 -> 0
B96: 11 ( PART-D) Computation of net turnover of sales relating to on-going leasing contracts liable to tax under sec 96(10) (f) of the MVAT Act, 2002 | F96: Particulars | V96: Amount ( Rs)
E97: a) | F97: Turnover of sales (excluding taxes) Relating to On-going Leasing Contracts[same as Box 6(l)] | V97: =ROUND(V25,0) -> 0 | AD97: =IF(V97=V25,13,17) -> 13
A98: =AV98 -> 233|11B|1| | E98: b) | F98: Less: Turnover of sales exempted from tax. | AD98: Manual input in White coloum only | AU98: 233|11B| | AV98: =AU98&AV76&V98 -> 233|11B|1|
E99: c) | F99: Balance:Net turnover of sales liable to tax (a-b) | V99: =(V97-V98) -> 0
B101: 12 Computation of Sales Tax collected seperately under the MVAT Act as per box 6(z), 10 (e), 11 (c) | F101: Rate of tax (Drop down selection) | J101: Turnover of sales liable to tax (Rs.) | V101: Tax Amount ( Rs) | AU101: ~ | AV101: 1| | AW101: 2| | AX101: 3| | AY101: Merge
A102: =AY102 -> 233|12A|1|~233|12A|2|~233|12A|3| | E102: a) | V102: =ROUND(F102*J102,0) -> 0 | AD102: Manual input in White coloum only | AU102: 233|12A| | AV102: =AU102&AV$101&IF(F102="","",F102*100)&AU$101 -> 233|12A|1|~ | AW102: =AU102&AW$101&J102&AU$101 -> 233|12A|2|~ | AX102: =AU102&AX$101&IF(V102=0,"",V102) -> 233|12A|3| | AY102: =AV102&AW102&AX102 -> 233|12A|1|~233|12A|2|~233|12A|3|
A103: =AY103 -> 233|12B|1|~233|12B|2|~233|12B|3| | E103: b) | V103: 0 | AD103: Manual input in White coloum only | AU103: 233|12B| | AV103: =AU103&AV$101&IF(F103="","",F103*100)&AU$101 -> 233|12B|1|~ | AW103: =AU103&AW$101&J103&AU$101 -> 233|12B|2|~ | AX103: =AU103&AX$101&IF(V103=0,"",V103) -> 233|12B|3| | AY103: =AV103&AW103&AX103 -> 233|12B|1|~233|12B|2|~233|12B|3|
A104: 233|12C|1|~233|12C|2|~233|12C|3| | E104: c) | V104: 0 | AD104: Manual input in White coloum only | AU104: 233|12C| | AV104: 233|12C|1|~ | AW104: 233|12C|2|~ | AX104: 233|12C|3| | AY104: 233|12C|1|~233|12C|2|~233|12C|3|
A105: 233|12D|1|~233|12D|2|~233|12D|3| | E105: d) | V105: 0 | AD105: Manual input in White coloum only | AU105: 233|12D| | AV105: 233|12D|1|~ | AW105: 233|12D|2|~ | AX105: 233|12D|3| | AY105: 233|12D|1|~233|12D|2|~233|12D|3|
A106: 233|12E|1|~233|12E|2|~233|12E|3| | E106: e) | V106: 0 | AD106: Manual input in White coloum only | AU106: 233|12E| | AV106: 233|12E|1|~ | AW106: 233|12E|2|~ | AX106: 233|12E|3| | AY106: 233|12E|1|~233|12E|2|~233|12E|3|
A107: 233|12F|1|~233|12F|2|~233|12F|3| | E107: f) | V107: 0 | AD107: Manual input in White coloum only | AU107: 233|12F| | AV107: 233|12F|1|~ | AW107: 233|12F|2|~ | AX107: 233|12F|3| | AY107: 233|12F|1|~233|12F|2|~233|12F|3|
A108: 233|12G|1|~233|12G|2|~233|12G|3| | E108: g) | V108: 0 | AD108: Manual input in White coloum only | AU108: 233|12G| | AV108: 233|12G|1|~ | AW108: 233|12G|2|~ | AX108: 233|12G|3| | AY108: 233|12G|1|~233|12G|2|~233|12G|3|
A109: 233|12H|1|~233|12H|2|~233|12H|3| | E109: h) | V109: 0 | AD109: Manual input in White coloum only | AU109: 233|12H| | AV109: 233|12H|1|~ | AW109: 233|12H|2|~ | AX109: 233|12H|3| | AY109: 233|12H|1|~233|12H|2|~233|12H|3|
A110: 233|12I|1|~233|12I|2|~233|12I|3| | E110: i) | V110: 0 | AD110: Manual input in White coloum only | AU110: 233|12I| | AV110: 233|12I|1|~ | AW110: 233|12I|2|~ | AX110: 233|12I|3| | AY110: 233|12I|1|~233|12I|2|~233|12I|3|
E111: TOTAL | J111: =ROUND(SUM(J102:J110),0) -> 0 | V111: =ROUND(SUM(V102:V110),0) -> 0
B112: 12A | F112: Sales Tax collected in excess of the amount of tax payable.
B114: 13 Computation of Sales Tax payable in respect of sales effected inclusive of tax under the MVAT Act | F114: Rate of tax (Drop down selection) | J114: Turnover of sales inclusive of tax (Rs.) | V114: Tax Amount ( Rs)
A115: =AY115 -> 233|13A|1|~233|13A|2|~233|13A|3| | E115: a) | V115: =ROUND(F115*J115,0) -> 0 | AD115: Manual input in White coloum only | AU115: 233|13A| | AV115: =AU115&AV$101&IF(F115="","",F115*100)&AU$101 -> 233|13A|1|~ | AW115: =AU115&AW$101&J115&AU$101 -> 233|13A|2|~ | AX115: =AU115&AX$101&IF(V115=0,"",V115) -> 233|13A|3| | AY115: =AV115&AW115&AX115 -> 233|13A|1|~233|13A|2|~233|13A|3|
A116: 233|13B|1|~233|13B|2|~233|13B|3| | E116: b) | V116: 0 | AD116: Manual input in White coloum only | AU116: 233|13B| | AV116: 233|13B|1|~ | AW116: 233|13B|2|~ | AX116: 233|13B|3| | AY116: 233|13B|1|~233|13B|2|~233|13B|3|
A117: 233|13C|1|~233|13C|2|~233|13C|3| | E117: c) | V117: 0 | AD117: Manual input in White coloum only | AU117: 233|13C| | AV117: 233|13C|1|~ | AW117: 233|13C|2|~ | AX117: 233|13C|3| | AY117: 233|13C|1|~233|13C|2|~233|13C|3|
A118: 233|13D|1|~233|13D|2|~233|13D|3| | E118: d) | V118: 0 | AD118: Manual input in White coloum only | AU118: 233|13D| | AV118: 233|13D|1|~ | AW118: 233|13D|2|~ | AX118: 233|13D|3| | AY118: 233|13D|1|~233|13D|2|~233|13D|3|
A119: 233|13E|1|~233|13E|2|~233|13E|3| | E119: e) | V119: 0 | AD119: Manual input in White coloum only | AU119: 233|13E| | AV119: 233|13E|1|~ | AW119: 233|13E|2|~ | AX119: 233|13E|3| | AY119: 233|13E|1|~233|13E|2|~233|13E|3|
A120: 233|13F|1|~233|13F|2|~233|13F|3| | E120: f) | V120: 0 | AD120: Manual input in White coloum only | AU120: 233|13F| | AV120: 233|13F|1|~ | AW120: 233|13F|2|~ | AX120: 233|13F|3| | AY120: 233|13F|1|~233|13F|2|~233|13F|3|
E121: Total | J121: =ROUND(SUM(J115:U120),0) -> 0 | V121: =ROUND(SUM(V115:AC120),0) -> 0 | AD121: =IF(J121=V28,13,17) -> 13
B123: 14. Computation of purchases eligible for set-off | F123: Particulars | V123: Amount ( Rs)
E124: a) | F124: Total turnover of purchases including taxes, value of Branch Transfers / Consignment Transfers received and job work charges | V124: =ROUND(MAIN!AC47,0) -> 42340
E125: b) | F125: Less:- Turnover of Purchases Covered under Form Number 234 or 235 | V125: =ROUND(MAIN!AC48,0) -> 0
E126: c) | F126: Balance:- Turnover of Purchases considered in this Form (a-b) | V126: =V124-V125 -> 42340
E127: d) | F127: Less:-Value of goods return (inclusive of tax) reduction of Purchase price. | V127: =ROUND(MAIN!AC50,0) -> 0
E128: e) | F128: Less:- Reduction of Purchase price on account of rate difference and discount . | V128: =ROUND(MAIN!AC51,0) -> 0
E129: f) | F129: Less:-Imports(Direct imports) | V129: =ROUND(MAIN!AC52,0) -> 0
E130: g) | F130: Less:-Imports (High seas purchases) | V130: =ROUND(MAIN!AC53,0) -> 0
E131: h) | F131: Less:- Interstate purchases of taxble goods against certificate in Form'H' | V131: =ROUND(MAIN!AC54,0) -> 0
E132: i) | F132: Less:- Within the Sate purchases of taxble goods against certificate in Form'H' | V132: =ROUND(MAIN!AC55,0) -> 0
E133: j) | F133: Less:-Inter-State purchases (Excluding purchases against any certificate and declaration in form C, H, F, I) | V133: =ROUND(MAIN!AC56,0) -> 0
E134: k) | F134: Less:-Inter-State Branch/ Consignment transfers received | V134: =ROUND(MAIN!AC57,0) -> 0
E135: l) | F135: Less:- Interstate purchases of taxble goods against declaration in Form'C' | V135: =ROUND(MAIN!AC58,0) -> 0
E136: m) | F136: Less:- Within the Sate purchases of taxble goods against declaration in Form'C' | V136: =ROUND(MAIN!AC59,0) -> 0
E137: n) | F137: Less:- Within the State Branch Transfers /Consignment Transfers received where tax is to be paid by an Agent | V137: =ROUND(MAIN!AC60,0) -> 0
E138: o) | F138: Less:-Within the State purchases of taxable goods from un-registered dealers | V138: =ROUND(MAIN!AC61,0) -> 0
E139: p) | F139: Less:- Interstate purchases of taxable goods against declaration in Form'I' | V139: =ROUND(MAIN!AC62,0) -> 0
E140: q) | F140: Less:-Within the State purchases of taxable goods which are fully exempted from tax u/s 41 and u/s 8 but not covered under section 8(1) | V140: =ROUND(MAIN!AC63,0) -> 0
E141: r) | F141: Less:-Within the State purchases of tax-free goods specified in schedule "A" | V141: =ROUND(MAIN!AC64,0) -> 0
E142: s) | F142: Less:-Labour Job/ Labour charges paid | V142: =ROUND(MAIN!AC65,0) -> 0
E143: t) | F143: Less:-Other allowable reductions, if any | V143: =ROUND(MAIN!AC66,0) -> 0
E144: u) | F144: Less:-Within the State purchases of taxable goods from registered dealers where tax is not collected seperately (Inclusive of tax) | V144: =ROUND(MAIN!AC67,0) -> 0
E145: v) | F145: Less:- Within the State Purchases of Taxable goods purchase from Composition dealer u/s 42(1), (2) | V145: =ROUND(MAIN!AC68,0) -> 0
E146: w) | F146: Less:- Deduction under Section 3(2) | V146: =ROUND(MAIN!AC69,0) -> 0
E147: x) | F147: Balance: Within the State purchases of taxable goods from registered dealers eligible for set-off [c-(d+e+f+g+g+i+j+k+l+m+n+o+p+q+r+s+t+u+v+w) | V147: =V126-SUM(V127:AC146) -> 42340
B149: 15. Computation of Purchase Tax payable on the purchases effected during this period or previous periods | F149: Rate of tax (Drop down selection) | J149: Turnover of Purchases liable to tax (Rs.) | V149: Tax Amount ( Rs) | AU149: ~ | AV149: 1| | AW149: 2| | AX149: 3| | AY149: Merge
A150: =AY150 -> 233|15A|1|~233|15A|2|~233|15A|3| | E150: a) | V150: =ROUND(F150*J150,0) -> 0 | AD150: Manual input in White coloum only | AU150: 233|15A| | AV150: =AU150&AV$149&IF(F150="","",F150*100)&AU$149 -> 233|15A|1|~ | AW150: =AU150&AW$149&J150&AU$149 -> 233|15A|2|~ | AX150: =AU150&AX$149&IF(V150=0,"",V150) -> 233|15A|3| | AY150: =AV150&AW150&AX150 -> 233|15A|1|~233|15A|2|~233|15A|3|
A151: =AY151 -> 233|15B|1|~233|15B|2|~233|15B|3| | E151: b) | V151: =ROUND(F151*J151,0) -> 0 | AD151: Manual input in White coloum only | AU151: 233|15B| | AV151: =AU151&AV$149&IF(F151="","",F151*100)&AU$149 -> 233|15B|1|~ | AW151: =AU151&AW$149&J151&AU$149 -> 233|15B|2|~ | AX151: =AU151&AX$149&IF(V151=0,"",V151) -> 233|15B|3| | AY151: =AV151&AW151&AX151 -> 233|15B|1|~233|15B|2|~233|15B|3|
A152: =AY152 -> 233|15C|1|~233|15C|2|~233|15C|3| | E152: c) | V152: =ROUND(F152*J152,0) -> 0 | AD152: Manual input in White coloum only | AU152: 233|15C| | AV152: =AU152&AV$149&IF(F152="","",F152*100)&AU$149 -> 233|15C|1|~ | AW152: =AU152&AW$149&J152&AU$149 -> 233|15C|2|~ | AX152: =AU152&AX$149&IF(V152=0,"",V152) -> 233|15C|3| | AY152: =AV152&AW152&AX152 -> 233|15C|1|~233|15C|2|~233|15C|3|
A153: =AY153 -> 233|15D|1|~233|15D|2|~233|15D|3| | E153: d) | V153: =ROUND(F153*J153,0) -> 0 | AD153: Manual input in White coloum only | AU153: 233|15D| | AV153: =AU153&AV$149&IF(F153="","",F153*100)&AU$149 -> 233|15D|1|~ | AW153: =AU153&AW$149&J153&AU$149 -> 233|15D|2|~ | AX153: =AU153&AX$149&IF(V153=0,"",V153) -> 233|15D|3| | AY153: =AV153&AW153&AX153 -> 233|15D|1|~233|15D|2|~233|15D|3|
A154: =AY154 -> 233|15E|1|~233|15E|2|~233|15E|3| | E154: e) | V154: =ROUND(F154*J154,0) -> 0 | AD154: Manual input in White coloum only | AU154: 233|15E| | AV154: =AU154&AV$149&IF(F154="","",F154*100)&AU$149 -> 233|15E|1|~ | AW154: =AU154&AW$149&J154&AU$149 -> 233|15E|2|~ | AX154: =AU154&AX$149&IF(V154=0,"",V154) -> 233|15E|3| | AY154: =AV154&AW154&AX154 -> 233|15E|1|~233|15E|2|~233|15E|3|
E155: Total | J155: =SUM(J150:J154) -> 0 | V155: =SUM(V150:V154) -> 0
B157: 16 Tax Rate wise breakup of within state purchase from registered dealers eligible for set-off as per box 14(x) | F157: Rate of tax (Drop down selection) | J157: Net Turnover of purchases (Rs.) | V157: Tax Amount ( Rs) | AU157: ~ | AV157: 1| | AW157: 2| | AX157: 3| | AY157: Merge
A158: =AY158 -> 233|16A|1|~233|16A|2|~233|16A|3| | E158: a) | AD158: Manual input in White coloum only | AU158: 233|16A| | AV158: =AU158&AV$157&IF(F158="","",F158*100)&AU$157 -> 233|16A|1|~ | AW158: =AU158&AW$157&J158&AU$157 -> 233|16A|2|~ | AX158: =AU158&AX$157&V158 -> 233|16A|3| | AY158: =AV158&AW158&AX158 -> 233|16A|1|~233|16A|2|~233|16A|3|
A159: =AY159 -> 233|16B|1|~233|16B|2|~233|16B|3| | E159: b) | AD159: Manual input in White coloum only | AU159: 233|16B| | AV159: =AU159&AV$157&IF(F159="","",F159*100)&AU$157 -> 233|16B|1|~ | AW159: =AU159&AW$157&J159&AU$157 -> 233|16B|2|~ | AX159: =AU159&AX$157&V159 -> 233|16B|3| | AY159: =AV159&AW159&AX159 -> 233|16B|1|~233|16B|2|~233|16B|3|
A160: 233|16C|1|~233|16C|2|~233|16C|3| | E160: c) | AD160: Manual input in White coloum only | AU160: 233|16C| | AV160: 233|16C|1|~ | AW160: 233|16C|2|~ | AX160: 233|16C|3| | AY160: 233|16C|1|~233|16C|2|~233|16C|3|
A161: 233|16D|1|~233|16D|2|~233|16D|3| | E161: d) | AD161: Manual input in White coloum only | AU161: 233|16D| | AV161: 233|16D|1|~ | AW161: 233|16D|2|~ | AX161: 233|16D|3| | AY161: 233|16D|1|~233|16D|2|~233|16D|3|
A162: 233|16E|1|~233|16E|2|~233|16E|3| | E162: e) | AD162: Manual input in White coloum only | AU162: 233|16E| | AV162: 233|16E|1|~ | AW162: 233|16E|2|~ | AX162: 233|16E|3| | AY162: 233|16E|1|~233|16E|2|~233|16E|3|
A163: 233|16F|1|~233|16F|2|~233|16F|3| | E163: f) | AD163: Manual input in White coloum only | AU163: 233|16F| | AV163: 233|16F|1|~ | AW163: 233|16F|2|~ | AX163: 233|16F|3| | AY163: 233|16F|1|~233|16F|2|~233|16F|3|
A164: 233|16G|1|~233|16G|2|~233|16G|3| | E164: g) | AD164: Manual input in White coloum only | AU164: 233|16G| | AV164: 233|16G|1|~ | AW164: 233|16G|2|~ | AX164: 233|16G|3| | AY164: 233|16G|1|~233|16G|2|~233|16G|3|
A165: 233|16H|1|~233|16H|2|~233|16H|3| | E165: h) | AD165: Manual input in White coloum only | AU165: 233|16H| | AV165: 233|16H|1|~ | AW165: 233|16H|2|~ | AX165: 233|16H|3| | AY165: 233|16H|1|~233|16H|2|~233|16H|3|
A166: 233|16I|1|~233|16I|2|~233|16I|3| | E166: i) | AD166: Manual input in White coloum only | AU166: 233|16I| | AV166: 233|16I|1|~ | AW166: 233|16I|2|~ | AX166: 233|16I|3| | AY166: 233|16I|1|~233|16I|2|~233|16I|3|
A167: 233|16J|1|~233|16J|2|~233|16J|3| | E167: j) | AD167: Manual input in White coloum only | AU167: 233|16J| | AV167: 233|16J|1|~ | AW167: 233|16J|2|~ | AX167: 233|16J|3| | AY167: 233|16J|1|~233|16J|2|~233|16J|3|
E168: TOTAL | J168: =ROUND(SUM(J158:U167),0) -> 0 | V168: =ROUND(SUM(V158:AC167),0) -> 0 | AD168: =IF(J168+V168=V147,13,17) -> 17 | AH168: =J168+V168 -> 0
B170: 17. Computation of set-off claimed in this return | F170: Particulars | S170: Purchase Value(Rs.) | Y170: Tax Amount (Rs.)
E171: a) | F171: Within the State purchases of taxable goods from registered dealers eligible for set-off as per Box 16 | AD171: =IF(S171=J168,13,17) -> 13 | AE171: =IF(Y171=V168,13,17) -> 13 | AG171: =IF(AD171=AE171,13,17) -> 13
E172: b) | F172: Less:- Set-off denial on account of purchases from RCC or Composition dealer | AU172: ~ | AV172: 1| | AW172: 2| | AX172: Merge
A173: =AX173 -> 233|17C1|1|~233|17C1|2| | E173: c) | F173: Less: Amount of Set-off not admissible u/r 52A | AD173: Manual input in White coloum only | AU173: 233|17C1| | AV173: =AU173&AV172&S173&AU172 -> 233|17C1|1|~ | AW173: =AU173&AW172&Y173 -> 233|17C1|2| | AX173: =AV173&AW173 -> 233|17C1|1|~233|17C1|2|
A174: =AX174 -> 233|17C2|1|~233|17C2|2| | E174: c1) | F174: Less: Amount of Set-off not admissible u/r 52B | AD174: Manual input in White coloum only | AU174: 233|17C2| | AV174: =AU174&AV172&S174&AU172 -> 233|17C2|1|~ | AW174: =AU174&AW172&Y174 -> 233|17C2|2| | AX174: 233|17C2|1|~233|17C2|2|
A175: 233|17D1|1|~233|17D1|2| | E175: d) | F175: Less: Reduction in the amount of set_off u/r 53 of the corresponding purchase price of (Sch B, C, D & E) goods | P175: Capital Asset | AD175: Manual input in White coloum only | AU175: 233|17D1| | AV175: =AU175&AV172&S175&AU172 -> 233|17D1|1|~ | AW175: =AU175&AW172&Y175 -> 233|17D1|2| | AX175: 233|17D1|1|~233|17D1|2|
A176: 233|17D2|1|~233|17D2|2| | P176: Othe than Capital Assets | AD176: Manual input in White coloum only | AU176: 233|17D2| | AV176: =AU176&AV172&S176&AU172 -> 233|17D2|1|~ | AW176: =AU176&AW172&Y176 -> 233|17D2|2| | AX176: 233|17D2|1|~233|17D2|2|
A177: 233|17E1|1|~233|17E1|2| | E177: e) | F177: Less: Denial in the amount of set_off u/r 54 of the corresponding purchase price | P177: Capital Asset | AD177: Manual input in White coloum only | AU177: 233|17E1| | AV177: =AU177&AV172&S177&AU172 -> 233|17E1|1|~ | AW177: =AU177&AW172&Y177 -> 233|17E1|2| | AX177: 233|17E1|1|~233|17E1|2|
A178: 233|17E2|1|~233|17E2|2| | P178: Othe than Capital Assets | AD178: Manual input in White coloum only | AU178: 233|17E2| | AV178: =AU178&AV172&S178&AU172 -> 233|17E2|1|~ | AW178: =AU178&AW172&Y178 -> 233|17E2|2| | AX178: 233|17E2|1|~233|17E2|2|
A179: 233|17F1|1|~233|17F1|2| | E179: f) | F179: Less:-Within the State Purchases of taxable goods from registered dealers under MVAT Act, 2002 and set-off not claimed. | P179: Capital Asset | AD179: Manual input in White coloum only | AU179: 233|17F1| | AV179: =AU179&AV172&S179&AU172 -> 233|17F1|1|~ | AW179: =AU179&AW172&Y179 -> 233|17F1|2| | AX179: 233|17F1|1|~233|17F1|2|
A180: 233|17F2|1|~233|17F2|2| | P180: Othe than Capital Assets | AD180: Manual input in White coloum only | AU180: 233|17F2| | AV180: =AU180&AV172&S180&AU172 -> 233|17F2|1|~ | AW180: =AU180&AW172&Y180 -> 233|17F2|2| | AX180: 233|17F2|1|~233|17F2|2|
E181: g) | F181: Less:- Within the state purchases of Capital Asset from registered dealer Set-off withheld for staggered manner
E182: h) | F182: Set-off available for the period of this return [a-(b+c+c1+d+e+f+g)] | Y182: =Y171-(Y172+Y173+Y174+Y175+Y176+Y177+Y178+Y179+Y180+Y181) -> 0
E183: i) | F183: Add:- Allowance of set-off reversed in earlier return/s | S183: Capital Assets
S184: Other than Capital Assets
A185: =AV185 -> 233|17J1|1| | E185: j) | F185: Less:- Reduction u/r 52A, 52B, 53 and denial u/r 54 out of above i (h+(i-j)) | S185: Capital Assets ( with staggered Set-off credit) | AD185: Manual input in White coloum only | AU185: 233|17J1| | AV185: =AU185&AV172&Y185 -> 233|17J1|1|
A186: =AV186 -> 233|17J2|1| | S186: Other than Capital Assets | AD186: Manual input in White coloum only | AU186: 233|17J2| | AV186: =AU186&AV172&Y186 -> 233|17J2|1|
A187: =AV187 -> 233|17K|1| | E187: k) | F187: Add: Allowance of Set-off not claimed on goods return | AD187: Manual input in White coloum only | AU187: 233|17K| | AV187: =AU187&AV172&Y187 -> 233|17K|1|
E188: l) | F188: Total Set-off Admisible for the period of this return | Y188: =Y182+(Y183-Y185)+(Y184-Y186) -> 0
B190: 18. Computation for Tax payable along with return
F191: Particulars | V191: Amount ( Rs)
B192: A. Aggregate of credit available for the period covered under this return | F192: a) | G192: Set off admisible as per Box 17 (l) | V192: =ROUND(Y188,0) -> 0 | AD192: =IF(V192=Y188,13,17) -> 13
F193: b) | G193: Excess credit brought forward from previous return
F194: c) | G194: Amount already paid (As per Box 18 E)
F195: d) | G195: Excess Credit if any , as per Form 234/235, to be adjusted against the liability as per Form 233 | AV195: 1|
A196: =AV196 -> 233|18AE|1| | F196: e) | G196: Adjustment of ET paid under Maharashtra Tax on Entry of Goods into Local Areas Act, 2002 | AD196: Manual input in White coloum only | AU196: 233|18AE| | AV196: =AU196&AV195&V196 -> 233|18AE|1|
A197: =AV197 -> 233|18AF|1| | F197: f) | G197: Adjustment of ET paid under Maharashtra Tax on Entry of Motor Vehicle Act into Local Areas Act, 1987 | AD197: Manual input in White coloum only | AU197: 233|18AF| | AV197: =AU197&AV195&V197 -> 233|18AF|1|
A198: 233|18AG|1| | F198: g) | G198: Amount of Tax deducted at source u/s 31 | AD198: Manual input in White coloum only | AU198: 233|18AG| | AV198: =AU198&AV195&V198 -> 233|18AG|1|
A199: 233|18AH|1| | F199: h) | G199: Amount of Tax collected at source u/s 31A | AD199: Manual input in White coloum only | AU199: 233|18AH| | AV199: =AU199&AV195&V199 -> 233|18AH|1|
F200: i) | G200: Refund adjustment order No. (As per Box 18 F )
F201: j) | G201: Total available credit (a+b+c+d+e+f+g+h+i) | V201: =ROUND(SUM(V192:AC200),0) -> 0
B202: B Total tax payable and adjustment of CST/ET payable against available credit | F202: a) | G202: Sales Tax payable as per box 7+ Sales Tax payable as per box 9 +Sales Tax payable as per box12+ Sales Tax payable as per box 13+ Purchase Tax payable as per box 15 | V202: =ROUND(V155+V121+V111+V87+V53,0) -> 0 | AV202: 1|
A203: 233|18BB|1| | F203: b) | G203: Adjustment on account of MVAT payable, if any as per Return Form 234/235 against the excess credit as per Form 233. | AD203: Manual input in White coloum only | AU203: 233|18BB| | AV203: =AU203&AV$202&V203 -> 233|18BB|1|
A204: 233|18BC|1| | F204: c) | G204: Adjustment on account of CST payable as per return for this period | AD204: Manual input in White coloum only | AU204: 233|18BC| | AV204: =AU204&AV$202&V204 -> 233|18BC|1|
A205: 233|18BD|1| | F205: d) | G205: Adjustment on account of ET payable under Maharashtra tax on Entry of Goods into Local Areas Act, 2002 | AD205: Manual input in White coloum only | AU205: 233|18BD| | AV205: =AU205&AV$202&V205 -> 233|18BD|1|
A206: 233|18BE|1| | F206: e) | G206: Adjustment on account of ET payable under Maharashtra Tax on Entry of Motor Vehicle Act into Local Areas Act, 1987 | AD206: Manual input in White coloum only | AU206: 233|18BE| | AV206: =AU206&AV$202&V206 -> 233|18BE|1|
F207: f) | G207: Amount of Tax Collected in Excess of the amount of Sales Tax payable if any ( as per Box 12A)
F208: g) | G208: Interest Payable
F209: h) | G209: Late Fee Payable
F210: i) | G210: Add: Adjustment on account of set-off claimed Excess in earlier return | P210: Capital Assets
P211: Othe than Capital Assets
A212: 233|18BJ1|1| | F212: j) | G212: Reduction u/r 52A, 52B, 53 and denial u/r 54 out of above (i) | P212: Capital Assets (with staggered Set-off credit) | AD212: Manual input in White coloum only | AU212: 233|18BJ1| | AV212: =AU212&AV202&V212 -> 233|18BJ1|1|
A213: 233|18BJ2|1| | P213: Othe than Capital Assets | AD213: Manual input in White coloum only | AU213: 233|18BJ2| | AV213: =AU213&AV202&V213 -> 233|18BJ2|1|
... 16 more rows

Sheet 233-old (hidden)
A1: 0 | S1: INVALID
A2: 1 | B2: FORM 233 | AA2: Ver 1.8.3
A3: 2 | B3: Return of tax payable by a dealer under M.V.A.T. Act, 2002 (See Rule 17, 17A, 18 and 45)
A4: 3 | B4: 1 | E4: M.V.A.T. R.C. NO. | J4: =IF(Header!C5="","",Header!C5) -> 27981000061V | R4: C.S.T. R.C. NO. | W4: =IF(Header!E5="","",Header!E5) -> 27981000061C
A5: 4 | I5: Type Of Return Not Entered
A6: 5
A7: 6 | B7: 2 | E7: Name of Dealer | J7: =IF(ISBLANK(Header!C6),"",(Header!C6)) -> ABC LTD
A8: 7
A9: 8
A10: 9
A11: 10
A12: 11
A13: 12
A14: 13 | B14: 3.Please Select which ever is Applicable | E14: Type of Return (Select appropriate) ( Drop down selection) | M14: =IF(ISBLANK(Header!C7),"",(Header!C7)) -> ORIGINAL | S14: Whether First Return ? (In Case of New Registration / Package scheme period)) | AB14: =IF(ISBLANK(Header!C9),"",(Header!C9)) -> NO
A15: 14
A16: 15 | E16: Periodicity of Return (Select appropriate) ( Drop down selection) | M16: =IF(ISBLANK(Header!E8),"",(Header!E8)) -> 2016 July | S16: Whether Last Return ? (In Case of Cancellation of Registration Or end of package scheme of incentive) | AB16: =IF(ISBLANK(Header!E9),"",(Header!E9)) -> NO
A17: 16
A18: 17 | B18: 4 | E18: Period Covered by Return | J18: From | M18: Date | P18: Month | R18: Year | T18: To | W18: Date | Z18: Month | AB18: Year
A19: 18 | M19: =IF(ISBLANK(Header!C11),"",(Header!C11)) -> 01 | P19: =IF(ISBLANK(Header!D11),"",(Header!D11)) -> Jul | R19: =IF(ISBLANK(Header!E11),"",(Header!E11)) -> 2016 | W19: =IF(ISBLANK(Header!C12),"",(Header!C12)) -> 31 | Z19: =IF(ISBLANK(Header!D12),"",(Header!D12)) -> Jul | AB19: =IF(ISBLANK(Header!E12),"",(Header!E12)) -> 2016
A20: 20
A21: 21 | B21: 5 Business activities include (Please select one or more box, as applicable) | E21: Execution of works contracts and ongoing works Contract , including under composition option | J21: Leasing business | N21: Part of the business activity under composition option (Please tick one or more box, as applicable)
A22: 22 | N22: Retailer | R22: Restaurant , Club, Caterer etc. | V22: Baker | Z22: Second hand motor vehicles
A23: 23
A24: 25
A25: 26 | B25: 6 Computation of Net Turnover of Sales liable to tax : (Part A) | F25: Particulars | V25: Amount ( Rs)
A26: 27 | E26: a) | F26: Gross turnover of sales including, taxes as well as turnover of non sales transactions like value of Branch Transfer, Consignment transfers, job work charges etc | V26: =ROUND(SUM(MAIN!AC3),0) -> 15144
E27: b) | F27: Less:- Turnover of Sales (including taxes thereon) including inter-state Consignment Transfers and Branch Transfers Covered under Form Number 234 or 235 | V27: =ROUND(SUM(MAIN!AC4),0) -> 0
E28: c ) | F28: Balance :- Turnover Considered under this Form (a-b) | V28: =V26-V27 -> 15144
E29: d) | F29: Add:- Value of Goods return (inclusive of tax) including reduction of sale price on account of rate difference and discount claimed in earlier period but not confirmed by buyer.
A30: 28 | E30: e) | F30: Less:-Value ( inclusive of sales tax) of Goods Return | V30: =ROUND(SUM(MAIN!AC7),0) -> 0
E31: f) | F31: Less:- Credit Note , price on account of rate difference and discount Within State . | V31: =ROUND(SUM(MAIN!AC8),0) -> 0
E32: g) | F32: Less:- Value of Goods return (inclusive of tax) including reduction of sale price on account of rate difference and discount claimed in earlier period which is confirmed.
A33: 29 | E33: h) | F33: Balance:- Turnover of sales including, taxes as well as turnover of non sales transactions like value of Branch Transfer, Consignment transfers, job work charges etc ( (c+d)-(e+ f+g)) | V33: =(V28+V29)-(V30+V31+V32) -> 15144
A34: 30 | E34: i) | F34: Less:-Turnover of sales under composition scheme(s) , other than Works Contracts under composition option (Computation of turnover of sales liable to tax to be shown in 8 Part B) | V34: =ROUND(SUM(MAIN!AC11),0) -> 0
E35: j) | F35: Less:-Turnover of sales under Works Contracts under composition option (Computation of turnover of sales liable to tax to be shown in Part 12 ) | V35: =ROUND(SUM(MAIN!AC12),0) -> 0
A36: 31 | E36: k) | F36: Less:-Turnover of sales (excluding taxes) relating to on-going works contracts (Computation of turnover of sales liable to tax to be shown in 10 Part C) | V36: =ROUND(SUM(MAIN!AC13),0) -> 0
A37: 32 | E37: l) | F37: Less:-Turnover of sales (excluding taxes) relating to on-going leasing contracts (Computation of turnover of sales liable to tax to be shown in 10 Part D) | V37: =ROUND(SUM(MAIN!AC14),0) -> 0
A38: 33 | E38: m) | F38: Balance: Net turnover of sales including, taxes, as well as turnover of non sales transactions like Branch Transfers / Consignment transfers and job works charges , etc (h) -(i+j+k+l) | V38: =V33-(SUM(V34:AC37)) -> 15144
A39: 34 | E39: n) | F39: Less:-Net Tax amount ( Tax included in sales shown in (c) above less Tax included in (e+f+g) above) | V39: =ROUND(SUM(MAIN!AC16),0) -> 0
E40: o) | F40: Less:- Total Value in which tax is not collected seperatly ( Inclusive of Tax with gross Amount ) | V40: =ROUND(SUM(MAIN!AC17),0) -> 0
A41: 35 | E41: p) | F41: Less:-Value of Branch Transferes/ Consignment transfers within the State if the tax is to be paid by an Agent | V41: =ROUND(SUM(MAIN!AC18),0) -> 0
A42: 36 | E42: q) | F42: Less:-Sales u/s 8 (1) i.e. Interstate Sales including Central Sales Tax, Sales in the course of imports, exports and value of Branch Transfers/ Consignment transfers outside the State | V42: =ROUND(SUM(MAIN!AC19),0) -> 15144
A43: 39 | E43: r) | F43: Less:- Non-taxable labour and other charges / expenses u/r 58(1), cost of land u/r 58(1A), deduction u/r 58(1B) for execution of works contract | AE43: Manual input in White coloum only
A44: 40 | E44: s) | F44: Less:- Amount paid by way of price for sub-contract where tax is borne by sub-contractor | V44: =ROUND(SUM(MAIN!AC21),0) -> 0
E45: t) | F45: Less:- Amount paid by way of price for sub-contract where tax is borne by principal contractor | V45: =ROUND(SUM(MAIN!AC22),0) -> 0
A46: 41 | E46: u) | F46: Less:-Sales of tax-free goods specified in Schedule "A" | V46: =ROUND(SUM(MAIN!AC23),0) -> 0
A47: 42 | E47: v) | F47: Less:-Sales of taxable goods fully exempted u/s 41 and u/s. 8 other than sales under section 8(1) & covered in Box 6(q) | V47: =ROUND(SUM(MAIN!AC24),0) -> 0
A48: 43 | E48: w) | F48: Less:-Labour/Job work charges | V48: =ROUND(SUM(MAIN!AC25),0) -> 0
A49: 44 | E49: x) | F49: Less:-Other allowable deductions, if any | V49: =ROUND(SUM(MAIN!AC26),0) -> 0
E50: y) | F50: Less:- Deduction under Section 3(2) | V50: =ROUND(SUM(MAIN!AC27),0) -> 0
E51: z) | F51: Balance: Net turnover of Sales liable to tax [m-(n+o+p+q+r+s+t+u+v+w+x+y) | V51: =V38-(SUM(V39:AC50)) -> 0
A52: 46
A53: 80 | B53: 7 Computation of Sales Tax Seperately collected under the M VAT Act as per box 6(z), 10(e ) and 11 (c) | F53: Rate of tax (Drop down selection) | J53: Turnover of sales liable to tax (Rs.) | V53: Tax Amount ( Rs)
A54: 81 | E54: a) | F54: 0.01 | V54: =ROUND(F54*J54,0) -> 0 | AE54: Manual input in White coloum only
A55: 82 | E55: b) | F55: 0.05 | V55: =ROUND(F55*J55,0) -> 0 | AE55: Manual input in White coloum only
E56: c) | F56: 0.08 | V56: =ROUND(F56*J56,0) -> 0 | AE56: Manual input in White coloum only
E57: d) | V57: =ROUND(F57*J57,0) -> 0 | AE57: Manual input in White coloum only
E58: SUB TOTAL | J58: =SUM(J54:U57) -> 0 | V58: =SUM(V54:AC57) -> 0 | AE58: Manual input in White coloum only
A59: 83 | E59: Computation of Tax under Works Contracts by way of composition (Inclusive of Tax) | AE59: Manual input in White coloum only
A60: 84 | E60: g) | V60: =ROUND(F60*J60,0) -> 0 | AE60: Manual input in White coloum only
A61: 85 | E61: h) | V61: =ROUND(F61*J61,0) -> 0 | AE61: Manual input in White coloum only
A62: 86 | E62: i) | V62: =ROUND(F62*J62,0) -> 0 | AE62: Manual input in White coloum only
A63: 87 | E63: TOTAL | J63: =ROUND(SUM(J54:J62),0) -> 0 | V63: =ROUND(SUM(V54:V62),0) -> 0 | AD63: =J63=V51 -> TRUE | AE63: =IF(J63=V51,13,17) -> 13
A64: 47
A65: 48 | B65: 8 ( PART-B) Computation of net turnover of sales liable to tax under composition | F65: Particulars | V65: Amount (Rs.)
A66: 49 | E66: A | F66: Turnover of sales (excluding taxes) under composition scheme(s) [Same as 6(i)] | V66: =V34 -> 0 | AD66: =V66=V34 -> TRUE | AE66: =IF(V66=V34,13,17) -> 13
A67: 50 | E67: B | F67: RETAILER
A68: 51 | E68: a) | F68: Total turnover of Sales | V68: =ROUND(SUM(MAIN!AC33),0) -> 0 | AE68: Manual input in White coloum only
A69: 52 | E69: b) | F69: Less:-Turnover of sales of goods excluded from the Composition Scheme | AE69: Manual input in White coloum only
A70: 53 | E70: c) | F70: Less:- Allowable deductions | AE70: Manual input in White coloum only
A71: 54 | E71: d) | F71: Balance:Net turnover of sales liable to tax under composition option [a-{b+c)] | V71: =V68-SUM(V69:V70) -> 0
A72: 55 | E72: C | F72: RESTAURANT, CLUB, CATERER ETC
A73: 56 | E73: a) | F73: Total turnover of sales. | V73: =ROUND(SUM(MAIN!AC35),0) -> 0 | AE73: Manual input in White coloum only
A74: 57 | E74: D | F74: BAKER
A75: 58 | E75: a) | F75: Total turnover of sales | V75: =ROUND(SUM(MAIN!AC37),0) -> 0 | AE75: Manual input in White coloum only
A76: 59 | E76: E | F76: SECOND HAND MOTOR VEHICLES DEALERS
A77: 60 | E77: a) | F77: Total turnover of sales | V77: =ROUND(SUM(MAIN!AC39),0) -> 0 | AE77: Manual input in White coloum only
A78: 61 | E78: b) | F78: Less: Allowable reductions/ deductions | AE78: Manual input in White coloum only
A79: 62 | E79: c) | F79: Balance:Net turnover of sales, liable to tax under composition option ( a-b) | V79: =ROUND(IF(V77-V78>0,V77-V78,0),0) -> 0
A80: 59 | E80: F | F80: LEASE COMPOSITION DEALER
A81: 60 | E81: a) | F81: Total turnover of sales | V81: =ROUND(SUM(MAIN!AC41),0) -> 0 | AE81: Manual input in White coloum only
A82: 61 | E82: b) | F82: Less: Allowable reductions/ deductions | AE82: Manual input in White coloum only
A83: 62 | E83: c) | F83: Balance:Net turnover of sales, liable to tax under composition option ( a-b) | V83: =ROUND(IF(V81-V82>0,V81-V82,0),0) -> 0
A84: 63 | E84: G ) | F84: Total net turnover of sales liable to tax under composition option [8(B) (d) + 8(C) (a) + 8(D) (a) + 8(E) (c) + 8(F)(c )] | V84: =ROUND(V71+V73+V75+V79+V83,0) -> 0
A85: 64
A86: 80 | B86: 9 Computation of Sales Tax payable by way of composition other than works contract under the MVAT Act | F86: Rate of tax (Drop down selection) | J86: Turnover of sales liable to tax (Rs.) | V86: Tax Amount ( Rs)
A87: 81 | E87: a) | V87: =ROUND(F87*J87,0) -> 0 | AE87: Manual input in White coloum only
A88: 82 | E88: b) | V88: 0 | AE88: Manual input in White coloum only
A89: 83 | E89: c) | V89: 0 | AE89: Manual input in White coloum only
E90: d) | V90: =ROUND(F90*J90,0) -> 0 | AE90: Manual input in White coloum only
E91: e) | V91: =ROUND(F91*J91,0) -> 0 | AE91: Manual input in White coloum only
E92: f) | V92: =ROUND(F92*J92,0) -> 0 | AE92: Manual input in White coloum only
E93: g) | V93: =ROUND(F93*J93,0) -> 0 | AE93: Manual input in White coloum only
A94: 84 | E94: h) | V94: 0 | AE94: Manual input in White coloum only
A95: 85 | E95: i) | V95: 0 | AE95: Manual input in White coloum only
A96: 86 | E96: j) | V96: 0 | AE96: Manual input in White coloum only
A97: 87 | E97: TOTAL | J97: =ROUND(SUM(J87:J96),0) -> 0 | V97: =ROUND(SUM(V87:V96),0) -> 0 | AD97: =J97=V84 -> TRUE | AE97: =IF(J97=V84,13,17) -> 13
A98: 65
A99: 66 | B99: 10 ( PART-C) Computation of net turnover of sales relating to on-going works contracts liable to tax under section 96(1)(g) of the MVAT Act, 2002 | F99: Particulars | V99: Amount (Rs.)
A100: 67 | E100: a) | F100: Turnover of sales (excluding tax/composition) releting to on going work contract during the period [same as Box 6(k)] | V100: =ROUND(V36,0) -> 0 | AE100: =IF(V100=V36,13,17) -> 13
A101: 68 | E101: b) | F101: Less:-Turnover of sales exempted from tax | AE101: Manual input in White coloum only
A102: 69 | E102: c) | F102: Less:-Deduction u/s 6 of the Earlier Law | AE102: Manual input in White coloum only
A103: 70 | E103: d) | F103: Less:-Deduction u/s.6(A) of the Earlier Law | AE103: Manual input in White coloum only
A104: 71 | E104: e) | F104: Balance:Net turnover of sales liable to tax/ composition [a-(b+c+d)] | V104: =V100-V101-V102-V103 -> 0
A105: 73
A106: 74 | B106: 11 ( PART-D) Computation of net turnover of sales relating to on-going leasing contracts liable to tax under sec 96(10) (f) of the MVAT Act, 2002 | F106: Particulars | V106: Amount ( Rs)
A107: 75 | E107: a) | F107: Turnover of sales (excluding taxes) Relating to On-going Leasing Contracts[same as Box 6(l)] | V107: =ROUND(V37,0) -> 0 | AE107: =IF(V107=V37,13,17) -> 13
A108: 76 | E108: b) | F108: Less: Turnover of sales exempted from tax. | AE108: Manual input in White coloum only
A109: 77 | E109: c) | F109: Balance:Net turnover of sales liable to tax (a-b) | V109: =(V107-V108) -> 0
A110: 79
A111: 80 | B111: 12 Computation of Tax under Works Contracts by way of composition option payable under the MVAT Act | F111: Rate of tax (Drop down selection) | J111: Turnover of sales liable to tax (Rs.) | V111: Tax Amount ( Rs)
A112: 81 | E112: a) | V112: =ROUND(F112*J112,0) -> 0 | AE112: Manual input in White coloum only
A113: 82 | E113: b) | V113: =ROUND(F113*J113,0) -> 0 | AE113: Manual input in White coloum only
A114: 83 | E114: c) | V114: =ROUND(F114*J114,0) -> 0 | AE114: Manual input in White coloum only
E115: d) | V115: =ROUND(F115*J115,0) -> 0 | AE115: Manual input in White coloum only
E116: SUB TOTAL | J116: =SUM(J112:U115) -> 0 | V116: =SUM(V112:AC115) -> 0
E117: Computation of Tax under Works Contracts by way of composition (Inclusive of Tax)
A118: 84 | E118: e) | V118: =J118*(F118*100)/((F118*100)+100) -> 0 | AE118: Manual input in White coloum only
E119: f) | V119: =J119*(F119*100)/((F119*100)+100) -> 0 | AE119: Manual input in White coloum only
A120: 85 | E120: g) | V120: =J120*(F120*100)/((F120*100)+100) -> 0 | AE120: Manual input in White coloum only
A121: 86 | E121: h) | V121: =J121*(F121*100)/((F121*100)+100) -> 0 | AE121: Manual input in White coloum only
E122: SUB TOTAL | J122: =SUM(J118:U121) -> 0 | V122: =SUM(V118:AC121) -> 0 | AE122: Manual input in White coloum only
